Workbook

Sheet Control
A1: Sheets | B1: Text File Names | C1: Description | E1: Notes: 50 sheets maximum
A2: P_SW002 | B2: Concentrations\SW002_Conc_Output.txt | C2: Project concentrations in the Partridge River at SW-002 | E2: Referenced text files must be in same root folder as this spreadsheet
A3: P_SW003 | B3: Concentrations\SW003_Conc_Output.txt | C3: Project concentrations in the Partridge River at SW-003
A4: P_SW004 | B4: Concentrations\SW004_Conc_Output.txt | C4: Project concentrations in the Partridge River at SW-004
A5: P_SW004a | B5: Concentrations\SW004a_Conc_Output.txt | C5: Project concentrations in the Partridge River at SW-004a
A6: P_SW004b | B6: Concentrations\SW004b_Conc_Output.txt | C6: Project concentrations in the Partridge River at SW-005b
A7: P_SW005 | B7: Concentrations\SW005_Conc_Output.txt | C7: Project concentrations in the Partridge River at SW-005b
A8: P_SW006 | B8: Concentrations\SW006_Conc_Output.txt | C8: Project concentrations in the Partridge River at SW-006 | F8: Run Time Min: | G8: =MIN(P_SW002!B5,P_SW003!B5,P_SW004!B5,P_SW004a!B5,P_SW004b!B5,P_SW005!B5,P_SW006!B5,P_ColbyLake!B5,NA_SW002!B5,NA_SW003!B5,NA_SW004!B5,NA_SW004a!B5,NA_SW004b!B5,NA_SW005!B5,NA_SW006!B5,NA_ColbyLake!B5) -> 2014-12-15T22:56:18
A9: P_ColbyLake | B9: Concentrations\Colby_Conc_Output.txt | C9: Project concentrations in the Partridge River at Colby Lake | F9: Run Time Max: | G9: =MAX(P_SW002!B5,P_SW003!B5,P_SW004!B5,P_SW004a!B5,P_SW004b!B5,P_SW005!B5,P_SW006!B5,P_ColbyLake!B5,NA_SW002!B5,NA_SW003!B5,NA_SW004!B5,NA_SW004a!B5,NA_SW004b!B5,NA_SW005!B5,NA_SW006!B5,NA_ColbyLake!B5) -> 2014-12-15T22:56:18
A10: NA_SW002 | B10: Concentrations\SW002_NoAct_Conc_Output.txt | C10: No Action concentrations in the Partridge River at SW-002
A11: NA_SW003 | B11: Concentrations\SW003_NoAct_Conc_Output.txt | C11: No Action concentrations in the Partridge River at SW-003
A12: NA_SW004 | B12: Concentrations\SW004_NoAct_Conc_Output.txt | C12: No Action concentrations in the Partridge River at SW-004
A13: NA_SW004a | B13: Concentrations\SW004a_NoAct_Conc_Output.txt | C13: No Action concentrations in the Partridge River at SW-004a
A14: NA_SW004b | B14: Concentrations\SW004b_NoAct_Conc_Output.txt | C14: No Action concentrations in the Partridge River at SW-004b
A15: NA_SW005 | B15: Concentrations\SW005_NoAct_Conc_Output.txt | C15: No Action concentrations in the Partridge River at SW-005
A16: NA_SW006 | B16: Concentrations\SW006_NoAct_Conc_Output.txt | C16: No Action concentrations in the Partridge River at SW-006
A17: NA_ColbyLake | B17: Concentrations\Colby_NoAct_Conc_Output.txt | C17: No Action concentrations in the Partridge River at Colby Lake

Sheet PlotControl
A2: Model Name: | B2: Mine Site Version 6.0
A4: Plot: | B4: Annual Max | C4: =B2 & " Model " & IF(B4="Annual Max", "Annual Maximum", B4) & " of Concentration Statistics " & B6 & " in " & IF(B8=A22,A22, "the Partridge River at " & B8) -> Mine Site Version 6.0 Model Annual Maximum of Concentration Statistics Cu in the Partridge River at SW004a | V4: Directory to save PDFs to: | W4: C:\Users\cda\Desktop\temp
C5: =B2 & " Model Monthly Concentration Statistics " & B6 & " in " & IF(B8=A22,A22, "the Partridge River at " & B8) -> Mine Site Version 6.0 Model Monthly Concentration Statistics Cu in the Partridge River at SW004a | V5: Starting figure caption | W5: Figure K-08-28.2
A6: Constituent to Plot (dropdown): | B6: Cu | C6: =MATCH(B6,$A$25:$A$52,0) -> 13
V7: Note: This loops through the plots, constituent, and location drop down menus.
A8: Location to Plot (dropdown): | B8: SW004a | C8: =MATCH(B8,$A$15:$A$22,0) -> 4
A10: Initial Time for Monthly Plot (yr): | B10: 0
B11: =B10+20 -> 20
A14: Locations | B14: Number
A15: SW002 | B15: 1
A16: SW003 | B16: 2
A17: SW004 | B17: 3 | D17: Note: Hardness-based standards are computed based on annual average hardness P10, P50, and P90. Low hardness concentrations may not correspond to high solute concentrations. For locations SW-004 and SW-004a, the median observed hardness (102.5 and 105.5 mg/L, respectively) is used to evaluate hardness-based standards.
A18: SW004a | B18: 4
A19: SW004b | B19: 5
A20: SW005 | B20: 6
A21: SW006 | B21: 7
A22: Colby Lake | B22: 8
I23: Annual Project Results | L23: Annual No-Action Results | O23: SW Standard | T23: Monthly Project Results | W23: Monthly No-Action Results
A24: Constituent | B24: Partridge Standard (ug/L) | C24: Colby Standard (ug/L) | D24: Hardness Based "A" | E24: Hardness Based "B" | F24: Hardness Based Known Value (ug/L) | H24: Time | I24: P10 | J24: P50 | K24: P90 | L24: P10 | M24: P50 | N24: P90 | O24: P10 Hardness | P24: P50 Hardness or Constant | Q24: P90 Hardness | S24: Time | T24: P10 | U24: P50 | V24: P90 | W24: P10 | X24: P50 | Y24: P90 | Z24: SW Standard
A25: Ag | B25: 1 | C25: 1 | F25: =EXP(D25*LN(100)+E25) ->  | H25: 1 | I25: =VLOOKUP($H25,P_All!$A$5:$Y$204,3*($C$8-1)+2) -> 1.5429 | J25: =VLOOKUP($H25,P_All!$A$5:$Y$204,3*($C$8-1)+3) -> 1.5429 | K25: =VLOOKUP($H25,P_All!$A$5:$Y$204,3*($C$8-1)+4) -> 2.9685 | L25: =VLOOKUP($H25,NA_All!$A$5:$Y$204,3*($C$8-1)+2) -> 1.5429 | M25: =VLOOKUP($H25,NA_All!$A$5:$Y$204,3*($C$8-1)+3) -> 1.5429 | N25: =VLOOKUP($H25,NA_All!$A$5:$Y$204,3*($C$8-1)+4) -> 2.969 | O25: =IF(ISNA(VLOOKUP($B$6,$A$25:$E$52,IF($B$8=$A$22,3,2))),EXP(VLOOKUP($B$6,$A$25:$E$52,4)*LN(VLOOKUP($H25,P_Hard!$A$5:$Y$204,3*($C$8-1)+2)/1000)+VLOOKUP($B$6,$A$25:$E$52,5)),NA()) -> 9.488108417 | P25: =IF(AND($B$8=$A$20,$B$6=$A$48),$B$54,IF(ISNA(VLOOKUP($B$6,$A$25:$F$52,IF($B$8=$A$22,3,2),FALSE)),VLOOKUP($B$6,$A$25:$F$52,6),VLOOKUP($B$6,$A$25:$F$52,IF($B$8=$A$22,3,2),FALSE))) -> 9.765624442 | Q25: =IF(ISNA(VLOOKUP($B$6,$A$25:$E$52,IF($B$8=$A$22,3,2))),EXP(VLOOKUP($B$6,$A$25:$E$52,4)*LN(VLOOKUP($H25,P_Hard!$A$5:$Y$204,3*($C$8-1)+4)/1000)+VLOOKUP($B$6,$A$25:$E$52,5)),NA()) -> 9.488108417 | S25: =B10 -> 0 | T25: =VLOOKUP($S25,P_All!$AA$5:$AY$245,3*($C$8-1)+2) -> 1.5429 | U25: =VLOOKUP($S25,P_All!$AA$5:$AY$245,3*($C$8-1)+3) -> 1.5429 | V25: =VLOOKUP($S25,P_All!$AA$5:$AY$245,3*($C$8-1)+4) -> 1.5429 | W25: =VLOOKUP($S25,NA_All!$AA$5:$AY$245,3*($C$8-1)+2) -> 1.5429 | X25: =VLOOKUP($S25,NA_All!$AA$5:$AY$245,3*($C$8-1)+3) -> 1.5429 | Y25: =VLOOKUP($S25,NA_All!$AA$5:$AY$245,3*($C$8-1)+4) -> 1.5429 | Z25: =IF(AND($B$8=$A$20,$B$6=$A$48),$B$54,IF(ISNA(VLOOKUP($B$6,$A$25:$E$52,IF($B$8=$A$22,3,2),FALSE)),EXP(VLOOKUP($B$6,$A$25:$E$52,4,FALSE)*LN(VLOOKUP($H25,P_Hard!$A$5:$Y$204,3*($C$8-1)+3,FALSE)/1000)+VLOOKUP($B$6,$A$25:$E$52,5,FALSE)),VLOOKUP($B$6,$A$25:$E$52,IF($B$8=$A$22,3,2),FALSE))) -> 9.488108417
A26: Al | B26: 125 | C26: 125 | F26: =EXP(D26*LN(100)+E26) ->  | H26: 2 | I26: =VLOOKUP($H26,P_All!$A$5:$Y$204,3*($C$8-1)+2) -> 1.2568 | J26: =VLOOKUP($H26,P_All!$A$5:$Y$204,3*($C$8-1)+3) -> 1.4763 | K26: =VLOOKUP($H26,P_All!$A$5:$Y$204,3*($C$8-1)+4) -> 2.858 | L26: =VLOOKUP($H26,NA_All!$A$5:$Y$204,3*($C$8-1)+2) -> 1.2602 | M26: =VLOOKUP($H26,NA_All!$A$5:$Y$204,3*($C$8-1)+3) -> 1.4811 | N26: =VLOOKUP($H26,NA_All!$A$5:$Y$204,3*($C$8-1)+4) -> 2.859 | O26: =IF(ISNA(VLOOKUP($B$6,$A$25:$E$52,IF($B$8=$A$22,3,2))),EXP(VLOOKUP($B$6,$A$25:$E$52,4)*LN(VLOOKUP($H26,P_Hard!$A$5:$Y$204,3*($C$8-1)+2)/1000)+VLOOKUP($B$6,$A$25:$E$52,5)),NA()) -> 9.488108417 | P26: =IF(AND($B$8=$A$20,$B$6=$A$48),$B$54,IF(ISNA(VLOOKUP($B$6,$A$25:$F$52,IF($B$8=$A$22,3,2),FALSE)),VLOOKUP($B$6,$A$25:$F$52,6),VLOOKUP($B$6,$A$25:$F$52,IF($B$8=$A$22,3,2),FALSE))) -> 9.765624442 | Q26: =IF(ISNA(VLOOKUP($B$6,$A$25:$E$52,IF($B$8=$A$22,3,2))),EXP(VLOOKUP($B$6,$A$25:$E$52,4)*LN(VLOOKUP($H26,P_Hard!$A$5:$Y$204,3*($C$8-1)+4)/1000)+VLOOKUP($B$6,$A$25:$E$52,5)),NA()) -> 9.488108417 | S26: =S25+1/12 -> 0.08333333333 | T26: =VLOOKUP($S26,P_All!$AA$5:$AY$245,3*($C$8-1)+2) -> 1.2123 | U26: =VLOOKUP($S26,P_All!$AA$5:$AY$245,3*($C$8-1)+3) -> 1.4648 | V26: =VLOOKUP($S26,P_All!$AA$5:$AY$245,3*($C$8-1)+4) -> 1.8521 | W26: =VLOOKUP($S26,NA_All!$AA$5:$AY$245,3*($C$8-1)+2) -> 1.2123 | X26: =VLOOKUP($S26,NA_All!$AA$5:$AY$245,3*($C$8-1)+3) -> 1.4589 | Y26: =VLOOKUP($S26,NA_All!$AA$5:$AY$245,3*($C$8-1)+4) -> 1.8521 | Z26: =IF(AND($B$8=$A$20,$B$6=$A$48),$B$54,IF(ISNA(VLOOKUP($B$6,$A$25:$E$52,IF($B$8=$A$22,3,2),FALSE)),EXP(VLOOKUP($B$6,$A$25:$E$52,4,FALSE)*LN(VLOOKUP($H26,P_Hard!$A$5:$Y$204,3*($C$8-1)+3,FALSE)/1000)+VLOOKUP($B$6,$A$25:$E$52,5,FALSE)),VLOOKUP($B$6,$A$25:$E$52,IF($B$8=$A$22,3,2),FALSE))) -> 9.488108417
A27: Alkalinity | H27: 3 | I27: =VLOOKUP($H27,P_All!$A$5:$Y$204,3*($C$8-1)+2) -> 1.2412 | J27: =VLOOKUP($H27,P_All!$A$5:$Y$204,3*($C$8-1)+3) -> 1.4752 | K27: =VLOOKUP($H27,P_All!$A$5:$Y$204,3*($C$8-1)+4) -> 2.8726 | L27: =VLOOKUP($H27,NA_All!$A$5:$Y$204,3*($C$8-1)+2) -> 1.2433 | M27: =VLOOKUP($H27,NA_All!$A$5:$Y$204,3*($C$8-1)+3) -> 1.4794 | N27: =VLOOKUP($H27,NA_All!$A$5:$Y$204,3*($C$8-1)+4) -> 2.8745 | O27: =IF(ISNA(VLOOKUP($B$6,$A$25:$E$52,IF($B$8=$A$22,3,2))),EXP(VLOOKUP($B$6,$A$25:$E$52,4)*LN(VLOOKUP($H27,P_Hard!$A$5:$Y$204,3*($C$8-1)+2)/1000)+VLOOKUP($B$6,$A$25:$E$52,5)),NA()) -> 9.488108417 | P27: 9.765624442 | Q27: =IF(ISNA(VLOOKUP($B$6,$A$25:$E$52,IF($B$8=$A$22,3,2))),EXP(VLOOKUP($B$6,$A$25:$E$52,4)*LN(VLOOKUP($H27,P_Hard!$A$5:$Y$204,3*($C$8-1)+4)/1000)+VLOOKUP($B$6,$A$25:$E$52,5)),NA()) -> 9.488108417 | S27: =S26+1/12 -> 0.1666666667 | T27: =VLOOKUP($S27,P_All!$AA$5:$AY$245,3*($C$8-1)+2) -> 1.2661 | U27: =VLOOKUP($S27,P_All!$AA$5:$AY$245,3*($C$8-1)+3) -> 1.4146 | V27: =VLOOKUP($S27,P_All!$AA$5:$AY$245,3*($C$8-1)+4) -> 1.7812 | W27: =VLOOKUP($S27,NA_All!$AA$5:$AY$245,3*($C$8-1)+2) -> 1.2459 | X27: =VLOOKUP($S27,NA_All!$AA$5:$AY$245,3*($C$8-1)+3) -> 1.3901 | Y27: =VLOOKUP($S27,NA_All!$AA$5:$AY$245,3*($C$8-1)+4) -> 1.7774 | Z27: =IF(AND($B$8=$A$20,$B$6=$A$48),$B$54,IF(ISNA(VLOOKUP($B$6,$A$25:$E$52,IF($B$8=$A$22,3,2),FALSE)),EXP(VLOOKUP($B$6,$A$25:$E$52,4,FALSE)*LN(VLOOKUP($H27,P_Hard!$A$5:$Y$204,3*($C$8-1)+3,FALSE)/1000)+VLOOKUP($B$6,$A$25:$E$52,5,FALSE)),VLOOKUP($B$6,$A$25:$E$52,IF($B$8=$A$22,3,2),FALSE))) -> 9.488108417
A28: As | B28: 53 | C28: 2 | H28: 4 | I28: =VLOOKUP($H28,P_All!$A$5:$Y$204,3*($C$8-1)+2) -> 1.2456 | J28: =VLOOKUP($H28,P_All!$A$5:$Y$204,3*($C$8-1)+3) -> 1.4713 | K28: =VLOOKUP($H28,P_All!$A$5:$Y$204,3*($C$8-1)+4) -> 3.0347 | L28: =VLOOKUP($H28,NA_All!$A$5:$Y$204,3*($C$8-1)+2) -> 1.2487 | M28: =VLOOKUP($H28,NA_All!$A$5:$Y$204,3*($C$8-1)+3) -> 1.4811 | N28: =VLOOKUP($H28,NA_All!$A$5:$Y$204,3*($C$8-1)+4) -> 3.0355 | O28: =IF(ISNA(VLOOKUP($B$6,$A$25:$E$52,IF($B$8=$A$22,3,2))),EXP(VLOOKUP($B$6,$A$25:$E$52,4)*LN(VLOOKUP($H28,P_Hard!$A$5:$Y$204,3*($C$8-1)+2)/1000)+VLOOKUP($B$6,$A$25:$E$52,5)),NA()) -> 9.488108417 | P28: 9.765624442 | Q28: =IF(ISNA(VLOOKUP($B$6,$A$25:$E$52,IF($B$8=$A$22,3,2))),EXP(VLOOKUP($B$6,$A$25:$E$52,4)*LN(VLOOKUP($H28,P_Hard!$A$5:$Y$204,3*($C$8-1)+4)/1000)+VLOOKUP($B$6,$A$25:$E$52,5)),NA()) -> 9.488108417 | S28: 0.25 | T28: =VLOOKUP($S28,P_All!$AA$5:$AY$245,3*($C$8-1)+2) -> 0.84148 | U28: =VLOOKUP($S28,P_All!$AA$5:$AY$245,3*($C$8-1)+3) -> 1.4152 | V28: =VLOOKUP($S28,P_All!$AA$5:$AY$245,3*($C$8-1)+4) -> 1.9128 | W28: =VLOOKUP($S28,NA_All!$AA$5:$AY$245,3*($C$8-1)+2) -> 0.84109 | X28: =VLOOKUP($S28,NA_All!$AA$5:$AY$245,3*($C$8-1)+3) -> 1.3828 | Y28: =VLOOKUP($S28,NA_All!$AA$5:$AY$245,3*($C$8-1)+4) -> 1.907 | Z28: =IF(AND($B$8=$A$20,$B$6=$A$48),$B$54,IF(ISNA(VLOOKUP($B$6,$A$25:$E$52,IF($B$8=$A$22,3,2),FALSE)),EXP(VLOOKUP($B$6,$A$25:$E$52,4,FALSE)*LN(VLOOKUP($H28,P_Hard!$A$5:$Y$204,3*($C$8-1)+3,FALSE)/1000)+VLOOKUP($B$6,$A$25:$E$52,5,FALSE)),VLOOKUP($B$6,$A$25:$E$52,IF($B$8=$A$22,3,2),FALSE))) -> 9.488108417
A29: B | B29: 500 | C29: 500 | H29: 5 | I29: =VLOOKUP($H29,P_All!$A$5:$Y$204,3*($C$8-1)+2) -> 1.2365 | J29: =VLOOKUP($H29,P_All!$A$5:$Y$204,3*($C$8-1)+3) -> 1.4711 | K29: =VLOOKUP($H29,P_All!$A$5:$Y$204,3*($C$8-1)+4) -> 2.7332 | L29: =VLOOKUP($H29,NA_All!$A$5:$Y$204,3*($C$8-1)+2) -> 1.2432 | M29: =VLOOKUP($H29,NA_All!$A$5:$Y$204,3*($C$8-1)+3) -> 1.4794 | N29: =VLOOKUP($H29,NA_All!$A$5:$Y$204,3*($C$8-1)+4) -> 2.7387 | O29: =IF(ISNA(VLOOKUP($B$6,$A$25:$E$52,IF($B$8=$A$22,3,2))),EXP(VLOOKUP($B$6,$A$25:$E$52,4)*LN(VLOOKUP($H29,P_Hard!$A$5:$Y$204,3*($C$8-1)+2)/1000)+VLOOKUP($B$6,$A$25:$E$52,5)),NA()) -> 9.488108417 | P29: 9.765624442 | Q29: =IF(ISNA(VLOOKUP($B$6,$A$25:$E$52,IF($B$8=$A$22,3,2))),EXP(VLOOKUP($B$6,$A$25:$E$52,4)*LN(VLOOKUP($H29,P_Hard!$A$5:$Y$204,3*($C$8-1)+4)/1000)+VLOOKUP($B$6,$A$25:$E$52,5)),NA()) -> 9.488108417 | S29: 0.3333333333 | T29: =VLOOKUP($S29,P_All!$AA$5:$AY$245,3*($C$8-1)+2) -> 0.41163 | U29: =VLOOKUP($S29,P_All!$AA$5:$AY$245,3*($C$8-1)+3) -> 0.99658 | V29: =VLOOKUP($S29,P_All!$AA$5:$AY$245,3*($C$8-1)+4) -> 2.6203 | W29: =VLOOKUP($S29,NA_All!$AA$5:$AY$245,3*($C$8-1)+2) -> 0.41163 | X29: =VLOOKUP($S29,NA_All!$AA$5:$AY$245,3*($C$8-1)+3) -> 0.9958 | Y29: =VLOOKUP($S29,NA_All!$AA$5:$AY$245,3*($C$8-1)+4) -> 2.6186 | Z29: =IF(AND($B$8=$A$20,$B$6=$A$48),$B$54,IF(ISNA(VLOOKUP($B$6,$A$25:$E$52,IF($B$8=$A$22,3,2),FALSE)),EXP(VLOOKUP($B$6,$A$25:$E$52,4,FALSE)*LN(VLOOKUP($H29,P_Hard!$A$5:$Y$204,3*($C$8-1)+3,FALSE)/1000)+VLOOKUP($B$6,$A$25:$E$52,5,FALSE)),VLOOKUP($B$6,$A$25:$E$52,IF($B$8=$A$22,3,2),FALSE))) -> 9.488108417
A30: Ba | C30: 2000 | H30: 6 | I30: =VLOOKUP($H30,P_All!$A$5:$Y$204,3*($C$8-1)+2) -> 1.2362 | J30: =VLOOKUP($H30,P_All!$A$5:$Y$204,3*($C$8-1)+3) -> 1.4701 | K30: =VLOOKUP($H30,P_All!$A$5:$Y$204,3*($C$8-1)+4) -> 2.7717 | L30: =VLOOKUP($H30,NA_All!$A$5:$Y$204,3*($C$8-1)+2) -> 1.2402 | M30: =VLOOKUP($H30,NA_All!$A$5:$Y$204,3*($C$8-1)+3) -> 1.4766 | N30: =VLOOKUP($H30,NA_All!$A$5:$Y$204,3*($C$8-1)+4) -> 2.7732 | O30: =IF(ISNA(VLOOKUP($B$6,$A$25:$E$52,IF($B$8=$A$22,3,2))),EXP(VLOOKUP($B$6,$A$25:$E$52,4)*LN(VLOOKUP($H30,P_Hard!$A$5:$Y$204,3*($C$8-1)+2)/1000)+VLOOKUP($B$6,$A$25:$E$52,5)),NA()) -> 9.488108417 | P30: 9.765624442 | Q30: =IF(ISNA(VLOOKUP($B$6,$A$25:$E$52,IF($B$8=$A$22,3,2))),EXP(VLOOKUP($B$6,$A$25:$E$52,4)*LN(VLOOKUP($H30,P_Hard!$A$5:$Y$204,3*($C$8-1)+4)/1000)+VLOOKUP($B$6,$A$25:$E$52,5)),NA()) -> 9.488108417 | S30: 0.4166666667 | T30: =VLOOKUP($S30,P_All!$AA$5:$AY$245,3*($C$8-1)+2) -> 0.37019 | U30: =VLOOKUP($S30,P_All!$AA$5:$AY$245,3*($C$8-1)+3) -> 0.97323 | V30: =VLOOKUP($S30,P_All!$AA$5:$AY$245,3*($C$8-1)+4) -> 2.7772 | W30: =VLOOKUP($S30,NA_All!$AA$5:$AY$245,3*($C$8-1)+2) -> 0.37019 | X30: =VLOOKUP($S30,NA_All!$AA$5:$AY$245,3*($C$8-1)+3) -> 0.97351 | Y30: =VLOOKUP($S30,NA_All!$AA$5:$AY$245,3*($C$8-1)+4) -> 2.7754 | Z30: =IF(AND($B$8=$A$20,$B$6=$A$48),$B$54,IF(ISNA(VLOOKUP($B$6,$A$25:$E$52,IF($B$8=$A$22,3,2),FALSE)),EXP(VLOOKUP($B$6,$A$25:$E$52,4,FALSE)*LN(VLOOKUP($H30,P_Hard!$A$5:$Y$204,3*($C$8-1)+3,FALSE)/1000)+VLOOKUP($B$6,$A$25:$E$52,5,FALSE)),VLOOKUP($B$6,$A$25:$E$52,IF($B$8=$A$22,3,2),FALSE))) -> 9.488108417
A31: Be | C31: 4 | H31: 7 | I31: =VLOOKUP($H31,P_All!$A$5:$Y$204,3*($C$8-1)+2) -> 1.2467 | J31: =VLOOKUP($H31,P_All!$A$5:$Y$204,3*($C$8-1)+3) -> 1.4752 | K31: =VLOOKUP($H31,P_All!$A$5:$Y$204,3*($C$8-1)+4) -> 2.6959 | L31: =VLOOKUP($H31,NA_All!$A$5:$Y$204,3*($C$8-1)+2) -> 1.2536 | M31: =VLOOKUP($H31,NA_All!$A$5:$Y$204,3*($C$8-1)+3) -> 1.4894 | N31: =VLOOKUP($H31,NA_All!$A$5:$Y$204,3*($C$8-1)+4) -> 2.7052 | O31: =IF(ISNA(VLOOKUP($B$6,$A$25:$E$52,IF($B$8=$A$22,3,2))),EXP(VLOOKUP($B$6,$A$25:$E$52,4)*LN(VLOOKUP($H31,P_Hard!$A$5:$Y$204,3*($C$8-1)+2)/1000)+VLOOKUP($B$6,$A$25:$E$52,5)),NA()) -> 9.488108417 | P31: 9.765624442 | Q31: =IF(ISNA(VLOOKUP($B$6,$A$25:$E$52,IF($B$8=$A$22,3,2))),EXP(VLOOKUP($B$6,$A$25:$E$52,4)*LN(VLOOKUP($H31,P_Hard!$A$5:$Y$204,3*($C$8-1)+4)/1000)+VLOOKUP($B$6,$A$25:$E$52,5)),NA()) -> 9.488108417 | S31: 0.5 | T31: =VLOOKUP($S31,P_All!$AA$5:$AY$245,3*($C$8-1)+2) -> 0.45003 | U31: =VLOOKUP($S31,P_All!$AA$5:$AY$245,3*($C$8-1)+3) -> 1.0796 | V31: =VLOOKUP($S31,P_All!$AA$5:$AY$245,3*($C$8-1)+4) -> 2.9685 | W31: =VLOOKUP($S31,NA_All!$AA$5:$AY$245,3*($C$8-1)+2) -> 0.45026 | X31: =VLOOKUP($S31,NA_All!$AA$5:$AY$245,3*($C$8-1)+3) -> 1.0804 | Y31: =VLOOKUP($S31,NA_All!$AA$5:$AY$245,3*($C$8-1)+4) -> 2.969 | Z31: =IF(AND($B$8=$A$20,$B$6=$A$48),$B$54,IF(ISNA(VLOOKUP($B$6,$A$25:$E$52,IF($B$8=$A$22,3,2),FALSE)),EXP(VLOOKUP($B$6,$A$25:$E$52,4,FALSE)*LN(VLOOKUP($H31,P_Hard!$A$5:$Y$204,3*($C$8-1)+3,FALSE)/1000)+VLOOKUP($B$6,$A$25:$E$52,5,FALSE)),VLOOKUP($B$6,$A$25:$E$52,IF($B$8=$A$22,3,2),FALSE))) -> 9.488108417
A32: Ca | H32: 8 | I32: =VLOOKUP($H32,P_All!$A$5:$Y$204,3*($C$8-1)+2) -> 1.2491 | J32: =VLOOKUP($H32,P_All!$A$5:$Y$204,3*($C$8-1)+3) -> 1.4542 | K32: =VLOOKUP($H32,P_All!$A$5:$Y$204,3*($C$8-1)+4) -> 2.9318 | L32: =VLOOKUP($H32,NA_All!$A$5:$Y$204,3*($C$8-1)+2) -> 1.2541 | M32: =VLOOKUP($H32,NA_All!$A$5:$Y$204,3*($C$8-1)+3) -> 1.4638 | N32: =VLOOKUP($H32,NA_All!$A$5:$Y$204,3*($C$8-1)+4) -> 2.9349 | O32: =IF(ISNA(VLOOKUP($B$6,$A$25:$E$52,IF($B$8=$A$22,3,2))),EXP(VLOOKUP($B$6,$A$25:$E$52,4)*LN(VLOOKUP($H32,P_Hard!$A$5:$Y$204,3*($C$8-1)+2)/1000)+VLOOKUP($B$6,$A$25:$E$52,5)),NA()) -> 9.488108417 | P32: 9.765624442 | Q32: =IF(ISNA(VLOOKUP($B$6,$A$25:$E$52,IF($B$8=$A$22,3,2))),EXP(VLOOKUP($B$6,$A$25:$E$52,4)*LN(VLOOKUP($H32,P_Hard!$A$5:$Y$204,3*($C$8-1)+4)/1000)+VLOOKUP($B$6,$A$25:$E$52,5)),NA()) -> 9.488108417 | S32: 0.5833333333 | T32: =VLOOKUP($S32,P_All!$AA$5:$AY$245,3*($C$8-1)+2) -> 0.57206 | U32: =VLOOKUP($S32,P_All!$AA$5:$AY$245,3*($C$8-1)+3) -> 1.2984 | V32: =VLOOKUP($S32,P_All!$AA$5:$AY$245,3*($C$8-1)+4) -> 2.3757 | W32: =VLOOKUP($S32,NA_All!$AA$5:$AY$245,3*($C$8-1)+2) -> 0.57244 | X32: =VLOOKUP($S32,NA_All!$AA$5:$AY$245,3*($C$8-1)+3) -> 1.2875 | Y32: =VLOOKUP($S32,NA_All!$AA$5:$AY$245,3*($C$8-1)+4) -> 2.3766 | Z32: =IF(AND($B$8=$A$20,$B$6=$A$48),$B$54,IF(ISNA(VLOOKUP($B$6,$A$25:$E$52,IF($B$8=$A$22,3,2),FALSE)),EXP(VLOOKUP($B$6,$A$25:$E$52,4,FALSE)*LN(VLOOKUP($H32,P_Hard!$A$5:$Y$204,3*($C$8-1)+3,FALSE)/1000)+VLOOKUP($B$6,$A$25:$E$52,5,FALSE)),VLOOKUP($B$6,$A$25:$E$52,IF($B$8=$A$22,3,2),FALSE))) -> 9.488108417
A33: Cd | D33: 0.7852 | E33: -2.715 | F33: =EXP(D33*LN(IF($B$8=$A$17,$C$65,IF($B$8=$A$18,$C$66,NA())))+E33) -> 2.567723838 | H33: 9 | I33: =VLOOKUP($H33,P_All!$A$5:$Y$204,3*($C$8-1)+2) -> 1.2338 | J33: =VLOOKUP($H33,P_All!$A$5:$Y$204,3*($C$8-1)+3) -> 1.4637 | K33: =VLOOKUP($H33,P_All!$A$5:$Y$204,3*($C$8-1)+4) -> 3.0343 | L33: =VLOOKUP($H33,NA_All!$A$5:$Y$204,3*($C$8-1)+2) -> 1.2413 | M33: =VLOOKUP($H33,NA_All!$A$5:$Y$204,3*($C$8-1)+3) -> 1.4785 | N33: =VLOOKUP($H33,NA_All!$A$5:$Y$204,3*($C$8-1)+4) -> 3.0361 | O33: =IF(ISNA(VLOOKUP($B$6,$A$25:$E$52,IF($B$8=$A$22,3,2))),EXP(VLOOKUP($B$6,$A$25:$E$52,4)*LN(VLOOKUP($H33,P_Hard!$A$5:$Y$204,3*($C$8-1)+2)/1000)+VLOOKUP($B$6,$A$25:$E$52,5)),NA()) -> 9.488108417 | P33: 9.765624442 | Q33: =IF(ISNA(VLOOKUP($B$6,$A$25:$E$52,IF($B$8=$A$22,3,2))),EXP(VLOOKUP($B$6,$A$25:$E$52,4)*LN(VLOOKUP($H33,P_Hard!$A$5:$Y$204,3*($C$8-1)+4)/1000)+VLOOKUP($B$6,$A$25:$E$52,5)),NA()) -> 9.488108417 | S33: 0.6666666667 | T33: =VLOOKUP($S33,P_All!$AA$5:$AY$245,3*($C$8-1)+2) -> 0.49755 | U33: =VLOOKUP($S33,P_All!$AA$5:$AY$245,3*($C$8-1)+3) -> 1.2559 | V33: =VLOOKUP($S33,P_All!$AA$5:$AY$245,3*($C$8-1)+4) -> 2.4053 | W33: =VLOOKUP($S33,NA_All!$AA$5:$AY$245,3*($C$8-1)+2) -> 0.49735 | X33: =VLOOKUP($S33,NA_All!$AA$5:$AY$245,3*($C$8-1)+3) -> 1.2578 | Y33: =VLOOKUP($S33,NA_All!$AA$5:$AY$245,3*($C$8-1)+4) -> 2.4063 | Z33: =IF(AND($B$8=$A$20,$B$6=$A$48),$B$54,IF(ISNA(VLOOKUP($B$6,$A$25:$E$52,IF($B$8=$A$22,3,2),FALSE)),EXP(VLOOKUP($B$6,$A$25:$E$52,4,FALSE)*LN(VLOOKUP($H33,P_Hard!$A$5:$Y$204,3*($C$8-1)+3,FALSE)/1000)+VLOOKUP($B$6,$A$25:$E$52,5,FALSE)),VLOOKUP($B$6,$A$25:$E$52,IF($B$8=$A$22,3,2),FALSE))) -> 9.488108417
A34: Cl | B34: 230000 | C34: 230000 | H34: 10 | I34: =VLOOKUP($H34,P_All!$A$5:$Y$204,3*($C$8-1)+2) -> 1.2481 | J34: =VLOOKUP($H34,P_All!$A$5:$Y$204,3*($C$8-1)+3) -> 1.4865 | K34: =VLOOKUP($H34,P_All!$A$5:$Y$204,3*($C$8-1)+4) -> 2.838 | L34: =VLOOKUP($H34,NA_All!$A$5:$Y$204,3*($C$8-1)+2) -> 1.2549 | M34: =VLOOKUP($H34,NA_All!$A$5:$Y$204,3*($C$8-1)+3) -> 1.497 | N34: =VLOOKUP($H34,NA_All!$A$5:$Y$204,3*($C$8-1)+4) -> 2.8457 | O34: =IF(ISNA(VLOOKUP($B$6,$A$25:$E$52,IF($B$8=$A$22,3,2))),EXP(VLOOKUP($B$6,$A$25:$E$52,4)*LN(VLOOKUP($H34,P_Hard!$A$5:$Y$204,3*($C$8-1)+2)/1000)+VLOOKUP($B$6,$A$25:$E$52,5)),NA()) -> 9.488108417 | P34: 9.765624442 | Q34: =IF(ISNA(VLOOKUP($B$6,$A$25:$E$52,IF($B$8=$A$22,3,2))),EXP(VLOOKUP($B$6,$A$25:$E$52,4)*LN(VLOOKUP($H34,P_Hard!$A$5:$Y$204,3*($C$8-1)+4)/1000)+VLOOKUP($B$6,$A$25:$E$52,5)),NA()) -> 9.488108417 | S34: 0.75 | T34: =VLOOKUP($S34,P_All!$AA$5:$AY$245,3*($C$8-1)+2) -> 0.55278 | U34: =VLOOKUP($S34,P_All!$AA$5:$AY$245,3*($C$8-1)+3) -> 1.2297 | V34: =VLOOKUP($S34,P_All!$AA$5:$AY$245,3*($C$8-1)+4) -> 2.4356 | W34: =VLOOKUP($S34,NA_All!$AA$5:$AY$245,3*($C$8-1)+2) -> 0.55318 | X34: =VLOOKUP($S34,NA_All!$AA$5:$AY$245,3*($C$8-1)+3) -> 1.2311 | Y34: =VLOOKUP($S34,NA_All!$AA$5:$AY$245,3*($C$8-1)+4) -> 2.437 | Z34: =IF(AND($B$8=$A$20,$B$6=$A$48),$B$54,IF(ISNA(VLOOKUP($B$6,$A$25:$E$52,IF($B$8=$A$22,3,2),FALSE)),EXP(VLOOKUP($B$6,$A$25:$E$52,4,FALSE)*LN(VLOOKUP($H34,P_Hard!$A$5:$Y$204,3*($C$8-1)+3,FALSE)/1000)+VLOOKUP($B$6,$A$25:$E$52,5,FALSE)),VLOOKUP($B$6,$A$25:$E$52,IF($B$8=$A$22,3,2),FALSE))) -> 9.488108417
A35: Co | B35: 5 | C35: 2.8 | H35: 11 | I35: =VLOOKUP($H35,P_All!$A$5:$Y$204,3*($C$8-1)+2) -> 1.2374 | J35: =VLOOKUP($H35,P_All!$A$5:$Y$204,3*($C$8-1)+3) -> 1.486 | K35: =VLOOKUP($H35,P_All!$A$5:$Y$204,3*($C$8-1)+4) -> 2.8861 | L35: =VLOOKUP($H35,NA_All!$A$5:$Y$204,3*($C$8-1)+2) -> 1.2443 | M35: =VLOOKUP($H35,NA_All!$A$5:$Y$204,3*($C$8-1)+3) -> 1.4978 | N35: =VLOOKUP($H35,NA_All!$A$5:$Y$204,3*($C$8-1)+4) -> 2.8881 | O35: =IF(ISNA(VLOOKUP($B$6,$A$25:$E$52,IF($B$8=$A$22,3,2))),EXP(VLOOKUP($B$6,$A$25:$E$52,4)*LN(VLOOKUP($H35,P_Hard!$A$5:$Y$204,3*($C$8-1)+2)/1000)+VLOOKUP($B$6,$A$25:$E$52,5)),NA()) -> 9.488108417 | P35: 9.765624442 | Q35: =IF(ISNA(VLOOKUP($B$6,$A$25:$E$52,IF($B$8=$A$22,3,2))),EXP(VLOOKUP($B$6,$A$25:$E$52,4)*LN(VLOOKUP($H35,P_Hard!$A$5:$Y$204,3*($C$8-1)+4)/1000)+VLOOKUP($B$6,$A$25:$E$52,5)),NA()) -> 9.488108417 | S35: 0.8333333333 | T35: =VLOOKUP($S35,P_All!$AA$5:$AY$245,3*($C$8-1)+2) -> 0.50624 | U35: =VLOOKUP($S35,P_All!$AA$5:$AY$245,3*($C$8-1)+3) -> 1.1201 | V35: =VLOOKUP($S35,P_All!$AA$5:$AY$245,3*($C$8-1)+4) -> 2.9293 | W35: =VLOOKUP($S35,NA_All!$AA$5:$AY$245,3*($C$8-1)+2) -> 0.50696 | X35: =VLOOKUP($S35,NA_All!$AA$5:$AY$245,3*($C$8-1)+3) -> 1.1215 | Y35: =VLOOKUP($S35,NA_All!$AA$5:$AY$245,3*($C$8-1)+4) -> 2.9311 | Z35: =IF(AND($B$8=$A$20,$B$6=$A$48),$B$54,IF(ISNA(VLOOKUP($B$6,$A$25:$E$52,IF($B$8=$A$22,3,2),FALSE)),EXP(VLOOKUP($B$6,$A$25:$E$52,4,FALSE)*LN(VLOOKUP($H35,P_Hard!$A$5:$Y$204,3*($C$8-1)+3,FALSE)/1000)+VLOOKUP($B$6,$A$25:$E$52,5,FALSE)),VLOOKUP($B$6,$A$25:$E$52,IF($B$8=$A$22,3,2),FALSE))) -> 9.488108417
A36: Cr | B36: 11 | C36: 11 | H36: 12 | I36: =VLOOKUP($H36,P_All!$A$5:$Y$204,3*($C$8-1)+2) -> 1.2431 | J36: =VLOOKUP($H36,P_All!$A$5:$Y$204,3*($C$8-1)+3) -> 1.4687 | K36: =VLOOKUP($H36,P_All!$A$5:$Y$204,3*($C$8-1)+4) -> 2.9927 | L36: =VLOOKUP($H36,NA_All!$A$5:$Y$204,3*($C$8-1)+2) -> 1.2525 | M36: =VLOOKUP($H36,NA_All!$A$5:$Y$204,3*($C$8-1)+3) -> 1.4909 | N36: =VLOOKUP($H36,NA_All!$A$5:$Y$204,3*($C$8-1)+4) -> 2.9961 | O36: =IF(ISNA(VLOOKUP($B$6,$A$25:$E$52,IF($B$8=$A$22,3,2))),EXP(VLOOKUP($B$6,$A$25:$E$52,4)*LN(VLOOKUP($H36,P_Hard!$A$5:$Y$204,3*($C$8-1)+2)/1000)+VLOOKUP($B$6,$A$25:$E$52,5)),NA()) -> 9.488108417 | P36: 9.765624442 | Q36: =IF(ISNA(VLOOKUP($B$6,$A$25:$E$52,IF($B$8=$A$22,3,2))),EXP(VLOOKUP($B$6,$A$25:$E$52,4)*LN(VLOOKUP($H36,P_Hard!$A$5:$Y$204,3*($C$8-1)+4)/1000)+VLOOKUP($B$6,$A$25:$E$52,5)),NA()) -> 9.488108417 | S36: 0.9166666667 | T36: =VLOOKUP($S36,P_All!$AA$5:$AY$245,3*($C$8-1)+2) -> 0.62889 | U36: =VLOOKUP($S36,P_All!$AA$5:$AY$245,3*($C$8-1)+3) -> 1.1867 | V36: =VLOOKUP($S36,P_All!$AA$5:$AY$245,3*($C$8-1)+4) -> 2.478 | W36: =VLOOKUP($S36,NA_All!$AA$5:$AY$245,3*($C$8-1)+2) -> 0.63078 | X36: =VLOOKUP($S36,NA_All!$AA$5:$AY$245,3*($C$8-1)+3) -> 1.1894 | Y36: =VLOOKUP($S36,NA_All!$AA$5:$AY$245,3*($C$8-1)+4) -> 2.4808 | Z36: =IF(AND($B$8=$A$20,$B$6=$A$48),$B$54,IF(ISNA(VLOOKUP($B$6,$A$25:$E$52,IF($B$8=$A$22,3,2),FALSE)),EXP(VLOOKUP($B$6,$A$25:$E$52,4,FALSE)*LN(VLOOKUP($H36,P_Hard!$A$5:$Y$204,3*($C$8-1)+3,FALSE)/1000)+VLOOKUP($B$6,$A$25:$E$52,5,FALSE)),VLOOKUP($B$6,$A$25:$E$52,IF($B$8=$A$22,3,2),FALSE))) -> 9.488108417
A37: Cu | D37: 0.8545 | E37: -1.702 | F37: =EXP(D37*LN(IF($B$8=$A$17,$C$65,IF($B$8=$A$18,$C$66,NA())))+E37) -> 9.765624442 | H37: 13 | I37: =VLOOKUP($H37,P_All!$A$5:$Y$204,3*($C$8-1)+2) -> 1.226 | J37: =VLOOKUP($H37,P_All!$A$5:$Y$204,3*($C$8-1)+3) -> 1.4577 | K37: =VLOOKUP($H37,P_All!$A$5:$Y$204,3*($C$8-1)+4) -> 2.7729 | L37: =VLOOKUP($H37,NA_All!$A$5:$Y$204,3*($C$8-1)+2) -> 1.2352 | M37: =VLOOKUP($H37,NA_All!$A$5:$Y$204,3*($C$8-1)+3) -> 1.4714 | N37: =VLOOKUP($H37,NA_All!$A$5:$Y$204,3*($C$8-1)+4) -> 2.7772 | O37: =IF(ISNA(VLOOKUP($B$6,$A$25:$E$52,IF($B$8=$A$22,3,2))),EXP(VLOOKUP($B$6,$A$25:$E$52,4)*LN(VLOOKUP($H37,P_Hard!$A$5:$Y$204,3*($C$8-1)+2)/1000)+VLOOKUP($B$6,$A$25:$E$52,5)),NA()) -> 9.488108417 | P37: 9.765624442 | Q37: =IF(ISNA(VLOOKUP($B$6,$A$25:$E$52,IF($B$8=$A$22,3,2))),EXP(VLOOKUP($B$6,$A$25:$E$52,4)*LN(VLOOKUP($H37,P_Hard!$A$5:$Y$204,3*($C$8-1)+4)/1000)+VLOOKUP($B$6,$A$25:$E$52,5)),NA()) -> 9.488108417 | S37: 1 | T37: =VLOOKUP($S37,P_All!$AA$5:$AY$245,3*($C$8-1)+2) -> 0.95996 | U37: =VLOOKUP($S37,P_All!$AA$5:$AY$245,3*($C$8-1)+3) -> 1.4472 | V37: =VLOOKUP($S37,P_All!$AA$5:$AY$245,3*($C$8-1)+4) -> 2.0442 | W37: =VLOOKUP($S37,NA_All!$AA$5:$AY$245,3*($C$8-1)+2) -> 0.96324 | X37: =VLOOKUP($S37,NA_All!$AA$5:$AY$245,3*($C$8-1)+3) -> 1.4559 | Y37: =VLOOKUP($S37,NA_All!$AA$5:$AY$245,3*($C$8-1)+4) -> 2.0487 | Z37: =IF(AND($B$8=$A$20,$B$6=$A$48),$B$54,IF(ISNA(VLOOKUP($B$6,$A$25:$E$52,IF($B$8=$A$22,3,2),FALSE)),EXP(VLOOKUP($B$6,$A$25:$E$52,4,FALSE)*LN(VLOOKUP($H37,P_Hard!$A$5:$Y$204,3*($C$8-1)+3,FALSE)/1000)+VLOOKUP($B$6,$A$25:$E$52,5,FALSE)),VLOOKUP($B$6,$A$25:$E$52,IF($B$8=$A$22,3,2),FALSE))) -> 9.488108417
A38: F | C38: 4000 | H38: 14 | I38: =VLOOKUP($H38,P_All!$A$5:$Y$204,3*($C$8-1)+2) -> 1.2325 | J38: =VLOOKUP($H38,P_All!$A$5:$Y$204,3*($C$8-1)+3) -> 1.4476 | K38: =VLOOKUP($H38,P_All!$A$5:$Y$204,3*($C$8-1)+4) -> 2.9804 | L38: =VLOOKUP($H38,NA_All!$A$5:$Y$204,3*($C$8-1)+2) -> 1.2402 | M38: =VLOOKUP($H38,NA_All!$A$5:$Y$204,3*($C$8-1)+3) -> 1.4596 | N38: =VLOOKUP($H38,NA_All!$A$5:$Y$204,3*($C$8-1)+4) -> 2.981 | O38: =IF(ISNA(VLOOKUP($B$6,$A$25:$E$52,IF($B$8=$A$22,3,2))),EXP(VLOOKUP($B$6,$A$25:$E$52,4)*LN(VLOOKUP($H38,P_Hard!$A$5:$Y$204,3*($C$8-1)+2)/1000)+VLOOKUP($B$6,$A$25:$E$52,5)),NA()) -> 9.488108417 | P38: 9.765624442 | Q38: =IF(ISNA(VLOOKUP($B$6,$A$25:$E$52,IF($B$8=$A$22,3,2))),EXP(VLOOKUP($B$6,$A$25:$E$52,4)*LN(VLOOKUP($H38,P_Hard!$A$5:$Y$204,3*($C$8-1)+4)/1000)+VLOOKUP($B$6,$A$25:$E$52,5)),NA()) -> 9.488108417 | S38: 1.083333333 | T38: =VLOOKUP($S38,P_All!$AA$5:$AY$245,3*($C$8-1)+2) -> 1.193 | U38: =VLOOKUP($S38,P_All!$AA$5:$AY$245,3*($C$8-1)+3) -> 1.4763 | V38: =VLOOKUP($S38,P_All!$AA$5:$AY$245,3*($C$8-1)+4) -> 1.9608 | W38: =VLOOKUP($S38,NA_All!$AA$5:$AY$245,3*($C$8-1)+2) -> 1.199 | X38: =VLOOKUP($S38,NA_All!$AA$5:$AY$245,3*($C$8-1)+3) -> 1.4811 | Y38: =VLOOKUP($S38,NA_All!$AA$5:$AY$245,3*($C$8-1)+4) -> 1.9663 | Z38: =IF(AND($B$8=$A$20,$B$6=$A$48),$B$54,IF(ISNA(VLOOKUP($B$6,$A$25:$E$52,IF($B$8=$A$22,3,2),FALSE)),EXP(VLOOKUP($B$6,$A$25:$E$52,4,FALSE)*LN(VLOOKUP($H38,P_Hard!$A$5:$Y$204,3*($C$8-1)+3,FALSE)/1000)+VLOOKUP($B$6,$A$25:$E$52,5,FALSE)),VLOOKUP($B$6,$A$25:$E$52,IF($B$8=$A$22,3,2),FALSE))) -> 9.488108417
A39: Fe | C39: 300 | H39: 15 | I39: =VLOOKUP($H39,P_All!$A$5:$Y$204,3*($C$8-1)+2) -> 1.2296 | J39: =VLOOKUP($H39,P_All!$A$5:$Y$204,3*($C$8-1)+3) -> 1.4699 | K39: =VLOOKUP($H39,P_All!$A$5:$Y$204,3*($C$8-1)+4) -> 2.8903 | L39: =VLOOKUP($H39,NA_All!$A$5:$Y$204,3*($C$8-1)+2) -> 1.242 | M39: =VLOOKUP($H39,NA_All!$A$5:$Y$204,3*($C$8-1)+3) -> 1.4856 | N39: =VLOOKUP($H39,NA_All!$A$5:$Y$204,3*($C$8-1)+4) -> 2.896 | O39: =IF(ISNA(VLOOKUP($B$6,$A$25:$E$52,IF($B$8=$A$22,3,2))),EXP(VLOOKUP($B$6,$A$25:$E$52,4)*LN(VLOOKUP($H39,P_Hard!$A$5:$Y$204,3*($C$8-1)+2)/1000)+VLOOKUP($B$6,$A$25:$E$52,5)),NA()) -> 9.488108417 | P39: 9.765624442 | Q39: =IF(ISNA(VLOOKUP($B$6,$A$25:$E$52,IF($B$8=$A$22,3,2))),EXP(VLOOKUP($B$6,$A$25:$E$52,4)*LN(VLOOKUP($H39,P_Hard!$A$5:$Y$204,3*($C$8-1)+4)/1000)+VLOOKUP($B$6,$A$25:$E$52,5)),NA()) -> 9.488108417 | S39: 1.166666667 | T39: =VLOOKUP($S39,P_All!$AA$5:$AY$245,3*($C$8-1)+2) -> 1.2568 | U39: =VLOOKUP($S39,P_All!$AA$5:$AY$245,3*($C$8-1)+3) -> 1.3952 | V39: =VLOOKUP($S39,P_All!$AA$5:$AY$245,3*($C$8-1)+4) -> 1.7772 | W39: =VLOOKUP($S39,NA_All!$AA$5:$AY$245,3*($C$8-1)+2) -> 1.2602 | X39: =VLOOKUP($S39,NA_All!$AA$5:$AY$245,3*($C$8-1)+3) -> 1.3982 | Y39: =VLOOKUP($S39,NA_All!$AA$5:$AY$245,3*($C$8-1)+4) -> 1.7893 | Z39: =IF(AND($B$8=$A$20,$B$6=$A$48),$B$54,IF(ISNA(VLOOKUP($B$6,$A$25:$E$52,IF($B$8=$A$22,3,2),FALSE)),EXP(VLOOKUP($B$6,$A$25:$E$52,4,FALSE)*LN(VLOOKUP($H39,P_Hard!$A$5:$Y$204,3*($C$8-1)+3,FALSE)/1000)+VLOOKUP($B$6,$A$25:$E$52,5,FALSE)),VLOOKUP($B$6,$A$25:$E$52,IF($B$8=$A$22,3,2),FALSE))) -> 9.488108417
A40: K | H40: 16 | I40: =VLOOKUP($H40,P_All!$A$5:$Y$204,3*($C$8-1)+2) -> 1.2461 | J40: =VLOOKUP($H40,P_All!$A$5:$Y$204,3*($C$8-1)+3) -> 1.463 | K40: =VLOOKUP($H40,P_All!$A$5:$Y$204,3*($C$8-1)+4) -> 2.9852 | L40: =VLOOKUP($H40,NA_All!$A$5:$Y$204,3*($C$8-1)+2) -> 1.2533 | M40: =VLOOKUP($H40,NA_All!$A$5:$Y$204,3*($C$8-1)+3) -> 1.4767 | N40: =VLOOKUP($H40,NA_All!$A$5:$Y$204,3*($C$8-1)+4) -> 2.99 | O40: =IF(ISNA(VLOOKUP($B$6,$A$25:$E$52,IF($B$8=$A$22,3,2))),EXP(VLOOKUP($B$6,$A$25:$E$52,4)*LN(VLOOKUP($H40,P_Hard!$A$5:$Y$204,3*($C$8-1)+2)/1000)+VLOOKUP($B$6,$A$25:$E$52,5)),NA()) -> 9.488108417 | P40: 9.765624442 | Q40: =IF(ISNA(VLOOKUP($B$6,$A$25:$E$52,IF($B$8=$A$22,3,2))),EXP(VLOOKUP($B$6,$A$25:$E$52,4)*LN(VLOOKUP($H40,P_Hard!$A$5:$Y$204,3*($C$8-1)+4)/1000)+VLOOKUP($B$6,$A$25:$E$52,5)),NA()) -> 9.488108417 | S40: 1.25 | T40: =VLOOKUP($S40,P_All!$AA$5:$AY$245,3*($C$8-1)+2) -> 0.85138 | U40: =VLOOKUP($S40,P_All!$AA$5:$AY$245,3*($C$8-1)+3) -> 1.4192 | V40: =VLOOKUP($S40,P_All!$AA$5:$AY$245,3*($C$8-1)+4) -> 1.9599 | W40: =VLOOKUP($S40,NA_All!$AA$5:$AY$245,3*($C$8-1)+2) -> 0.86429 | X40: =VLOOKUP($S40,NA_All!$AA$5:$AY$245,3*($C$8-1)+3) -> 1.4207 | Y40: =VLOOKUP($S40,NA_All!$AA$5:$AY$245,3*($C$8-1)+4) -> 1.9704 | Z40: =IF(AND($B$8=$A$20,$B$6=$A$48),$B$54,IF(ISNA(VLOOKUP($B$6,$A$25:$E$52,IF($B$8=$A$22,3,2),FALSE)),EXP(VLOOKUP($B$6,$A$25:$E$52,4,FALSE)*LN(VLOOKUP($H40,P_Hard!$A$5:$Y$204,3*($C$8-1)+3,FALSE)/1000)+VLOOKUP($B$6,$A$25:$E$52,5,FALSE)),VLOOKUP($B$6,$A$25:$E$52,IF($B$8=$A$22,3,2),FALSE))) -> 9.488108417
A41: Mg | H41: 17 | I41: =VLOOKUP($H41,P_All!$A$5:$Y$204,3*($C$8-1)+2) -> 1.2383 | J41: =VLOOKUP($H41,P_All!$A$5:$Y$204,3*($C$8-1)+3) -> 1.4791 | K41: =VLOOKUP($H41,P_All!$A$5:$Y$204,3*($C$8-1)+4) -> 2.7428 | L41: =VLOOKUP($H41,NA_All!$A$5:$Y$204,3*($C$8-1)+2) -> 1.2452 | M41: =VLOOKUP($H41,NA_All!$A$5:$Y$204,3*($C$8-1)+3) -> 1.4907 | N41: =VLOOKUP($H41,NA_All!$A$5:$Y$204,3*($C$8-1)+4) -> 2.7436 | O41: =IF(ISNA(VLOOKUP($B$6,$A$25:$E$52,IF($B$8=$A$22,3,2))),EXP(VLOOKUP($B$6,$A$25:$E$52,4)*LN(VLOOKUP($H41,P_Hard!$A$5:$Y$204,3*($C$8-1)+2)/1000)+VLOOKUP($B$6,$A$25:$E$52,5)),NA()) -> 9.488108417 | P41: 9.765624442 | Q41: =IF(ISNA(VLOOKUP($B$6,$A$25:$E$52,IF($B$8=$A$22,3,2))),EXP(VLOOKUP($B$6,$A$25:$E$52,4)*LN(VLOOKUP($H41,P_Hard!$A$5:$Y$204,3*($C$8-1)+4)/1000)+VLOOKUP($B$6,$A$25:$E$52,5)),NA()) -> 9.488108417 | S41: 1.333333333 | T41: =VLOOKUP($S41,P_All!$AA$5:$AY$245,3*($C$8-1)+2) -> 0.42072 | U41: =VLOOKUP($S41,P_All!$AA$5:$AY$245,3*($C$8-1)+3) -> 1.1152 | V41: =VLOOKUP($S41,P_All!$AA$5:$AY$245,3*($C$8-1)+4) -> 2.8037 | W41: =VLOOKUP($S41,NA_All!$AA$5:$AY$245,3*($C$8-1)+2) -> 0.42076 | X41: =VLOOKUP($S41,NA_All!$AA$5:$AY$245,3*($C$8-1)+3) -> 1.1161 | Y41: =VLOOKUP($S41,NA_All!$AA$5:$AY$245,3*($C$8-1)+4) -> 2.8067 | Z41: =IF(AND($B$8=$A$20,$B$6=$A$48),$B$54,IF(ISNA(VLOOKUP($B$6,$A$25:$E$52,IF($B$8=$A$22,3,2),FALSE)),EXP(VLOOKUP($B$6,$A$25:$E$52,4,FALSE)*LN(VLOOKUP($H41,P_Hard!$A$5:$Y$204,3*($C$8-1)+3,FALSE)/1000)+VLOOKUP($B$6,$A$25:$E$52,5,FALSE)),VLOOKUP($B$6,$A$25:$E$52,IF($B$8=$A$22,3,2),FALSE))) -> 9.488108417
A42: Mn | C42: 50 | H42: 18 | I42: =VLOOKUP($H42,P_All!$A$5:$Y$204,3*($C$8-1)+2) -> 1.2408 | J42: =VLOOKUP($H42,P_All!$A$5:$Y$204,3*($C$8-1)+3) -> 1.4693 | K42: =VLOOKUP($H42,P_All!$A$5:$Y$204,3*($C$8-1)+4) -> 2.8724 | L42: =VLOOKUP($H42,NA_All!$A$5:$Y$204,3*($C$8-1)+2) -> 1.2487 | M42: =VLOOKUP($H42,NA_All!$A$5:$Y$204,3*($C$8-1)+3) -> 1.4776 | N42: =VLOOKUP($H42,NA_All!$A$5:$Y$204,3*($C$8-1)+4) -> 2.8745 | O42: =IF(ISNA(VLOOKUP($B$6,$A$25:$E$52,IF($B$8=$A$22,3,2))),EXP(VLOOKUP($B$6,$A$25:$E$52,4)*LN(VLOOKUP($H42,P_Hard!$A$5:$Y$204,3*($C$8-1)+2)/1000)+VLOOKUP($B$6,$A$25:$E$52,5)),NA()) -> 9.488108417 | P42: 9.765624442 | Q42: =IF(ISNA(VLOOKUP($B$6,$A$25:$E$52,IF($B$8=$A$22,3,2))),EXP(VLOOKUP($B$6,$A$25:$E$52,4)*LN(VLOOKUP($H42,P_Hard!$A$5:$Y$204,3*($C$8-1)+4)/1000)+VLOOKUP($B$6,$A$25:$E$52,5)),NA()) -> 9.488108417 | S42: 1.416666667 | T42: =VLOOKUP($S42,P_All!$AA$5:$AY$245,3*($C$8-1)+2) -> 0.41031 | U42: =VLOOKUP($S42,P_All!$AA$5:$AY$245,3*($C$8-1)+3) -> 1.0305 | V42: =VLOOKUP($S42,P_All!$AA$5:$AY$245,3*($C$8-1)+4) -> 2.858 | W42: =VLOOKUP($S42,NA_All!$AA$5:$AY$245,3*($C$8-1)+2) -> 0.40909 | X42: =VLOOKUP($S42,NA_All!$AA$5:$AY$245,3*($C$8-1)+3) -> 1.0301 | Y42: =VLOOKUP($S42,NA_All!$AA$5:$AY$245,3*($C$8-1)+4) -> 2.859 | Z42: =IF(AND($B$8=$A$20,$B$6=$A$48),$B$54,IF(ISNA(VLOOKUP($B$6,$A$25:$E$52,IF($B$8=$A$22,3,2),FALSE)),EXP(VLOOKUP($B$6,$A$25:$E$52,4,FALSE)*LN(VLOOKUP($H42,P_Hard!$A$5:$Y$204,3*($C$8-1)+3,FALSE)/1000)+VLOOKUP($B$6,$A$25:$E$52,5,FALSE)),VLOOKUP($B$6,$A$25:$E$52,IF($B$8=$A$22,3,2),FALSE))) -> 9.488108417
A43: Na | H43: 19 | I43: =VLOOKUP($H43,P_All!$A$5:$Y$204,3*($C$8-1)+2) -> 1.2249 | J43: =VLOOKUP($H43,P_All!$A$5:$Y$204,3*($C$8-1)+3) -> 1.4717 | K43: =VLOOKUP($H43,P_All!$A$5:$Y$204,3*($C$8-1)+4) -> 2.7964 | L43: =VLOOKUP($H43,NA_All!$A$5:$Y$204,3*($C$8-1)+2) -> 1.2366 | M43: =VLOOKUP($H43,NA_All!$A$5:$Y$204,3*($C$8-1)+3) -> 1.481 | N43: =VLOOKUP($H43,NA_All!$A$5:$Y$204,3*($C$8-1)+4) -> 2.7981 | O43: =IF(ISNA(VLOOKUP($B$6,$A$25:$E$52,IF($B$8=$A$22,3,2))),EXP(VLOOKUP($B$6,$A$25:$E$52,4)*LN(VLOOKUP($H43,P_Hard!$A$5:$Y$204,3*($C$8-1)+2)/1000)+VLOOKUP($B$6,$A$25:$E$52,5)),NA()) -> 9.488108417 | P43: 9.765624442 | Q43: =IF(ISNA(VLOOKUP($B$6,$A$25:$E$52,IF($B$8=$A$22,3,2))),EXP(VLOOKUP($B$6,$A$25:$E$52,4)*LN(VLOOKUP($H43,P_Hard!$A$5:$Y$204,3*($C$8-1)+4)/1000)+VLOOKUP($B$6,$A$25:$E$52,5)),NA()) -> 9.488108417 | S43: 1.5 | T43: =VLOOKUP($S43,P_All!$AA$5:$AY$245,3*($C$8-1)+2) -> 0.53098 | U43: =VLOOKUP($S43,P_All!$AA$5:$AY$245,3*($C$8-1)+3) -> 1.135 | V43: =VLOOKUP($S43,P_All!$AA$5:$AY$245,3*($C$8-1)+4) -> 2.3058 | W43: =VLOOKUP($S43,NA_All!$AA$5:$AY$245,3*($C$8-1)+2) -> 0.53162 | X43: =VLOOKUP($S43,NA_All!$AA$5:$AY$245,3*($C$8-1)+3) -> 1.1397 | Y43: =VLOOKUP($S43,NA_All!$AA$5:$AY$245,3*($C$8-1)+4) -> 2.307 | Z43: =IF(AND($B$8=$A$20,$B$6=$A$48),$B$54,IF(ISNA(VLOOKUP($B$6,$A$25:$E$52,IF($B$8=$A$22,3,2),FALSE)),EXP(VLOOKUP($B$6,$A$25:$E$52,4,FALSE)*LN(VLOOKUP($H43,P_Hard!$A$5:$Y$204,3*($C$8-1)+3,FALSE)/1000)+VLOOKUP($B$6,$A$25:$E$52,5,FALSE)),VLOOKUP($B$6,$A$25:$E$52,IF($B$8=$A$22,3,2),FALSE))) -> 9.488108417
A44: Ni | D44: 0.846 | E44: 0.0584 | F44: =EXP(D44*LN(IF($B$8=$A$17,$C$65,IF($B$8=$A$18,$C$66,NA())))+E44) -> 54.58010648 | H44: 20 | I44: =VLOOKUP($H44,P_All!$A$5:$Y$204,3*($C$8-1)+2) -> 1.2452 | J44: =VLOOKUP($H44,P_All!$A$5:$Y$204,3*($C$8-1)+3) -> 1.4603 | K44: =VLOOKUP($H44,P_All!$A$5:$Y$204,3*($C$8-1)+4) -> 2.914 | L44: =VLOOKUP($H44,NA_All!$A$5:$Y$204,3*($C$8-1)+2) -> 1.2504 | M44: =VLOOKUP($H44,NA_All!$A$5:$Y$204,3*($C$8-1)+3) -> 1.4696 | N44: =VLOOKUP($H44,NA_All!$A$5:$Y$204,3*($C$8-1)+4) -> 2.9178 | O44: =IF(ISNA(VLOOKUP($B$6,$A$25:$E$52,IF($B$8=$A$22,3,2))),EXP(VLOOKUP($B$6,$A$25:$E$52,4)*LN(VLOOKUP($H44,P_Hard!$A$5:$Y$204,3*($C$8-1)+2)/1000)+VLOOKUP($B$6,$A$25:$E$52,5)),NA()) -> 9.488108417 | P44: 9.765624442 | Q44: =IF(ISNA(VLOOKUP($B$6,$A$25:$E$52,IF($B$8=$A$22,3,2))),EXP(VLOOKUP($B$6,$A$25:$E$52,4)*LN(VLOOKUP($H44,P_Hard!$A$5:$Y$204,3*($C$8-1)+4)/1000)+VLOOKUP($B$6,$A$25:$E$52,5)),NA()) -> 9.488108417 | S44: 1.583333333 | T44: =VLOOKUP($S44,P_All!$AA$5:$AY$245,3*($C$8-1)+2) -> 0.5625 | U44: =VLOOKUP($S44,P_All!$AA$5:$AY$245,3*($C$8-1)+3) -> 1.2439 | V44: =VLOOKUP($S44,P_All!$AA$5:$AY$245,3*($C$8-1)+4) -> 2.3023 | W44: =VLOOKUP($S44,NA_All!$AA$5:$AY$245,3*($C$8-1)+2) -> 0.56392 | X44: =VLOOKUP($S44,NA_All!$AA$5:$AY$245,3*($C$8-1)+3) -> 1.2382 | Y44: =VLOOKUP($S44,NA_All!$AA$5:$AY$245,3*($C$8-1)+4) -> 2.306 | Z44: =IF(AND($B$8=$A$20,$B$6=$A$48),$B$54,IF(ISNA(VLOOKUP($B$6,$A$25:$E$52,IF($B$8=$A$22,3,2),FALSE)),EXP(VLOOKUP($B$6,$A$25:$E$52,4,FALSE)*LN(VLOOKUP($H44,P_Hard!$A$5:$Y$204,3*($C$8-1)+3,FALSE)/1000)+VLOOKUP($B$6,$A$25:$E$52,5,FALSE)),VLOOKUP($B$6,$A$25:$E$52,IF($B$8=$A$22,3,2),FALSE))) -> 9.488108417
A45: Pb | D45: 1.273 | E45: -4.705 | F45: =EXP(D45*LN(IF($B$8=$A$17,$C$65,IF($B$8=$A$18,$C$66,NA())))+E45) -> 3.40600157 | H45: 21 | I45: =VLOOKUP($H45,P_All!$A$5:$Y$204,3*($C$8-1)+2) -> 1.2631 | J45: =VLOOKUP($H45,P_All!$A$5:$Y$204,3*($C$8-1)+3) -> 1.4611 | K45: =VLOOKUP($H45,P_All!$A$5:$Y$204,3*($C$8-1)+4) -> 3.0421 | L45: =VLOOKUP($H45,NA_All!$A$5:$Y$204,3*($C$8-1)+2) -> 1.266 | M45: =VLOOKUP($H45,NA_All!$A$5:$Y$204,3*($C$8-1)+3) -> 1.4716 | N45: =VLOOKUP($H45,NA_All!$A$5:$Y$204,3*($C$8-1)+4) -> 3.0438 | O45: =IF(ISNA(VLOOKUP($B$6,$A$25:$E$52,IF($B$8=$A$22,3,2))),EXP(VLOOKUP($B$6,$A$25:$E$52,4)*LN(VLOOKUP($H45,P_Hard!$A$5:$Y$204,3*($C$8-1)+2)/1000)+VLOOKUP($B$6,$A$25:$E$52,5)),NA()) -> 9.488108417 | P45: 9.765624442 | Q45: =IF(ISNA(VLOOKUP($B$6,$A$25:$E$52,IF($B$8=$A$22,3,2))),EXP(VLOOKUP($B$6,$A$25:$E$52,4)*LN(VLOOKUP($H45,P_Hard!$A$5:$Y$204,3*($C$8-1)+4)/1000)+VLOOKUP($B$6,$A$25:$E$52,5)),NA()) -> 9.488108417 | S45: 1.666666667 | T45: =VLOOKUP($S45,P_All!$AA$5:$AY$245,3*($C$8-1)+2) -> 0.51535 | U45: =VLOOKUP($S45,P_All!$AA$5:$AY$245,3*($C$8-1)+3) -> 1.1614 | V45: =VLOOKUP($S45,P_All!$AA$5:$AY$245,3*($C$8-1)+4) -> 2.2362 | W45: =VLOOKUP($S45,NA_All!$AA$5:$AY$245,3*($C$8-1)+2) -> 0.51674 | X45: =VLOOKUP($S45,NA_All!$AA$5:$AY$245,3*($C$8-1)+3) -> 1.1687 | Y45: =VLOOKUP($S45,NA_All!$AA$5:$AY$245,3*($C$8-1)+4) -> 2.2453 | Z45: =IF(AND($B$8=$A$20,$B$6=$A$48),$B$54,IF(ISNA(VLOOKUP($B$6,$A$25:$E$52,IF($B$8=$A$22,3,2),FALSE)),EXP(VLOOKUP($B$6,$A$25:$E$52,4,FALSE)*LN(VLOOKUP($H45,P_Hard!$A$5:$Y$204,3*($C$8-1)+3,FALSE)/1000)+VLOOKUP($B$6,$A$25:$E$52,5,FALSE)),VLOOKUP($B$6,$A$25:$E$52,IF($B$8=$A$22,3,2),FALSE))) -> 9.488108417
A46: Sb | B46: 31 | C46: 5.5 | H46: 22 | I46: =VLOOKUP($H46,P_All!$A$5:$Y$204,3*($C$8-1)+2) -> 1.2569 | J46: =VLOOKUP($H46,P_All!$A$5:$Y$204,3*($C$8-1)+3) -> 1.4715 | K46: =VLOOKUP($H46,P_All!$A$5:$Y$204,3*($C$8-1)+4) -> 2.9591 | L46: =VLOOKUP($H46,NA_All!$A$5:$Y$204,3*($C$8-1)+2) -> 1.26 | M46: =VLOOKUP($H46,NA_All!$A$5:$Y$204,3*($C$8-1)+3) -> 1.4833 | N46: =VLOOKUP($H46,NA_All!$A$5:$Y$204,3*($C$8-1)+4) -> 2.9624 | O46: =IF(ISNA(VLOOKUP($B$6,$A$25:$E$52,IF($B$8=$A$22,3,2))),EXP(VLOOKUP($B$6,$A$25:$E$52,4)*LN(VLOOKUP($H46,P_Hard!$A$5:$Y$204,3*($C$8-1)+2)/1000)+VLOOKUP($B$6,$A$25:$E$52,5)),NA()) -> 9.488108417 | P46: 9.765624442 | Q46: =IF(ISNA(VLOOKUP($B$6,$A$25:$E$52,IF($B$8=$A$22,3,2))),EXP(VLOOKUP($B$6,$A$25:$E$52,4)*LN(VLOOKUP($H46,P_Hard!$A$5:$Y$204,3*($C$8-1)+4)/1000)+VLOOKUP($B$6,$A$25:$E$52,5)),NA()) -> 9.488108417 | S46: 1.75 | T46: =VLOOKUP($S46,P_All!$AA$5:$AY$245,3*($C$8-1)+2) -> 0.5297 | U46: =VLOOKUP($S46,P_All!$AA$5:$AY$245,3*($C$8-1)+3) -> 1.2335 | V46: =VLOOKUP($S46,P_All!$AA$5:$AY$245,3*($C$8-1)+4) -> 2.7143 | W46: =VLOOKUP($S46,NA_All!$AA$5:$AY$245,3*($C$8-1)+2) -> 0.53041 | X46: =VLOOKUP($S46,NA_All!$AA$5:$AY$245,3*($C$8-1)+3) -> 1.2363 | Y46: =VLOOKUP($S46,NA_All!$AA$5:$AY$245,3*($C$8-1)+4) -> 2.7165 | Z46: =IF(AND($B$8=$A$20,$B$6=$A$48),$B$54,IF(ISNA(VLOOKUP($B$6,$A$25:$E$52,IF($B$8=$A$22,3,2),FALSE)),EXP(VLOOKUP($B$6,$A$25:$E$52,4,FALSE)*LN(VLOOKUP($H46,P_Hard!$A$5:$Y$204,3*($C$8-1)+3,FALSE)/1000)+VLOOKUP($B$6,$A$25:$E$52,5,FALSE)),VLOOKUP($B$6,$A$25:$E$52,IF($B$8=$A$22,3,2),FALSE))) -> 9.488108417
A47: Se | B47: 5 | C47: 5 | H47: 23 | I47: =VLOOKUP($H47,P_All!$A$5:$Y$204,3*($C$8-1)+2) -> 1.2579 | J47: =VLOOKUP($H47,P_All!$A$5:$Y$204,3*($C$8-1)+3) -> 1.4563 | K47: =VLOOKUP($H47,P_All!$A$5:$Y$204,3*($C$8-1)+4) -> 3.0572 | L47: =VLOOKUP($H47,NA_All!$A$5:$Y$204,3*($C$8-1)+2) -> 1.2631 | M47: =VLOOKUP($H47,NA_All!$A$5:$Y$204,3*($C$8-1)+3) -> 1.4686 | N47: =VLOOKUP($H47,NA_All!$A$5:$Y$204,3*($C$8-1)+4) -> 3.0652 | O47: =IF(ISNA(VLOOKUP($B$6,$A$25:$E$52,IF($B$8=$A$22,3,2))),EXP(VLOOKUP($B$6,$A$25:$E$52,4)*LN(VLOOKUP($H47,P_Hard!$A$5:$Y$204,3*($C$8-1)+2)/1000)+VLOOKUP($B$6,$A$25:$E$52,5)),NA()) -> 9.488108417 | P47: 9.765624442 | Q47: =IF(ISNA(VLOOKUP($B$6,$A$25:$E$52,IF($B$8=$A$22,3,2))),EXP(VLOOKUP($B$6,$A$25:$E$52,4)*LN(VLOOKUP($H47,P_Hard!$A$5:$Y$204,3*($C$8-1)+4)/1000)+VLOOKUP($B$6,$A$25:$E$52,5)),NA()) -> 9.488108417 | S47: 1.833333333 | T47: =VLOOKUP($S47,P_All!$AA$5:$AY$245,3*($C$8-1)+2) -> 0.48021 | U47: =VLOOKUP($S47,P_All!$AA$5:$AY$245,3*($C$8-1)+3) -> 1.0568 | V47: =VLOOKUP($S47,P_All!$AA$5:$AY$245,3*($C$8-1)+4) -> 2.8016 | W47: =VLOOKUP($S47,NA_All!$AA$5:$AY$245,3*($C$8-1)+2) -> 0.48108 | X47: =VLOOKUP($S47,NA_All!$AA$5:$AY$245,3*($C$8-1)+3) -> 1.0604 | Y47: =VLOOKUP($S47,NA_All!$AA$5:$AY$245,3*($C$8-1)+4) -> 2.8044 | Z47: =IF(AND($B$8=$A$20,$B$6=$A$48),$B$54,IF(ISNA(VLOOKUP($B$6,$A$25:$E$52,IF($B$8=$A$22,3,2),FALSE)),EXP(VLOOKUP($B$6,$A$25:$E$52,4,FALSE)*LN(VLOOKUP($H47,P_Hard!$A$5:$Y$204,3*($C$8-1)+3,FALSE)/1000)+VLOOKUP($B$6,$A$25:$E$52,5,FALSE)),VLOOKUP($B$6,$A$25:$E$52,IF($B$8=$A$22,3,2),FALSE))) -> 9.488108417
A48: SO4 | C48: 250000 | H48: 24 | I48: =VLOOKUP($H48,P_All!$A$5:$Y$204,3*($C$8-1)+2) -> 1.251 | J48: =VLOOKUP($H48,P_All!$A$5:$Y$204,3*($C$8-1)+3) -> 1.4627 | K48: =VLOOKUP($H48,P_All!$A$5:$Y$204,3*($C$8-1)+4) -> 2.8113 | L48: =VLOOKUP($H48,NA_All!$A$5:$Y$204,3*($C$8-1)+2) -> 1.2559 | M48: =VLOOKUP($H48,NA_All!$A$5:$Y$204,3*($C$8-1)+3) -> 1.4674 | N48: =VLOOKUP($H48,NA_All!$A$5:$Y$204,3*($C$8-1)+4) -> 2.8122 | O48: =IF(ISNA(VLOOKUP($B$6,$A$25:$E$52,IF($B$8=$A$22,3,2))),EXP(VLOOKUP($B$6,$A$25:$E$52,4)*LN(VLOOKUP($H48,P_Hard!$A$5:$Y$204,3*($C$8-1)+2)/1000)+VLOOKUP($B$6,$A$25:$E$52,5)),NA()) -> 9.488108417 | P48: 9.765624442 | Q48: =IF(ISNA(VLOOKUP($B$6,$A$25:$E$52,IF($B$8=$A$22,3,2))),EXP(VLOOKUP($B$6,$A$25:$E$52,4)*LN(VLOOKUP($H48,P_Hard!$A$5:$Y$204,3*($C$8-1)+4)/1000)+VLOOKUP($B$6,$A$25:$E$52,5)),NA()) -> 9.488108417 | S48: 1.916666667 | T48: =VLOOKUP($S48,P_All!$AA$5:$AY$245,3*($C$8-1)+2) -> 0.59561 | U48: =VLOOKUP($S48,P_All!$AA$5:$AY$245,3*($C$8-1)+3) -> 1.1445 | V48: =VLOOKUP($S48,P_All!$AA$5:$AY$245,3*($C$8-1)+4) -> 2.1976 | W48: =VLOOKUP($S48,NA_All!$AA$5:$AY$245,3*($C$8-1)+2) -> 0.59731 | X48: =VLOOKUP($S48,NA_All!$AA$5:$AY$245,3*($C$8-1)+3) -> 1.149 | Y48: =VLOOKUP($S48,NA_All!$AA$5:$AY$245,3*($C$8-1)+4) -> 2.2 | Z48: =IF(AND($B$8=$A$20,$B$6=$A$48),$B$54,IF(ISNA(VLOOKUP($B$6,$A$25:$E$52,IF($B$8=$A$22,3,2),FALSE)),EXP(VLOOKUP($B$6,$A$25:$E$52,4,FALSE)*LN(VLOOKUP($H48,P_Hard!$A$5:$Y$204,3*($C$8-1)+3,FALSE)/1000)+VLOOKUP($B$6,$A$25:$E$52,5,FALSE)),VLOOKUP($B$6,$A$25:$E$52,IF($B$8=$A$22,3,2),FALSE))) -> 9.488108417
A49: Tl | B49: 0.56 | C49: 0.28 | H49: 25 | I49: =VLOOKUP($H49,P_All!$A$5:$Y$204,3*($C$8-1)+2) -> 1.2577 | J49: =VLOOKUP($H49,P_All!$A$5:$Y$204,3*($C$8-1)+3) -> 1.4589 | K49: =VLOOKUP($H49,P_All!$A$5:$Y$204,3*($C$8-1)+4) -> 2.8633 | L49: =VLOOKUP($H49,NA_All!$A$5:$Y$204,3*($C$8-1)+2) -> 1.26 | M49: =VLOOKUP($H49,NA_All!$A$5:$Y$204,3*($C$8-1)+3) -> 1.4683 | N49: =VLOOKUP($H49,NA_All!$A$5:$Y$204,3*($C$8-1)+4) -> 2.8655 | O49: =IF(ISNA(VLOOKUP($B$6,$A$25:$E$52,IF($B$8=$A$22,3,2))),EXP(VLOOKUP($B$6,$A$25:$E$52,4)*LN(VLOOKUP($H49,P_Hard!$A$5:$Y$204,3*($C$8-1)+2)/1000)+VLOOKUP($B$6,$A$25:$E$52,5)),NA()) -> 9.488108417 | P49: 9.765624442 | Q49: =IF(ISNA(VLOOKUP($B$6,$A$25:$E$52,IF($B$8=$A$22,3,2))),EXP(VLOOKUP($B$6,$A$25:$E$52,4)*LN(VLOOKUP($H49,P_Hard!$A$5:$Y$204,3*($C$8-1)+4)/1000)+VLOOKUP($B$6,$A$25:$E$52,5)),NA()) -> 9.488108417 | S49: 2 | T49: =VLOOKUP($S49,P_All!$AA$5:$AY$245,3*($C$8-1)+2) -> 0.91916 | U49: =VLOOKUP($S49,P_All!$AA$5:$AY$245,3*($C$8-1)+3) -> 1.4576 | V49: =VLOOKUP($S49,P_All!$AA$5:$AY$245,3*($C$8-1)+4) -> 2.1265 | W49: =VLOOKUP($S49,NA_All!$AA$5:$AY$245,3*($C$8-1)+2) -> 0.92192 | X49: =VLOOKUP($S49,NA_All!$AA$5:$AY$245,3*($C$8-1)+3) -> 1.4659 | Y49: =VLOOKUP($S49,NA_All!$AA$5:$AY$245,3*($C$8-1)+4) -> 2.1353 | Z49: =IF(AND($B$8=$A$20,$B$6=$A$48),$B$54,IF(ISNA(VLOOKUP($B$6,$A$25:$E$52,IF($B$8=$A$22,3,2),FALSE)),EXP(VLOOKUP($B$6,$A$25:$E$52,4,FALSE)*LN(VLOOKUP($H49,P_Hard!$A$5:$Y$204,3*($C$8-1)+3,FALSE)/1000)+VLOOKUP($B$6,$A$25:$E$52,5,FALSE)),VLOOKUP($B$6,$A$25:$E$52,IF($B$8=$A$22,3,2),FALSE))) -> 9.488108417
A50: V | H50: 26 | I50: =VLOOKUP($H50,P_All!$A$5:$Y$204,3*($C$8-1)+2) -> 1.2439 | J50: =VLOOKUP($H50,P_All!$A$5:$Y$204,3*($C$8-1)+3) -> 1.4488 | K50: =VLOOKUP($H50,P_All!$A$5:$Y$204,3*($C$8-1)+4) -> 2.8204 | L50: =VLOOKUP($H50,NA_All!$A$5:$Y$204,3*($C$8-1)+2) -> 1.2469 | M50: =VLOOKUP($H50,NA_All!$A$5:$Y$204,3*($C$8-1)+3) -> 1.4608 | N50: =VLOOKUP($H50,NA_All!$A$5:$Y$204,3*($C$8-1)+4) -> 2.8218 | O50: =IF(ISNA(VLOOKUP($B$6,$A$25:$E$52,IF($B$8=$A$22,3,2))),EXP(VLOOKUP($B$6,$A$25:$E$52,4)*LN(VLOOKUP($H50,P_Hard!$A$5:$Y$204,3*($C$8-1)+2)/1000)+VLOOKUP($B$6,$A$25:$E$52,5)),NA()) -> 9.488108417 | P50: 9.765624442 | Q50: =IF(ISNA(VLOOKUP($B$6,$A$25:$E$52,IF($B$8=$A$22,3,2))),EXP(VLOOKUP($B$6,$A$25:$E$52,4)*LN(VLOOKUP($H50,P_Hard!$A$5:$Y$204,3*($C$8-1)+4)/1000)+VLOOKUP($B$6,$A$25:$E$52,5)),NA()) -> 9.488108417 | S50: 2.083333333 | T50: =VLOOKUP($S50,P_All!$AA$5:$AY$245,3*($C$8-1)+2) -> 1.1917 | U50: =VLOOKUP($S50,P_All!$AA$5:$AY$245,3*($C$8-1)+3) -> 1.4752 | V50: =VLOOKUP($S50,P_All!$AA$5:$AY$245,3*($C$8-1)+4) -> 1.8872 | W50: =VLOOKUP($S50,NA_All!$AA$5:$AY$245,3*($C$8-1)+2) -> 1.1998 | X50: =VLOOKUP($S50,NA_All!$AA$5:$AY$245,3*($C$8-1)+3) -> 1.4794 | Y50: =VLOOKUP($S50,NA_All!$AA$5:$AY$245,3*($C$8-1)+4) -> 1.8969 | Z50: =IF(AND($B$8=$A$20,$B$6=$A$48),$B$54,IF(ISNA(VLOOKUP($B$6,$A$25:$E$52,IF($B$8=$A$22,3,2),FALSE)),EXP(VLOOKUP($B$6,$A$25:$E$52,4,FALSE)*LN(VLOOKUP($H50,P_Hard!$A$5:$Y$204,3*($C$8-1)+3,FALSE)/1000)+VLOOKUP($B$6,$A$25:$E$52,5,FALSE)),VLOOKUP($B$6,$A$25:$E$52,IF($B$8=$A$22,3,2),FALSE))) -> 9.488108417
A51: Zn | D51: 0.8473 | E51: 0.884 | F51: =EXP(D51*LN(IF($B$8=$A$17,$C$65,IF($B$8=$A$18,$C$66,NA())))+E51) -> 125.3770742 | H51: 27 | I51: =VLOOKUP($H51,P_All!$A$5:$Y$204,3*($C$8-1)+2) -> 1.2433 | J51: =VLOOKUP($H51,P_All!$A$5:$Y$204,3*($C$8-1)+3) -> 1.5085 | K51: =VLOOKUP($H51,P_All!$A$5:$Y$204,3*($C$8-1)+4) -> 2.8962 | L51: =VLOOKUP($H51,NA_All!$A$5:$Y$204,3*($C$8-1)+2) -> 1.2468 | M51: =VLOOKUP($H51,NA_All!$A$5:$Y$204,3*($C$8-1)+3) -> 1.5236 | N51: =VLOOKUP($H51,NA_All!$A$5:$Y$204,3*($C$8-1)+4) -> 2.8972 | O51: =IF(ISNA(VLOOKUP($B$6,$A$25:$E$52,IF($B$8=$A$22,3,2))),EXP(VLOOKUP($B$6,$A$25:$E$52,4)*LN(VLOOKUP($H51,P_Hard!$A$5:$Y$204,3*($C$8-1)+2)/1000)+VLOOKUP($B$6,$A$25:$E$52,5)),NA()) -> 9.488108417 | P51: 9.765624442 | Q51: =IF(ISNA(VLOOKUP($B$6,$A$25:$E$52,IF($B$8=$A$22,3,2))),EXP(VLOOKUP($B$6,$A$25:$E$52,4)*LN(VLOOKUP($H51,P_Hard!$A$5:$Y$204,3*($C$8-1)+4)/1000)+VLOOKUP($B$6,$A$25:$E$52,5)),NA()) -> 9.488108417 | S51: 2.166666667 | T51: =VLOOKUP($S51,P_All!$AA$5:$AY$245,3*($C$8-1)+2) -> 1.2412 | U51: =VLOOKUP($S51,P_All!$AA$5:$AY$245,3*($C$8-1)+3) -> 1.3972 | V51: =VLOOKUP($S51,P_All!$AA$5:$AY$245,3*($C$8-1)+4) -> 1.7967 | W51: =VLOOKUP($S51,NA_All!$AA$5:$AY$245,3*($C$8-1)+2) -> 1.2433 | X51: =VLOOKUP($S51,NA_All!$AA$5:$AY$245,3*($C$8-1)+3) -> 1.4035 | Y51: =VLOOKUP($S51,NA_All!$AA$5:$AY$245,3*($C$8-1)+4) -> 1.8161 | Z51: =IF(AND($B$8=$A$20,$B$6=$A$48),$B$54,IF(ISNA(VLOOKUP($B$6,$A$25:$E$52,IF($B$8=$A$22,3,2),FALSE)),EXP(VLOOKUP($B$6,$A$25:$E$52,4,FALSE)*LN(VLOOKUP($H51,P_Hard!$A$5:$Y$204,3*($C$8-1)+3,FALSE)/1000)+VLOOKUP($B$6,$A$25:$E$52,5,FALSE)),VLOOKUP($B$6,$A$25:$E$52,IF($B$8=$A$22,3,2),FALSE))) -> 9.488108417
A52: Hardness | B52: 500000 | C52: 500000 | H52: 28 | I52: =VLOOKUP($H52,P_All!$A$5:$Y$204,3*($C$8-1)+2) -> 1.247 | J52: =VLOOKUP($H52,P_All!$A$5:$Y$204,3*($C$8-1)+3) -> 1.4862 | K52: =VLOOKUP($H52,P_All!$A$5:$Y$204,3*($C$8-1)+4) -> 2.9122 | L52: =VLOOKUP($H52,NA_All!$A$5:$Y$204,3*($C$8-1)+2) -> 1.251 | M52: =VLOOKUP($H52,NA_All!$A$5:$Y$204,3*($C$8-1)+3) -> 1.4943 | N52: =VLOOKUP($H52,NA_All!$A$5:$Y$204,3*($C$8-1)+4) -> 2.9147 | O52: =IF(ISNA(VLOOKUP($B$6,$A$25:$E$52,IF($B$8=$A$22,3,2))),EXP(VLOOKUP($B$6,$A$25:$E$52,4)*LN(VLOOKUP($H52,P_Hard!$A$5:$Y$204,3*($C$8-1)+2)/1000)+VLOOKUP($B$6,$A$25:$E$52,5)),NA()) -> 9.488108417 | P52: 9.765624442 | Q52: =IF(ISNA(VLOOKUP($B$6,$A$25:$E$52,IF($B$8=$A$22,3,2))),EXP(VLOOKUP($B$6,$A$25:$E$52,4)*LN(VLOOKUP($H52,P_Hard!$A$5:$Y$204,3*($C$8-1)+4)/1000)+VLOOKUP($B$6,$A$25:$E$52,5)),NA()) -> 9.488108417 | S52: 2.25 | T52: =VLOOKUP($S52,P_All!$AA$5:$AY$245,3*($C$8-1)+2) -> 0.7821 | U52: =VLOOKUP($S52,P_All!$AA$5:$AY$245,3*($C$8-1)+3) -> 1.4008 | V52: =VLOOKUP($S52,P_All!$AA$5:$AY$245,3*($C$8-1)+4) -> 1.9085 | W52: =VLOOKUP($S52,NA_All!$AA$5:$AY$245,3*($C$8-1)+2) -> 0.78557 | X52: =VLOOKUP($S52,NA_All!$AA$5:$AY$245,3*($C$8-1)+3) -> 1.4076 | Y52: =VLOOKUP($S52,NA_All!$AA$5:$AY$245,3*($C$8-1)+4) -> 1.9134 | Z52: =IF(AND($B$8=$A$20,$B$6=$A$48),$B$54,IF(ISNA(VLOOKUP($B$6,$A$25:$E$52,IF($B$8=$A$22,3,2),FALSE)),EXP(VLOOKUP($B$6,$A$25:$E$52,4,FALSE)*LN(VLOOKUP($H52,P_Hard!$A$5:$Y$204,3*($C$8-1)+3,FALSE)/1000)+VLOOKUP($B$6,$A$25:$E$52,5,FALSE)),VLOOKUP($B$6,$A$25:$E$52,IF($B$8=$A$22,3,2),FALSE))) -> 9.488108417
H53: 29 | I53: =VLOOKUP($H53,P_All!$A$5:$Y$204,3*($C$8-1)+2) -> 1.2551 | J53: =VLOOKUP($H53,P_All!$A$5:$Y$204,3*($C$8-1)+3) -> 1.4539 | K53: =VLOOKUP($H53,P_All!$A$5:$Y$204,3*($C$8-1)+4) -> 2.8786 | L53: =VLOOKUP($H53,NA_All!$A$5:$Y$204,3*($C$8-1)+2) -> 1.2629 | M53: =VLOOKUP($H53,NA_All!$A$5:$Y$204,3*($C$8-1)+3) -> 1.4617 | N53: =VLOOKUP($H53,NA_All!$A$5:$Y$204,3*($C$8-1)+4) -> 2.8828 | O53: =IF(ISNA(VLOOKUP($B$6,$A$25:$E$52,IF($B$8=$A$22,3,2))),EXP(VLOOKUP($B$6,$A$25:$E$52,4)*LN(VLOOKUP($H53,P_Hard!$A$5:$Y$204,3*($C$8-1)+2)/1000)+VLOOKUP($B$6,$A$25:$E$52,5)),NA()) -> 9.488108417 | P53: 9.765624442 | Q53: =IF(ISNA(VLOOKUP($B$6,$A$25:$E$52,IF($B$8=$A$22,3,2))),EXP(VLOOKUP($B$6,$A$25:$E$52,4)*LN(VLOOKUP($H53,P_Hard!$A$5:$Y$204,3*($C$8-1)+4)/1000)+VLOOKUP($B$6,$A$25:$E$52,5)),NA()) -> 9.488108417 | S53: 2.333333333 | T53: =VLOOKUP($S53,P_All!$AA$5:$AY$245,3*($C$8-1)+2) -> 0.42716 | U53: =VLOOKUP($S53,P_All!$AA$5:$AY$245,3*($C$8-1)+3) -> 1.0448 | V53: =VLOOKUP($S53,P_All!$AA$5:$AY$245,3*($C$8-1)+4) -> 2.665 | W53: =VLOOKUP($S53,NA_All!$AA$5:$AY$245,3*($C$8-1)+2) -> 0.42884 | X53: =VLOOKUP($S53,NA_All!$AA$5:$AY$245,3*($C$8-1)+3) -> 1.0472 | Y53: =VLOOKUP($S53,NA_All!$AA$5:$AY$245,3*($C$8-1)+4) -> 2.6667 | Z53: =IF(AND($B$8=$A$20,$B$6=$A$48),$B$54,IF(ISNA(VLOOKUP($B$6,$A$25:$E$52,IF($B$8=$A$22,3,2),FALSE)),EXP(VLOOKUP($B$6,$A$25:$E$52,4,FALSE)*LN(VLOOKUP($H53,P_Hard!$A$5:$Y$204,3*($C$8-1)+3,FALSE)/1000)+VLOOKUP($B$6,$A$25:$E$52,5,FALSE)),VLOOKUP($B$6,$A$25:$E$52,IF($B$8=$A$22,3,2),FALSE))) -> 9.488108417
A54: SO4 wild rice | B54: 10000 | C54: applies at SW-005 only, April-August | H54: 30 | I54: =VLOOKUP($H54,P_All!$A$5:$Y$204,3*($C$8-1)+2) -> 1.2495 | J54: =VLOOKUP($H54,P_All!$A$5:$Y$204,3*($C$8-1)+3) -> 1.4824 | K54: =VLOOKUP($H54,P_All!$A$5:$Y$204,3*($C$8-1)+4) -> 3.1218 | L54: =VLOOKUP($H54,NA_All!$A$5:$Y$204,3*($C$8-1)+2) -> 1.2503 | M54: =VLOOKUP($H54,NA_All!$A$5:$Y$204,3*($C$8-1)+3) -> 1.4875 | N54: =VLOOKUP($H54,NA_All!$A$5:$Y$204,3*($C$8-1)+4) -> 3.1228 | O54: =IF(ISNA(VLOOKUP($B$6,$A$25:$E$52,IF($B$8=$A$22,3,2))),EXP(VLOOKUP($B$6,$A$25:$E$52,4)*LN(VLOOKUP($H54,P_Hard!$A$5:$Y$204,3*($C$8-1)+2)/1000)+VLOOKUP($B$6,$A$25:$E$52,5)),NA()) -> 9.488108417 | P54: 9.765624442 | Q54: =IF(ISNA(VLOOKUP($B$6,$A$25:$E$52,IF($B$8=$A$22,3,2))),EXP(VLOOKUP($B$6,$A$25:$E$52,4)*LN(VLOOKUP($H54,P_Hard!$A$5:$Y$204,3*($C$8-1)+4)/1000)+VLOOKUP($B$6,$A$25:$E$52,5)),NA()) -> 9.488108417 | S54: 2.416666667 | T54: =VLOOKUP($S54,P_All!$AA$5:$AY$245,3*($C$8-1)+2) -> 0.36265 | U54: =VLOOKUP($S54,P_All!$AA$5:$AY$245,3*($C$8-1)+3) -> 0.99416 | V54: =VLOOKUP($S54,P_All!$AA$5:$AY$245,3*($C$8-1)+4) -> 2.8726 | W54: =VLOOKUP($S54,NA_All!$AA$5:$AY$245,3*($C$8-1)+2) -> 0.36295 | X54: =VLOOKUP($S54,NA_All!$AA$5:$AY$245,3*($C$8-1)+3) -> 0.99448 | Y54: =VLOOKUP($S54,NA_All!$AA$5:$AY$245,3*($C$8-1)+4) -> 2.8745 | Z54: =IF(AND($B$8=$A$20,$B$6=$A$48),$B$54,IF(ISNA(VLOOKUP($B$6,$A$25:$E$52,IF($B$8=$A$22,3,2),FALSE)),EXP(VLOOKUP($B$6,$A$25:$E$52,4,FALSE)*LN(VLOOKUP($H54,P_Hard!$A$5:$Y$204,3*($C$8-1)+3,FALSE)/1000)+VLOOKUP($B$6,$A$25:$E$52,5,FALSE)),VLOOKUP($B$6,$A$25:$E$52,IF($B$8=$A$22,3,2),FALSE))) -> 9.488108417
H55: 31 | I55: =VLOOKUP($H55,P_All!$A$5:$Y$204,3*($C$8-1)+2) -> 1.2386 | J55: =VLOOKUP($H55,P_All!$A$5:$Y$204,3*($C$8-1)+3) -> 1.4885 | K55: =VLOOKUP($H55,P_All!$A$5:$Y$204,3*($C$8-1)+4) -> 2.9095 | L55: =VLOOKUP($H55,NA_All!$A$5:$Y$204,3*($C$8-1)+2) -> 1.2411 | M55: =VLOOKUP($H55,NA_All!$A$5:$Y$204,3*($C$8-1)+3) -> 1.494 | N55: =VLOOKUP($H55,NA_All!$A$5:$Y$204,3*($C$8-1)+4) -> 2.9107 | O55: =IF(ISNA(VLOOKUP($B$6,$A$25:$E$52,IF($B$8=$A$22,3,2))),EXP(VLOOKUP($B$6,$A$25:$E$52,4)*LN(VLOOKUP($H55,P_Hard!$A$5:$Y$204,3*($C$8-1)+2)/1000)+VLOOKUP($B$6,$A$25:$E$52,5)),NA()) -> 9.488108417 | P55: 9.765624442 | Q55: =IF(ISNA(VLOOKUP($B$6,$A$25:$E$52,IF($B$8=$A$22,3,2))),EXP(VLOOKUP($B$6,$A$25:$E$52,4)*LN(VLOOKUP($H55,P_Hard!$A$5:$Y$204,3*($C$8-1)+4)/1000)+VLOOKUP($B$6,$A$25:$E$52,5)),NA()) -> 9.488108417 | S55: 2.5 | T55: =VLOOKUP($S55,P_All!$AA$5:$AY$245,3*($C$8-1)+2) -> 0.47166 | U55: =VLOOKUP($S55,P_All!$AA$5:$AY$245,3*($C$8-1)+3) -> 1.092 | V55: =VLOOKUP($S55,P_All!$AA$5:$AY$245,3*($C$8-1)+4) -> 2.5062 | W55: =VLOOKUP($S55,NA_All!$AA$5:$AY$245,3*($C$8-1)+2) -> 0.47361 | X55: =VLOOKUP($S55,NA_All!$AA$5:$AY$245,3*($C$8-1)+3) -> 1.0957 | Y55: =VLOOKUP($S55,NA_All!$AA$5:$AY$245,3*($C$8-1)+4) -> 2.5095 | Z55: =IF(AND($B$8=$A$20,$B$6=$A$48),$B$54,IF(ISNA(VLOOKUP($B$6,$A$25:$E$52,IF($B$8=$A$22,3,2),FALSE)),EXP(VLOOKUP($B$6,$A$25:$E$52,4,FALSE)*LN(VLOOKUP($H55,P_Hard!$A$5:$Y$204,3*($C$8-1)+3,FALSE)/1000)+VLOOKUP($B$6,$A$25:$E$52,5,FALSE)),VLOOKUP($B$6,$A$25:$E$52,IF($B$8=$A$22,3,2),FALSE))) -> 9.488108417
H56: 32 | I56: =VLOOKUP($H56,P_All!$A$5:$Y$204,3*($C$8-1)+2) -> 1.2395 | J56: =VLOOKUP($H56,P_All!$A$5:$Y$204,3*($C$8-1)+3) -> 1.466 | K56: =VLOOKUP($H56,P_All!$A$5:$Y$204,3*($C$8-1)+4) -> 2.8258 | L56: =VLOOKUP($H56,NA_All!$A$5:$Y$204,3*($C$8-1)+2) -> 1.2423 | M56: =VLOOKUP($H56,NA_All!$A$5:$Y$204,3*($C$8-1)+3) -> 1.4845 | N56: =VLOOKUP($H56,NA_All!$A$5:$Y$204,3*($C$8-1)+4) -> 2.831 | O56: =IF(ISNA(VLOOKUP($B$6,$A$25:$E$52,IF($B$8=$A$22,3,2))),EXP(VLOOKUP($B$6,$A$25:$E$52,4)*LN(VLOOKUP($H56,P_Hard!$A$5:$Y$204,3*($C$8-1)+2)/1000)+VLOOKUP($B$6,$A$25:$E$52,5)),NA()) -> 9.488108417 | P56: 9.765624442 | Q56: =IF(ISNA(VLOOKUP($B$6,$A$25:$E$52,IF($B$8=$A$22,3,2))),EXP(VLOOKUP($B$6,$A$25:$E$52,4)*LN(VLOOKUP($H56,P_Hard!$A$5:$Y$204,3*($C$8-1)+4)/1000)+VLOOKUP($B$6,$A$25:$E$52,5)),NA()) -> 9.488108417 | S56: 2.583333333 | T56: =VLOOKUP($S56,P_All!$AA$5:$AY$245,3*($C$8-1)+2) -> 0.56675 | U56: =VLOOKUP($S56,P_All!$AA$5:$AY$245,3*($C$8-1)+3) -> 1.2849 | V56: =VLOOKUP($S56,P_All!$AA$5:$AY$245,3*($C$8-1)+4) -> 2.3652 | W56: =VLOOKUP($S56,NA_All!$AA$5:$AY$245,3*($C$8-1)+2) -> 0.56753 | X56: =VLOOKUP($S56,NA_All!$AA$5:$AY$245,3*($C$8-1)+3) -> 1.2837 | Y56: =VLOOKUP($S56,NA_All!$AA$5:$AY$245,3*($C$8-1)+4) -> 2.3674 | Z56: =IF(AND($B$8=$A$20,$B$6=$A$48),$B$54,IF(ISNA(VLOOKUP($B$6,$A$25:$E$52,IF($B$8=$A$22,3,2),FALSE)),EXP(VLOOKUP($B$6,$A$25:$E$52,4,FALSE)*LN(VLOOKUP($H56,P_Hard!$A$5:$Y$204,3*($C$8-1)+3,FALSE)/1000)+VLOOKUP($B$6,$A$25:$E$52,5,FALSE)),VLOOKUP($B$6,$A$25:$E$52,IF($B$8=$A$22,3,2),FALSE))) -> 9.488108417
A57: Plots | H57: 33 | I57: =VLOOKUP($H57,P_All!$A$5:$Y$204,3*($C$8-1)+2) -> 1.2411 | J57: =VLOOKUP($H57,P_All!$A$5:$Y$204,3*($C$8-1)+3) -> 1.4665 | K57: =VLOOKUP($H57,P_All!$A$5:$Y$204,3*($C$8-1)+4) -> 2.7337 | L57: =VLOOKUP($H57,NA_All!$A$5:$Y$204,3*($C$8-1)+2) -> 1.244 | M57: =VLOOKUP($H57,NA_All!$A$5:$Y$204,3*($C$8-1)+3) -> 1.4699 | N57: =VLOOKUP($H57,NA_All!$A$5:$Y$204,3*($C$8-1)+4) -> 2.7346 | O57: =IF(ISNA(VLOOKUP($B$6,$A$25:$E$52,IF($B$8=$A$22,3,2))),EXP(VLOOKUP($B$6,$A$25:$E$52,4)*LN(VLOOKUP($H57,P_Hard!$A$5:$Y$204,3*($C$8-1)+2)/1000)+VLOOKUP($B$6,$A$25:$E$52,5)),NA()) -> 9.488108417 | P57: 9.765624442 | Q57: =IF(ISNA(VLOOKUP($B$6,$A$25:$E$52,IF($B$8=$A$22,3,2))),EXP(VLOOKUP($B$6,$A$25:$E$52,4)*LN(VLOOKUP($H57,P_Hard!$A$5:$Y$204,3*($C$8-1)+4)/1000)+VLOOKUP($B$6,$A$25:$E$52,5)),NA()) -> 9.488108417 | S57: 2.666666667 | T57: =VLOOKUP($S57,P_All!$AA$5:$AY$245,3*($C$8-1)+2) -> 0.53891 | U57: =VLOOKUP($S57,P_All!$AA$5:$AY$245,3*($C$8-1)+3) -> 1.1586 | V57: =VLOOKUP($S57,P_All!$AA$5:$AY$245,3*($C$8-1)+4) -> 2.3341 | W57: =VLOOKUP($S57,NA_All!$AA$5:$AY$245,3*($C$8-1)+2) -> 0.54183 | X57: =VLOOKUP($S57,NA_All!$AA$5:$AY$245,3*($C$8-1)+3) -> 1.1655 | Y57: =VLOOKUP($S57,NA_All!$AA$5:$AY$245,3*($C$8-1)+4) -> 2.3346 | Z57: =IF(AND($B$8=$A$20,$B$6=$A$48),$B$54,IF(ISNA(VLOOKUP($B$6,$A$25:$E$52,IF($B$8=$A$22,3,2),FALSE)),EXP(VLOOKUP($B$6,$A$25:$E$52,4,FALSE)*LN(VLOOKUP($H57,P_Hard!$A$5:$Y$204,3*($C$8-1)+3,FALSE)/1000)+VLOOKUP($B$6,$A$25:$E$52,5,FALSE)),VLOOKUP($B$6,$A$25:$E$52,IF($B$8=$A$22,3,2),FALSE))) -> 9.488108417
A58: Annual Max | H58: 34 | I58: =VLOOKUP($H58,P_All!$A$5:$Y$204,3*($C$8-1)+2) -> 1.2258 | J58: =VLOOKUP($H58,P_All!$A$5:$Y$204,3*($C$8-1)+3) -> 1.461 | K58: =VLOOKUP($H58,P_All!$A$5:$Y$204,3*($C$8-1)+4) -> 2.7078 | L58: =VLOOKUP($H58,NA_All!$A$5:$Y$204,3*($C$8-1)+2) -> 1.2318 | M58: =VLOOKUP($H58,NA_All!$A$5:$Y$204,3*($C$8-1)+3) -> 1.4704 | N58: =VLOOKUP($H58,NA_All!$A$5:$Y$204,3*($C$8-1)+4) -> 2.7102 | O58: =IF(ISNA(VLOOKUP($B$6,$A$25:$E$52,IF($B$8=$A$22,3,2))),EXP(VLOOKUP($B$6,$A$25:$E$52,4)*LN(VLOOKUP($H58,P_Hard!$A$5:$Y$204,3*($C$8-1)+2)/1000)+VLOOKUP($B$6,$A$25:$E$52,5)),NA()) -> 9.488108417 | P58: 9.765624442 | Q58: =IF(ISNA(VLOOKUP($B$6,$A$25:$E$52,IF($B$8=$A$22,3,2))),EXP(VLOOKUP($B$6,$A$25:$E$52,4)*LN(VLOOKUP($H58,P_Hard!$A$5:$Y$204,3*($C$8-1)+4)/1000)+VLOOKUP($B$6,$A$25:$E$52,5)),NA()) -> 9.488108417 | S58: 2.75 | T58: =VLOOKUP($S58,P_All!$AA$5:$AY$245,3*($C$8-1)+2) -> 0.53525 | U58: =VLOOKUP($S58,P_All!$AA$5:$AY$245,3*($C$8-1)+3) -> 1.2352 | V58: =VLOOKUP($S58,P_All!$AA$5:$AY$245,3*($C$8-1)+4) -> 2.6042 | W58: =VLOOKUP($S58,NA_All!$AA$5:$AY$245,3*($C$8-1)+2) -> 0.53575 | X58: =VLOOKUP($S58,NA_All!$AA$5:$AY$245,3*($C$8-1)+3) -> 1.2384 | Y58: =VLOOKUP($S58,NA_All!$AA$5:$AY$245,3*($C$8-1)+4) -> 2.6088 | Z58: =IF(AND($B$8=$A$20,$B$6=$A$48),$B$54,IF(ISNA(VLOOKUP($B$6,$A$25:$E$52,IF($B$8=$A$22,3,2),FALSE)),EXP(VLOOKUP($B$6,$A$25:$E$52,4,FALSE)*LN(VLOOKUP($H58,P_Hard!$A$5:$Y$204,3*($C$8-1)+3,FALSE)/1000)+VLOOKUP($B$6,$A$25:$E$52,5,FALSE)),VLOOKUP($B$6,$A$25:$E$52,IF($B$8=$A$22,3,2),FALSE))) -> 9.488108417
A59: Annual Average | H59: 35 | I59: =VLOOKUP($H59,P_All!$A$5:$Y$204,3*($C$8-1)+2) -> 1.2186 | J59: =VLOOKUP($H59,P_All!$A$5:$Y$204,3*($C$8-1)+3) -> 1.4704 | K59: =VLOOKUP($H59,P_All!$A$5:$Y$204,3*($C$8-1)+4) -> 2.6942 | L59: =VLOOKUP($H59,NA_All!$A$5:$Y$204,3*($C$8-1)+2) -> 1.2189 | M59: =VLOOKUP($H59,NA_All!$A$5:$Y$204,3*($C$8-1)+3) -> 1.4861 | N59: =VLOOKUP($H59,NA_All!$A$5:$Y$204,3*($C$8-1)+4) -> 2.6988 | O59: =IF(ISNA(VLOOKUP($B$6,$A$25:$E$52,IF($B$8=$A$22,3,2))),EXP(VLOOKUP($B$6,$A$25:$E$52,4)*LN(VLOOKUP($H59,P_Hard!$A$5:$Y$204,3*($C$8-1)+2)/1000)+VLOOKUP($B$6,$A$25:$E$52,5)),NA()) -> 9.488108417 | P59: 9.765624442 | Q59: =IF(ISNA(VLOOKUP($B$6,$A$25:$E$52,IF($B$8=$A$22,3,2))),EXP(VLOOKUP($B$6,$A$25:$E$52,4)*LN(VLOOKUP($H59,P_Hard!$A$5:$Y$204,3*($C$8-1)+4)/1000)+VLOOKUP($B$6,$A$25:$E$52,5)),NA()) -> 9.488108417 | S59: 2.833333333 | T59: =VLOOKUP($S59,P_All!$AA$5:$AY$245,3*($C$8-1)+2) -> 0.45634 | U59: =VLOOKUP($S59,P_All!$AA$5:$AY$245,3*($C$8-1)+3) -> 1.0424 | V59: =VLOOKUP($S59,P_All!$AA$5:$AY$245,3*($C$8-1)+4) -> 2.5813 | W59: =VLOOKUP($S59,NA_All!$AA$5:$AY$245,3*($C$8-1)+2) -> 0.45713 | X59: =VLOOKUP($S59,NA_All!$AA$5:$AY$245,3*($C$8-1)+3) -> 1.0455 | Y59: =VLOOKUP($S59,NA_All!$AA$5:$AY$245,3*($C$8-1)+4) -> 2.5871 | Z59: =IF(AND($B$8=$A$20,$B$6=$A$48),$B$54,IF(ISNA(VLOOKUP($B$6,$A$25:$E$52,IF($B$8=$A$22,3,2),FALSE)),EXP(VLOOKUP($B$6,$A$25:$E$52,4,FALSE)*LN(VLOOKUP($H59,P_Hard!$A$5:$Y$204,3*($C$8-1)+3,FALSE)/1000)+VLOOKUP($B$6,$A$25:$E$52,5,FALSE)),VLOOKUP($B$6,$A$25:$E$52,IF($B$8=$A$22,3,2),FALSE))) -> 9.488108417
H60: 36 | I60: =VLOOKUP($H60,P_All!$A$5:$Y$204,3*($C$8-1)+2) -> 1.2468 | J60: =VLOOKUP($H60,P_All!$A$5:$Y$204,3*($C$8-1)+3) -> 1.4589 | K60: =VLOOKUP($H60,P_All!$A$5:$Y$204,3*($C$8-1)+4) -> 2.6857 | L60: =VLOOKUP($H60,NA_All!$A$5:$Y$204,3*($C$8-1)+2) -> 1.2504 | M60: =VLOOKUP($H60,NA_All!$A$5:$Y$204,3*($C$8-1)+3) -> 1.4691 | N60: =VLOOKUP($H60,NA_All!$A$5:$Y$204,3*($C$8-1)+4) -> 2.6877 | O60: =IF(ISNA(VLOOKUP($B$6,$A$25:$E$52,IF($B$8=$A$22,3,2))),EXP(VLOOKUP($B$6,$A$25:$E$52,4)*LN(VLOOKUP($H60,P_Hard!$A$5:$Y$204,3*($C$8-1)+2)/1000)+VLOOKUP($B$6,$A$25:$E$52,5)),NA()) -> 9.488108417 | P60: 9.765624442 | Q60: =IF(ISNA(VLOOKUP($B$6,$A$25:$E$52,IF($B$8=$A$22,3,2))),EXP(VLOOKUP($B$6,$A$25:$E$52,4)*LN(VLOOKUP($H60,P_Hard!$A$5:$Y$204,3*($C$8-1)+4)/1000)+VLOOKUP($B$6,$A$25:$E$52,5)),NA()) -> 9.488108417 | S60: 2.916666667 | T60: =VLOOKUP($S60,P_All!$AA$5:$AY$245,3*($C$8-1)+2) -> 0.61016 | U60: =VLOOKUP($S60,P_All!$AA$5:$AY$245,3*($C$8-1)+3) -> 1.1764 | V60: =VLOOKUP($S60,P_All!$AA$5:$AY$245,3*($C$8-1)+4) -> 2.5455 | W60: =VLOOKUP($S60,NA_All!$AA$5:$AY$245,3*($C$8-1)+2) -> 0.61168 | X60: =VLOOKUP($S60,NA_All!$AA$5:$AY$245,3*($C$8-1)+3) -> 1.1827 | Y60: =VLOOKUP($S60,NA_All!$AA$5:$AY$245,3*($C$8-1)+4) -> 2.5504 | Z60: =IF(AND($B$8=$A$20,$B$6=$A$48),$B$54,IF(ISNA(VLOOKUP($B$6,$A$25:$E$52,IF($B$8=$A$22,3,2),FALSE)),EXP(VLOOKUP($B$6,$A$25:$E$52,4,FALSE)*LN(VLOOKUP($H60,P_Hard!$A$5:$Y$204,3*($C$8-1)+3,FALSE)/1000)+VLOOKUP($B$6,$A$25:$E$52,5,FALSE)),VLOOKUP($B$6,$A$25:$E$52,IF($B$8=$A$22,3,2),FALSE))) -> 9.488108417
A61: Partridge River Evaluation Point | B61: [Wild_Rice_Locs] Wild Rice Location? | C61: [Hardness_forStandard] Hardness used for Evaluating Standards (mg/L)* | H61: 37 | I61: =VLOOKUP($H61,P_All!$A$5:$Y$204,3*($C$8-1)+2) -> 1.2522 | J61: =VLOOKUP($H61,P_All!$A$5:$Y$204,3*($C$8-1)+3) -> 1.4555 | K61: =VLOOKUP($H61,P_All!$A$5:$Y$204,3*($C$8-1)+4) -> 3.2102 | L61: =VLOOKUP($H61,NA_All!$A$5:$Y$204,3*($C$8-1)+2) -> 1.2553 | M61: =VLOOKUP($H61,NA_All!$A$5:$Y$204,3*($C$8-1)+3) -> 1.4656 | N61: =VLOOKUP($H61,NA_All!$A$5:$Y$204,3*($C$8-1)+4) -> 3.2107 | O61: =IF(ISNA(VLOOKUP($B$6,$A$25:$E$52,IF($B$8=$A$22,3,2))),EXP(VLOOKUP($B$6,$A$25:$E$52,4)*LN(VLOOKUP($H61,P_Hard!$A$5:$Y$204,3*($C$8-1)+2)/1000)+VLOOKUP($B$6,$A$25:$E$52,5)),NA()) -> 9.488108417 | P61: 9.765624442 | Q61: =IF(ISNA(VLOOKUP($B$6,$A$25:$E$52,IF($B$8=$A$22,3,2))),EXP(VLOOKUP($B$6,$A$25:$E$52,4)*LN(VLOOKUP($H61,P_Hard!$A$5:$Y$204,3*($C$8-1)+4)/1000)+VLOOKUP($B$6,$A$25:$E$52,5)),NA()) -> 9.488108417 | S61: 3 | T61: =VLOOKUP($S61,P_All!$AA$5:$AY$245,3*($C$8-1)+2) -> 0.93419 | U61: =VLOOKUP($S61,P_All!$AA$5:$AY$245,3*($C$8-1)+3) -> 1.4713 | V61: =VLOOKUP($S61,P_All!$AA$5:$AY$245,3*($C$8-1)+4) -> 2.0779 | W61: =VLOOKUP($S61,NA_All!$AA$5:$AY$245,3*($C$8-1)+2) -> 0.93828 | X61: =VLOOKUP($S61,NA_All!$AA$5:$AY$245,3*($C$8-1)+3) -> 1.4811 | Y61: =VLOOKUP($S61,NA_All!$AA$5:$AY$245,3*($C$8-1)+4) -> 2.0839 | Z61: =IF(AND($B$8=$A$20,$B$6=$A$48),$B$54,IF(ISNA(VLOOKUP($B$6,$A$25:$E$52,IF($B$8=$A$22,3,2),FALSE)),EXP(VLOOKUP($B$6,$A$25:$E$52,4,FALSE)*LN(VLOOKUP($H61,P_Hard!$A$5:$Y$204,3*($C$8-1)+3,FALSE)/1000)+VLOOKUP($B$6,$A$25:$E$52,5,FALSE)),VLOOKUP($B$6,$A$25:$E$52,IF($B$8=$A$22,3,2),FALSE))) -> 9.488108417
A62: SW-001 | B62: No | C62: -- | H62: 38 | I62: =VLOOKUP($H62,P_All!$A$5:$Y$204,3*($C$8-1)+2) -> 1.25 | J62: =VLOOKUP($H62,P_All!$A$5:$Y$204,3*($C$8-1)+3) -> 1.4612 | K62: =VLOOKUP($H62,P_All!$A$5:$Y$204,3*($C$8-1)+4) -> 2.9247 | L62: =VLOOKUP($H62,NA_All!$A$5:$Y$204,3*($C$8-1)+2) -> 1.251 | M62: =VLOOKUP($H62,NA_All!$A$5:$Y$204,3*($C$8-1)+3) -> 1.4745 | N62: =VLOOKUP($H62,NA_All!$A$5:$Y$204,3*($C$8-1)+4) -> 2.9253 | O62: =IF(ISNA(VLOOKUP($B$6,$A$25:$E$52,IF($B$8=$A$22,3,2))),EXP(VLOOKUP($B$6,$A$25:$E$52,4)*LN(VLOOKUP($H62,P_Hard!$A$5:$Y$204,3*($C$8-1)+2)/1000)+VLOOKUP($B$6,$A$25:$E$52,5)),NA()) -> 9.488108417 | P62: 9.765624442 | Q62: =IF(ISNA(VLOOKUP($B$6,$A$25:$E$52,IF($B$8=$A$22,3,2))),EXP(VLOOKUP($B$6,$A$25:$E$52,4)*LN(VLOOKUP($H62,P_Hard!$A$5:$Y$204,3*($C$8-1)+4)/1000)+VLOOKUP($B$6,$A$25:$E$52,5)),NA()) -> 9.488108417 | S62: 3.083333333 | T62: =VLOOKUP($S62,P_All!$AA$5:$AY$245,3*($C$8-1)+2) -> 1.1837 | U62: =VLOOKUP($S62,P_All!$AA$5:$AY$245,3*($C$8-1)+3) -> 1.4513 | V62: =VLOOKUP($S62,P_All!$AA$5:$AY$245,3*($C$8-1)+4) -> 1.8695 | W62: =VLOOKUP($S62,NA_All!$AA$5:$AY$245,3*($C$8-1)+2) -> 1.1887 | X62: =VLOOKUP($S62,NA_All!$AA$5:$AY$245,3*($C$8-1)+3) -> 1.4576 | Y62: =VLOOKUP($S62,NA_All!$AA$5:$AY$245,3*($C$8-1)+4) -> 1.8799 | Z62: =IF(AND($B$8=$A$20,$B$6=$A$48),$B$54,IF(ISNA(VLOOKUP($B$6,$A$25:$E$52,IF($B$8=$A$22,3,2),FALSE)),EXP(VLOOKUP($B$6,$A$25:$E$52,4,FALSE)*LN(VLOOKUP($H62,P_Hard!$A$5:$Y$204,3*($C$8-1)+3,FALSE)/1000)+VLOOKUP($B$6,$A$25:$E$52,5,FALSE)),VLOOKUP($B$6,$A$25:$E$52,IF($B$8=$A$22,3,2),FALSE))) -> 9.488108417
A63: SW-002 | B63: No | C63: -- | H63: 39 | I63: =VLOOKUP($H63,P_All!$A$5:$Y$204,3*($C$8-1)+2) -> 1.2307 | J63: =VLOOKUP($H63,P_All!$A$5:$Y$204,3*($C$8-1)+3) -> 1.4629 | K63: =VLOOKUP($H63,P_All!$A$5:$Y$204,3*($C$8-1)+4) -> 3.0935 | L63: =VLOOKUP($H63,NA_All!$A$5:$Y$204,3*($C$8-1)+2) -> 1.2333 | M63: =VLOOKUP($H63,NA_All!$A$5:$Y$204,3*($C$8-1)+3) -> 1.4682 | N63: =VLOOKUP($H63,NA_All!$A$5:$Y$204,3*($C$8-1)+4) -> 3.0919 | O63: =IF(ISNA(VLOOKUP($B$6,$A$25:$E$52,IF($B$8=$A$22,3,2))),EXP(VLOOKUP($B$6,$A$25:$E$52,4)*LN(VLOOKUP($H63,P_Hard!$A$5:$Y$204,3*($C$8-1)+2)/1000)+VLOOKUP($B$6,$A$25:$E$52,5)),NA()) -> 9.488108417 | P63: 9.765624442 | Q63: =IF(ISNA(VLOOKUP($B$6,$A$25:$E$52,IF($B$8=$A$22,3,2))),EXP(VLOOKUP($B$6,$A$25:$E$52,4)*LN(VLOOKUP($H63,P_Hard!$A$5:$Y$204,3*($C$8-1)+4)/1000)+VLOOKUP($B$6,$A$25:$E$52,5)),NA()) -> 9.488108417 | S63: 3.166666667 | T63: =VLOOKUP($S63,P_All!$AA$5:$AY$245,3*($C$8-1)+2) -> 1.2456 | U63: =VLOOKUP($S63,P_All!$AA$5:$AY$245,3*($C$8-1)+3) -> 1.3915 | V63: =VLOOKUP($S63,P_All!$AA$5:$AY$245,3*($C$8-1)+4) -> 1.775 | W63: =VLOOKUP($S63,NA_All!$AA$5:$AY$245,3*($C$8-1)+2) -> 1.2487 | X63: =VLOOKUP($S63,NA_All!$AA$5:$AY$245,3*($C$8-1)+3) -> 1.3999 | Y63: =VLOOKUP($S63,NA_All!$AA$5:$AY$245,3*($C$8-1)+4) -> 1.7987 | Z63: =IF(AND($B$8=$A$20,$B$6=$A$48),$B$54,IF(ISNA(VLOOKUP($B$6,$A$25:$E$52,IF($B$8=$A$22,3,2),FALSE)),EXP(VLOOKUP($B$6,$A$25:$E$52,4,FALSE)*LN(VLOOKUP($H63,P_Hard!$A$5:$Y$204,3*($C$8-1)+3,FALSE)/1000)+VLOOKUP($B$6,$A$25:$E$52,5,FALSE)),VLOOKUP($B$6,$A$25:$E$52,IF($B$8=$A$22,3,2),FALSE))) -> 9.488108417
A64: SW-003 | B64: No | C64: -- | H64: 40 | I64: =VLOOKUP($H64,P_All!$A$5:$Y$204,3*($C$8-1)+2) -> 1.2409 | J64: =VLOOKUP($H64,P_All!$A$5:$Y$204,3*($C$8-1)+3) -> 1.4853 | K64: =VLOOKUP($H64,P_All!$A$5:$Y$204,3*($C$8-1)+4) -> 2.8705 | L64: =VLOOKUP($H64,NA_All!$A$5:$Y$204,3*($C$8-1)+2) -> 1.2392 | M64: =VLOOKUP($H64,NA_All!$A$5:$Y$204,3*($C$8-1)+3) -> 1.4911 | N64: =VLOOKUP($H64,NA_All!$A$5:$Y$204,3*($C$8-1)+4) -> 2.874 | O64: =IF(ISNA(VLOOKUP($B$6,$A$25:$E$52,IF($B$8=$A$22,3,2))),EXP(VLOOKUP($B$6,$A$25:$E$52,4)*LN(VLOOKUP($H64,P_Hard!$A$5:$Y$204,3*($C$8-1)+2)/1000)+VLOOKUP($B$6,$A$25:$E$52,5)),NA()) -> 9.488108417 | P64: 9.765624442 | Q64: =IF(ISNA(VLOOKUP($B$6,$A$25:$E$52,IF($B$8=$A$22,3,2))),EXP(VLOOKUP($B$6,$A$25:$E$52,4)*LN(VLOOKUP($H64,P_Hard!$A$5:$Y$204,3*($C$8-1)+4)/1000)+VLOOKUP($B$6,$A$25:$E$52,5)),NA()) -> 9.488108417 | S64: 3.25 | T64: =VLOOKUP($S64,P_All!$AA$5:$AY$245,3*($C$8-1)+2) -> 0.79331 | U64: =VLOOKUP($S64,P_All!$AA$5:$AY$245,3*($C$8-1)+3) -> 1.3718 | V64: =VLOOKUP($S64,P_All!$AA$5:$AY$245,3*($C$8-1)+4) -> 1.8153 | W64: =VLOOKUP($S64,NA_All!$AA$5:$AY$245,3*($C$8-1)+2) -> 0.79795 | X64: =VLOOKUP($S64,NA_All!$AA$5:$AY$245,3*($C$8-1)+3) -> 1.3782 | Y64: =VLOOKUP($S64,NA_All!$AA$5:$AY$245,3*($C$8-1)+4) -> 1.8272 | Z64: =IF(AND($B$8=$A$20,$B$6=$A$48),$B$54,IF(ISNA(VLOOKUP($B$6,$A$25:$E$52,IF($B$8=$A$22,3,2),FALSE)),EXP(VLOOKUP($B$6,$A$25:$E$52,4,FALSE)*LN(VLOOKUP($H64,P_Hard!$A$5:$Y$204,3*($C$8-1)+3,FALSE)/1000)+VLOOKUP($B$6,$A$25:$E$52,5,FALSE)),VLOOKUP($B$6,$A$25:$E$52,IF($B$8=$A$22,3,2),FALSE))) -> 9.488108417
A65: SW-004 | B65: No | C65: 102.5 | H65: 41 | I65: =VLOOKUP($H65,P_All!$A$5:$Y$204,3*($C$8-1)+2) -> 1.238 | J65: =VLOOKUP($H65,P_All!$A$5:$Y$204,3*($C$8-1)+3) -> 1.4907 | K65: =VLOOKUP($H65,P_All!$A$5:$Y$204,3*($C$8-1)+4) -> 2.8363 | L65: =VLOOKUP($H65,NA_All!$A$5:$Y$204,3*($C$8-1)+2) -> 1.2399 | M65: =VLOOKUP($H65,NA_All!$A$5:$Y$204,3*($C$8-1)+3) -> 1.494 | N65: =VLOOKUP($H65,NA_All!$A$5:$Y$204,3*($C$8-1)+4) -> 2.836 | O65: =IF(ISNA(VLOOKUP($B$6,$A$25:$E$52,IF($B$8=$A$22,3,2))),EXP(VLOOKUP($B$6,$A$25:$E$52,4)*LN(VLOOKUP($H65,P_Hard!$A$5:$Y$204,3*($C$8-1)+2)/1000)+VLOOKUP($B$6,$A$25:$E$52,5)),NA()) -> 9.488108417 | P65: 9.765624442 | Q65: =IF(ISNA(VLOOKUP($B$6,$A$25:$E$52,IF($B$8=$A$22,3,2))),EXP(VLOOKUP($B$6,$A$25:$E$52,4)*LN(VLOOKUP($H65,P_Hard!$A$5:$Y$204,3*($C$8-1)+4)/1000)+VLOOKUP($B$6,$A$25:$E$52,5)),NA()) -> 9.488108417 | S65: 3.333333333 | T65: =VLOOKUP($S65,P_All!$AA$5:$AY$245,3*($C$8-1)+2) -> 0.47607 | U65: =VLOOKUP($S65,P_All!$AA$5:$AY$245,3*($C$8-1)+3) -> 1.14 | V65: =VLOOKUP($S65,P_All!$AA$5:$AY$245,3*($C$8-1)+4) -> 2.5097 | W65: =VLOOKUP($S65,NA_All!$AA$5:$AY$245,3*($C$8-1)+2) -> 0.47668 | X65: =VLOOKUP($S65,NA_All!$AA$5:$AY$245,3*($C$8-1)+3) -> 1.143 | Y65: =VLOOKUP($S65,NA_All!$AA$5:$AY$245,3*($C$8-1)+4) -> 2.5111 | Z65: =IF(AND($B$8=$A$20,$B$6=$A$48),$B$54,IF(ISNA(VLOOKUP($B$6,$A$25:$E$52,IF($B$8=$A$22,3,2),FALSE)),EXP(VLOOKUP($B$6,$A$25:$E$52,4,FALSE)*LN(VLOOKUP($H65,P_Hard!$A$5:$Y$204,3*($C$8-1)+3,FALSE)/1000)+VLOOKUP($B$6,$A$25:$E$52,5,FALSE)),VLOOKUP($B$6,$A$25:$E$52,IF($B$8=$A$22,3,2),FALSE))) -> 9.488108417
A66: SW-004a | B66: No | C66: 105.5 | H66: 42 | I66: =VLOOKUP($H66,P_All!$A$5:$Y$204,3*($C$8-1)+2) -> 1.2377 | J66: =VLOOKUP($H66,P_All!$A$5:$Y$204,3*($C$8-1)+3) -> 1.4724 | K66: =VLOOKUP($H66,P_All!$A$5:$Y$204,3*($C$8-1)+4) -> 3.0663 | L66: =VLOOKUP($H66,NA_All!$A$5:$Y$204,3*($C$8-1)+2) -> 1.2398 | M66: =VLOOKUP($H66,NA_All!$A$5:$Y$204,3*($C$8-1)+3) -> 1.4875 | N66: =VLOOKUP($H66,NA_All!$A$5:$Y$204,3*($C$8-1)+4) -> 3.067 | O66: =IF(ISNA(VLOOKUP($B$6,$A$25:$E$52,IF($B$8=$A$22,3,2))),EXP(VLOOKUP($B$6,$A$25:$E$52,4)*LN(VLOOKUP($H66,P_Hard!$A$5:$Y$204,3*($C$8-1)+2)/1000)+VLOOKUP($B$6,$A$25:$E$52,5)),NA()) -> 9.488108417 | P66: 9.765624442 | Q66: =IF(ISNA(VLOOKUP($B$6,$A$25:$E$52,IF($B$8=$A$22,3,2))),EXP(VLOOKUP($B$6,$A$25:$E$52,4)*LN(VLOOKUP($H66,P_Hard!$A$5:$Y$204,3*($C$8-1)+4)/1000)+VLOOKUP($B$6,$A$25:$E$52,5)),NA()) -> 9.488108417 | S66: 3.416666667 | T66: =VLOOKUP($S66,P_All!$AA$5:$AY$245,3*($C$8-1)+2) -> 0.42052 | U66: =VLOOKUP($S66,P_All!$AA$5:$AY$245,3*($C$8-1)+3) -> 1.0563 | V66: =VLOOKUP($S66,P_All!$AA$5:$AY$245,3*($C$8-1)+4) -> 3.0347 | W66: =VLOOKUP($S66,NA_All!$AA$5:$AY$245,3*($C$8-1)+2) -> 0.42076 | X66: =VLOOKUP($S66,NA_All!$AA$5:$AY$245,3*($C$8-1)+3) -> 1.056 | Y66: =VLOOKUP($S66,NA_All!$AA$5:$AY$245,3*($C$8-1)+4) -> 3.0355 | Z66: =IF(AND($B$8=$A$20,$B$6=$A$48),$B$54,IF(ISNA(VLOOKUP($B$6,$A$25:$E$52,IF($B$8=$A$22,3,2),FALSE)),EXP(VLOOKUP($B$6,$A$25:$E$52,4,FALSE)*LN(VLOOKUP($H66,P_Hard!$A$5:$Y$204,3*($C$8-1)+3,FALSE)/1000)+VLOOKUP($B$6,$A$25:$E$52,5,FALSE)),VLOOKUP($B$6,$A$25:$E$52,IF($B$8=$A$22,3,2),FALSE))) -> 9.488108417
A67: SW-004b | B67: No | C67: -- | H67: 43 | I67: =VLOOKUP($H67,P_All!$A$5:$Y$204,3*($C$8-1)+2) -> 1.231 | J67: =VLOOKUP($H67,P_All!$A$5:$Y$204,3*($C$8-1)+3) -> 1.4669 | K67: =VLOOKUP($H67,P_All!$A$5:$Y$204,3*($C$8-1)+4) -> 2.8381 | L67: =VLOOKUP($H67,NA_All!$A$5:$Y$204,3*($C$8-1)+2) -> 1.2321 | M67: =VLOOKUP($H67,NA_All!$A$5:$Y$204,3*($C$8-1)+3) -> 1.471 | N67: =VLOOKUP($H67,NA_All!$A$5:$Y$204,3*($C$8-1)+4) -> 2.8394 | O67: =IF(ISNA(VLOOKUP($B$6,$A$25:$E$52,IF($B$8=$A$22,3,2))),EXP(VLOOKUP($B$6,$A$25:$E$52,4)*LN(VLOOKUP($H67,P_Hard!$A$5:$Y$204,3*($C$8-1)+2)/1000)+VLOOKUP($B$6,$A$25:$E$52,5)),NA()) -> 9.488108417 | P67: 9.765624442 | Q67: =IF(ISNA(VLOOKUP($B$6,$A$25:$E$52,IF($B$8=$A$22,3,2))),EXP(VLOOKUP($B$6,$A$25:$E$52,4)*LN(VLOOKUP($H67,P_Hard!$A$5:$Y$204,3*($C$8-1)+4)/1000)+VLOOKUP($B$6,$A$25:$E$52,5)),NA()) -> 9.488108417 | S67: 3.5 | T67: =VLOOKUP($S67,P_All!$AA$5:$AY$245,3*($C$8-1)+2) -> 0.46202 | U67: =VLOOKUP($S67,P_All!$AA$5:$AY$245,3*($C$8-1)+3) -> 1.1476 | V67: =VLOOKUP($S67,P_All!$AA$5:$AY$245,3*($C$8-1)+4) -> 2.5037 | W67: =VLOOKUP($S67,NA_All!$AA$5:$AY$245,3*($C$8-1)+2) -> 0.46309 | X67: =VLOOKUP($S67,NA_All!$AA$5:$AY$245,3*($C$8-1)+3) -> 1.1532 | Y67: =VLOOKUP($S67,NA_All!$AA$5:$AY$245,3*($C$8-1)+4) -> 2.5057 | Z67: =IF(AND($B$8=$A$20,$B$6=$A$48),$B$54,IF(ISNA(VLOOKUP($B$6,$A$25:$E$52,IF($B$8=$A$22,3,2),FALSE)),EXP(VLOOKUP($B$6,$A$25:$E$52,4,FALSE)*LN(VLOOKUP($H67,P_Hard!$A$5:$Y$204,3*($C$8-1)+3,FALSE)/1000)+VLOOKUP($B$6,$A$25:$E$52,5,FALSE)),VLOOKUP($B$6,$A$25:$E$52,IF($B$8=$A$22,3,2),FALSE))) -> 9.488108417
A68: SW-005 | B68: Yes | C68: -- | H68: 44 | I68: =VLOOKUP($H68,P_All!$A$5:$Y$204,3*($C$8-1)+2) -> 1.2447 | J68: =VLOOKUP($H68,P_All!$A$5:$Y$204,3*($C$8-1)+3) -> 1.4548 | K68: =VLOOKUP($H68,P_All!$A$5:$Y$204,3*($C$8-1)+4) -> 2.7954 | L68: =VLOOKUP($H68,NA_All!$A$5:$Y$204,3*($C$8-1)+2) -> 1.2479 | M68: =VLOOKUP($H68,NA_All!$A$5:$Y$204,3*($C$8-1)+3) -> 1.4559 | N68: =VLOOKUP($H68,NA_All!$A$5:$Y$204,3*($C$8-1)+4) -> 2.796 | O68: =IF(ISNA(VLOOKUP($B$6,$A$25:$E$52,IF($B$8=$A$22,3,2))),EXP(VLOOKUP($B$6,$A$25:$E$52,4)*LN(VLOOKUP($H68,P_Hard!$A$5:$Y$204,3*($C$8-1)+2)/1000)+VLOOKUP($B$6,$A$25:$E$52,5)),NA()) -> 9.488108417 | P68: 9.765624442 | Q68: =IF(ISNA(VLOOKUP($B$6,$A$25:$E$52,IF($B$8=$A$22,3,2))),EXP(VLOOKUP($B$6,$A$25:$E$52,4)*LN(VLOOKUP($H68,P_Hard!$A$5:$Y$204,3*($C$8-1)+4)/1000)+VLOOKUP($B$6,$A$25:$E$52,5)),NA()) -> 9.488108417 | S68: 3.583333333 | T68: =VLOOKUP($S68,P_All!$AA$5:$AY$245,3*($C$8-1)+2) -> 0.54034 | U68: =VLOOKUP($S68,P_All!$AA$5:$AY$245,3*($C$8-1)+3) -> 1.2698 | V68: =VLOOKUP($S68,P_All!$AA$5:$AY$245,3*($C$8-1)+4) -> 2.3105 | W68: =VLOOKUP($S68,NA_All!$AA$5:$AY$245,3*($C$8-1)+2) -> 0.54233 | X68: =VLOOKUP($S68,NA_All!$AA$5:$AY$245,3*($C$8-1)+3) -> 1.2666 | Y68: =VLOOKUP($S68,NA_All!$AA$5:$AY$245,3*($C$8-1)+4) -> 2.3148 | Z68: =IF(AND($B$8=$A$20,$B$6=$A$48),$B$54,IF(ISNA(VLOOKUP($B$6,$A$25:$E$52,IF($B$8=$A$22,3,2),FALSE)),EXP(VLOOKUP($B$6,$A$25:$E$52,4,FALSE)*LN(VLOOKUP($H68,P_Hard!$A$5:$Y$204,3*($C$8-1)+3,FALSE)/1000)+VLOOKUP($B$6,$A$25:$E$52,5,FALSE)),VLOOKUP($B$6,$A$25:$E$52,IF($B$8=$A$22,3,2),FALSE))) -> 9.488108417
A69: SW-006 | B69: No | C69: -- | H69: 45 | I69: =VLOOKUP($H69,P_All!$A$5:$Y$204,3*($C$8-1)+2) -> 1.2375 | J69: =VLOOKUP($H69,P_All!$A$5:$Y$204,3*($C$8-1)+3) -> 1.4833 | K69: =VLOOKUP($H69,P_All!$A$5:$Y$204,3*($C$8-1)+4) -> 2.9822 | L69: =VLOOKUP($H69,NA_All!$A$5:$Y$204,3*($C$8-1)+2) -> 1.237 | M69: =VLOOKUP($H69,NA_All!$A$5:$Y$204,3*($C$8-1)+3) -> 1.4891 | N69: =VLOOKUP($H69,NA_All!$A$5:$Y$204,3*($C$8-1)+4) -> 2.9811 | O69: =IF(ISNA(VLOOKUP($B$6,$A$25:$E$52,IF($B$8=$A$22,3,2))),EXP(VLOOKUP($B$6,$A$25:$E$52,4)*LN(VLOOKUP($H69,P_Hard!$A$5:$Y$204,3*($C$8-1)+2)/1000)+VLOOKUP($B$6,$A$25:$E$52,5)),NA()) -> 9.488108417 | P69: 9.765624442 | Q69: =IF(ISNA(VLOOKUP($B$6,$A$25:$E$52,IF($B$8=$A$22,3,2))),EXP(VLOOKUP($B$6,$A$25:$E$52,4)*LN(VLOOKUP($H69,P_Hard!$A$5:$Y$204,3*($C$8-1)+4)/1000)+VLOOKUP($B$6,$A$25:$E$52,5)),NA()) -> 9.488108417 | S69: 3.666666667 | T69: =VLOOKUP($S69,P_All!$AA$5:$AY$245,3*($C$8-1)+2) -> 0.47312 | U69: =VLOOKUP($S69,P_All!$AA$5:$AY$245,3*($C$8-1)+3) -> 1.1831 | V69: =VLOOKUP($S69,P_All!$AA$5:$AY$245,3*($C$8-1)+4) -> 2.6585 | W69: =VLOOKUP($S69,NA_All!$AA$5:$AY$245,3*($C$8-1)+2) -> 0.47402 | X69: =VLOOKUP($S69,NA_All!$AA$5:$AY$245,3*($C$8-1)+3) -> 1.1896 | Y69: =VLOOKUP($S69,NA_All!$AA$5:$AY$245,3*($C$8-1)+4) -> 2.6597 | Z69: =IF(AND($B$8=$A$20,$B$6=$A$48),$B$54,IF(ISNA(VLOOKUP($B$6,$A$25:$E$52,IF($B$8=$A$22,3,2),FALSE)),EXP(VLOOKUP($B$6,$A$25:$E$52,4,FALSE)*LN(VLOOKUP($H69,P_Hard!$A$5:$Y$204,3*($C$8-1)+3,FALSE)/1000)+VLOOKUP($B$6,$A$25:$E$52,5,FALSE)),VLOOKUP($B$6,$A$25:$E$52,IF($B$8=$A$22,3,2),FALSE))) -> 9.488108417
A70: Colby Lake | B70: No | C70: -- | H70: 46 | I70: =VLOOKUP($H70,P_All!$A$5:$Y$204,3*($C$8-1)+2) -> 1.2421 | J70: =VLOOKUP($H70,P_All!$A$5:$Y$204,3*($C$8-1)+3) -> 1.4699 | K70: =VLOOKUP($H70,P_All!$A$5:$Y$204,3*($C$8-1)+4) -> 2.8867 | L70: =VLOOKUP($H70,NA_All!$A$5:$Y$204,3*($C$8-1)+2) -> 1.2413 | M70: =VLOOKUP($H70,NA_All!$A$5:$Y$204,3*($C$8-1)+3) -> 1.4772 | N70: =VLOOKUP($H70,NA_All!$A$5:$Y$204,3*($C$8-1)+4) -> 2.8828 | O70: =IF(ISNA(VLOOKUP($B$6,$A$25:$E$52,IF($B$8=$A$22,3,2))),EXP(VLOOKUP($B$6,$A$25:$E$52,4)*LN(VLOOKUP($H70,P_Hard!$A$5:$Y$204,3*($C$8-1)+2)/1000)+VLOOKUP($B$6,$A$25:$E$52,5)),NA()) -> 9.488108417 | P70: 9.765624442 | Q70: =IF(ISNA(VLOOKUP($B$6,$A$25:$E$52,IF($B$8=$A$22,3,2))),EXP(VLOOKUP($B$6,$A$25:$E$52,4)*LN(VLOOKUP($H70,P_Hard!$A$5:$Y$204,3*($C$8-1)+4)/1000)+VLOOKUP($B$6,$A$25:$E$52,5)),NA()) -> 9.488108417 | S70: 3.75 | T70: =VLOOKUP($S70,P_All!$AA$5:$AY$245,3*($C$8-1)+2) -> 0.49804 | U70: =VLOOKUP($S70,P_All!$AA$5:$AY$245,3*($C$8-1)+3) -> 1.1555 | V70: =VLOOKUP($S70,P_All!$AA$5:$AY$245,3*($C$8-1)+4) -> 2.4097 | W70: =VLOOKUP($S70,NA_All!$AA$5:$AY$245,3*($C$8-1)+2) -> 0.4992 | X70: =VLOOKUP($S70,NA_All!$AA$5:$AY$245,3*($C$8-1)+3) -> 1.1635 | Y70: =VLOOKUP($S70,NA_All!$AA$5:$AY$245,3*($C$8-1)+4) -> 2.4126 | Z70: =IF(AND($B$8=$A$20,$B$6=$A$48),$B$54,IF(ISNA(VLOOKUP($B$6,$A$25:$E$52,IF($B$8=$A$22,3,2),FALSE)),EXP(VLOOKUP($B$6,$A$25:$E$52,4,FALSE)*LN(VLOOKUP($H70,P_Hard!$A$5:$Y$204,3*($C$8-1)+3,FALSE)/1000)+VLOOKUP($B$6,$A$25:$E$52,5,FALSE)),VLOOKUP($B$6,$A$25:$E$52,IF($B$8=$A$22,3,2),FALSE))) -> 9.488108417
H71: 47 | I71: =VLOOKUP($H71,P_All!$A$5:$Y$204,3*($C$8-1)+2) -> 1.2373 | J71: =VLOOKUP($H71,P_All!$A$5:$Y$204,3*($C$8-1)+3) -> 1.4782 | K71: =VLOOKUP($H71,P_All!$A$5:$Y$204,3*($C$8-1)+4) -> 2.8201 | L71: =VLOOKUP($H71,NA_All!$A$5:$Y$204,3*($C$8-1)+2) -> 1.2349 | M71: =VLOOKUP($H71,NA_All!$A$5:$Y$204,3*($C$8-1)+3) -> 1.4839 | N71: =VLOOKUP($H71,NA_All!$A$5:$Y$204,3*($C$8-1)+4) -> 2.8222 | O71: =IF(ISNA(VLOOKUP($B$6,$A$25:$E$52,IF($B$8=$A$22,3,2))),EXP(VLOOKUP($B$6,$A$25:$E$52,4)*LN(VLOOKUP($H71,P_Hard!$A$5:$Y$204,3*($C$8-1)+2)/1000)+VLOOKUP($B$6,$A$25:$E$52,5)),NA()) -> 9.488108417 | P71: 9.765624442 | Q71: =IF(ISNA(VLOOKUP($B$6,$A$25:$E$52,IF($B$8=$A$22,3,2))),EXP(VLOOKUP($B$6,$A$25:$E$52,4)*LN(VLOOKUP($H71,P_Hard!$A$5:$Y$204,3*($C$8-1)+4)/1000)+VLOOKUP($B$6,$A$25:$E$52,5)),NA()) -> 9.488108417 | S71: 3.833333333 | T71: =VLOOKUP($S71,P_All!$AA$5:$AY$245,3*($C$8-1)+2) -> 0.51118 | U71: =VLOOKUP($S71,P_All!$AA$5:$AY$245,3*($C$8-1)+3) -> 1.096 | V71: =VLOOKUP($S71,P_All!$AA$5:$AY$245,3*($C$8-1)+4) -> 2.5464 | W71: =VLOOKUP($S71,NA_All!$AA$5:$AY$245,3*($C$8-1)+2) -> 0.51267 | X71: =VLOOKUP($S71,NA_All!$AA$5:$AY$245,3*($C$8-1)+3) -> 1.0982 | Y71: =VLOOKUP($S71,NA_All!$AA$5:$AY$245,3*($C$8-1)+4) -> 2.5476 | Z71: =IF(AND($B$8=$A$20,$B$6=$A$48),$B$54,IF(ISNA(VLOOKUP($B$6,$A$25:$E$52,IF($B$8=$A$22,3,2),FALSE)),EXP(VLOOKUP($B$6,$A$25:$E$52,4,FALSE)*LN(VLOOKUP($H71,P_Hard!$A$5:$Y$204,3*($C$8-1)+3,FALSE)/1000)+VLOOKUP($B$6,$A$25:$E$52,5,FALSE)),VLOOKUP($B$6,$A$25:$E$52,IF($B$8=$A$22,3,2),FALSE))) -> 9.488108417
H72: 48 | I72: =VLOOKUP($H72,P_All!$A$5:$Y$204,3*($C$8-1)+2) -> 1.2605 | J72: =VLOOKUP($H72,P_All!$A$5:$Y$204,3*($C$8-1)+3) -> 1.4576 | K72: =VLOOKUP($H72,P_All!$A$5:$Y$204,3*($C$8-1)+4) -> 2.9635 | L72: =VLOOKUP($H72,NA_All!$A$5:$Y$204,3*($C$8-1)+2) -> 1.2623 | M72: =VLOOKUP($H72,NA_All!$A$5:$Y$204,3*($C$8-1)+3) -> 1.4619 | N72: =VLOOKUP($H72,NA_All!$A$5:$Y$204,3*($C$8-1)+4) -> 2.965 | O72: =IF(ISNA(VLOOKUP($B$6,$A$25:$E$52,IF($B$8=$A$22,3,2))),EXP(VLOOKUP($B$6,$A$25:$E$52,4)*LN(VLOOKUP($H72,P_Hard!$A$5:$Y$204,3*($C$8-1)+2)/1000)+VLOOKUP($B$6,$A$25:$E$52,5)),NA()) -> 9.488108417 | P72: 9.765624442 | Q72: =IF(ISNA(VLOOKUP($B$6,$A$25:$E$52,IF($B$8=$A$22,3,2))),EXP(VLOOKUP($B$6,$A$25:$E$52,4)*LN(VLOOKUP($H72,P_Hard!$A$5:$Y$204,3*($C$8-1)+4)/1000)+VLOOKUP($B$6,$A$25:$E$52,5)),NA()) -> 9.488108417 | S72: 3.916666667 | T72: =VLOOKUP($S72,P_All!$AA$5:$AY$245,3*($C$8-1)+2) -> 0.59376 | U72: =VLOOKUP($S72,P_All!$AA$5:$AY$245,3*($C$8-1)+3) -> 1.1546 | V72: =VLOOKUP($S72,P_All!$AA$5:$AY$245,3*($C$8-1)+4) -> 2.2835 | W72: =VLOOKUP($S72,NA_All!$AA$5:$AY$245,3*($C$8-1)+2) -> 0.59503 | X72: =VLOOKUP($S72,NA_All!$AA$5:$AY$245,3*($C$8-1)+3) -> 1.1602 | Y72: =VLOOKUP($S72,NA_All!$AA$5:$AY$245,3*($C$8-1)+4) -> 2.2871 | Z72: =IF(AND($B$8=$A$20,$B$6=$A$48),$B$54,IF(ISNA(VLOOKUP($B$6,$A$25:$E$52,IF($B$8=$A$22,3,2),FALSE)),EXP(VLOOKUP($B$6,$A$25:$E$52,4,FALSE)*LN(VLOOKUP($H72,P_Hard!$A$5:$Y$204,3*($C$8-1)+3,FALSE)/1000)+VLOOKUP($B$6,$A$25:$E$52,5,FALSE)),VLOOKUP($B$6,$A$25:$E$52,IF($B$8=$A$22,3,2),FALSE))) -> 9.488108417
H73: 49 | I73: =VLOOKUP($H73,P_All!$A$5:$Y$204,3*($C$8-1)+2) -> 1.2698 | J73: =VLOOKUP($H73,P_All!$A$5:$Y$204,3*($C$8-1)+3) -> 1.5047 | K73: =VLOOKUP($H73,P_All!$A$5:$Y$204,3*($C$8-1)+4) -> 2.8703 | L73: =VLOOKUP($H73,NA_All!$A$5:$Y$204,3*($C$8-1)+2) -> 1.2642 | M73: =VLOOKUP($H73,NA_All!$A$5:$Y$204,3*($C$8-1)+3) -> 1.4923 | N73: =VLOOKUP($H73,NA_All!$A$5:$Y$204,3*($C$8-1)+4) -> 2.8506 | O73: =IF(ISNA(VLOOKUP($B$6,$A$25:$E$52,IF($B$8=$A$22,3,2))),EXP(VLOOKUP($B$6,$A$25:$E$52,4)*LN(VLOOKUP($H73,P_Hard!$A$5:$Y$204,3*($C$8-1)+2)/1000)+VLOOKUP($B$6,$A$25:$E$52,5)),NA()) -> 9.488108417 | P73: 9.765624442 | Q73: =IF(ISNA(VLOOKUP($B$6,$A$25:$E$52,IF($B$8=$A$22,3,2))),EXP(VLOOKUP($B$6,$A$25:$E$52,4)*LN(VLOOKUP($H73,P_Hard!$A$5:$Y$204,3*($C$8-1)+4)/1000)+VLOOKUP($B$6,$A$25:$E$52,5)),NA()) -> 9.488108417 | S73: 4 | T73: =VLOOKUP($S73,P_All!$AA$5:$AY$245,3*($C$8-1)+2) -> 0.91112 | U73: =VLOOKUP($S73,P_All!$AA$5:$AY$245,3*($C$8-1)+3) -> 1.4541 | V73: =VLOOKUP($S73,P_All!$AA$5:$AY$245,3*($C$8-1)+4) -> 2.1688 | W73: =VLOOKUP($S73,NA_All!$AA$5:$AY$245,3*($C$8-1)+2) -> 0.91661 | X73: =VLOOKUP($S73,NA_All!$AA$5:$AY$245,3*($C$8-1)+3) -> 1.4703 | Y73: =VLOOKUP($S73,NA_All!$AA$5:$AY$245,3*($C$8-1)+4) -> 2.1764 | Z73: =IF(AND($B$8=$A$20,$B$6=$A$48),$B$54,IF(ISNA(VLOOKUP($B$6,$A$25:$E$52,IF($B$8=$A$22,3,2),FALSE)),EXP(VLOOKUP($B$6,$A$25:$E$52,4,FALSE)*LN(VLOOKUP($H73,P_Hard!$A$5:$Y$204,3*($C$8-1)+3,FALSE)/1000)+VLOOKUP($B$6,$A$25:$E$52,5,FALSE)),VLOOKUP($B$6,$A$25:$E$52,IF($B$8=$A$22,3,2),FALSE))) -> 9.488108417
H74: 50 | I74: =VLOOKUP($H74,P_All!$A$5:$Y$204,3*($C$8-1)+2) -> 1.2539 | J74: =VLOOKUP($H74,P_All!$A$5:$Y$204,3*($C$8-1)+3) -> 1.511 | K74: =VLOOKUP($H74,P_All!$A$5:$Y$204,3*($C$8-1)+4) -> 3.034 | L74: =VLOOKUP($H74,NA_All!$A$5:$Y$204,3*($C$8-1)+2) -> 1.2495 | M74: =VLOOKUP($H74,NA_All!$A$5:$Y$204,3*($C$8-1)+3) -> 1.4874 | N74: =VLOOKUP($H74,NA_All!$A$5:$Y$204,3*($C$8-1)+4) -> 3.0195 | O74: =IF(ISNA(VLOOKUP($B$6,$A$25:$E$52,IF($B$8=$A$22,3,2))),EXP(VLOOKUP($B$6,$A$25:$E$52,4)*LN(VLOOKUP($H74,P_Hard!$A$5:$Y$204,3*($C$8-1)+2)/1000)+VLOOKUP($B$6,$A$25:$E$52,5)),NA()) -> 9.488108417 | P74: 9.765624442 | Q74: =IF(ISNA(VLOOKUP($B$6,$A$25:$E$52,IF($B$8=$A$22,3,2))),EXP(VLOOKUP($B$6,$A$25:$E$52,4)*LN(VLOOKUP($H74,P_Hard!$A$5:$Y$204,3*($C$8-1)+4)/1000)+VLOOKUP($B$6,$A$25:$E$52,5)),NA()) -> 9.488108417 | S74: 4.083333333 | T74: =VLOOKUP($S74,P_All!$AA$5:$AY$245,3*($C$8-1)+2) -> 1.2098 | U74: =VLOOKUP($S74,P_All!$AA$5:$AY$245,3*($C$8-1)+3) -> 1.4711 | V74: =VLOOKUP($S74,P_All!$AA$5:$AY$245,3*($C$8-1)+4) -> 1.7659 | W74: =VLOOKUP($S74,NA_All!$AA$5:$AY$245,3*($C$8-1)+2) -> 1.2178 | X74: =VLOOKUP($S74,NA_All!$AA$5:$AY$245,3*($C$8-1)+3) -> 1.4794 | Y74: =VLOOKUP($S74,NA_All!$AA$5:$AY$245,3*($C$8-1)+4) -> 1.7757 | Z74: =IF(AND($B$8=$A$20,$B$6=$A$48),$B$54,IF(ISNA(VLOOKUP($B$6,$A$25:$E$52,IF($B$8=$A$22,3,2),FALSE)),EXP(VLOOKUP($B$6,$A$25:$E$52,4,FALSE)*LN(VLOOKUP($H74,P_Hard!$A$5:$Y$204,3*($C$8-1)+3,FALSE)/1000)+VLOOKUP($B$6,$A$25:$E$52,5,FALSE)),VLOOKUP($B$6,$A$25:$E$52,IF($B$8=$A$22,3,2),FALSE))) -> 9.488108417
H75: 51 | I75: =VLOOKUP($H75,P_All!$A$5:$Y$204,3*($C$8-1)+2) -> 1.2722 | J75: =VLOOKUP($H75,P_All!$A$5:$Y$204,3*($C$8-1)+3) -> 1.5664 | K75: =VLOOKUP($H75,P_All!$A$5:$Y$204,3*($C$8-1)+4) -> 3.2373 | L75: =VLOOKUP($H75,NA_All!$A$5:$Y$204,3*($C$8-1)+2) -> 1.249 | M75: =VLOOKUP($H75,NA_All!$A$5:$Y$204,3*($C$8-1)+3) -> 1.4975 | N75: =VLOOKUP($H75,NA_All!$A$5:$Y$204,3*($C$8-1)+4) -> 3.1615 | O75: =IF(ISNA(VLOOKUP($B$6,$A$25:$E$52,IF($B$8=$A$22,3,2))),EXP(VLOOKUP($B$6,$A$25:$E$52,4)*LN(VLOOKUP($H75,P_Hard!$A$5:$Y$204,3*($C$8-1)+2)/1000)+VLOOKUP($B$6,$A$25:$E$52,5)),NA()) -> 9.488108417 | P75: 9.765624442 | Q75: =IF(ISNA(VLOOKUP($B$6,$A$25:$E$52,IF($B$8=$A$22,3,2))),EXP(VLOOKUP($B$6,$A$25:$E$52,4)*LN(VLOOKUP($H75,P_Hard!$A$5:$Y$204,3*($C$8-1)+4)/1000)+VLOOKUP($B$6,$A$25:$E$52,5)),NA()) -> 9.488108417 | S75: 4.166666667 | T75: =VLOOKUP($S75,P_All!$AA$5:$AY$245,3*($C$8-1)+2) -> 1.2365 | U75: =VLOOKUP($S75,P_All!$AA$5:$AY$245,3*($C$8-1)+3) -> 1.406 | V75: =VLOOKUP($S75,P_All!$AA$5:$AY$245,3*($C$8-1)+4) -> 1.72 | W75: =VLOOKUP($S75,NA_All!$AA$5:$AY$245,3*($C$8-1)+2) -> 1.2432 | X75: =VLOOKUP($S75,NA_All!$AA$5:$AY$245,3*($C$8-1)+3) -> 1.41 | Y75: =VLOOKUP($S75,NA_All!$AA$5:$AY$245,3*($C$8-1)+4) -> 1.7359 | Z75: =IF(AND($B$8=$A$20,$B$6=$A$48),$B$54,IF(ISNA(VLOOKUP($B$6,$A$25:$E$52,IF($B$8=$A$22,3,2),FALSE)),EXP(VLOOKUP($B$6,$A$25:$E$52,4,FALSE)*LN(VLOOKUP($H75,P_Hard!$A$5:$Y$204,3*($C$8-1)+3,FALSE)/1000)+VLOOKUP($B$6,$A$25:$E$52,5,FALSE)),VLOOKUP($B$6,$A$25:$E$52,IF($B$8=$A$22,3,2),FALSE))) -> 9.488108417
H76: 52 | I76: =VLOOKUP($H76,P_All!$A$5:$Y$204,3*($C$8-1)+2) -> 1.2835 | J76: =VLOOKUP($H76,P_All!$A$5:$Y$204,3*($C$8-1)+3) -> 1.6534 | K76: =VLOOKUP($H76,P_All!$A$5:$Y$204,3*($C$8-1)+4) -> 2.9068 | L76: =VLOOKUP($H76,NA_All!$A$5:$Y$204,3*($C$8-1)+2) -> 1.2532 | M76: =VLOOKUP($H76,NA_All!$A$5:$Y$204,3*($C$8-1)+3) -> 1.4781 | N76: =VLOOKUP($H76,NA_All!$A$5:$Y$204,3*($C$8-1)+4) -> 2.839 | O76: =IF(ISNA(VLOOKUP($B$6,$A$25:$E$52,IF($B$8=$A$22,3,2))),EXP(VLOOKUP($B$6,$A$25:$E$52,4)*LN(VLOOKUP($H76,P_Hard!$A$5:$Y$204,3*($C$8-1)+2)/1000)+VLOOKUP($B$6,$A$25:$E$52,5)),NA()) -> 9.488108417 | P76: 9.765624442 | Q76: =IF(ISNA(VLOOKUP($B$6,$A$25:$E$52,IF($B$8=$A$22,3,2))),EXP(VLOOKUP($B$6,$A$25:$E$52,4)*LN(VLOOKUP($H76,P_Hard!$A$5:$Y$204,3*($C$8-1)+4)/1000)+VLOOKUP($B$6,$A$25:$E$52,5)),NA()) -> 9.488108417 | S76: 4.25 | T76: =VLOOKUP($S76,P_All!$AA$5:$AY$245,3*($C$8-1)+2) -> 0.80997 | U76: =VLOOKUP($S76,P_All!$AA$5:$AY$245,3*($C$8-1)+3) -> 1.3894 | V76: =VLOOKUP($S76,P_All!$AA$5:$AY$245,3*($C$8-1)+4) -> 1.8669 | W76: =VLOOKUP($S76,NA_All!$AA$5:$AY$245,3*($C$8-1)+2) -> 0.81925 | X76: =VLOOKUP($S76,NA_All!$AA$5:$AY$245,3*($C$8-1)+3) -> 1.3994 | Y76: =VLOOKUP($S76,NA_All!$AA$5:$AY$245,3*($C$8-1)+4) -> 1.8967 | Z76: =IF(AND($B$8=$A$20,$B$6=$A$48),$B$54,IF(ISNA(VLOOKUP($B$6,$A$25:$E$52,IF($B$8=$A$22,3,2),FALSE)),EXP(VLOOKUP($B$6,$A$25:$E$52,4,FALSE)*LN(VLOOKUP($H76,P_Hard!$A$5:$Y$204,3*($C$8-1)+3,FALSE)/1000)+VLOOKUP($B$6,$A$25:$E$52,5,FALSE)),VLOOKUP($B$6,$A$25:$E$52,IF($B$8=$A$22,3,2),FALSE))) -> 9.488108417
H77: 53 | I77: =VLOOKUP($H77,P_All!$A$5:$Y$204,3*($C$8-1)+2) -> 1.3191 | J77: =VLOOKUP($H77,P_All!$A$5:$Y$204,3*($C$8-1)+3) -> 1.9777 | K77: =VLOOKUP($H77,P_All!$A$5:$Y$204,3*($C$8-1)+4) -> 2.992 | L77: =VLOOKUP($H77,NA_All!$A$5:$Y$204,3*($C$8-1)+2) -> 1.2461 | M77: =VLOOKUP($H77,NA_All!$A$5:$Y$204,3*($C$8-1)+3) -> 1.4554 | N77: =VLOOKUP($H77,NA_All!$A$5:$Y$204,3*($C$8-1)+4) -> 2.8503 | O77: =IF(ISNA(VLOOKUP($B$6,$A$25:$E$52,IF($B$8=$A$22,3,2))),EXP(VLOOKUP($B$6,$A$25:$E$52,4)*LN(VLOOKUP($H77,P_Hard!$A$5:$Y$204,3*($C$8-1)+2)/1000)+VLOOKUP($B$6,$A$25:$E$52,5)),NA()) -> 9.488108417 | P77: 9.765624442 | Q77: =IF(ISNA(VLOOKUP($B$6,$A$25:$E$52,IF($B$8=$A$22,3,2))),EXP(VLOOKUP($B$6,$A$25:$E$52,4)*LN(VLOOKUP($H77,P_Hard!$A$5:$Y$204,3*($C$8-1)+4)/1000)+VLOOKUP($B$6,$A$25:$E$52,5)),NA()) -> 9.488108417 | S77: 4.333333333 | T77: =VLOOKUP($S77,P_All!$AA$5:$AY$245,3*($C$8-1)+2) -> 0.40263 | U77: =VLOOKUP($S77,P_All!$AA$5:$AY$245,3*($C$8-1)+3) -> 1.0429 | V77: =VLOOKUP($S77,P_All!$AA$5:$AY$245,3*($C$8-1)+4) -> 2.4877 | W77: =VLOOKUP($S77,NA_All!$AA$5:$AY$245,3*($C$8-1)+2) -> 0.40885 | X77: =VLOOKUP($S77,NA_All!$AA$5:$AY$245,3*($C$8-1)+3) -> 1.0443 | Y77: =VLOOKUP($S77,NA_All!$AA$5:$AY$245,3*($C$8-1)+4) -> 2.4893 | Z77: =IF(AND($B$8=$A$20,$B$6=$A$48),$B$54,IF(ISNA(VLOOKUP($B$6,$A$25:$E$52,IF($B$8=$A$22,3,2),FALSE)),EXP(VLOOKUP($B$6,$A$25:$E$52,4,FALSE)*LN(VLOOKUP($H77,P_Hard!$A$5:$Y$204,3*($C$8-1)+3,FALSE)/1000)+VLOOKUP($B$6,$A$25:$E$52,5,FALSE)),VLOOKUP($B$6,$A$25:$E$52,IF($B$8=$A$22,3,2),FALSE))) -> 9.488108417
H78: 54 | I78: =VLOOKUP($H78,P_All!$A$5:$Y$204,3*($C$8-1)+2) -> 1.4008 | J78: =VLOOKUP($H78,P_All!$A$5:$Y$204,3*($C$8-1)+3) -> 2.3059 | K78: =VLOOKUP($H78,P_All!$A$5:$Y$204,3*($C$8-1)+4) -> 3.0161 | L78: =VLOOKUP($H78,NA_All!$A$5:$Y$204,3*($C$8-1)+2) -> 1.2547 | M78: =VLOOKUP($H78,NA_All!$A$5:$Y$204,3*($C$8-1)+3) -> 1.4829 | N78: =VLOOKUP($H78,NA_All!$A$5:$Y$204,3*($C$8-1)+4) -> 2.9129 | O78: =IF(ISNA(VLOOKUP($B$6,$A$25:$E$52,IF($B$8=$A$22,3,2))),EXP(VLOOKUP($B$6,$A$25:$E$52,4)*LN(VLOOKUP($H78,P_Hard!$A$5:$Y$204,3*($C$8-1)+2)/1000)+VLOOKUP($B$6,$A$25:$E$52,5)),NA()) -> 9.488108417 | P78: 9.765624442 | Q78: =IF(ISNA(VLOOKUP($B$6,$A$25:$E$52,IF($B$8=$A$22,3,2))),EXP(VLOOKUP($B$6,$A$25:$E$52,4)*LN(VLOOKUP($H78,P_Hard!$A$5:$Y$204,3*($C$8-1)+4)/1000)+VLOOKUP($B$6,$A$25:$E$52,5)),NA()) -> 9.488108417 | S78: 4.416666667 | T78: =VLOOKUP($S78,P_All!$AA$5:$AY$245,3*($C$8-1)+2) -> 0.36685 | U78: =VLOOKUP($S78,P_All!$AA$5:$AY$245,3*($C$8-1)+3) -> 0.9634 | V78: =VLOOKUP($S78,P_All!$AA$5:$AY$245,3*($C$8-1)+4) -> 2.5771 | W78: =VLOOKUP($S78,NA_All!$AA$5:$AY$245,3*($C$8-1)+2) -> 0.36678 | X78: =VLOOKUP($S78,NA_All!$AA$5:$AY$245,3*($C$8-1)+3) -> 0.96256 | Y78: =VLOOKUP($S78,NA_All!$AA$5:$AY$245,3*($C$8-1)+4) -> 2.5799 | Z78: =IF(AND($B$8=$A$20,$B$6=$A$48),$B$54,IF(ISNA(VLOOKUP($B$6,$A$25:$E$52,IF($B$8=$A$22,3,2),FALSE)),EXP(VLOOKUP($B$6,$A$25:$E$52,4,FALSE)*LN(VLOOKUP($H78,P_Hard!$A$5:$Y$204,3*($C$8-1)+3,FALSE)/1000)+VLOOKUP($B$6,$A$25:$E$52,5,FALSE)),VLOOKUP($B$6,$A$25:$E$52,IF($B$8=$A$22,3,2),FALSE))) -> 9.488108417
H79: 55 | I79: =VLOOKUP($H79,P_All!$A$5:$Y$204,3*($C$8-1)+2) -> 1.4596 | J79: =VLOOKUP($H79,P_All!$A$5:$Y$204,3*($C$8-1)+3) -> 2.4622 | K79: =VLOOKUP($H79,P_All!$A$5:$Y$204,3*($C$8-1)+4) -> 3.0788 | L79: =VLOOKUP($H79,NA_All!$A$5:$Y$204,3*($C$8-1)+2) -> 1.2503 | M79: =VLOOKUP($H79,NA_All!$A$5:$Y$204,3*($C$8-1)+3) -> 1.4764 | N79: =VLOOKUP($H79,NA_All!$A$5:$Y$204,3*($C$8-1)+4) -> 2.943 | O79: =IF(ISNA(VLOOKUP($B$6,$A$25:$E$52,IF($B$8=$A$22,3,2))),EXP(VLOOKUP($B$6,$A$25:$E$52,4)*LN(VLOOKUP($H79,P_Hard!$A$5:$Y$204,3*($C$8-1)+2)/1000)+VLOOKUP($B$6,$A$25:$E$52,5)),NA()) -> 9.488108417 | P79: 9.765624442 | Q79: =IF(ISNA(VLOOKUP($B$6,$A$25:$E$52,IF($B$8=$A$22,3,2))),EXP(VLOOKUP($B$6,$A$25:$E$52,4)*LN(VLOOKUP($H79,P_Hard!$A$5:$Y$204,3*($C$8-1)+4)/1000)+VLOOKUP($B$6,$A$25:$E$52,5)),NA()) -> 9.488108417 | S79: 4.5 | T79: =VLOOKUP($S79,P_All!$AA$5:$AY$245,3*($C$8-1)+2) -> 0.49486 | U79: =VLOOKUP($S79,P_All!$AA$5:$AY$245,3*($C$8-1)+3) -> 1.2065 | V79: =VLOOKUP($S79,P_All!$AA$5:$AY$245,3*($C$8-1)+4) -> 2.5817 | W79: =VLOOKUP($S79,NA_All!$AA$5:$AY$245,3*($C$8-1)+2) -> 0.49506 | X79: =VLOOKUP($S79,NA_All!$AA$5:$AY$245,3*($C$8-1)+3) -> 1.2077 | Y79: =VLOOKUP($S79,NA_All!$AA$5:$AY$245,3*($C$8-1)+4) -> 2.5838 | Z79: =IF(AND($B$8=$A$20,$B$6=$A$48),$B$54,IF(ISNA(VLOOKUP($B$6,$A$25:$E$52,IF($B$8=$A$22,3,2),FALSE)),EXP(VLOOKUP($B$6,$A$25:$E$52,4,FALSE)*LN(VLOOKUP($H79,P_Hard!$A$5:$Y$204,3*($C$8-1)+3,FALSE)/1000)+VLOOKUP($B$6,$A$25:$E$52,5,FALSE)),VLOOKUP($B$6,$A$25:$E$52,IF($B$8=$A$22,3,2),FALSE))) -> 9.488108417
H80: 56 | I80: =VLOOKUP($H80,P_All!$A$5:$Y$204,3*($C$8-1)+2) -> 1.976 | J80: =VLOOKUP($H80,P_All!$A$5:$Y$204,3*($C$8-1)+3) -> 3.8436 | K80: =VLOOKUP($H80,P_All!$A$5:$Y$204,3*($C$8-1)+4) -> 5.4302 | L80: =VLOOKUP($H80,NA_All!$A$5:$Y$204,3*($C$8-1)+2) -> 1.4595 | M80: =VLOOKUP($H80,NA_All!$A$5:$Y$204,3*($C$8-1)+3) -> 2.1199 | N80: =VLOOKUP($H80,NA_All!$A$5:$Y$204,3*($C$8-1)+4) -> 3.0134 | O80: =IF(ISNA(VLOOKUP($B$6,$A$25:$E$52,IF($B$8=$A$22,3,2))),EXP(VLOOKUP($B$6,$A$25:$E$52,4)*LN(VLOOKUP($H80,P_Hard!$A$5:$Y$204,3*($C$8-1)+2)/1000)+VLOOKUP($B$6,$A$25:$E$52,5)),NA()) -> 9.488108417 | P80: 9.765624442 | Q80: =IF(ISNA(VLOOKUP($B$6,$A$25:$E$52,IF($B$8=$A$22,3,2))),EXP(VLOOKUP($B$6,$A$25:$E$52,4)*LN(VLOOKUP($H80,P_Hard!$A$5:$Y$204,3*($C$8-1)+4)/1000)+VLOOKUP($B$6,$A$25:$E$52,5)),NA()) -> 9.488108417 | S80: 4.583333333 | T80: =VLOOKUP($S80,P_All!$AA$5:$AY$245,3*($C$8-1)+2) -> 0.58959 | U80: =VLOOKUP($S80,P_All!$AA$5:$AY$245,3*($C$8-1)+3) -> 1.3193 | V80: =VLOOKUP($S80,P_All!$AA$5:$AY$245,3*($C$8-1)+4) -> 2.2277 | W80: =VLOOKUP($S80,NA_All!$AA$5:$AY$245,3*($C$8-1)+2) -> 0.59029 | X80: =VLOOKUP($S80,NA_All!$AA$5:$AY$245,3*($C$8-1)+3) -> 1.3222 | Y80: =VLOOKUP($S80,NA_All!$AA$5:$AY$245,3*($C$8-1)+4) -> 2.2341 | Z80: =IF(AND($B$8=$A$20,$B$6=$A$48),$B$54,IF(ISNA(VLOOKUP($B$6,$A$25:$E$52,IF($B$8=$A$22,3,2),FALSE)),EXP(VLOOKUP($B$6,$A$25:$E$52,4,FALSE)*LN(VLOOKUP($H80,P_Hard!$A$5:$Y$204,3*($C$8-1)+3,FALSE)/1000)+VLOOKUP($B$6,$A$25:$E$52,5,FALSE)),VLOOKUP($B$6,$A$25:$E$52,IF($B$8=$A$22,3,2),FALSE))) -> 9.488108417
H81: 57 | I81: =VLOOKUP($H81,P_All!$A$5:$Y$204,3*($C$8-1)+2) -> 2.242 | J81: =VLOOKUP($H81,P_All!$A$5:$Y$204,3*($C$8-1)+3) -> 4.2359 | K81: =VLOOKUP($H81,P_All!$A$5:$Y$204,3*($C$8-1)+4) -> 5.5408 | L81: =VLOOKUP($H81,NA_All!$A$5:$Y$204,3*($C$8-1)+2) -> 1.6398 | M81: =VLOOKUP($H81,NA_All!$A$5:$Y$204,3*($C$8-1)+3) -> 2.2015 | N81: =VLOOKUP($H81,NA_All!$A$5:$Y$204,3*($C$8-1)+4) -> 3.1149 | O81: =IF(ISNA(VLOOKUP($B$6,$A$25:$E$52,IF($B$8=$A$22,3,2))),EXP(VLOOKUP($B$6,$A$25:$E$52,4)*LN(VLOOKUP($H81,P_Hard!$A$5:$Y$204,3*($C$8-1)+2)/1000)+VLOOKUP($B$6,$A$25:$E$52,5)),NA()) -> 9.488108417 | P81: 9.765624442 | Q81: =IF(ISNA(VLOOKUP($B$6,$A$25:$E$52,IF($B$8=$A$22,3,2))),EXP(VLOOKUP($B$6,$A$25:$E$52,4)*LN(VLOOKUP($H81,P_Hard!$A$5:$Y$204,3*($C$8-1)+4)/1000)+VLOOKUP($B$6,$A$25:$E$52,5)),NA()) -> 9.488108417 | S81: 4.666666667 | T81: =VLOOKUP($S81,P_All!$AA$5:$AY$245,3*($C$8-1)+2) -> 0.49046 | U81: =VLOOKUP($S81,P_All!$AA$5:$AY$245,3*($C$8-1)+3) -> 1.2218 | V81: =VLOOKUP($S81,P_All!$AA$5:$AY$245,3*($C$8-1)+4) -> 2.4016 | W81: =VLOOKUP($S81,NA_All!$AA$5:$AY$245,3*($C$8-1)+2) -> 0.49152 | X81: =VLOOKUP($S81,NA_All!$AA$5:$AY$245,3*($C$8-1)+3) -> 1.2271 | Y81: =VLOOKUP($S81,NA_All!$AA$5:$AY$245,3*($C$8-1)+4) -> 2.4071 | Z81: =IF(AND($B$8=$A$20,$B$6=$A$48),$B$54,IF(ISNA(VLOOKUP($B$6,$A$25:$E$52,IF($B$8=$A$22,3,2),FALSE)),EXP(VLOOKUP($B$6,$A$25:$E$52,4,FALSE)*LN(VLOOKUP($H81,P_Hard!$A$5:$Y$204,3*($C$8-1)+3,FALSE)/1000)+VLOOKUP($B$6,$A$25:$E$52,5,FALSE)),VLOOKUP($B$6,$A$25:$E$52,IF($B$8=$A$22,3,2),FALSE))) -> 9.488108417
H82: 58 | I82: =VLOOKUP($H82,P_All!$A$5:$Y$204,3*($C$8-1)+2) -> 2.1336 | J82: =VLOOKUP($H82,P_All!$A$5:$Y$204,3*($C$8-1)+3) -> 4.1263 | K82: =VLOOKUP($H82,P_All!$A$5:$Y$204,3*($C$8-1)+4) -> 5.4456 | L82: =VLOOKUP($H82,NA_All!$A$5:$Y$204,3*($C$8-1)+2) -> 1.5567 | M82: =VLOOKUP($H82,NA_All!$A$5:$Y$204,3*($C$8-1)+3) -> 2.1921 | N82: =VLOOKUP($H82,NA_All!$A$5:$Y$204,3*($C$8-1)+4) -> 3.0014 | O82: =IF(ISNA(VLOOKUP($B$6,$A$25:$E$52,IF($B$8=$A$22,3,2))),EXP(VLOOKUP($B$6,$A$25:$E$52,4)*LN(VLOOKUP($H82,P_Hard!$A$5:$Y$204,3*($C$8-1)+2)/1000)+VLOOKUP($B$6,$A$25:$E$52,5)),NA()) -> 9.488108417 | P82: 9.765624442 | Q82: =IF(ISNA(VLOOKUP($B$6,$A$25:$E$52,IF($B$8=$A$22,3,2))),EXP(VLOOKUP($B$6,$A$25:$E$52,4)*LN(VLOOKUP($H82,P_Hard!$A$5:$Y$204,3*($C$8-1)+4)/1000)+VLOOKUP($B$6,$A$25:$E$52,5)),NA()) -> 9.488108417 | S82: 4.75 | T82: =VLOOKUP($S82,P_All!$AA$5:$AY$245,3*($C$8-1)+2) -> 0.48759 | U82: =VLOOKUP($S82,P_All!$AA$5:$AY$245,3*($C$8-1)+3) -> 1.2242 | V82: =VLOOKUP($S82,P_All!$AA$5:$AY$245,3*($C$8-1)+4) -> 2.5116 | W82: =VLOOKUP($S82,NA_All!$AA$5:$AY$245,3*($C$8-1)+2) -> 0.48825 | X82: =VLOOKUP($S82,NA_All!$AA$5:$AY$245,3*($C$8-1)+3) -> 1.233 | Y82: =VLOOKUP($S82,NA_All!$AA$5:$AY$245,3*($C$8-1)+4) -> 2.5131 | Z82: =IF(AND($B$8=$A$20,$B$6=$A$48),$B$54,IF(ISNA(VLOOKUP($B$6,$A$25:$E$52,IF($B$8=$A$22,3,2),FALSE)),EXP(VLOOKUP($B$6,$A$25:$E$52,4,FALSE)*LN(VLOOKUP($H82,P_Hard!$A$5:$Y$204,3*($C$8-1)+3,FALSE)/1000)+VLOOKUP($B$6,$A$25:$E$52,5,FALSE)),VLOOKUP($B$6,$A$25:$E$52,IF($B$8=$A$22,3,2),FALSE))) -> 9.488108417
H83: 59 | I83: =VLOOKUP($H83,P_All!$A$5:$Y$204,3*($C$8-1)+2) -> 2.1433 | J83: =VLOOKUP($H83,P_All!$A$5:$Y$204,3*($C$8-1)+3) -> 4.3665 | K83: =VLOOKUP($H83,P_All!$A$5:$Y$204,3*($C$8-1)+4) -> 5.5211 | L83: =VLOOKUP($H83,NA_All!$A$5:$Y$204,3*($C$8-1)+2) -> 1.5945 | M83: =VLOOKUP($H83,NA_All!$A$5:$Y$204,3*($C$8-1)+3) -> 2.2012 | N83: =VLOOKUP($H83,NA_All!$A$5:$Y$204,3*($C$8-1)+4) -> 3.0522 | O83: =IF(ISNA(VLOOKUP($B$6,$A$25:$E$52,IF($B$8=$A$22,3,2))),EXP(VLOOKUP($B$6,$A$25:$E$52,4)*LN(VLOOKUP($H83,P_Hard!$A$5:$Y$204,3*($C$8-1)+2)/1000)+VLOOKUP($B$6,$A$25:$E$52,5)),NA()) -> 9.488108417 | P83: 9.765624442 | Q83: =IF(ISNA(VLOOKUP($B$6,$A$25:$E$52,IF($B$8=$A$22,3,2))),EXP(VLOOKUP($B$6,$A$25:$E$52,4)*LN(VLOOKUP($H83,P_Hard!$A$5:$Y$204,3*($C$8-1)+4)/1000)+VLOOKUP($B$6,$A$25:$E$52,5)),NA()) -> 9.488108417 | S83: 4.833333333 | T83: =VLOOKUP($S83,P_All!$AA$5:$AY$245,3*($C$8-1)+2) -> 0.50548 | U83: =VLOOKUP($S83,P_All!$AA$5:$AY$245,3*($C$8-1)+3) -> 1.1349 | V83: =VLOOKUP($S83,P_All!$AA$5:$AY$245,3*($C$8-1)+4) -> 2.7332 | W83: =VLOOKUP($S83,NA_All!$AA$5:$AY$245,3*($C$8-1)+2) -> 0.50653 | X83: =VLOOKUP($S83,NA_All!$AA$5:$AY$245,3*($C$8-1)+3) -> 1.1389 | Y83: =VLOOKUP($S83,NA_All!$AA$5:$AY$245,3*($C$8-1)+4) -> 2.7387 | Z83: =IF(AND($B$8=$A$20,$B$6=$A$48),$B$54,IF(ISNA(VLOOKUP($B$6,$A$25:$E$52,IF($B$8=$A$22,3,2),FALSE)),EXP(VLOOKUP($B$6,$A$25:$E$52,4,FALSE)*LN(VLOOKUP($H83,P_Hard!$A$5:$Y$204,3*($C$8-1)+3,FALSE)/1000)+VLOOKUP($B$6,$A$25:$E$52,5,FALSE)),VLOOKUP($B$6,$A$25:$E$52,IF($B$8=$A$22,3,2),FALSE))) -> 9.488108417
H84: 60 | I84: =VLOOKUP($H84,P_All!$A$5:$Y$204,3*($C$8-1)+2) -> 2.1175 | J84: =VLOOKUP($H84,P_All!$A$5:$Y$204,3*($C$8-1)+3) -> 4.3924 | K84: =VLOOKUP($H84,P_All!$A$5:$Y$204,3*($C$8-1)+4) -> 5.5889 | L84: =VLOOKUP($H84,NA_All!$A$5:$Y$204,3*($C$8-1)+2) -> 1.4902 | M84: =VLOOKUP($H84,NA_All!$A$5:$Y$204,3*($C$8-1)+3) -> 2.1839 | N84: =VLOOKUP($H84,NA_All!$A$5:$Y$204,3*($C$8-1)+4) -> 2.9563 | O84: =IF(ISNA(VLOOKUP($B$6,$A$25:$E$52,IF($B$8=$A$22,3,2))),EXP(VLOOKUP($B$6,$A$25:$E$52,4)*LN(VLOOKUP($H84,P_Hard!$A$5:$Y$204,3*($C$8-1)+2)/1000)+VLOOKUP($B$6,$A$25:$E$52,5)),NA()) -> 9.488108417 | P84: 9.765624442 | Q84: =IF(ISNA(VLOOKUP($B$6,$A$25:$E$52,IF($B$8=$A$22,3,2))),EXP(VLOOKUP($B$6,$A$25:$E$52,4)*LN(VLOOKUP($H84,P_Hard!$A$5:$Y$204,3*($C$8-1)+4)/1000)+VLOOKUP($B$6,$A$25:$E$52,5)),NA()) -> 9.488108417 | S84: 4.916666667 | T84: =VLOOKUP($S84,P_All!$AA$5:$AY$245,3*($C$8-1)+2) -> 0.60246 | U84: =VLOOKUP($S84,P_All!$AA$5:$AY$245,3*($C$8-1)+3) -> 1.1574 | V84: =VLOOKUP($S84,P_All!$AA$5:$AY$245,3*($C$8-1)+4) -> 2.4361 | W84: =VLOOKUP($S84,NA_All!$AA$5:$AY$245,3*($C$8-1)+2) -> 0.60338 | X84: =VLOOKUP($S84,NA_All!$AA$5:$AY$245,3*($C$8-1)+3) -> 1.1643 | Y84: =VLOOKUP($S84,NA_All!$AA$5:$AY$245,3*($C$8-1)+4) -> 2.4386 | Z84: =IF(AND($B$8=$A$20,$B$6=$A$48),$B$54,IF(ISNA(VLOOKUP($B$6,$A$25:$E$52,IF($B$8=$A$22,3,2),FALSE)),EXP(VLOOKUP($B$6,$A$25:$E$52,4,FALSE)*LN(VLOOKUP($H84,P_Hard!$A$5:$Y$204,3*($C$8-1)+3,FALSE)/1000)+VLOOKUP($B$6,$A$25:$E$52,5,FALSE)),VLOOKUP($B$6,$A$25:$E$52,IF($B$8=$A$22,3,2),FALSE))) -> 9.488108417
H85: 61 | I85: =VLOOKUP($H85,P_All!$A$5:$Y$204,3*($C$8-1)+2) -> 2.1509 | J85: =VLOOKUP($H85,P_All!$A$5:$Y$204,3*($C$8-1)+3) -> 4.0834 | K85: =VLOOKUP($H85,P_All!$A$5:$Y$204,3*($C$8-1)+4) -> 5.5741 | L85: =VLOOKUP($H85,NA_All!$A$5:$Y$204,3*($C$8-1)+2) -> 1.4902 | M85: =VLOOKUP($H85,NA_All!$A$5:$Y$204,3*($C$8-1)+3) -> 2.1968 | N85: =VLOOKUP($H85,NA_All!$A$5:$Y$204,3*($C$8-1)+4) -> 2.9006 | O85: =IF(ISNA(VLOOKUP($B$6,$A$25:$E$52,IF($B$8=$A$22,3,2))),EXP(VLOOKUP($B$6,$A$25:$E$52,4)*LN(VLOOKUP($H85,P_Hard!$A$5:$Y$204,3*($C$8-1)+2)/1000)+VLOOKUP($B$6,$A$25:$E$52,5)),NA()) -> 9.488108417 | P85: 9.765624442 | Q85: =IF(ISNA(VLOOKUP($B$6,$A$25:$E$52,IF($B$8=$A$22,3,2))),EXP(VLOOKUP($B$6,$A$25:$E$52,4)*LN(VLOOKUP($H85,P_Hard!$A$5:$Y$204,3*($C$8-1)+4)/1000)+VLOOKUP($B$6,$A$25:$E$52,5)),NA()) -> 9.488108417 | S85: 5 | T85: =VLOOKUP($S85,P_All!$AA$5:$AY$245,3*($C$8-1)+2) -> 0.9325 | U85: =VLOOKUP($S85,P_All!$AA$5:$AY$245,3*($C$8-1)+3) -> 1.4613 | V85: =VLOOKUP($S85,P_All!$AA$5:$AY$245,3*($C$8-1)+4) -> 2.1929 | W85: =VLOOKUP($S85,NA_All!$AA$5:$AY$245,3*($C$8-1)+2) -> 0.93762 | X85: =VLOOKUP($S85,NA_All!$AA$5:$AY$245,3*($C$8-1)+3) -> 1.4736 | Y85: =VLOOKUP($S85,NA_All!$AA$5:$AY$245,3*($C$8-1)+4) -> 2.2015 | Z85: =IF(AND($B$8=$A$20,$B$6=$A$48),$B$54,IF(ISNA(VLOOKUP($B$6,$A$25:$E$52,IF($B$8=$A$22,3,2),FALSE)),EXP(VLOOKUP($B$6,$A$25:$E$52,4,FALSE)*LN(VLOOKUP($H85,P_Hard!$A$5:$Y$204,3*($C$8-1)+3,FALSE)/1000)+VLOOKUP($B$6,$A$25:$E$52,5,FALSE)),VLOOKUP($B$6,$A$25:$E$52,IF($B$8=$A$22,3,2),FALSE))) -> 9.488108417
H86: 62 | I86: =VLOOKUP($H86,P_All!$A$5:$Y$204,3*($C$8-1)+2) -> 2.2764 | J86: =VLOOKUP($H86,P_All!$A$5:$Y$204,3*($C$8-1)+3) -> 4.5025 | K86: =VLOOKUP($H86,P_All!$A$5:$Y$204,3*($C$8-1)+4) -> 5.6733 | L86: =VLOOKUP($H86,NA_All!$A$5:$Y$204,3*($C$8-1)+2) -> 1.5911 | M86: =VLOOKUP($H86,NA_All!$A$5:$Y$204,3*($C$8-1)+3) -> 2.2273 | N86: =VLOOKUP($H86,NA_All!$A$5:$Y$204,3*($C$8-1)+4) -> 3.0222 | O86: =IF(ISNA(VLOOKUP($B$6,$A$25:$E$52,IF($B$8=$A$22,3,2))),EXP(VLOOKUP($B$6,$A$25:$E$52,4)*LN(VLOOKUP($H86,P_Hard!$A$5:$Y$204,3*($C$8-1)+2)/1000)+VLOOKUP($B$6,$A$25:$E$52,5)),NA()) -> 9.488108417 | P86: 9.765624442 | Q86: =IF(ISNA(VLOOKUP($B$6,$A$25:$E$52,IF($B$8=$A$22,3,2))),EXP(VLOOKUP($B$6,$A$25:$E$52,4)*LN(VLOOKUP($H86,P_Hard!$A$5:$Y$204,3*($C$8-1)+4)/1000)+VLOOKUP($B$6,$A$25:$E$52,5)),NA()) -> 9.488108417 | S86: 5.083333333 | T86: =VLOOKUP($S86,P_All!$AA$5:$AY$245,3*($C$8-1)+2) -> 1.1926 | U86: =VLOOKUP($S86,P_All!$AA$5:$AY$245,3*($C$8-1)+3) -> 1.4701 | V86: =VLOOKUP($S86,P_All!$AA$5:$AY$245,3*($C$8-1)+4) -> 1.9016 | W86: =VLOOKUP($S86,NA_All!$AA$5:$AY$245,3*($C$8-1)+2) -> 1.202 | X86: =VLOOKUP($S86,NA_All!$AA$5:$AY$245,3*($C$8-1)+3) -> 1.4766 | Y86: =VLOOKUP($S86,NA_All!$AA$5:$AY$245,3*($C$8-1)+4) -> 1.9071 | Z86: =IF(AND($B$8=$A$20,$B$6=$A$48),$B$54,IF(ISNA(VLOOKUP($B$6,$A$25:$E$52,IF($B$8=$A$22,3,2),FALSE)),EXP(VLOOKUP($B$6,$A$25:$E$52,4,FALSE)*LN(VLOOKUP($H86,P_Hard!$A$5:$Y$204,3*($C$8-1)+3,FALSE)/1000)+VLOOKUP($B$6,$A$25:$E$52,5,FALSE)),VLOOKUP($B$6,$A$25:$E$52,IF($B$8=$A$22,3,2),FALSE))) -> 9.488108417
H87: 63 | I87: =VLOOKUP($H87,P_All!$A$5:$Y$204,3*($C$8-1)+2) -> 2.3906 | J87: =VLOOKUP($H87,P_All!$A$5:$Y$204,3*($C$8-1)+3) -> 4.491 | K87: =VLOOKUP($H87,P_All!$A$5:$Y$204,3*($C$8-1)+4) -> 5.5651 | L87: =VLOOKUP($H87,NA_All!$A$5:$Y$204,3*($C$8-1)+2) -> 1.6856 | M87: =VLOOKUP($H87,NA_All!$A$5:$Y$204,3*($C$8-1)+3) -> 2.2048 | N87: =VLOOKUP($H87,NA_All!$A$5:$Y$204,3*($C$8-1)+4) -> 3.0917 | O87: =IF(ISNA(VLOOKUP($B$6,$A$25:$E$52,IF($B$8=$A$22,3,2))),EXP(VLOOKUP($B$6,$A$25:$E$52,4)*LN(VLOOKUP($H87,P_Hard!$A$5:$Y$204,3*($C$8-1)+2)/1000)+VLOOKUP($B$6,$A$25:$E$52,5)),NA()) -> 9.488108417 | P87: 9.765624442 | Q87: =IF(ISNA(VLOOKUP($B$6,$A$25:$E$52,IF($B$8=$A$22,3,2))),EXP(VLOOKUP($B$6,$A$25:$E$52,4)*LN(VLOOKUP($H87,P_Hard!$A$5:$Y$204,3*($C$8-1)+4)/1000)+VLOOKUP($B$6,$A$25:$E$52,5)),NA()) -> 9.488108417 | S87: 5.166666667 | T87: =VLOOKUP($S87,P_All!$AA$5:$AY$245,3*($C$8-1)+2) -> 1.2362 | U87: =VLOOKUP($S87,P_All!$AA$5:$AY$245,3*($C$8-1)+3) -> 1.3972 | V87: =VLOOKUP($S87,P_All!$AA$5:$AY$245,3*($C$8-1)+4) -> 1.7582 | W87: =VLOOKUP($S87,NA_All!$AA$5:$AY$245,3*($C$8-1)+2) -> 1.2402 | X87: =VLOOKUP($S87,NA_All!$AA$5:$AY$245,3*($C$8-1)+3) -> 1.4024 | Y87: =VLOOKUP($S87,NA_All!$AA$5:$AY$245,3*($C$8-1)+4) -> 1.7783 | Z87: =IF(AND($B$8=$A$20,$B$6=$A$48),$B$54,IF(ISNA(VLOOKUP($B$6,$A$25:$E$52,IF($B$8=$A$22,3,2),FALSE)),EXP(VLOOKUP($B$6,$A$25:$E$52,4,FALSE)*LN(VLOOKUP($H87,P_Hard!$A$5:$Y$204,3*($C$8-1)+3,FALSE)/1000)+VLOOKUP($B$6,$A$25:$E$52,5,FALSE)),VLOOKUP($B$6,$A$25:$E$52,IF($B$8=$A$22,3,2),FALSE))) -> 9.488108417
H88: 64 | I88: =VLOOKUP($H88,P_All!$A$5:$Y$204,3*($C$8-1)+2) -> 2.3306 | J88: =VLOOKUP($H88,P_All!$A$5:$Y$204,3*($C$8-1)+3) -> 4.3891 | K88: =VLOOKUP($H88,P_All!$A$5:$Y$204,3*($C$8-1)+4) -> 5.7783 | L88: =VLOOKUP($H88,NA_All!$A$5:$Y$204,3*($C$8-1)+2) -> 1.6739 | M88: =VLOOKUP($H88,NA_All!$A$5:$Y$204,3*($C$8-1)+3) -> 2.2364 | N88: =VLOOKUP($H88,NA_All!$A$5:$Y$204,3*($C$8-1)+4) -> 3.1854 | O88: =IF(ISNA(VLOOKUP($B$6,$A$25:$E$52,IF($B$8=$A$22,3,2))),EXP(VLOOKUP($B$6,$A$25:$E$52,4)*LN(VLOOKUP($H88,P_Hard!$A$5:$Y$204,3*($C$8-1)+2)/1000)+VLOOKUP($B$6,$A$25:$E$52,5)),NA()) -> 9.488108417 | P88: 9.765624442 | Q88: =IF(ISNA(VLOOKUP($B$6,$A$25:$E$52,IF($B$8=$A$22,3,2))),EXP(VLOOKUP($B$6,$A$25:$E$52,4)*LN(VLOOKUP($H88,P_Hard!$A$5:$Y$204,3*($C$8-1)+4)/1000)+VLOOKUP($B$6,$A$25:$E$52,5)),NA()) -> 9.488108417 | S88: 5.25 | T88: =VLOOKUP($S88,P_All!$AA$5:$AY$245,3*($C$8-1)+2) -> 0.88734 | U88: =VLOOKUP($S88,P_All!$AA$5:$AY$245,3*($C$8-1)+3) -> 1.4194 | V88: =VLOOKUP($S88,P_All!$AA$5:$AY$245,3*($C$8-1)+4) -> 1.9524 | W88: =VLOOKUP($S88,NA_All!$AA$5:$AY$245,3*($C$8-1)+2) -> 0.89047 | X88: =VLOOKUP($S88,NA_All!$AA$5:$AY$245,3*($C$8-1)+3) -> 1.4233 | Y88: =VLOOKUP($S88,NA_All!$AA$5:$AY$245,3*($C$8-1)+4) -> 1.9611 | Z88: =IF(AND($B$8=$A$20,$B$6=$A$48),$B$54,IF(ISNA(VLOOKUP($B$6,$A$25:$E$52,IF($B$8=$A$22,3,2),FALSE)),EXP(VLOOKUP($B$6,$A$25:$E$52,4,FALSE)*LN(VLOOKUP($H88,P_Hard!$A$5:$Y$204,3*($C$8-1)+3,FALSE)/1000)+VLOOKUP($B$6,$A$25:$E$52,5,FALSE)),VLOOKUP($B$6,$A$25:$E$52,IF($B$8=$A$22,3,2),FALSE))) -> 9.488108417
H89: 65 | I89: =VLOOKUP($H89,P_All!$A$5:$Y$204,3*($C$8-1)+2) -> 2.1055 | J89: =VLOOKUP($H89,P_All!$A$5:$Y$204,3*($C$8-1)+3) -> 4.3666 | K89: =VLOOKUP($H89,P_All!$A$5:$Y$204,3*($C$8-1)+4) -> 5.5106 | L89: =VLOOKUP($H89,NA_All!$A$5:$Y$204,3*($C$8-1)+2) -> 1.4852 | M89: =VLOOKUP($H89,NA_All!$A$5:$Y$204,3*($C$8-1)+3) -> 2.1733 | N89: =VLOOKUP($H89,NA_All!$A$5:$Y$204,3*($C$8-1)+4) -> 3.0576 | O89: =IF(ISNA(VLOOKUP($B$6,$A$25:$E$52,IF($B$8=$A$22,3,2))),EXP(VLOOKUP($B$6,$A$25:$E$52,4)*LN(VLOOKUP($H89,P_Hard!$A$5:$Y$204,3*($C$8-1)+2)/1000)+VLOOKUP($B$6,$A$25:$E$52,5)),NA()) -> 9.488108417 | P89: 9.765624442 | Q89: =IF(ISNA(VLOOKUP($B$6,$A$25:$E$52,IF($B$8=$A$22,3,2))),EXP(VLOOKUP($B$6,$A$25:$E$52,4)*LN(VLOOKUP($H89,P_Hard!$A$5:$Y$204,3*($C$8-1)+4)/1000)+VLOOKUP($B$6,$A$25:$E$52,5)),NA()) -> 9.488108417 | S89: 5.333333333 | T89: =VLOOKUP($S89,P_All!$AA$5:$AY$245,3*($C$8-1)+2) -> 0.4235 | U89: =VLOOKUP($S89,P_All!$AA$5:$AY$245,3*($C$8-1)+3) -> 1.0803 | V89: =VLOOKUP($S89,P_All!$AA$5:$AY$245,3*($C$8-1)+4) -> 2.7717 | W89: =VLOOKUP($S89,NA_All!$AA$5:$AY$245,3*($C$8-1)+2) -> 0.42366 | X89: =VLOOKUP($S89,NA_All!$AA$5:$AY$245,3*($C$8-1)+3) -> 1.0823 | Y89: =VLOOKUP($S89,NA_All!$AA$5:$AY$245,3*($C$8-1)+4) -> 2.7732 | Z89: =IF(AND($B$8=$A$20,$B$6=$A$48),$B$54,IF(ISNA(VLOOKUP($B$6,$A$25:$E$52,IF($B$8=$A$22,3,2),FALSE)),EXP(VLOOKUP($B$6,$A$25:$E$52,4,FALSE)*LN(VLOOKUP($H89,P_Hard!$A$5:$Y$204,3*($C$8-1)+3,FALSE)/1000)+VLOOKUP($B$6,$A$25:$E$52,5,FALSE)),VLOOKUP($B$6,$A$25:$E$52,IF($B$8=$A$22,3,2),FALSE))) -> 9.488108417
H90: 66 | I90: =VLOOKUP($H90,P_All!$A$5:$Y$204,3*($C$8-1)+2) -> 2.2708 | J90: =VLOOKUP($H90,P_All!$A$5:$Y$204,3*($C$8-1)+3) -> 4.7102 | K90: =VLOOKUP($H90,P_All!$A$5:$Y$204,3*($C$8-1)+4) -> 5.5016 | L90: =VLOOKUP($H90,NA_All!$A$5:$Y$204,3*($C$8-1)+2) -> 1.6074 | M90: =VLOOKUP($H90,NA_All!$A$5:$Y$204,3*($C$8-1)+3) -> 2.1921 | N90: =VLOOKUP($H90,NA_All!$A$5:$Y$204,3*($C$8-1)+4) -> 2.9346 | O90: =IF(ISNA(VLOOKUP($B$6,$A$25:$E$52,IF($B$8=$A$22,3,2))),EXP(VLOOKUP($B$6,$A$25:$E$52,4)*LN(VLOOKUP($H90,P_Hard!$A$5:$Y$204,3*($C$8-1)+2)/1000)+VLOOKUP($B$6,$A$25:$E$52,5)),NA()) -> 9.488108417 | P90: =IF(AND($B$8=$A$20,$B$6=$A$48),$B$54,IF(ISNA(VLOOKUP($B$6,$A$25:$F$52,IF($B$8=$A$22,3,2),FALSE)),VLOOKUP($B$6,$A$25:$F$52,6),VLOOKUP($B$6,$A$25:$F$52,IF($B$8=$A$22,3,2),FALSE))) -> 9.765624442 | Q90: =IF(ISNA(VLOOKUP($B$6,$A$25:$E$52,IF($B$8=$A$22,3,2))),EXP(VLOOKUP($B$6,$A$25:$E$52,4)*LN(VLOOKUP($H90,P_Hard!$A$5:$Y$204,3*($C$8-1)+4)/1000)+VLOOKUP($B$6,$A$25:$E$52,5)),NA()) -> 9.488108417 | S90: 5.416666667 | T90: =VLOOKUP($S90,P_All!$AA$5:$AY$245,3*($C$8-1)+2) -> 0.38229 | U90: =VLOOKUP($S90,P_All!$AA$5:$AY$245,3*($C$8-1)+3) -> 0.96272 | V90: =VLOOKUP($S90,P_All!$AA$5:$AY$245,3*($C$8-1)+4) -> 2.6299 | W90: =VLOOKUP($S90,NA_All!$AA$5:$AY$245,3*($C$8-1)+2) -> 0.38284 | X90: =VLOOKUP($S90,NA_All!$AA$5:$AY$245,3*($C$8-1)+3) -> 0.95925 | Y90: =VLOOKUP($S90,NA_All!$AA$5:$AY$245,3*($C$8-1)+4) -> 2.6322 | Z90: =IF(AND($B$8=$A$20,$B$6=$A$48),$B$54,IF(ISNA(VLOOKUP($B$6,$A$25:$E$52,IF($B$8=$A$22,3,2),FALSE)),EXP(VLOOKUP($B$6,$A$25:$E$52,4,FALSE)*LN(VLOOKUP($H90,P_Hard!$A$5:$Y$204,3*($C$8-1)+3,FALSE)/1000)+VLOOKUP($B$6,$A$25:$E$52,5,FALSE)),VLOOKUP($B$6,$A$25:$E$52,IF($B$8=$A$22,3,2),FALSE))) -> 9.488108417
H91: 67 | I91: =VLOOKUP($H91,P_All!$A$5:$Y$204,3*($C$8-1)+2) -> 2.1101 | J91: =VLOOKUP($H91,P_All!$A$5:$Y$204,3*($C$8-1)+3) -> 4.3564 | K91: =VLOOKUP($H91,P_All!$A$5:$Y$204,3*($C$8-1)+4) -> 5.5565 | L91: =VLOOKUP($H91,NA_All!$A$5:$Y$204,3*($C$8-1)+2) -> 1.4792 | M91: =VLOOKUP($H91,NA_All!$A$5:$Y$204,3*($C$8-1)+3) -> 2.1787 | N91: =VLOOKUP($H91,NA_All!$A$5:$Y$204,3*($C$8-1)+4) -> 3.0445 | O91: =IF(ISNA(VLOOKUP($B$6,$A$25:$E$52,IF($B$8=$A$22,3,2))),EXP(VLOOKUP($B$6,$A$25:$E$52,4)*LN(VLOOKUP($H91,P_Hard!$A$5:$Y$204,3*($C$8-1)+2)/1000)+VLOOKUP($B$6,$A$25:$E$52,5)),NA()) -> 9.488108417 | P91: 9.765624442 | Q91: =IF(ISNA(VLOOKUP($B$6,$A$25:$E$52,IF($B$8=$A$22,3,2))),EXP(VLOOKUP($B$6,$A$25:$E$52,4)*LN(VLOOKUP($H91,P_Hard!$A$5:$Y$204,3*($C$8-1)+4)/1000)+VLOOKUP($B$6,$A$25:$E$52,5)),NA()) -> 9.488108417 | S91: =S90+1/12 -> 5.5 | T91: =VLOOKUP($S91,P_All!$AA$5:$AY$245,3*($C$8-1)+2) -> 0.47578 | U91: =VLOOKUP($S91,P_All!$AA$5:$AY$245,3*($C$8-1)+3) -> 1.1876 | V91: =VLOOKUP($S91,P_All!$AA$5:$AY$245,3*($C$8-1)+4) -> 2.6227 | W91: =VLOOKUP($S91,NA_All!$AA$5:$AY$245,3*($C$8-1)+2) -> 0.47674 | X91: =VLOOKUP($S91,NA_All!$AA$5:$AY$245,3*($C$8-1)+3) -> 1.1906 | Y91: =VLOOKUP($S91,NA_All!$AA$5:$AY$245,3*($C$8-1)+4) -> 2.6237 | Z91: =IF(AND($B$8=$A$20,$B$6=$A$48),$B$54,IF(ISNA(VLOOKUP($B$6,$A$25:$E$52,IF($B$8=$A$22,3,2),FALSE)),EXP(VLOOKUP($B$6,$A$25:$E$52,4,FALSE)*LN(VLOOKUP($H91,P_Hard!$A$5:$Y$204,3*($C$8-1)+3,FALSE)/1000)+VLOOKUP($B$6,$A$25:$E$52,5,FALSE)),VLOOKUP($B$6,$A$25:$E$52,IF($B$8=$A$22,3,2),FALSE))) -> 9.488108417
H92: 68 | I92: =VLOOKUP($H92,P_All!$A$5:$Y$204,3*($C$8-1)+2) -> 2.2313 | J92: =VLOOKUP($H92,P_All!$A$5:$Y$204,3*($C$8-1)+3) -> 4.4471 | K92: =VLOOKUP($H92,P_All!$A$5:$Y$204,3*($C$8-1)+4) -> 5.5448 | L92: =VLOOKUP($H92,NA_All!$A$5:$Y$204,3*($C$8-1)+2) -> 1.5805 | M92: =VLOOKUP($H92,NA_All!$A$5:$Y$204,3*($C$8-1)+3) -> 2.2027 | N92: =VLOOKUP($H92,NA_All!$A$5:$Y$204,3*($C$8-1)+4) -> 3.1072 | O92: =IF(ISNA(VLOOKUP($B$6,$A$25:$E$52,IF($B$8=$A$22,3,2))),EXP(VLOOKUP($B$6,$A$25:$E$52,4)*LN(VLOOKUP($H92,P_Hard!$A$5:$Y$204,3*($C$8-1)+2)/1000)+VLOOKUP($B$6,$A$25:$E$52,5)),NA()) -> 9.488108417 | P92: 9.765624442 | Q92: =IF(ISNA(VLOOKUP($B$6,$A$25:$E$52,IF($B$8=$A$22,3,2))),EXP(VLOOKUP($B$6,$A$25:$E$52,4)*LN(VLOOKUP($H92,P_Hard!$A$5:$Y$204,3*($C$8-1)+4)/1000)+VLOOKUP($B$6,$A$25:$E$52,5)),NA()) -> 9.488108417 | S92: 5.583333333 | T92: =VLOOKUP($S92,P_All!$AA$5:$AY$245,3*($C$8-1)+2) -> 0.53163 | U92: =VLOOKUP($S92,P_All!$AA$5:$AY$245,3*($C$8-1)+3) -> 1.2622 | V92: =VLOOKUP($S92,P_All!$AA$5:$AY$245,3*($C$8-1)+4) -> 2.3801 | W92: =VLOOKUP($S92,NA_All!$AA$5:$AY$245,3*($C$8-1)+2) -> 0.53199 | X92: =VLOOKUP($S92,NA_All!$AA$5:$AY$245,3*($C$8-1)+3) -> 1.2636 | Y92: =VLOOKUP($S92,NA_All!$AA$5:$AY$245,3*($C$8-1)+4) -> 2.3813 | Z92: =IF(AND($B$8=$A$20,$B$6=$A$48),$B$54,IF(ISNA(VLOOKUP($B$6,$A$25:$E$52,IF($B$8=$A$22,3,2),FALSE)),EXP(VLOOKUP($B$6,$A$25:$E$52,4,FALSE)*LN(VLOOKUP($H92,P_Hard!$A$5:$Y$204,3*($C$8-1)+3,FALSE)/1000)+VLOOKUP($B$6,$A$25:$E$52,5,FALSE)),VLOOKUP($B$6,$A$25:$E$52,IF($B$8=$A$22,3,2),FALSE))) -> 9.488108417
H93: 69 | I93: =VLOOKUP($H93,P_All!$A$5:$Y$204,3*($C$8-1)+2) -> 2.2286 | J93: =VLOOKUP($H93,P_All!$A$5:$Y$204,3*($C$8-1)+3) -> 4.5011 | K93: =VLOOKUP($H93,P_All!$A$5:$Y$204,3*($C$8-1)+4) -> 5.5199 | L93: =VLOOKUP($H93,NA_All!$A$5:$Y$204,3*($C$8-1)+2) -> 1.5326 | M93: =VLOOKUP($H93,NA_All!$A$5:$Y$204,3*($C$8-1)+3) -> 2.1805 | N93: =VLOOKUP($H93,NA_All!$A$5:$Y$204,3*($C$8-1)+4) -> 2.807 | O93: =IF(ISNA(VLOOKUP($B$6,$A$25:$E$52,IF($B$8=$A$22,3,2))),EXP(VLOOKUP($B$6,$A$25:$E$52,4)*LN(VLOOKUP($H93,P_Hard!$A$5:$Y$204,3*($C$8-1)+2)/1000)+VLOOKUP($B$6,$A$25:$E$52,5)),NA()) -> 9.488108417 | P93: 9.765624442 | Q93: =IF(ISNA(VLOOKUP($B$6,$A$25:$E$52,IF($B$8=$A$22,3,2))),EXP(VLOOKUP($B$6,$A$25:$E$52,4)*LN(VLOOKUP($H93,P_Hard!$A$5:$Y$204,3*($C$8-1)+4)/1000)+VLOOKUP($B$6,$A$25:$E$52,5)),NA()) -> 9.488108417 | S93: 5.666666667 | T93: =VLOOKUP($S93,P_All!$AA$5:$AY$245,3*($C$8-1)+2) -> 0.52183 | U93: =VLOOKUP($S93,P_All!$AA$5:$AY$245,3*($C$8-1)+3) -> 1.2293 | V93: =VLOOKUP($S93,P_All!$AA$5:$AY$245,3*($C$8-1)+4) -> 2.4816 | W93: =VLOOKUP($S93,NA_All!$AA$5:$AY$245,3*($C$8-1)+2) -> 0.52235 | X93: =VLOOKUP($S93,NA_All!$AA$5:$AY$245,3*($C$8-1)+3) -> 1.2328 | Y93: =VLOOKUP($S93,NA_All!$AA$5:$AY$245,3*($C$8-1)+4) -> 2.4897 | Z93: =IF(AND($B$8=$A$20,$B$6=$A$48),$B$54,IF(ISNA(VLOOKUP($B$6,$A$25:$E$52,IF($B$8=$A$22,3,2),FALSE)),EXP(VLOOKUP($B$6,$A$25:$E$52,4,FALSE)*LN(VLOOKUP($H93,P_Hard!$A$5:$Y$204,3*($C$8-1)+3,FALSE)/1000)+VLOOKUP($B$6,$A$25:$E$52,5,FALSE)),VLOOKUP($B$6,$A$25:$E$52,IF($B$8=$A$22,3,2),FALSE))) -> 9.488108417
H94: 70 | I94: =VLOOKUP($H94,P_All!$A$5:$Y$204,3*($C$8-1)+2) -> 2.3295 | J94: =VLOOKUP($H94,P_All!$A$5:$Y$204,3*($C$8-1)+3) -> 4.1909 | K94: =VLOOKUP($H94,P_All!$A$5:$Y$204,3*($C$8-1)+4) -> 5.5993 | L94: =VLOOKUP($H94,NA_All!$A$5:$Y$204,3*($C$8-1)+2) -> 1.5764 | M94: =VLOOKUP($H94,NA_All!$A$5:$Y$204,3*($C$8-1)+3) -> 2.2084 | N94: =VLOOKUP($H94,NA_All!$A$5:$Y$204,3*($C$8-1)+4) -> 3.0564 | O94: =IF(ISNA(VLOOKUP($B$6,$A$25:$E$52,IF($B$8=$A$22,3,2))),EXP(VLOOKUP($B$6,$A$25:$E$52,4)*LN(VLOOKUP($H94,P_Hard!$A$5:$Y$204,3*($C$8-1)+2)/1000)+VLOOKUP($B$6,$A$25:$E$52,5)),NA()) -> 9.488108417 | P94: 9.765624442 | Q94: =IF(ISNA(VLOOKUP($B$6,$A$25:$E$52,IF($B$8=$A$22,3,2))),EXP(VLOOKUP($B$6,$A$25:$E$52,4)*LN(VLOOKUP($H94,P_Hard!$A$5:$Y$204,3*($C$8-1)+4)/1000)+VLOOKUP($B$6,$A$25:$E$52,5)),NA()) -> 9.488108417 | S94: 5.75 | T94: =VLOOKUP($S94,P_All!$AA$5:$AY$245,3*($C$8-1)+2) -> 0.49464 | U94: =VLOOKUP($S94,P_All!$AA$5:$AY$245,3*($C$8-1)+3) -> 1.2356 | V94: =VLOOKUP($S94,P_All!$AA$5:$AY$245,3*($C$8-1)+4) -> 2.6042 | W94: =VLOOKUP($S94,NA_All!$AA$5:$AY$245,3*($C$8-1)+2) -> 0.49531 | X94: =VLOOKUP($S94,NA_All!$AA$5:$AY$245,3*($C$8-1)+3) -> 1.2412 | Y94: =VLOOKUP($S94,NA_All!$AA$5:$AY$245,3*($C$8-1)+4) -> 2.6098 | Z94: =IF(AND($B$8=$A$20,$B$6=$A$48),$B$54,IF(ISNA(VLOOKUP($B$6,$A$25:$E$52,IF($B$8=$A$22,3,2),FALSE)),EXP(VLOOKUP($B$6,$A$25:$E$52,4,FALSE)*LN(VLOOKUP($H94,P_Hard!$A$5:$Y$204,3*($C$8-1)+3,FALSE)/1000)+VLOOKUP($B$6,$A$25:$E$52,5,FALSE)),VLOOKUP($B$6,$A$25:$E$52,IF($B$8=$A$22,3,2),FALSE))) -> 9.488108417
H95: 71 | I95: =VLOOKUP($H95,P_All!$A$5:$Y$204,3*($C$8-1)+2) -> 2.2546 | J95: =VLOOKUP($H95,P_All!$A$5:$Y$204,3*($C$8-1)+3) -> 4.4566 | K95: =VLOOKUP($H95,P_All!$A$5:$Y$204,3*($C$8-1)+4) -> 5.617 | L95: =VLOOKUP($H95,NA_All!$A$5:$Y$204,3*($C$8-1)+2) -> 1.5861 | M95: =VLOOKUP($H95,NA_All!$A$5:$Y$204,3*($C$8-1)+3) -> 2.1919 | N95: =VLOOKUP($H95,NA_All!$A$5:$Y$204,3*($C$8-1)+4) -> 3.0711 | O95: =IF(ISNA(VLOOKUP($B$6,$A$25:$E$52,IF($B$8=$A$22,3,2))),EXP(VLOOKUP($B$6,$A$25:$E$52,4)*LN(VLOOKUP($H95,P_Hard!$A$5:$Y$204,3*($C$8-1)+2)/1000)+VLOOKUP($B$6,$A$25:$E$52,5)),NA()) -> 9.488108417 | P95: 9.765624442 | Q95: =IF(ISNA(VLOOKUP($B$6,$A$25:$E$52,IF($B$8=$A$22,3,2))),EXP(VLOOKUP($B$6,$A$25:$E$52,4)*LN(VLOOKUP($H95,P_Hard!$A$5:$Y$204,3*($C$8-1)+4)/1000)+VLOOKUP($B$6,$A$25:$E$52,5)),NA()) -> 9.488108417 | S95: 5.833333333 | T95: =VLOOKUP($S95,P_All!$AA$5:$AY$245,3*($C$8-1)+2) -> 0.50224 | U95: =VLOOKUP($S95,P_All!$AA$5:$AY$245,3*($C$8-1)+3) -> 1.1276 | V95: =VLOOKUP($S95,P_All!$AA$5:$AY$245,3*($C$8-1)+4) -> 2.6791 | W95: =VLOOKUP($S95,NA_All!$AA$5:$AY$245,3*($C$8-1)+2) -> 0.50358 | X95: =VLOOKUP($S95,NA_All!$AA$5:$AY$245,3*($C$8-1)+3) -> 1.132 | Y95: =VLOOKUP($S95,NA_All!$AA$5:$AY$245,3*($C$8-1)+4) -> 2.6725 | Z95: =IF(AND($B$8=$A$20,$B$6=$A$48),$B$54,IF(ISNA(VLOOKUP($B$6,$A$25:$E$52,IF($B$8=$A$22,3,2),FALSE)),EXP(VLOOKUP($B$6,$A$25:$E$52,4,FALSE)*LN(VLOOKUP($H95,P_Hard!$A$5:$Y$204,3*($C$8-1)+3,FALSE)/1000)+VLOOKUP($B$6,$A$25:$E$52,5,FALSE)),VLOOKUP($B$6,$A$25:$E$52,IF($B$8=$A$22,3,2),FALSE))) -> 9.488108417
H96: 72 | I96: =VLOOKUP($H96,P_All!$A$5:$Y$204,3*($C$8-1)+2) -> 2.2767 | J96: =VLOOKUP($H96,P_All!$A$5:$Y$204,3*($C$8-1)+3) -> 4.6338 | K96: =VLOOKUP($H96,P_All!$A$5:$Y$204,3*($C$8-1)+4) -> 5.5923 | L96: =VLOOKUP($H96,NA_All!$A$5:$Y$204,3*($C$8-1)+2) -> 1.5731 | M96: =VLOOKUP($H96,NA_All!$A$5:$Y$204,3*($C$8-1)+3) -> 2.1993 | N96: =VLOOKUP($H96,NA_All!$A$5:$Y$204,3*($C$8-1)+4) -> 3.2315 | O96: =IF(ISNA(VLOOKUP($B$6,$A$25:$E$52,IF($B$8=$A$22,3,2))),EXP(VLOOKUP($B$6,$A$25:$E$52,4)*LN(VLOOKUP($H96,P_Hard!$A$5:$Y$204,3*($C$8-1)+2)/1000)+VLOOKUP($B$6,$A$25:$E$52,5)),NA()) -> 9.488108417 | P96: 9.765624442 | Q96: =IF(ISNA(VLOOKUP($B$6,$A$25:$E$52,IF($B$8=$A$22,3,2))),EXP(VLOOKUP($B$6,$A$25:$E$52,4)*LN(VLOOKUP($H96,P_Hard!$A$5:$Y$204,3*($C$8-1)+4)/1000)+VLOOKUP($B$6,$A$25:$E$52,5)),NA()) -> 9.488108417 | S96: 5.916666667 | T96: =VLOOKUP($S96,P_All!$AA$5:$AY$245,3*($C$8-1)+2) -> 0.62438 | U96: =VLOOKUP($S96,P_All!$AA$5:$AY$245,3*($C$8-1)+3) -> 1.1863 | V96: =VLOOKUP($S96,P_All!$AA$5:$AY$245,3*($C$8-1)+4) -> 2.4489 | W96: =VLOOKUP($S96,NA_All!$AA$5:$AY$245,3*($C$8-1)+2) -> 0.62608 | X96: =VLOOKUP($S96,NA_All!$AA$5:$AY$245,3*($C$8-1)+3) -> 1.1901 | Y96: =VLOOKUP($S96,NA_All!$AA$5:$AY$245,3*($C$8-1)+4) -> 2.4533 | Z96: =IF(AND($B$8=$A$20,$B$6=$A$48),$B$54,IF(ISNA(VLOOKUP($B$6,$A$25:$E$52,IF($B$8=$A$22,3,2),FALSE)),EXP(VLOOKUP($B$6,$A$25:$E$52,4,FALSE)*LN(VLOOKUP($H96,P_Hard!$A$5:$Y$204,3*($C$8-1)+3,FALSE)/1000)+VLOOKUP($B$6,$A$25:$E$52,5,FALSE)),VLOOKUP($B$6,$A$25:$E$52,IF($B$8=$A$22,3,2),FALSE))) -> 9.488108417
H97: 73 | I97: =VLOOKUP($H97,P_All!$A$5:$Y$204,3*($C$8-1)+2) -> 2.2273 | J97: =VLOOKUP($H97,P_All!$A$5:$Y$204,3*($C$8-1)+3) -> 4.2013 | K97: =VLOOKUP($H97,P_All!$A$5:$Y$204,3*($C$8-1)+4) -> 5.6595 | L97: =VLOOKUP($H97,NA_All!$A$5:$Y$204,3*($C$8-1)+2) -> 1.5221 | M97: =VLOOKUP($H97,NA_All!$A$5:$Y$204,3*($C$8-1)+3) -> 2.195 | N97: =VLOOKUP($H97,NA_All!$A$5:$Y$204,3*($C$8-1)+4) -> 2.887 | O97: =IF(ISNA(VLOOKUP($B$6,$A$25:$E$52,IF($B$8=$A$22,3,2))),EXP(VLOOKUP($B$6,$A$25:$E$52,4)*LN(VLOOKUP($H97,P_Hard!$A$5:$Y$204,3*($C$8-1)+2)/1000)+VLOOKUP($B$6,$A$25:$E$52,5)),NA()) -> 9.488108417 | P97: 9.765624442 | Q97: =IF(ISNA(VLOOKUP($B$6,$A$25:$E$52,IF($B$8=$A$22,3,2))),EXP(VLOOKUP($B$6,$A$25:$E$52,4)*LN(VLOOKUP($H97,P_Hard!$A$5:$Y$204,3*($C$8-1)+4)/1000)+VLOOKUP($B$6,$A$25:$E$52,5)),NA()) -> 9.488108417 | S97: 6 | T97: =VLOOKUP($S97,P_All!$AA$5:$AY$245,3*($C$8-1)+2) -> 0.94629 | U97: =VLOOKUP($S97,P_All!$AA$5:$AY$245,3*($C$8-1)+3) -> 1.4752 | V97: =VLOOKUP($S97,P_All!$AA$5:$AY$245,3*($C$8-1)+4) -> 2.1164 | W97: =VLOOKUP($S97,NA_All!$AA$5:$AY$245,3*($C$8-1)+2) -> 0.95299 | X97: =VLOOKUP($S97,NA_All!$AA$5:$AY$245,3*($C$8-1)+3) -> 1.4894 | Y97: =VLOOKUP($S97,NA_All!$AA$5:$AY$245,3*($C$8-1)+4) -> 2.1167 | Z97: =IF(AND($B$8=$A$20,$B$6=$A$48),$B$54,IF(ISNA(VLOOKUP($B$6,$A$25:$E$52,IF($B$8=$A$22,3,2),FALSE)),EXP(VLOOKUP($B$6,$A$25:$E$52,4,FALSE)*LN(VLOOKUP($H97,P_Hard!$A$5:$Y$204,3*($C$8-1)+3,FALSE)/1000)+VLOOKUP($B$6,$A$25:$E$52,5,FALSE)),VLOOKUP($B$6,$A$25:$E$52,IF($B$8=$A$22,3,2),FALSE))) -> 9.488108417
H98: 74 | I98: =VLOOKUP($H98,P_All!$A$5:$Y$204,3*($C$8-1)+2) -> 2.2403 | J98: =VLOOKUP($H98,P_All!$A$5:$Y$204,3*($C$8-1)+3) -> 4.5329 | K98: =VLOOKUP($H98,P_All!$A$5:$Y$204,3*($C$8-1)+4) -> 5.4907 | L98: =VLOOKUP($H98,NA_All!$A$5:$Y$204,3*($C$8-1)+2) -> 1.6113 | M98: =VLOOKUP($H98,NA_All!$A$5:$Y$204,3*($C$8-1)+3) -> 2.1834 | N98: =VLOOKUP($H98,NA_All!$A$5:$Y$204,3*($C$8-1)+4) -> 2.9157 | O98: =IF(ISNA(VLOOKUP($B$6,$A$25:$E$52,IF($B$8=$A$22,3,2))),EXP(VLOOKUP($B$6,$A$25:$E$52,4)*LN(VLOOKUP($H98,P_Hard!$A$5:$Y$204,3*($C$8-1)+2)/1000)+VLOOKUP($B$6,$A$25:$E$52,5)),NA()) -> 9.488108417 | P98: 9.765624442 | Q98: =IF(ISNA(VLOOKUP($B$6,$A$25:$E$52,IF($B$8=$A$22,3,2))),EXP(VLOOKUP($B$6,$A$25:$E$52,4)*LN(VLOOKUP($H98,P_Hard!$A$5:$Y$204,3*($C$8-1)+4)/1000)+VLOOKUP($B$6,$A$25:$E$52,5)),NA()) -> 9.488108417 | S98: 6.083333333 | T98: =VLOOKUP($S98,P_All!$AA$5:$AY$245,3*($C$8-1)+2) -> 1.1933 | U98: =VLOOKUP($S98,P_All!$AA$5:$AY$245,3*($C$8-1)+3) -> 1.4668 | V98: =VLOOKUP($S98,P_All!$AA$5:$AY$245,3*($C$8-1)+4) -> 1.7875 | W98: =VLOOKUP($S98,NA_All!$AA$5:$AY$245,3*($C$8-1)+2) -> 1.2036 | X98: =VLOOKUP($S98,NA_All!$AA$5:$AY$245,3*($C$8-1)+3) -> 1.4755 | Y98: =VLOOKUP($S98,NA_All!$AA$5:$AY$245,3*($C$8-1)+4) -> 1.7975 | Z98: =IF(AND($B$8=$A$20,$B$6=$A$48),$B$54,IF(ISNA(VLOOKUP($B$6,$A$25:$E$52,IF($B$8=$A$22,3,2),FALSE)),EXP(VLOOKUP($B$6,$A$25:$E$52,4,FALSE)*LN(VLOOKUP($H98,P_Hard!$A$5:$Y$204,3*($C$8-1)+3,FALSE)/1000)+VLOOKUP($B$6,$A$25:$E$52,5,FALSE)),VLOOKUP($B$6,$A$25:$E$52,IF($B$8=$A$22,3,2),FALSE))) -> 9.488108417
H99: 75 | I99: =VLOOKUP($H99,P_All!$A$5:$Y$204,3*($C$8-1)+2) -> 2.1275 | J99: =VLOOKUP($H99,P_All!$A$5:$Y$204,3*($C$8-1)+3) -> 4.5238 | K99: =VLOOKUP($H99,P_All!$A$5:$Y$204,3*($C$8-1)+4) -> 5.5689 | L99: =VLOOKUP($H99,NA_All!$A$5:$Y$204,3*($C$8-1)+2) -> 1.5119 | M99: =VLOOKUP($H99,NA_All!$A$5:$Y$204,3*($C$8-1)+3) -> 2.1797 | N99: =VLOOKUP($H99,NA_All!$A$5:$Y$204,3*($C$8-1)+4) -> 3.1802 | O99: =IF(ISNA(VLOOKUP($B$6,$A$25:$E$52,IF($B$8=$A$22,3,2))),EXP(VLOOKUP($B$6,$A$25:$E$52,4)*LN(VLOOKUP($H99,P_Hard!$A$5:$Y$204,3*($C$8-1)+2)/1000)+VLOOKUP($B$6,$A$25:$E$52,5)),NA()) -> 9.488108417 | P99: 9.765624442 | Q99: =IF(ISNA(VLOOKUP($B$6,$A$25:$E$52,IF($B$8=$A$22,3,2))),EXP(VLOOKUP($B$6,$A$25:$E$52,4)*LN(VLOOKUP($H99,P_Hard!$A$5:$Y$204,3*($C$8-1)+4)/1000)+VLOOKUP($B$6,$A$25:$E$52,5)),NA()) -> 9.488108417 | S99: 6.166666667 | T99: =VLOOKUP($S99,P_All!$AA$5:$AY$245,3*($C$8-1)+2) -> 1.2467 | U99: =VLOOKUP($S99,P_All!$AA$5:$AY$245,3*($C$8-1)+3) -> 1.4033 | V99: =VLOOKUP($S99,P_All!$AA$5:$AY$245,3*($C$8-1)+4) -> 1.7819 | W99: =VLOOKUP($S99,NA_All!$AA$5:$AY$245,3*($C$8-1)+2) -> 1.2536 | X99: =VLOOKUP($S99,NA_All!$AA$5:$AY$245,3*($C$8-1)+3) -> 1.4129 | Y99: =VLOOKUP($S99,NA_All!$AA$5:$AY$245,3*($C$8-1)+4) -> 1.805 | Z99: =IF(AND($B$8=$A$20,$B$6=$A$48),$B$54,IF(ISNA(VLOOKUP($B$6,$A$25:$E$52,IF($B$8=$A$22,3,2),FALSE)),EXP(VLOOKUP($B$6,$A$25:$E$52,4,FALSE)*LN(VLOOKUP($H99,P_Hard!$A$5:$Y$204,3*($C$8-1)+3,FALSE)/1000)+VLOOKUP($B$6,$A$25:$E$52,5,FALSE)),VLOOKUP($B$6,$A$25:$E$52,IF($B$8=$A$22,3,2),FALSE))) -> 9.488108417
H100: 76 | I100: =VLOOKUP($H100,P_All!$A$5:$Y$204,3*($C$8-1)+2) -> 2.3096 | J100: =VLOOKUP($H100,P_All!$A$5:$Y$204,3*($C$8-1)+3) -> 4.2809 | K100: =VLOOKUP($H100,P_All!$A$5:$Y$204,3*($C$8-1)+4) -> 5.5803 | L100: =VLOOKUP($H100,NA_All!$A$5:$Y$204,3*($C$8-1)+2) -> 1.59 | M100: =VLOOKUP($H100,NA_All!$A$5:$Y$204,3*($C$8-1)+3) -> 2.2065 | N100: =VLOOKUP($H100,NA_All!$A$5:$Y$204,3*($C$8-1)+4) -> 3.1408 | O100: =IF(ISNA(VLOOKUP($B$6,$A$25:$E$52,IF($B$8=$A$22,3,2))),EXP(VLOOKUP($B$6,$A$25:$E$52,4)*LN(VLOOKUP($H100,P_Hard!$A$5:$Y$204,3*($C$8-1)+2)/1000)+VLOOKUP($B$6,$A$25:$E$52,5)),NA()) -> 9.488108417 | P100: 9.765624442 | Q100: =IF(ISNA(VLOOKUP($B$6,$A$25:$E$52,IF($B$8=$A$22,3,2))),EXP(VLOOKUP($B$6,$A$25:$E$52,4)*LN(VLOOKUP($H100,P_Hard!$A$5:$Y$204,3*($C$8-1)+4)/1000)+VLOOKUP($B$6,$A$25:$E$52,5)),NA()) -> 9.488108417 | S100: 6.25 | T100: =VLOOKUP($S100,P_All!$AA$5:$AY$245,3*($C$8-1)+2) -> 0.96479 | U100: =VLOOKUP($S100,P_All!$AA$5:$AY$245,3*($C$8-1)+3) -> 1.4303 | V100: =VLOOKUP($S100,P_All!$AA$5:$AY$245,3*($C$8-1)+4) -> 1.9563 | W100: =VLOOKUP($S100,NA_All!$AA$5:$AY$245,3*($C$8-1)+2) -> 0.97384 | X100: =VLOOKUP($S100,NA_All!$AA$5:$AY$245,3*($C$8-1)+3) -> 1.4402 | Y100: =VLOOKUP($S100,NA_All!$AA$5:$AY$245,3*($C$8-1)+4) -> 1.9904 | Z100: =IF(AND($B$8=$A$20,$B$6=$A$48),$B$54,IF(ISNA(VLOOKUP($B$6,$A$25:$E$52,IF($B$8=$A$22,3,2),FALSE)),EXP(VLOOKUP($B$6,$A$25:$E$52,4,FALSE)*LN(VLOOKUP($H100,P_Hard!$A$5:$Y$204,3*($C$8-1)+3,FALSE)/1000)+VLOOKUP($B$6,$A$25:$E$52,5,FALSE)),VLOOKUP($B$6,$A$25:$E$52,IF($B$8=$A$22,3,2),FALSE))) -> 9.488108417
H101: 77 | I101: =VLOOKUP($H101,P_All!$A$5:$Y$204,3*($C$8-1)+2) -> 2.2608 | J101: =VLOOKUP($H101,P_All!$A$5:$Y$204,3*($C$8-1)+3) -> 4.5551 | K101: =VLOOKUP($H101,P_All!$A$5:$Y$204,3*($C$8-1)+4) -> 5.5347 | L101: =VLOOKUP($H101,NA_All!$A$5:$Y$204,3*($C$8-1)+2) -> 1.6245 | M101: =VLOOKUP($H101,NA_All!$A$5:$Y$204,3*($C$8-1)+3) -> 2.1984 | N101: =VLOOKUP($H101,NA_All!$A$5:$Y$204,3*($C$8-1)+4) -> 2.9792 | O101: =IF(ISNA(VLOOKUP($B$6,$A$25:$E$52,IF($B$8=$A$22,3,2))),EXP(VLOOKUP($B$6,$A$25:$E$52,4)*LN(VLOOKUP($H101,P_Hard!$A$5:$Y$204,3*($C$8-1)+2)/1000)+VLOOKUP($B$6,$A$25:$E$52,5)),NA()) -> 9.488108417 | P101: 9.765624442 | Q101: =IF(ISNA(VLOOKUP($B$6,$A$25:$E$52,IF($B$8=$A$22,3,2))),EXP(VLOOKUP($B$6,$A$25:$E$52,4)*LN(VLOOKUP($H101,P_Hard!$A$5:$Y$204,3*($C$8-1)+4)/1000)+VLOOKUP($B$6,$A$25:$E$52,5)),NA()) -> 9.488108417 | S101: 6.333333333 | T101: =VLOOKUP($S101,P_All!$AA$5:$AY$245,3*($C$8-1)+2) -> 0.43827 | U101: =VLOOKUP($S101,P_All!$AA$5:$AY$245,3*($C$8-1)+3) -> 1.1093 | V101: =VLOOKUP($S101,P_All!$AA$5:$AY$245,3*($C$8-1)+4) -> 2.6377 | W101: =VLOOKUP($S101,NA_All!$AA$5:$AY$245,3*($C$8-1)+2) -> 0.43995 | X101: =VLOOKUP($S101,NA_All!$AA$5:$AY$245,3*($C$8-1)+3) -> 1.111 | Y101: =VLOOKUP($S101,NA_All!$AA$5:$AY$245,3*($C$8-1)+4) -> 2.6387 | Z101: =IF(AND($B$8=$A$20,$B$6=$A$48),$B$54,IF(ISNA(VLOOKUP($B$6,$A$25:$E$52,IF($B$8=$A$22,3,2),FALSE)),EXP(VLOOKUP($B$6,$A$25:$E$52,4,FALSE)*LN(VLOOKUP($H101,P_Hard!$A$5:$Y$204,3*($C$8-1)+3,FALSE)/1000)+VLOOKUP($B$6,$A$25:$E$52,5,FALSE)),VLOOKUP($B$6,$A$25:$E$52,IF($B$8=$A$22,3,2),FALSE))) -> 9.488108417
H102: 78 | I102: =VLOOKUP($H102,P_All!$A$5:$Y$204,3*($C$8-1)+2) -> 2.1192 | J102: =VLOOKUP($H102,P_All!$A$5:$Y$204,3*($C$8-1)+3) -> 4.4554 | K102: =VLOOKUP($H102,P_All!$A$5:$Y$204,3*($C$8-1)+4) -> 5.5919 | L102: =VLOOKUP($H102,NA_All!$A$5:$Y$204,3*($C$8-1)+2) -> 1.4652 | M102: =VLOOKUP($H102,NA_All!$A$5:$Y$204,3*($C$8-1)+3) -> 2.1705 | N102: =VLOOKUP($H102,NA_All!$A$5:$Y$204,3*($C$8-1)+4) -> 2.9077 | O102: =IF(ISNA(VLOOKUP($B$6,$A$25:$E$52,IF($B$8=$A$22,3,2))),EXP(VLOOKUP($B$6,$A$25:$E$52,4)*LN(VLOOKUP($H102,P_Hard!$A$5:$Y$204,3*($C$8-1)+2)/1000)+VLOOKUP($B$6,$A$25:$E$52,5)),NA()) -> 9.488108417 | P102: 9.765624442 | Q102: =IF(ISNA(VLOOKUP($B$6,$A$25:$E$52,IF($B$8=$A$22,3,2))),EXP(VLOOKUP($B$6,$A$25:$E$52,4)*LN(VLOOKUP($H102,P_Hard!$A$5:$Y$204,3*($C$8-1)+4)/1000)+VLOOKUP($B$6,$A$25:$E$52,5)),NA()) -> 9.488108417 | S102: 6.416666667 | T102: =VLOOKUP($S102,P_All!$AA$5:$AY$245,3*($C$8-1)+2) -> 0.40389 | U102: =VLOOKUP($S102,P_All!$AA$5:$AY$245,3*($C$8-1)+3) -> 0.97358 | V102: =VLOOKUP($S102,P_All!$AA$5:$AY$245,3*($C$8-1)+4) -> 2.4685 | W102: =VLOOKUP($S102,NA_All!$AA$5:$AY$245,3*($C$8-1)+2) -> 0.40402 | X102: =VLOOKUP($S102,NA_All!$AA$5:$AY$245,3*($C$8-1)+3) -> 0.97332 | Y102: =VLOOKUP($S102,NA_All!$AA$5:$AY$245,3*($C$8-1)+4) -> 2.4696 | Z102: =IF(AND($B$8=$A$20,$B$6=$A$48),$B$54,IF(ISNA(VLOOKUP($B$6,$A$25:$E$52,IF($B$8=$A$22,3,2),FALSE)),EXP(VLOOKUP($B$6,$A$25:$E$52,4,FALSE)*LN(VLOOKUP($H102,P_Hard!$A$5:$Y$204,3*($C$8-1)+3,FALSE)/1000)+VLOOKUP($B$6,$A$25:$E$52,5,FALSE)),VLOOKUP($B$6,$A$25:$E$52,IF($B$8=$A$22,3,2),FALSE))) -> 9.488108417
H103: 79 | I103: =VLOOKUP($H103,P_All!$A$5:$Y$204,3*($C$8-1)+2) -> 2.1173 | J103: =VLOOKUP($H103,P_All!$A$5:$Y$204,3*($C$8-1)+3) -> 4.4558 | K103: =VLOOKUP($H103,P_All!$A$5:$Y$204,3*($C$8-1)+4) -> 5.7545 | L103: =VLOOKUP($H103,NA_All!$A$5:$Y$204,3*($C$8-1)+2) -> 1.5082 | M103: =VLOOKUP($H103,NA_All!$A$5:$Y$204,3*($C$8-1)+3) -> 2.1895 | N103: =VLOOKUP($H103,NA_All!$A$5:$Y$204,3*($C$8-1)+4) -> 3.0343 | O103: =IF(ISNA(VLOOKUP($B$6,$A$25:$E$52,IF($B$8=$A$22,3,2))),EXP(VLOOKUP($B$6,$A$25:$E$52,4)*LN(VLOOKUP($H103,P_Hard!$A$5:$Y$204,3*($C$8-1)+2)/1000)+VLOOKUP($B$6,$A$25:$E$52,5)),NA()) -> 9.488108417 | P103: 9.765624442 | Q103: =IF(ISNA(VLOOKUP($B$6,$A$25:$E$52,IF($B$8=$A$22,3,2))),EXP(VLOOKUP($B$6,$A$25:$E$52,4)*LN(VLOOKUP($H103,P_Hard!$A$5:$Y$204,3*($C$8-1)+4)/1000)+VLOOKUP($B$6,$A$25:$E$52,5)),NA()) -> 9.488108417 | S103: 6.5 | T103: =VLOOKUP($S103,P_All!$AA$5:$AY$245,3*($C$8-1)+2) -> 0.46796 | U103: =VLOOKUP($S103,P_All!$AA$5:$AY$245,3*($C$8-1)+3) -> 1.0474 | V103: =VLOOKUP($S103,P_All!$AA$5:$AY$245,3*($C$8-1)+4) -> 2.2691 | W103: =VLOOKUP($S103,NA_All!$AA$5:$AY$245,3*($C$8-1)+2) -> 0.46845 | X103: =VLOOKUP($S103,NA_All!$AA$5:$AY$245,3*($C$8-1)+3) -> 1.0505 | Y103: =VLOOKUP($S103,NA_All!$AA$5:$AY$245,3*($C$8-1)+4) -> 2.2756 | Z103: =IF(AND($B$8=$A$20,$B$6=$A$48),$B$54,IF(ISNA(VLOOKUP($B$6,$A$25:$E$52,IF($B$8=$A$22,3,2),FALSE)),EXP(VLOOKUP($B$6,$A$25:$E$52,4,FALSE)*LN(VLOOKUP($H103,P_Hard!$A$5:$Y$204,3*($C$8-1)+3,FALSE)/1000)+VLOOKUP($B$6,$A$25:$E$52,5,FALSE)),VLOOKUP($B$6,$A$25:$E$52,IF($B$8=$A$22,3,2),FALSE))) -> 9.488108417
H104: 80 | I104: =VLOOKUP($H104,P_All!$A$5:$Y$204,3*($C$8-1)+2) -> 2.2581 | J104: =VLOOKUP($H104,P_All!$A$5:$Y$204,3*($C$8-1)+3) -> 4.4492 | K104: =VLOOKUP($H104,P_All!$A$5:$Y$204,3*($C$8-1)+4) -> 5.6109 | L104: =VLOOKUP($H104,NA_All!$A$5:$Y$204,3*($C$8-1)+2) -> 1.6064 | M104: =VLOOKUP($H104,NA_All!$A$5:$Y$204,3*($C$8-1)+3) -> 2.1882 | N104: =VLOOKUP($H104,NA_All!$A$5:$Y$204,3*($C$8-1)+4) -> 3.1285 | O104: =IF(ISNA(VLOOKUP($B$6,$A$25:$E$52,IF($B$8=$A$22,3,2))),EXP(VLOOKUP($B$6,$A$25:$E$52,4)*LN(VLOOKUP($H104,P_Hard!$A$5:$Y$204,3*($C$8-1)+2)/1000)+VLOOKUP($B$6,$A$25:$E$52,5)),NA()) -> 9.488108417 | P104: 9.765624442 | Q104: =IF(ISNA(VLOOKUP($B$6,$A$25:$E$52,IF($B$8=$A$22,3,2))),EXP(VLOOKUP($B$6,$A$25:$E$52,4)*LN(VLOOKUP($H104,P_Hard!$A$5:$Y$204,3*($C$8-1)+4)/1000)+VLOOKUP($B$6,$A$25:$E$52,5)),NA()) -> 9.488108417 | S104: 6.583333333 | T104: =VLOOKUP($S104,P_All!$AA$5:$AY$245,3*($C$8-1)+2) -> 0.5372 | U104: =VLOOKUP($S104,P_All!$AA$5:$AY$245,3*($C$8-1)+3) -> 1.2857 | V104: =VLOOKUP($S104,P_All!$AA$5:$AY$245,3*($C$8-1)+4) -> 2.4199 | W104: =VLOOKUP($S104,NA_All!$AA$5:$AY$245,3*($C$8-1)+2) -> 0.53735 | X104: =VLOOKUP($S104,NA_All!$AA$5:$AY$245,3*($C$8-1)+3) -> 1.2874 | Y104: =VLOOKUP($S104,NA_All!$AA$5:$AY$245,3*($C$8-1)+4) -> 2.4258 | Z104: =IF(AND($B$8=$A$20,$B$6=$A$48),$B$54,IF(ISNA(VLOOKUP($B$6,$A$25:$E$52,IF($B$8=$A$22,3,2),FALSE)),EXP(VLOOKUP($B$6,$A$25:$E$52,4,FALSE)*LN(VLOOKUP($H104,P_Hard!$A$5:$Y$204,3*($C$8-1)+3,FALSE)/1000)+VLOOKUP($B$6,$A$25:$E$52,5,FALSE)),VLOOKUP($B$6,$A$25:$E$52,IF($B$8=$A$22,3,2),FALSE))) -> 9.488108417
H105: 81 | I105: =VLOOKUP($H105,P_All!$A$5:$Y$204,3*($C$8-1)+2) -> 2.2539 | J105: =VLOOKUP($H105,P_All!$A$5:$Y$204,3*($C$8-1)+3) -> 4.5954 | K105: =VLOOKUP($H105,P_All!$A$5:$Y$204,3*($C$8-1)+4) -> 5.4804 | L105: =VLOOKUP($H105,NA_All!$A$5:$Y$204,3*($C$8-1)+2) -> 1.5559 | M105: =VLOOKUP($H105,NA_All!$A$5:$Y$204,3*($C$8-1)+3) -> 2.1857 | N105: =VLOOKUP($H105,NA_All!$A$5:$Y$204,3*($C$8-1)+4) -> 3.0381 | O105: =IF(ISNA(VLOOKUP($B$6,$A$25:$E$52,IF($B$8=$A$22,3,2))),EXP(VLOOKUP($B$6,$A$25:$E$52,4)*LN(VLOOKUP($H105,P_Hard!$A$5:$Y$204,3*($C$8-1)+2)/1000)+VLOOKUP($B$6,$A$25:$E$52,5)),NA()) -> 9.488108417 | P105: 9.765624442 | Q105: =IF(ISNA(VLOOKUP($B$6,$A$25:$E$52,IF($B$8=$A$22,3,2))),EXP(VLOOKUP($B$6,$A$25:$E$52,4)*LN(VLOOKUP($H105,P_Hard!$A$5:$Y$204,3*($C$8-1)+4)/1000)+VLOOKUP($B$6,$A$25:$E$52,5)),NA()) -> 9.488108417 | S105: 6.666666667 | T105: =VLOOKUP($S105,P_All!$AA$5:$AY$245,3*($C$8-1)+2) -> 0.51943 | U105: =VLOOKUP($S105,P_All!$AA$5:$AY$245,3*($C$8-1)+3) -> 1.2218 | V105: =VLOOKUP($S105,P_All!$AA$5:$AY$245,3*($C$8-1)+4) -> 2.336 | W105: =VLOOKUP($S105,NA_All!$AA$5:$AY$245,3*($C$8-1)+2) -> 0.51957 | X105: =VLOOKUP($S105,NA_All!$AA$5:$AY$245,3*($C$8-1)+3) -> 1.2294 | Y105: =VLOOKUP($S105,NA_All!$AA$5:$AY$245,3*($C$8-1)+4) -> 2.3409 | Z105: =IF(AND($B$8=$A$20,$B$6=$A$48),$B$54,IF(ISNA(VLOOKUP($B$6,$A$25:$E$52,IF($B$8=$A$22,3,2),FALSE)),EXP(VLOOKUP($B$6,$A$25:$E$52,4,FALSE)*LN(VLOOKUP($H105,P_Hard!$A$5:$Y$204,3*($C$8-1)+3,FALSE)/1000)+VLOOKUP($B$6,$A$25:$E$52,5,FALSE)),VLOOKUP($B$6,$A$25:$E$52,IF($B$8=$A$22,3,2),FALSE))) -> 9.488108417
H106: 82 | I106: =VLOOKUP($H106,P_All!$A$5:$Y$204,3*($C$8-1)+2) -> 2.1768 | J106: =VLOOKUP($H106,P_All!$A$5:$Y$204,3*($C$8-1)+3) -> 4.4245 | K106: =VLOOKUP($H106,P_All!$A$5:$Y$204,3*($C$8-1)+4) -> 5.543 | L106: =VLOOKUP($H106,NA_All!$A$5:$Y$204,3*($C$8-1)+2) -> 1.5337 | M106: =VLOOKUP($H106,NA_All!$A$5:$Y$204,3*($C$8-1)+3) -> 2.1717 | N106: =VLOOKUP($H106,NA_All!$A$5:$Y$204,3*($C$8-1)+4) -> 2.9138 | O106: =IF(ISNA(VLOOKUP($B$6,$A$25:$E$52,IF($B$8=$A$22,3,2))),EXP(VLOOKUP($B$6,$A$25:$E$52,4)*LN(VLOOKUP($H106,P_Hard!$A$5:$Y$204,3*($C$8-1)+2)/1000)+VLOOKUP($B$6,$A$25:$E$52,5)),NA()) -> 9.488108417 | P106: 9.765624442 | Q106: =IF(ISNA(VLOOKUP($B$6,$A$25:$E$52,IF($B$8=$A$22,3,2))),EXP(VLOOKUP($B$6,$A$25:$E$52,4)*LN(VLOOKUP($H106,P_Hard!$A$5:$Y$204,3*($C$8-1)+4)/1000)+VLOOKUP($B$6,$A$25:$E$52,5)),NA()) -> 9.488108417 | S106: 6.75 | T106: =VLOOKUP($S106,P_All!$AA$5:$AY$245,3*($C$8-1)+2) -> 0.58653 | U106: =VLOOKUP($S106,P_All!$AA$5:$AY$245,3*($C$8-1)+3) -> 1.2193 | V106: =VLOOKUP($S106,P_All!$AA$5:$AY$245,3*($C$8-1)+4) -> 2.4707 | W106: =VLOOKUP($S106,NA_All!$AA$5:$AY$245,3*($C$8-1)+2) -> 0.58778 | X106: =VLOOKUP($S106,NA_All!$AA$5:$AY$245,3*($C$8-1)+3) -> 1.22 | Y106: =VLOOKUP($S106,NA_All!$AA$5:$AY$245,3*($C$8-1)+4) -> 2.4748 | Z106: =IF(AND($B$8=$A$20,$B$6=$A$48),$B$54,IF(ISNA(VLOOKUP($B$6,$A$25:$E$52,IF($B$8=$A$22,3,2),FALSE)),EXP(VLOOKUP($B$6,$A$25:$E$52,4,FALSE)*LN(VLOOKUP($H106,P_Hard!$A$5:$Y$204,3*($C$8-1)+3,FALSE)/1000)+VLOOKUP($B$6,$A$25:$E$52,5,FALSE)),VLOOKUP($B$6,$A$25:$E$52,IF($B$8=$A$22,3,2),FALSE))) -> 9.488108417
H107: 83 | I107: =VLOOKUP($H107,P_All!$A$5:$Y$204,3*($C$8-1)+2) -> 2.1492 | J107: =VLOOKUP($H107,P_All!$A$5:$Y$204,3*($C$8-1)+3) -> 4.3626 | K107: =VLOOKUP($H107,P_All!$A$5:$Y$204,3*($C$8-1)+4) -> 5.5112 | L107: =VLOOKUP($H107,NA_All!$A$5:$Y$204,3*($C$8-1)+2) -> 1.4615 | M107: =VLOOKUP($H107,NA_All!$A$5:$Y$204,3*($C$8-1)+3) -> 2.1792 | N107: =VLOOKUP($H107,NA_All!$A$5:$Y$204,3*($C$8-1)+4) -> 3.0759 | O107: =IF(ISNA(VLOOKUP($B$6,$A$25:$E$52,IF($B$8=$A$22,3,2))),EXP(VLOOKUP($B$6,$A$25:$E$52,4)*LN(VLOOKUP($H107,P_Hard!$A$5:$Y$204,3*($C$8-1)+2)/1000)+VLOOKUP($B$6,$A$25:$E$52,5)),NA()) -> 9.488108417 | P107: 9.765624442 | Q107: =IF(ISNA(VLOOKUP($B$6,$A$25:$E$52,IF($B$8=$A$22,3,2))),EXP(VLOOKUP($B$6,$A$25:$E$52,4)*LN(VLOOKUP($H107,P_Hard!$A$5:$Y$204,3*($C$8-1)+4)/1000)+VLOOKUP($B$6,$A$25:$E$52,5)),NA()) -> 9.488108417 | S107: 6.833333333 | T107: =VLOOKUP($S107,P_All!$AA$5:$AY$245,3*($C$8-1)+2) -> 0.48697 | U107: =VLOOKUP($S107,P_All!$AA$5:$AY$245,3*($C$8-1)+3) -> 1.1229 | V107: =VLOOKUP($S107,P_All!$AA$5:$AY$245,3*($C$8-1)+4) -> 2.495 | W107: =VLOOKUP($S107,NA_All!$AA$5:$AY$245,3*($C$8-1)+2) -> 0.48824 | X107: =VLOOKUP($S107,NA_All!$AA$5:$AY$245,3*($C$8-1)+3) -> 1.1278 | Y107: =VLOOKUP($S107,NA_All!$AA$5:$AY$245,3*($C$8-1)+4) -> 2.5019 | Z107: =IF(AND($B$8=$A$20,$B$6=$A$48),$B$54,IF(ISNA(VLOOKUP($B$6,$A$25:$E$52,IF($B$8=$A$22,3,2),FALSE)),EXP(VLOOKUP($B$6,$A$25:$E$52,4,FALSE)*LN(VLOOKUP($H107,P_Hard!$A$5:$Y$204,3*($C$8-1)+3,FALSE)/1000)+VLOOKUP($B$6,$A$25:$E$52,5,FALSE)),VLOOKUP($B$6,$A$25:$E$52,IF($B$8=$A$22,3,2),FALSE))) -> 9.488108417
H108: 84 | I108: =VLOOKUP($H108,P_All!$A$5:$Y$204,3*($C$8-1)+2) -> 2.252 | J108: =VLOOKUP($H108,P_All!$A$5:$Y$204,3*($C$8-1)+3) -> 4.5773 | K108: =VLOOKUP($H108,P_All!$A$5:$Y$204,3*($C$8-1)+4) -> 5.6814 | L108: =VLOOKUP($H108,NA_All!$A$5:$Y$204,3*($C$8-1)+2) -> 1.6073 | M108: =VLOOKUP($H108,NA_All!$A$5:$Y$204,3*($C$8-1)+3) -> 2.1692 | N108: =VLOOKUP($H108,NA_All!$A$5:$Y$204,3*($C$8-1)+4) -> 3.0096 | O108: =IF(ISNA(VLOOKUP($B$6,$A$25:$E$52,IF($B$8=$A$22,3,2))),EXP(VLOOKUP($B$6,$A$25:$E$52,4)*LN(VLOOKUP($H108,P_Hard!$A$5:$Y$204,3*($C$8-1)+2)/1000)+VLOOKUP($B$6,$A$25:$E$52,5)),NA()) -> 9.488108417 | P108: 9.765624442 | Q108: =IF(ISNA(VLOOKUP($B$6,$A$25:$E$52,IF($B$8=$A$22,3,2))),EXP(VLOOKUP($B$6,$A$25:$E$52,4)*LN(VLOOKUP($H108,P_Hard!$A$5:$Y$204,3*($C$8-1)+4)/1000)+VLOOKUP($B$6,$A$25:$E$52,5)),NA()) -> 9.488108417 | S108: 6.916666667 | T108: =VLOOKUP($S108,P_All!$AA$5:$AY$245,3*($C$8-1)+2) -> 0.59685 | U108: =VLOOKUP($S108,P_All!$AA$5:$AY$245,3*($C$8-1)+3) -> 1.2108 | V108: =VLOOKUP($S108,P_All!$AA$5:$AY$245,3*($C$8-1)+4) -> 2.6959 | W108: =VLOOKUP($S108,NA_All!$AA$5:$AY$245,3*($C$8-1)+2) -> 0.59777 | X108: =VLOOKUP($S108,NA_All!$AA$5:$AY$245,3*($C$8-1)+3) -> 1.217 | Y108: =VLOOKUP($S108,NA_All!$AA$5:$AY$245,3*($C$8-1)+4) -> 2.7052 | Z108: =IF(AND($B$8=$A$20,$B$6=$A$48),$B$54,IF(ISNA(VLOOKUP($B$6,$A$25:$E$52,IF($B$8=$A$22,3,2),FALSE)),EXP(VLOOKUP($B$6,$A$25:$E$52,4,FALSE)*LN(VLOOKUP($H108,P_Hard!$A$5:$Y$204,3*($C$8-1)+3,FALSE)/1000)+VLOOKUP($B$6,$A$25:$E$52,5,FALSE)),VLOOKUP($B$6,$A$25:$E$52,IF($B$8=$A$22,3,2),FALSE))) -> 9.488108417
H109: 85 | I109: =VLOOKUP($H109,P_All!$A$5:$Y$204,3*($C$8-1)+2) -> 2.2593 | J109: =VLOOKUP($H109,P_All!$A$5:$Y$204,3*($C$8-1)+3) -> 4.5723 | K109: =VLOOKUP($H109,P_All!$A$5:$Y$204,3*($C$8-1)+4) -> 5.4806 | L109: =VLOOKUP($H109,NA_All!$A$5:$Y$204,3*($C$8-1)+2) -> 1.5655 | M109: =VLOOKUP($H109,NA_All!$A$5:$Y$204,3*($C$8-1)+3) -> 2.1747 | N109: =VLOOKUP($H109,NA_All!$A$5:$Y$204,3*($C$8-1)+4) -> 2.9607 | O109: =IF(ISNA(VLOOKUP($B$6,$A$25:$E$52,IF($B$8=$A$22,3,2))),EXP(VLOOKUP($B$6,$A$25:$E$52,4)*LN(VLOOKUP($H109,P_Hard!$A$5:$Y$204,3*($C$8-1)+2)/1000)+VLOOKUP($B$6,$A$25:$E$52,5)),NA()) -> 9.488108417 | P109: 9.765624442 | Q109: =IF(ISNA(VLOOKUP($B$6,$A$25:$E$52,IF($B$8=$A$22,3,2))),EXP(VLOOKUP($B$6,$A$25:$E$52,4)*LN(VLOOKUP($H109,P_Hard!$A$5:$Y$204,3*($C$8-1)+4)/1000)+VLOOKUP($B$6,$A$25:$E$52,5)),NA()) -> 9.488108417 | S109: 7 | T109: =VLOOKUP($S109,P_All!$AA$5:$AY$245,3*($C$8-1)+2) -> 0.94281 | U109: =VLOOKUP($S109,P_All!$AA$5:$AY$245,3*($C$8-1)+3) -> 1.4382 | V109: =VLOOKUP($S109,P_All!$AA$5:$AY$245,3*($C$8-1)+4) -> 1.9987 | W109: =VLOOKUP($S109,NA_All!$AA$5:$AY$245,3*($C$8-1)+2) -> 0.94705 | X109: =VLOOKUP($S109,NA_All!$AA$5:$AY$245,3*($C$8-1)+3) -> 1.4524 | Y109: =VLOOKUP($S109,NA_All!$AA$5:$AY$245,3*($C$8-1)+4) -> 2.0087 | Z109: =IF(AND($B$8=$A$20,$B$6=$A$48),$B$54,IF(ISNA(VLOOKUP($B$6,$A$25:$E$52,IF($B$8=$A$22,3,2),FALSE)),EXP(VLOOKUP($B$6,$A$25:$E$52,4,FALSE)*LN(VLOOKUP($H109,P_Hard!$A$5:$Y$204,3*($C$8-1)+3,FALSE)/1000)+VLOOKUP($B$6,$A$25:$E$52,5,FALSE)),VLOOKUP($B$6,$A$25:$E$52,IF($B$8=$A$22,3,2),FALSE))) -> 9.488108417
H110: 86 | I110: =VLOOKUP($H110,P_All!$A$5:$Y$204,3*($C$8-1)+2) -> 2.1926 | J110: =VLOOKUP($H110,P_All!$A$5:$Y$204,3*($C$8-1)+3) -> 4.5888 | K110: =VLOOKUP($H110,P_All!$A$5:$Y$204,3*($C$8-1)+4) -> 5.5617 | L110: =VLOOKUP($H110,NA_All!$A$5:$Y$204,3*($C$8-1)+2) -> 1.5222 | M110: =VLOOKUP($H110,NA_All!$A$5:$Y$204,3*($C$8-1)+3) -> 2.1889 | N110: =VLOOKUP($H110,NA_All!$A$5:$Y$204,3*($C$8-1)+4) -> 2.8863 | O110: =IF(ISNA(VLOOKUP($B$6,$A$25:$E$52,IF($B$8=$A$22,3,2))),EXP(VLOOKUP($B$6,$A$25:$E$52,4)*LN(VLOOKUP($H110,P_Hard!$A$5:$Y$204,3*($C$8-1)+2)/1000)+VLOOKUP($B$6,$A$25:$E$52,5)),NA()) -> 9.488108417 | P110: 9.765624442 | Q110: =IF(ISNA(VLOOKUP($B$6,$A$25:$E$52,IF($B$8=$A$22,3,2))),EXP(VLOOKUP($B$6,$A$25:$E$52,4)*LN(VLOOKUP($H110,P_Hard!$A$5:$Y$204,3*($C$8-1)+4)/1000)+VLOOKUP($B$6,$A$25:$E$52,5)),NA()) -> 9.488108417 | S110: 7.083333333 | T110: =VLOOKUP($S110,P_All!$AA$5:$AY$245,3*($C$8-1)+2) -> 1.1766 | U110: =VLOOKUP($S110,P_All!$AA$5:$AY$245,3*($C$8-1)+3) -> 1.4542 | V110: =VLOOKUP($S110,P_All!$AA$5:$AY$245,3*($C$8-1)+4) -> 1.8096 | W110: =VLOOKUP($S110,NA_All!$AA$5:$AY$245,3*($C$8-1)+2) -> 1.187 | X110: =VLOOKUP($S110,NA_All!$AA$5:$AY$245,3*($C$8-1)+3) -> 1.4638 | Y110: =VLOOKUP($S110,NA_All!$AA$5:$AY$245,3*($C$8-1)+4) -> 1.822 | Z110: =IF(AND($B$8=$A$20,$B$6=$A$48),$B$54,IF(ISNA(VLOOKUP($B$6,$A$25:$E$52,IF($B$8=$A$22,3,2),FALSE)),EXP(VLOOKUP($B$6,$A$25:$E$52,4,FALSE)*LN(VLOOKUP($H110,P_Hard!$A$5:$Y$204,3*($C$8-1)+3,FALSE)/1000)+VLOOKUP($B$6,$A$25:$E$52,5,FALSE)),VLOOKUP($B$6,$A$25:$E$52,IF($B$8=$A$22,3,2),FALSE))) -> 9.488108417
H111: 87 | I111: =VLOOKUP($H111,P_All!$A$5:$Y$204,3*($C$8-1)+2) -> 2.1724 | J111: =VLOOKUP($H111,P_All!$A$5:$Y$204,3*($C$8-1)+3) -> 4.5524 | K111: =VLOOKUP($H111,P_All!$A$5:$Y$204,3*($C$8-1)+4) -> 5.4984 | L111: =VLOOKUP($H111,NA_All!$A$5:$Y$204,3*($C$8-1)+2) -> 1.5141 | M111: =VLOOKUP($H111,NA_All!$A$5:$Y$204,3*($C$8-1)+3) -> 2.2051 | N111: =VLOOKUP($H111,NA_All!$A$5:$Y$204,3*($C$8-1)+4) -> 2.9435 | O111: =IF(ISNA(VLOOKUP($B$6,$A$25:$E$52,IF($B$8=$A$22,3,2))),EXP(VLOOKUP($B$6,$A$25:$E$52,4)*LN(VLOOKUP($H111,P_Hard!$A$5:$Y$204,3*($C$8-1)+2)/1000)+VLOOKUP($B$6,$A$25:$E$52,5)),NA()) -> 9.488108417 | P111: 9.765624442 | Q111: =IF(ISNA(VLOOKUP($B$6,$A$25:$E$52,IF($B$8=$A$22,3,2))),EXP(VLOOKUP($B$6,$A$25:$E$52,4)*LN(VLOOKUP($H111,P_Hard!$A$5:$Y$204,3*($C$8-1)+4)/1000)+VLOOKUP($B$6,$A$25:$E$52,5)),NA()) -> 9.488108417 | S111: 7.166666667 | T111: =VLOOKUP($S111,P_All!$AA$5:$AY$245,3*($C$8-1)+2) -> 1.2491 | U111: =VLOOKUP($S111,P_All!$AA$5:$AY$245,3*($C$8-1)+3) -> 1.3927 | V111: =VLOOKUP($S111,P_All!$AA$5:$AY$245,3*($C$8-1)+4) -> 1.7245 | W111: =VLOOKUP($S111,NA_All!$AA$5:$AY$245,3*($C$8-1)+2) -> 1.2541 | X111: =VLOOKUP($S111,NA_All!$AA$5:$AY$245,3*($C$8-1)+3) -> 1.3986 | Y111: =VLOOKUP($S111,NA_All!$AA$5:$AY$245,3*($C$8-1)+4) -> 1.7444 | Z111: =IF(AND($B$8=$A$20,$B$6=$A$48),$B$54,IF(ISNA(VLOOKUP($B$6,$A$25:$E$52,IF($B$8=$A$22,3,2),FALSE)),EXP(VLOOKUP($B$6,$A$25:$E$52,4,FALSE)*LN(VLOOKUP($H111,P_Hard!$A$5:$Y$204,3*($C$8-1)+3,FALSE)/1000)+VLOOKUP($B$6,$A$25:$E$52,5,FALSE)),VLOOKUP($B$6,$A$25:$E$52,IF($B$8=$A$22,3,2),FALSE))) -> 9.488108417
H112: 88 | I112: =VLOOKUP($H112,P_All!$A$5:$Y$204,3*($C$8-1)+2) -> 2.2295 | J112: =VLOOKUP($H112,P_All!$A$5:$Y$204,3*($C$8-1)+3) -> 4.5059 | K112: =VLOOKUP($H112,P_All!$A$5:$Y$204,3*($C$8-1)+4) -> 5.6468 | L112: =VLOOKUP($H112,NA_All!$A$5:$Y$204,3*($C$8-1)+2) -> 1.5618 | M112: =VLOOKUP($H112,NA_All!$A$5:$Y$204,3*($C$8-1)+3) -> 2.2045 | N112: =VLOOKUP($H112,NA_All!$A$5:$Y$204,3*($C$8-1)+4) -> 2.9341 | O112: =IF(ISNA(VLOOKUP($B$6,$A$25:$E$52,IF($B$8=$A$22,3,2))),EXP(VLOOKUP($B$6,$A$25:$E$52,4)*LN(VLOOKUP($H112,P_Hard!$A$5:$Y$204,3*($C$8-1)+2)/1000)+VLOOKUP($B$6,$A$25:$E$52,5)),NA()) -> 9.488108417 | P112: 9.765624442 | Q112: =IF(ISNA(VLOOKUP($B$6,$A$25:$E$52,IF($B$8=$A$22,3,2))),EXP(VLOOKUP($B$6,$A$25:$E$52,4)*LN(VLOOKUP($H112,P_Hard!$A$5:$Y$204,3*($C$8-1)+4)/1000)+VLOOKUP($B$6,$A$25:$E$52,5)),NA()) -> 9.488108417 | S112: 7.25 | T112: =VLOOKUP($S112,P_All!$AA$5:$AY$245,3*($C$8-1)+2) -> 0.8609 | U112: =VLOOKUP($S112,P_All!$AA$5:$AY$245,3*($C$8-1)+3) -> 1.3991 | V112: =VLOOKUP($S112,P_All!$AA$5:$AY$245,3*($C$8-1)+4) -> 1.9442 | W112: =VLOOKUP($S112,NA_All!$AA$5:$AY$245,3*($C$8-1)+2) -> 0.87145 | X112: =VLOOKUP($S112,NA_All!$AA$5:$AY$245,3*($C$8-1)+3) -> 1.414 | Y112: =VLOOKUP($S112,NA_All!$AA$5:$AY$245,3*($C$8-1)+4) -> 1.9595 | Z112: =IF(AND($B$8=$A$20,$B$6=$A$48),$B$54,IF(ISNA(VLOOKUP($B$6,$A$25:$E$52,IF($B$8=$A$22,3,2),FALSE)),EXP(VLOOKUP($B$6,$A$25:$E$52,4,FALSE)*LN(VLOOKUP($H112,P_Hard!$A$5:$Y$204,3*($C$8-1)+3,FALSE)/1000)+VLOOKUP($B$6,$A$25:$E$52,5,FALSE)),VLOOKUP($B$6,$A$25:$E$52,IF($B$8=$A$22,3,2),FALSE))) -> 9.488108417
H113: 89 | I113: =VLOOKUP($H113,P_All!$A$5:$Y$204,3*($C$8-1)+2) -> 2.3296 | J113: =VLOOKUP($H113,P_All!$A$5:$Y$204,3*($C$8-1)+3) -> 4.6807 | K113: =VLOOKUP($H113,P_All!$A$5:$Y$204,3*($C$8-1)+4) -> 5.4715 | L113: =VLOOKUP($H113,NA_All!$A$5:$Y$204,3*($C$8-1)+2) -> 1.6409 | M113: =VLOOKUP($H113,NA_All!$A$5:$Y$204,3*($C$8-1)+3) -> 2.2128 | N113: =VLOOKUP($H113,NA_All!$A$5:$Y$204,3*($C$8-1)+4) -> 3.0605 | O113: =IF(ISNA(VLOOKUP($B$6,$A$25:$E$52,IF($B$8=$A$22,3,2))),EXP(VLOOKUP($B$6,$A$25:$E$52,4)*LN(VLOOKUP($H113,P_Hard!$A$5:$Y$204,3*($C$8-1)+2)/1000)+VLOOKUP($B$6,$A$25:$E$52,5)),NA()) -> 9.488108417 | P113: 9.765624442 | Q113: =IF(ISNA(VLOOKUP($B$6,$A$25:$E$52,IF($B$8=$A$22,3,2))),EXP(VLOOKUP($B$6,$A$25:$E$52,4)*LN(VLOOKUP($H113,P_Hard!$A$5:$Y$204,3*($C$8-1)+4)/1000)+VLOOKUP($B$6,$A$25:$E$52,5)),NA()) -> 9.488108417 | S113: 7.333333333 | T113: =VLOOKUP($S113,P_All!$AA$5:$AY$245,3*($C$8-1)+2) -> 0.43034 | U113: =VLOOKUP($S113,P_All!$AA$5:$AY$245,3*($C$8-1)+3) -> 1.0575 | V113: =VLOOKUP($S113,P_All!$AA$5:$AY$245,3*($C$8-1)+4) -> 2.5251 | W113: =VLOOKUP($S113,NA_All!$AA$5:$AY$245,3*($C$8-1)+2) -> 0.43276 | X113: =VLOOKUP($S113,NA_All!$AA$5:$AY$245,3*($C$8-1)+3) -> 1.0587 | Y113: =VLOOKUP($S113,NA_All!$AA$5:$AY$245,3*($C$8-1)+4) -> 2.5301 | Z113: =IF(AND($B$8=$A$20,$B$6=$A$48),$B$54,IF(ISNA(VLOOKUP($B$6,$A$25:$E$52,IF($B$8=$A$22,3,2),FALSE)),EXP(VLOOKUP($B$6,$A$25:$E$52,4,FALSE)*LN(VLOOKUP($H113,P_Hard!$A$5:$Y$204,3*($C$8-1)+3,FALSE)/1000)+VLOOKUP($B$6,$A$25:$E$52,5,FALSE)),VLOOKUP($B$6,$A$25:$E$52,IF($B$8=$A$22,3,2),FALSE))) -> 9.488108417
H114: 90 | I114: =VLOOKUP($H114,P_All!$A$5:$Y$204,3*($C$8-1)+2) -> 2.257 | J114: =VLOOKUP($H114,P_All!$A$5:$Y$204,3*($C$8-1)+3) -> 4.6094 | K114: =VLOOKUP($H114,P_All!$A$5:$Y$204,3*($C$8-1)+4) -> 5.5831 | L114: =VLOOKUP($H114,NA_All!$A$5:$Y$204,3*($C$8-1)+2) -> 1.5504 | M114: =VLOOKUP($H114,NA_All!$A$5:$Y$204,3*($C$8-1)+3) -> 2.1848 | N114: =VLOOKUP($H114,NA_All!$A$5:$Y$204,3*($C$8-1)+4) -> 2.9623 | O114: =IF(ISNA(VLOOKUP($B$6,$A$25:$E$52,IF($B$8=$A$22,3,2))),EXP(VLOOKUP($B$6,$A$25:$E$52,4)*LN(VLOOKUP($H114,P_Hard!$A$5:$Y$204,3*($C$8-1)+2)/1000)+VLOOKUP($B$6,$A$25:$E$52,5)),NA()) -> 9.488108417 | P114: 9.765624442 | Q114: =IF(ISNA(VLOOKUP($B$6,$A$25:$E$52,IF($B$8=$A$22,3,2))),EXP(VLOOKUP($B$6,$A$25:$E$52,4)*LN(VLOOKUP($H114,P_Hard!$A$5:$Y$204,3*($C$8-1)+4)/1000)+VLOOKUP($B$6,$A$25:$E$52,5)),NA()) -> 9.488108417 | S114: 7.416666667 | T114: =VLOOKUP($S114,P_All!$AA$5:$AY$245,3*($C$8-1)+2) -> 0.42304 | U114: =VLOOKUP($S114,P_All!$AA$5:$AY$245,3*($C$8-1)+3) -> 0.95166 | V114: =VLOOKUP($S114,P_All!$AA$5:$AY$245,3*($C$8-1)+4) -> 2.7985 | W114: =VLOOKUP($S114,NA_All!$AA$5:$AY$245,3*($C$8-1)+2) -> 0.42309 | X114: =VLOOKUP($S114,NA_All!$AA$5:$AY$245,3*($C$8-1)+3) -> 0.95182 | Y114: =VLOOKUP($S114,NA_All!$AA$5:$AY$245,3*($C$8-1)+4) -> 2.8 | Z114: =IF(AND($B$8=$A$20,$B$6=$A$48),$B$54,IF(ISNA(VLOOKUP($B$6,$A$25:$E$52,IF($B$8=$A$22,3,2),FALSE)),EXP(VLOOKUP($B$6,$A$25:$E$52,4,FALSE)*LN(VLOOKUP($H114,P_Hard!$A$5:$Y$204,3*($C$8-1)+3,FALSE)/1000)+VLOOKUP($B$6,$A$25:$E$52,5,FALSE)),VLOOKUP($B$6,$A$25:$E$52,IF($B$8=$A$22,3,2),FALSE))) -> 9.488108417
H115: 91 | I115: =VLOOKUP($H115,P_All!$A$5:$Y$204,3*($C$8-1)+2) -> 2.183 | J115: =VLOOKUP($H115,P_All!$A$5:$Y$204,3*($C$8-1)+3) -> 4.6798 | K115: =VLOOKUP($H115,P_All!$A$5:$Y$204,3*($C$8-1)+4) -> 5.6829 | L115: =VLOOKUP($H115,NA_All!$A$5:$Y$204,3*($C$8-1)+2) -> 1.5228 | M115: =VLOOKUP($H115,NA_All!$A$5:$Y$204,3*($C$8-1)+3) -> 2.2112 | N115: =VLOOKUP($H115,NA_All!$A$5:$Y$204,3*($C$8-1)+4) -> 3.0552 | O115: =IF(ISNA(VLOOKUP($B$6,$A$25:$E$52,IF($B$8=$A$22,3,2))),EXP(VLOOKUP($B$6,$A$25:$E$52,4)*LN(VLOOKUP($H115,P_Hard!$A$5:$Y$204,3*($C$8-1)+2)/1000)+VLOOKUP($B$6,$A$25:$E$52,5)),NA()) -> 9.488108417 | P115: 9.765624442 | Q115: =IF(ISNA(VLOOKUP($B$6,$A$25:$E$52,IF($B$8=$A$22,3,2))),EXP(VLOOKUP($B$6,$A$25:$E$52,4)*LN(VLOOKUP($H115,P_Hard!$A$5:$Y$204,3*($C$8-1)+4)/1000)+VLOOKUP($B$6,$A$25:$E$52,5)),NA()) -> 9.488108417 | S115: 7.5 | T115: =VLOOKUP($S115,P_All!$AA$5:$AY$245,3*($C$8-1)+2) -> 0.46337 | U115: =VLOOKUP($S115,P_All!$AA$5:$AY$245,3*($C$8-1)+3) -> 1.115 | V115: =VLOOKUP($S115,P_All!$AA$5:$AY$245,3*($C$8-1)+4) -> 2.6777 | W115: =VLOOKUP($S115,NA_All!$AA$5:$AY$245,3*($C$8-1)+2) -> 0.46438 | X115: =VLOOKUP($S115,NA_All!$AA$5:$AY$245,3*($C$8-1)+3) -> 1.1202 | Y115: =VLOOKUP($S115,NA_All!$AA$5:$AY$245,3*($C$8-1)+4) -> 2.6812 | Z115: =IF(AND($B$8=$A$20,$B$6=$A$48),$B$54,IF(ISNA(VLOOKUP($B$6,$A$25:$E$52,IF($B$8=$A$22,3,2),FALSE)),EXP(VLOOKUP($B$6,$A$25:$E$52,4,FALSE)*LN(VLOOKUP($H115,P_Hard!$A$5:$Y$204,3*($C$8-1)+3,FALSE)/1000)+VLOOKUP($B$6,$A$25:$E$52,5,FALSE)),VLOOKUP($B$6,$A$25:$E$52,IF($B$8=$A$22,3,2),FALSE))) -> 9.488108417
H116: 92 | I116: =VLOOKUP($H116,P_All!$A$5:$Y$204,3*($C$8-1)+2) -> 2.2176 | J116: =VLOOKUP($H116,P_All!$A$5:$Y$204,3*($C$8-1)+3) -> 4.6253 | K116: =VLOOKUP($H116,P_All!$A$5:$Y$204,3*($C$8-1)+4) -> 5.688 | L116: =VLOOKUP($H116,NA_All!$A$5:$Y$204,3*($C$8-1)+2) -> 1.5275 | M116: =VLOOKUP($H116,NA_All!$A$5:$Y$204,3*($C$8-1)+3) -> 2.2002 | N116: =VLOOKUP($H116,NA_All!$A$5:$Y$204,3*($C$8-1)+4) -> 2.7395 | O116: =IF(ISNA(VLOOKUP($B$6,$A$25:$E$52,IF($B$8=$A$22,3,2))),EXP(VLOOKUP($B$6,$A$25:$E$52,4)*LN(VLOOKUP($H116,P_Hard!$A$5:$Y$204,3*($C$8-1)+2)/1000)+VLOOKUP($B$6,$A$25:$E$52,5)),NA()) -> 9.488108417 | P116: 9.765624442 | Q116: =IF(ISNA(VLOOKUP($B$6,$A$25:$E$52,IF($B$8=$A$22,3,2))),EXP(VLOOKUP($B$6,$A$25:$E$52,4)*LN(VLOOKUP($H116,P_Hard!$A$5:$Y$204,3*($C$8-1)+4)/1000)+VLOOKUP($B$6,$A$25:$E$52,5)),NA()) -> 9.488108417 | S116: 7.583333333 | T116: =VLOOKUP($S116,P_All!$AA$5:$AY$245,3*($C$8-1)+2) -> 0.53732 | U116: =VLOOKUP($S116,P_All!$AA$5:$AY$245,3*($C$8-1)+3) -> 1.2495 | V116: =VLOOKUP($S116,P_All!$AA$5:$AY$245,3*($C$8-1)+4) -> 2.3061 | W116: =VLOOKUP($S116,NA_All!$AA$5:$AY$245,3*($C$8-1)+2) -> 0.53815 | X116: =VLOOKUP($S116,NA_All!$AA$5:$AY$245,3*($C$8-1)+3) -> 1.2531 | Y116: =VLOOKUP($S116,NA_All!$AA$5:$AY$245,3*($C$8-1)+4) -> 2.3099 | Z116: =IF(AND($B$8=$A$20,$B$6=$A$48),$B$54,IF(ISNA(VLOOKUP($B$6,$A$25:$E$52,IF($B$8=$A$22,3,2),FALSE)),EXP(VLOOKUP($B$6,$A$25:$E$52,4,FALSE)*LN(VLOOKUP($H116,P_Hard!$A$5:$Y$204,3*($C$8-1)+3,FALSE)/1000)+VLOOKUP($B$6,$A$25:$E$52,5,FALSE)),VLOOKUP($B$6,$A$25:$E$52,IF($B$8=$A$22,3,2),FALSE))) -> 9.488108417
H117: 93 | I117: =VLOOKUP($H117,P_All!$A$5:$Y$204,3*($C$8-1)+2) -> 2.1095 | J117: =VLOOKUP($H117,P_All!$A$5:$Y$204,3*($C$8-1)+3) -> 4.3828 | K117: =VLOOKUP($H117,P_All!$A$5:$Y$204,3*($C$8-1)+4) -> 5.5591 | L117: =VLOOKUP($H117,NA_All!$A$5:$Y$204,3*($C$8-1)+2) -> 1.4669 | M117: =VLOOKUP($H117,NA_All!$A$5:$Y$204,3*($C$8-1)+3) -> 2.1874 | N117: =VLOOKUP($H117,NA_All!$A$5:$Y$204,3*($C$8-1)+4) -> 3.0317 | O117: =IF(ISNA(VLOOKUP($B$6,$A$25:$E$52,IF($B$8=$A$22,3,2))),EXP(VLOOKUP($B$6,$A$25:$E$52,4)*LN(VLOOKUP($H117,P_Hard!$A$5:$Y$204,3*($C$8-1)+2)/1000)+VLOOKUP($B$6,$A$25:$E$52,5)),NA()) -> 9.488108417 | P117: 9.765624442 | Q117: =IF(ISNA(VLOOKUP($B$6,$A$25:$E$52,IF($B$8=$A$22,3,2))),EXP(VLOOKUP($B$6,$A$25:$E$52,4)*LN(VLOOKUP($H117,P_Hard!$A$5:$Y$204,3*($C$8-1)+4)/1000)+VLOOKUP($B$6,$A$25:$E$52,5)),NA()) -> 9.488108417 | S117: 7.666666667 | T117: =VLOOKUP($S117,P_All!$AA$5:$AY$245,3*($C$8-1)+2) -> 0.50322 | U117: =VLOOKUP($S117,P_All!$AA$5:$AY$245,3*($C$8-1)+3) -> 1.2332 | V117: =VLOOKUP($S117,P_All!$AA$5:$AY$245,3*($C$8-1)+4) -> 2.754 | W117: =VLOOKUP($S117,NA_All!$AA$5:$AY$245,3*($C$8-1)+2) -> 0.50373 | X117: =VLOOKUP($S117,NA_All!$AA$5:$AY$245,3*($C$8-1)+3) -> 1.2344 | Y117: =VLOOKUP($S117,NA_All!$AA$5:$AY$245,3*($C$8-1)+4) -> 2.7633 | Z117: =IF(AND($B$8=$A$20,$B$6=$A$48),$B$54,IF(ISNA(VLOOKUP($B$6,$A$25:$E$52,IF($B$8=$A$22,3,2),FALSE)),EXP(VLOOKUP($B$6,$A$25:$E$52,4,FALSE)*LN(VLOOKUP($H117,P_Hard!$A$5:$Y$204,3*($C$8-1)+3,FALSE)/1000)+VLOOKUP($B$6,$A$25:$E$52,5,FALSE)),VLOOKUP($B$6,$A$25:$E$52,IF($B$8=$A$22,3,2),FALSE))) -> 9.488108417
H118: 94 | I118: =VLOOKUP($H118,P_All!$A$5:$Y$204,3*($C$8-1)+2) -> 2.3754 | J118: =VLOOKUP($H118,P_All!$A$5:$Y$204,3*($C$8-1)+3) -> 4.6979 | K118: =VLOOKUP($H118,P_All!$A$5:$Y$204,3*($C$8-1)+4) -> 5.4657 | L118: =VLOOKUP($H118,NA_All!$A$5:$Y$204,3*($C$8-1)+2) -> 1.6626 | M118: =VLOOKUP($H118,NA_All!$A$5:$Y$204,3*($C$8-1)+3) -> 2.2005 | N118: =VLOOKUP($H118,NA_All!$A$5:$Y$204,3*($C$8-1)+4) -> 2.9456 | O118: =IF(ISNA(VLOOKUP($B$6,$A$25:$E$52,IF($B$8=$A$22,3,2))),EXP(VLOOKUP($B$6,$A$25:$E$52,4)*LN(VLOOKUP($H118,P_Hard!$A$5:$Y$204,3*($C$8-1)+2)/1000)+VLOOKUP($B$6,$A$25:$E$52,5)),NA()) -> 9.488108417 | P118: 9.765624442 | Q118: =IF(ISNA(VLOOKUP($B$6,$A$25:$E$52,IF($B$8=$A$22,3,2))),EXP(VLOOKUP($B$6,$A$25:$E$52,4)*LN(VLOOKUP($H118,P_Hard!$A$5:$Y$204,3*($C$8-1)+4)/1000)+VLOOKUP($B$6,$A$25:$E$52,5)),NA()) -> 9.488108417 | S118: 7.75 | T118: =VLOOKUP($S118,P_All!$AA$5:$AY$245,3*($C$8-1)+2) -> 0.50312 | U118: =VLOOKUP($S118,P_All!$AA$5:$AY$245,3*($C$8-1)+3) -> 1.1718 | V118: =VLOOKUP($S118,P_All!$AA$5:$AY$245,3*($C$8-1)+4) -> 2.7449 | W118: =VLOOKUP($S118,NA_All!$AA$5:$AY$245,3*($C$8-1)+2) -> 0.50347 | X118: =VLOOKUP($S118,NA_All!$AA$5:$AY$245,3*($C$8-1)+3) -> 1.1819 | Y118: =VLOOKUP($S118,NA_All!$AA$5:$AY$245,3*($C$8-1)+4) -> 2.7542 | Z118: =IF(AND($B$8=$A$20,$B$6=$A$48),$B$54,IF(ISNA(VLOOKUP($B$6,$A$25:$E$52,IF($B$8=$A$22,3,2),FALSE)),EXP(VLOOKUP($B$6,$A$25:$E$52,4,FALSE)*LN(VLOOKUP($H118,P_Hard!$A$5:$Y$204,3*($C$8-1)+3,FALSE)/1000)+VLOOKUP($B$6,$A$25:$E$52,5,FALSE)),VLOOKUP($B$6,$A$25:$E$52,IF($B$8=$A$22,3,2),FALSE))) -> 9.488108417
H119: 95 | I119: =VLOOKUP($H119,P_All!$A$5:$Y$204,3*($C$8-1)+2) -> 2.2669 | J119: =VLOOKUP($H119,P_All!$A$5:$Y$204,3*($C$8-1)+3) -> 4.4831 | K119: =VLOOKUP($H119,P_All!$A$5:$Y$204,3*($C$8-1)+4) -> 5.6 | L119: =VLOOKUP($H119,NA_All!$A$5:$Y$204,3*($C$8-1)+2) -> 1.6099 | M119: =VLOOKUP($H119,NA_All!$A$5:$Y$204,3*($C$8-1)+3) -> 2.1977 | N119: =VLOOKUP($H119,NA_All!$A$5:$Y$204,3*($C$8-1)+4) -> 3.0418 | O119: =IF(ISNA(VLOOKUP($B$6,$A$25:$E$52,IF($B$8=$A$22,3,2))),EXP(VLOOKUP($B$6,$A$25:$E$52,4)*LN(VLOOKUP($H119,P_Hard!$A$5:$Y$204,3*($C$8-1)+2)/1000)+VLOOKUP($B$6,$A$25:$E$52,5)),NA()) -> 9.488108417 | P119: 9.765624442 | Q119: =IF(ISNA(VLOOKUP($B$6,$A$25:$E$52,IF($B$8=$A$22,3,2))),EXP(VLOOKUP($B$6,$A$25:$E$52,4)*LN(VLOOKUP($H119,P_Hard!$A$5:$Y$204,3*($C$8-1)+4)/1000)+VLOOKUP($B$6,$A$25:$E$52,5)),NA()) -> 9.488108417 | S119: 7.833333333 | T119: =VLOOKUP($S119,P_All!$AA$5:$AY$245,3*($C$8-1)+2) -> 0.54404 | U119: =VLOOKUP($S119,P_All!$AA$5:$AY$245,3*($C$8-1)+3) -> 1.1645 | V119: =VLOOKUP($S119,P_All!$AA$5:$AY$245,3*($C$8-1)+4) -> 2.9318 | W119: =VLOOKUP($S119,NA_All!$AA$5:$AY$245,3*($C$8-1)+2) -> 0.54544 | X119: =VLOOKUP($S119,NA_All!$AA$5:$AY$245,3*($C$8-1)+3) -> 1.165 | Y119: =VLOOKUP($S119,NA_All!$AA$5:$AY$245,3*($C$8-1)+4) -> 2.9349 | Z119: =IF(AND($B$8=$A$20,$B$6=$A$48),$B$54,IF(ISNA(VLOOKUP($B$6,$A$25:$E$52,IF($B$8=$A$22,3,2),FALSE)),EXP(VLOOKUP($B$6,$A$25:$E$52,4,FALSE)*LN(VLOOKUP($H119,P_Hard!$A$5:$Y$204,3*($C$8-1)+3,FALSE)/1000)+VLOOKUP($B$6,$A$25:$E$52,5,FALSE)),VLOOKUP($B$6,$A$25:$E$52,IF($B$8=$A$22,3,2),FALSE))) -> 9.488108417
H120: 96 | I120: =VLOOKUP($H120,P_All!$A$5:$Y$204,3*($C$8-1)+2) -> 2.2795 | J120: =VLOOKUP($H120,P_All!$A$5:$Y$204,3*($C$8-1)+3) -> 4.5442 | K120: =VLOOKUP($H120,P_All!$A$5:$Y$204,3*($C$8-1)+4) -> 5.7062 | L120: =VLOOKUP($H120,NA_All!$A$5:$Y$204,3*($C$8-1)+2) -> 1.5972 | M120: =VLOOKUP($H120,NA_All!$A$5:$Y$204,3*($C$8-1)+3) -> 2.1878 | N120: =VLOOKUP($H120,NA_All!$A$5:$Y$204,3*($C$8-1)+4) -> 3.1111 | O120: =IF(ISNA(VLOOKUP($B$6,$A$25:$E$52,IF($B$8=$A$22,3,2))),EXP(VLOOKUP($B$6,$A$25:$E$52,4)*LN(VLOOKUP($H120,P_Hard!$A$5:$Y$204,3*($C$8-1)+2)/1000)+VLOOKUP($B$6,$A$25:$E$52,5)),NA()) -> 9.488108417 | P120: 9.765624442 | Q120: =IF(ISNA(VLOOKUP($B$6,$A$25:$E$52,IF($B$8=$A$22,3,2))),EXP(VLOOKUP($B$6,$A$25:$E$52,4)*LN(VLOOKUP($H120,P_Hard!$A$5:$Y$204,3*($C$8-1)+4)/1000)+VLOOKUP($B$6,$A$25:$E$52,5)),NA()) -> 9.488108417 | S120: 7.916666667 | T120: =VLOOKUP($S120,P_All!$AA$5:$AY$245,3*($C$8-1)+2) -> 0.57374 | U120: =VLOOKUP($S120,P_All!$AA$5:$AY$245,3*($C$8-1)+3) -> 1.2096 | V120: =VLOOKUP($S120,P_All!$AA$5:$AY$245,3*($C$8-1)+4) -> 2.3529 | W120: =VLOOKUP($S120,NA_All!$AA$5:$AY$245,3*($C$8-1)+2) -> 0.57484 | X120: =VLOOKUP($S120,NA_All!$AA$5:$AY$245,3*($C$8-1)+3) -> 1.2156 | Y120: =VLOOKUP($S120,NA_All!$AA$5:$AY$245,3*($C$8-1)+4) -> 2.3576 | Z120: =IF(AND($B$8=$A$20,$B$6=$A$48),$B$54,IF(ISNA(VLOOKUP($B$6,$A$25:$E$52,IF($B$8=$A$22,3,2),FALSE)),EXP(VLOOKUP($B$6,$A$25:$E$52,4,FALSE)*LN(VLOOKUP($H120,P_Hard!$A$5:$Y$204,3*($C$8-1)+3,FALSE)/1000)+VLOOKUP($B$6,$A$25:$E$52,5,FALSE)),VLOOKUP($B$6,$A$25:$E$52,IF($B$8=$A$22,3,2),FALSE))) -> 9.488108417
H121: 97 | I121: =VLOOKUP($H121,P_All!$A$5:$Y$204,3*($C$8-1)+2) -> 2.2112 | J121: =VLOOKUP($H121,P_All!$A$5:$Y$204,3*($C$8-1)+3) -> 4.4831 | K121: =VLOOKUP($H121,P_All!$A$5:$Y$204,3*($C$8-1)+4) -> 5.4685 | L121: =VLOOKUP($H121,NA_All!$A$5:$Y$204,3*($C$8-1)+2) -> 1.5386 | M121: =VLOOKUP($H121,NA_All!$A$5:$Y$204,3*($C$8-1)+3) -> 2.1805 | N121: =VLOOKUP($H121,NA_All!$A$5:$Y$204,3*($C$8-1)+4) -> 3.0414 | O121: =IF(ISNA(VLOOKUP($B$6,$A$25:$E$52,IF($B$8=$A$22,3,2))),EXP(VLOOKUP($B$6,$A$25:$E$52,4)*LN(VLOOKUP($H121,P_Hard!$A$5:$Y$204,3*($C$8-1)+2)/1000)+VLOOKUP($B$6,$A$25:$E$52,5)),NA()) -> 9.488108417 | P121: 9.765624442 | Q121: =IF(ISNA(VLOOKUP($B$6,$A$25:$E$52,IF($B$8=$A$22,3,2))),EXP(VLOOKUP($B$6,$A$25:$E$52,4)*LN(VLOOKUP($H121,P_Hard!$A$5:$Y$204,3*($C$8-1)+4)/1000)+VLOOKUP($B$6,$A$25:$E$52,5)),NA()) -> 9.488108417 | S121: 8 | T121: =VLOOKUP($S121,P_All!$AA$5:$AY$245,3*($C$8-1)+2) -> 0.9012 | U121: =VLOOKUP($S121,P_All!$AA$5:$AY$245,3*($C$8-1)+3) -> 1.4637 | V121: =VLOOKUP($S121,P_All!$AA$5:$AY$245,3*($C$8-1)+4) -> 2.2686 | W121: =VLOOKUP($S121,NA_All!$AA$5:$AY$245,3*($C$8-1)+2) -> 0.90659 | X121: =VLOOKUP($S121,NA_All!$AA$5:$AY$245,3*($C$8-1)+3) -> 1.4785 | Y121: =VLOOKUP($S121,NA_All!$AA$5:$AY$245,3*($C$8-1)+4) -> 2.2792 | Z121: =IF(AND($B$8=$A$20,$B$6=$A$48),$B$54,IF(ISNA(VLOOKUP($B$6,$A$25:$E$52,IF($B$8=$A$22,3,2),FALSE)),EXP(VLOOKUP($B$6,$A$25:$E$52,4,FALSE)*LN(VLOOKUP($H121,P_Hard!$A$5:$Y$204,3*($C$8-1)+3,FALSE)/1000)+VLOOKUP($B$6,$A$25:$E$52,5,FALSE)),VLOOKUP($B$6,$A$25:$E$52,IF($B$8=$A$22,3,2),FALSE))) -> 9.488108417
H122: 98 | I122: =VLOOKUP($H122,P_All!$A$5:$Y$204,3*($C$8-1)+2) -> 2.3278 | J122: =VLOOKUP($H122,P_All!$A$5:$Y$204,3*($C$8-1)+3) -> 4.6273 | K122: =VLOOKUP($H122,P_All!$A$5:$Y$204,3*($C$8-1)+4) -> 5.6523 | L122: =VLOOKUP($H122,NA_All!$A$5:$Y$204,3*($C$8-1)+2) -> 1.6416 | M122: =VLOOKUP($H122,NA_All!$A$5:$Y$204,3*($C$8-1)+3) -> 2.1919 | N122: =VLOOKUP($H122,NA_All!$A$5:$Y$204,3*($C$8-1)+4) -> 3.1297 | O122: =IF(ISNA(VLOOKUP($B$6,$A$25:$E$52,IF($B$8=$A$22,3,2))),EXP(VLOOKUP($B$6,$A$25:$E$52,4)*LN(VLOOKUP($H122,P_Hard!$A$5:$Y$204,3*($C$8-1)+2)/1000)+VLOOKUP($B$6,$A$25:$E$52,5)),NA()) -> 9.488108417 | P122: 9.765624442 | Q122: =IF(ISNA(VLOOKUP($B$6,$A$25:$E$52,IF($B$8=$A$22,3,2))),EXP(VLOOKUP($B$6,$A$25:$E$52,4)*LN(VLOOKUP($H122,P_Hard!$A$5:$Y$204,3*($C$8-1)+4)/1000)+VLOOKUP($B$6,$A$25:$E$52,5)),NA()) -> 9.488108417 | S122: 8.083333333 | T122: =VLOOKUP($S122,P_All!$AA$5:$AY$245,3*($C$8-1)+2) -> 1.1954 | U122: =VLOOKUP($S122,P_All!$AA$5:$AY$245,3*($C$8-1)+3) -> 1.4558 | V122: =VLOOKUP($S122,P_All!$AA$5:$AY$245,3*($C$8-1)+4) -> 1.8729 | W122: =VLOOKUP($S122,NA_All!$AA$5:$AY$245,3*($C$8-1)+2) -> 1.2057 | X122: =VLOOKUP($S122,NA_All!$AA$5:$AY$245,3*($C$8-1)+3) -> 1.4685 | Y122: =VLOOKUP($S122,NA_All!$AA$5:$AY$245,3*($C$8-1)+4) -> 1.8839 | Z122: =IF(AND($B$8=$A$20,$B$6=$A$48),$B$54,IF(ISNA(VLOOKUP($B$6,$A$25:$E$52,IF($B$8=$A$22,3,2),FALSE)),EXP(VLOOKUP($B$6,$A$25:$E$52,4,FALSE)*LN(VLOOKUP($H122,P_Hard!$A$5:$Y$204,3*($C$8-1)+3,FALSE)/1000)+VLOOKUP($B$6,$A$25:$E$52,5,FALSE)),VLOOKUP($B$6,$A$25:$E$52,IF($B$8=$A$22,3,2),FALSE))) -> 9.488108417
H123: 99 | I123: =VLOOKUP($H123,P_All!$A$5:$Y$204,3*($C$8-1)+2) -> 2.1977 | J123: =VLOOKUP($H123,P_All!$A$5:$Y$204,3*($C$8-1)+3) -> 4.5336 | K123: =VLOOKUP($H123,P_All!$A$5:$Y$204,3*($C$8-1)+4) -> 5.563 | L123: =VLOOKUP($H123,NA_All!$A$5:$Y$204,3*($C$8-1)+2) -> 1.5209 | M123: =VLOOKUP($H123,NA_All!$A$5:$Y$204,3*($C$8-1)+3) -> 2.2001 | N123: =VLOOKUP($H123,NA_All!$A$5:$Y$204,3*($C$8-1)+4) -> 3.0914 | O123: =IF(ISNA(VLOOKUP($B$6,$A$25:$E$52,IF($B$8=$A$22,3,2))),EXP(VLOOKUP($B$6,$A$25:$E$52,4)*LN(VLOOKUP($H123,P_Hard!$A$5:$Y$204,3*($C$8-1)+2)/1000)+VLOOKUP($B$6,$A$25:$E$52,5)),NA()) -> 9.488108417 | P123: 9.765624442 | Q123: =IF(ISNA(VLOOKUP($B$6,$A$25:$E$52,IF($B$8=$A$22,3,2))),EXP(VLOOKUP($B$6,$A$25:$E$52,4)*LN(VLOOKUP($H123,P_Hard!$A$5:$Y$204,3*($C$8-1)+4)/1000)+VLOOKUP($B$6,$A$25:$E$52,5)),NA()) -> 9.488108417 | S123: 8.166666667 | T123: =VLOOKUP($S123,P_All!$AA$5:$AY$245,3*($C$8-1)+2) -> 1.2338 | U123: =VLOOKUP($S123,P_All!$AA$5:$AY$245,3*($C$8-1)+3) -> 1.385 | V123: =VLOOKUP($S123,P_All!$AA$5:$AY$245,3*($C$8-1)+4) -> 1.7375 | W123: =VLOOKUP($S123,NA_All!$AA$5:$AY$245,3*($C$8-1)+2) -> 1.2413 | X123: =VLOOKUP($S123,NA_All!$AA$5:$AY$245,3*($C$8-1)+3) -> 1.3923 | Y123: =VLOOKUP($S123,NA_All!$AA$5:$AY$245,3*($C$8-1)+4) -> 1.76 | Z123: =IF(AND($B$8=$A$20,$B$6=$A$48),$B$54,IF(ISNA(VLOOKUP($B$6,$A$25:$E$52,IF($B$8=$A$22,3,2),FALSE)),EXP(VLOOKUP($B$6,$A$25:$E$52,4,FALSE)*LN(VLOOKUP($H123,P_Hard!$A$5:$Y$204,3*($C$8-1)+3,FALSE)/1000)+VLOOKUP($B$6,$A$25:$E$52,5,FALSE)),VLOOKUP($B$6,$A$25:$E$52,IF($B$8=$A$22,3,2),FALSE))) -> 9.488108417
H124: 100 | I124: =VLOOKUP($H124,P_All!$A$5:$Y$204,3*($C$8-1)+2) -> 2.2977 | J124: =VLOOKUP($H124,P_All!$A$5:$Y$204,3*($C$8-1)+3) -> 4.6565 | K124: =VLOOKUP($H124,P_All!$A$5:$Y$204,3*($C$8-1)+4) -> 5.5435 | L124: =VLOOKUP($H124,NA_All!$A$5:$Y$204,3*($C$8-1)+2) -> 1.6132 | M124: =VLOOKUP($H124,NA_All!$A$5:$Y$204,3*($C$8-1)+3) -> 2.2063 | N124: =VLOOKUP($H124,NA_All!$A$5:$Y$204,3*($C$8-1)+4) -> 2.9087 | O124: =IF(ISNA(VLOOKUP($B$6,$A$25:$E$52,IF($B$8=$A$22,3,2))),EXP(VLOOKUP($B$6,$A$25:$E$52,4)*LN(VLOOKUP($H124,P_Hard!$A$5:$Y$204,3*($C$8-1)+2)/1000)+VLOOKUP($B$6,$A$25:$E$52,5)),NA()) -> 9.488108417 | P124: 9.765624442 | Q124: =IF(ISNA(VLOOKUP($B$6,$A$25:$E$52,IF($B$8=$A$22,3,2))),EXP(VLOOKUP($B$6,$A$25:$E$52,4)*LN(VLOOKUP($H124,P_Hard!$A$5:$Y$204,3*($C$8-1)+4)/1000)+VLOOKUP($B$6,$A$25:$E$52,5)),NA()) -> 9.488108417 | S124: 8.25 | T124: =VLOOKUP($S124,P_All!$AA$5:$AY$245,3*($C$8-1)+2) -> 0.86273 | U124: =VLOOKUP($S124,P_All!$AA$5:$AY$245,3*($C$8-1)+3) -> 1.4301 | V124: =VLOOKUP($S124,P_All!$AA$5:$AY$245,3*($C$8-1)+4) -> 1.8674 | W124: =VLOOKUP($S124,NA_All!$AA$5:$AY$245,3*($C$8-1)+2) -> 0.86547 | X124: =VLOOKUP($S124,NA_All!$AA$5:$AY$245,3*($C$8-1)+3) -> 1.4429 | Y124: =VLOOKUP($S124,NA_All!$AA$5:$AY$245,3*($C$8-1)+4) -> 1.8896 | Z124: =IF(AND($B$8=$A$20,$B$6=$A$48),$B$54,IF(ISNA(VLOOKUP($B$6,$A$25:$E$52,IF($B$8=$A$22,3,2),FALSE)),EXP(VLOOKUP($B$6,$A$25:$E$52,4,FALSE)*LN(VLOOKUP($H124,P_Hard!$A$5:$Y$204,3*($C$8-1)+3,FALSE)/1000)+VLOOKUP($B$6,$A$25:$E$52,5,FALSE)),VLOOKUP($B$6,$A$25:$E$52,IF($B$8=$A$22,3,2),FALSE))) -> 9.488108417
H125: 101 | I125: =VLOOKUP($H125,P_All!$A$5:$Y$204,3*($C$8-1)+2) -> 2.21 | J125: =VLOOKUP($H125,P_All!$A$5:$Y$204,3*($C$8-1)+3) -> 4.364 | K125: =VLOOKUP($H125,P_All!$A$5:$Y$204,3*($C$8-1)+4) -> 5.5893 | L125: =VLOOKUP($H125,NA_All!$A$5:$Y$204,3*($C$8-1)+2) -> 1.4925 | M125: =VLOOKUP($H125,NA_All!$A$5:$Y$204,3*($C$8-1)+3) -> 2.2156 | N125: =VLOOKUP($H125,NA_All!$A$5:$Y$204,3*($C$8-1)+4) -> 2.9866 | O125: =IF(ISNA(VLOOKUP($B$6,$A$25:$E$52,IF($B$8=$A$22,3,2))),EXP(VLOOKUP($B$6,$A$25:$E$52,4)*LN(VLOOKUP($H125,P_Hard!$A$5:$Y$204,3*($C$8-1)+2)/1000)+VLOOKUP($B$6,$A$25:$E$52,5)),NA()) -> 9.488108417 | P125: 9.765624442 | Q125: =IF(ISNA(VLOOKUP($B$6,$A$25:$E$52,IF($B$8=$A$22,3,2))),EXP(VLOOKUP($B$6,$A$25:$E$52,4)*LN(VLOOKUP($H125,P_Hard!$A$5:$Y$204,3*($C$8-1)+4)/1000)+VLOOKUP($B$6,$A$25:$E$52,5)),NA()) -> 9.488108417 | S125: 8.333333333 | T125: =VLOOKUP($S125,P_All!$AA$5:$AY$245,3*($C$8-1)+2) -> 0.41075 | U125: =VLOOKUP($S125,P_All!$AA$5:$AY$245,3*($C$8-1)+3) -> 1.0466 | V125: =VLOOKUP($S125,P_All!$AA$5:$AY$245,3*($C$8-1)+4) -> 3.0343 | W125: =VLOOKUP($S125,NA_All!$AA$5:$AY$245,3*($C$8-1)+2) -> 0.4109 | X125: =VLOOKUP($S125,NA_All!$AA$5:$AY$245,3*($C$8-1)+3) -> 1.0476 | Y125: =VLOOKUP($S125,NA_All!$AA$5:$AY$245,3*($C$8-1)+4) -> 3.0361 | Z125: =IF(AND($B$8=$A$20,$B$6=$A$48),$B$54,IF(ISNA(VLOOKUP($B$6,$A$25:$E$52,IF($B$8=$A$22,3,2),FALSE)),EXP(VLOOKUP($B$6,$A$25:$E$52,4,FALSE)*LN(VLOOKUP($H125,P_Hard!$A$5:$Y$204,3*($C$8-1)+3,FALSE)/1000)+VLOOKUP($B$6,$A$25:$E$52,5,FALSE)),VLOOKUP($B$6,$A$25:$E$52,IF($B$8=$A$22,3,2),FALSE))) -> 9.488108417
H126: 102 | I126: =VLOOKUP($H126,P_All!$A$5:$Y$204,3*($C$8-1)+2) -> 2.2998 | J126: =VLOOKUP($H126,P_All!$A$5:$Y$204,3*($C$8-1)+3) -> 4.6583 | K126: =VLOOKUP($H126,P_All!$A$5:$Y$204,3*($C$8-1)+4) -> 5.5431 | L126: =VLOOKUP($H126,NA_All!$A$5:$Y$204,3*($C$8-1)+2) -> 1.6225 | M126: =VLOOKUP($H126,NA_All!$A$5:$Y$204,3*($C$8-1)+3) -> 2.1984 | N126: =VLOOKUP($H126,NA_All!$A$5:$Y$204,3*($C$8-1)+4) -> 3.176 | O126: =IF(ISNA(VLOOKUP($B$6,$A$25:$E$52,IF($B$8=$A$22,3,2))),EXP(VLOOKUP($B$6,$A$25:$E$52,4)*LN(VLOOKUP($H126,P_Hard!$A$5:$Y$204,3*($C$8-1)+2)/1000)+VLOOKUP($B$6,$A$25:$E$52,5)),NA()) -> 9.488108417 | P126: 9.765624442 | Q126: =IF(ISNA(VLOOKUP($B$6,$A$25:$E$52,IF($B$8=$A$22,3,2))),EXP(VLOOKUP($B$6,$A$25:$E$52,4)*LN(VLOOKUP($H126,P_Hard!$A$5:$Y$204,3*($C$8-1)+4)/1000)+VLOOKUP($B$6,$A$25:$E$52,5)),NA()) -> 9.488108417 | S126: 8.416666667 | T126: =VLOOKUP($S126,P_All!$AA$5:$AY$245,3*($C$8-1)+2) -> 0.37861 | U126: =VLOOKUP($S126,P_All!$AA$5:$AY$245,3*($C$8-1)+3) -> 0.95655 | V126: =VLOOKUP($S126,P_All!$AA$5:$AY$245,3*($C$8-1)+4) -> 2.6415 | W126: =VLOOKUP($S126,NA_All!$AA$5:$AY$245,3*($C$8-1)+2) -> 0.37793 | X126: =VLOOKUP($S126,NA_All!$AA$5:$AY$245,3*($C$8-1)+3) -> 0.95711 | Y126: =VLOOKUP($S126,NA_All!$AA$5:$AY$245,3*($C$8-1)+4) -> 2.6422 | Z126: =IF(AND($B$8=$A$20,$B$6=$A$48),$B$54,IF(ISNA(VLOOKUP($B$6,$A$25:$E$52,IF($B$8=$A$22,3,2),FALSE)),EXP(VLOOKUP($B$6,$A$25:$E$52,4,FALSE)*LN(VLOOKUP($H126,P_Hard!$A$5:$Y$204,3*($C$8-1)+3,FALSE)/1000)+VLOOKUP($B$6,$A$25:$E$52,5,FALSE)),VLOOKUP($B$6,$A$25:$E$52,IF($B$8=$A$22,3,2),FALSE))) -> 9.488108417
H127: 103 | I127: =VLOOKUP($H127,P_All!$A$5:$Y$204,3*($C$8-1)+2) -> 2.2579 | J127: =VLOOKUP($H127,P_All!$A$5:$Y$204,3*($C$8-1)+3) -> 4.5789 | K127: =VLOOKUP($H127,P_All!$A$5:$Y$204,3*($C$8-1)+4) -> 5.4856 | L127: =VLOOKUP($H127,NA_All!$A$5:$Y$204,3*($C$8-1)+2) -> 1.585 | M127: =VLOOKUP($H127,NA_All!$A$5:$Y$204,3*($C$8-1)+3) -> 2.2028 | N127: =VLOOKUP($H127,NA_All!$A$5:$Y$204,3*($C$8-1)+4) -> 3.1934 | O127: =IF(ISNA(VLOOKUP($B$6,$A$25:$E$52,IF($B$8=$A$22,3,2))),EXP(VLOOKUP($B$6,$A$25:$E$52,4)*LN(VLOOKUP($H127,P_Hard!$A$5:$Y$204,3*($C$8-1)+2)/1000)+VLOOKUP($B$6,$A$25:$E$52,5)),NA()) -> 9.488108417 | P127: 9.765624442 | Q127: =IF(ISNA(VLOOKUP($B$6,$A$25:$E$52,IF($B$8=$A$22,3,2))),EXP(VLOOKUP($B$6,$A$25:$E$52,4)*LN(VLOOKUP($H127,P_Hard!$A$5:$Y$204,3*($C$8-1)+4)/1000)+VLOOKUP($B$6,$A$25:$E$52,5)),NA()) -> 9.488108417 | S127: 8.5 | T127: =VLOOKUP($S127,P_All!$AA$5:$AY$245,3*($C$8-1)+2) -> 0.49687 | U127: =VLOOKUP($S127,P_All!$AA$5:$AY$245,3*($C$8-1)+3) -> 1.1377 | V127: =VLOOKUP($S127,P_All!$AA$5:$AY$245,3*($C$8-1)+4) -> 2.6237 | W127: =VLOOKUP($S127,NA_All!$AA$5:$AY$245,3*($C$8-1)+2) -> 0.49695 | X127: =VLOOKUP($S127,NA_All!$AA$5:$AY$245,3*($C$8-1)+3) -> 1.141 | Y127: =VLOOKUP($S127,NA_All!$AA$5:$AY$245,3*($C$8-1)+4) -> 2.6286 | Z127: =IF(AND($B$8=$A$20,$B$6=$A$48),$B$54,IF(ISNA(VLOOKUP($B$6,$A$25:$E$52,IF($B$8=$A$22,3,2),FALSE)),EXP(VLOOKUP($B$6,$A$25:$E$52,4,FALSE)*LN(VLOOKUP($H127,P_Hard!$A$5:$Y$204,3*($C$8-1)+3,FALSE)/1000)+VLOOKUP($B$6,$A$25:$E$52,5,FALSE)),VLOOKUP($B$6,$A$25:$E$52,IF($B$8=$A$22,3,2),FALSE))) -> 9.488108417
H128: 104 | I128: =VLOOKUP($H128,P_All!$A$5:$Y$204,3*($C$8-1)+2) -> 2.1775 | J128: =VLOOKUP($H128,P_All!$A$5:$Y$204,3*($C$8-1)+3) -> 4.571 | K128: =VLOOKUP($H128,P_All!$A$5:$Y$204,3*($C$8-1)+4) -> 5.6354 | L128: =VLOOKUP($H128,NA_All!$A$5:$Y$204,3*($C$8-1)+2) -> 1.5201 | M128: =VLOOKUP($H128,NA_All!$A$5:$Y$204,3*($C$8-1)+3) -> 2.1846 | N128: =VLOOKUP($H128,NA_All!$A$5:$Y$204,3*($C$8-1)+4) -> 3.123 | O128: =IF(ISNA(VLOOKUP($B$6,$A$25:$E$52,IF($B$8=$A$22,3,2))),EXP(VLOOKUP($B$6,$A$25:$E$52,4)*LN(VLOOKUP($H128,P_Hard!$A$5:$Y$204,3*($C$8-1)+2)/1000)+VLOOKUP($B$6,$A$25:$E$52,5)),NA()) -> 9.488108417 | P128: 9.765624442 | Q128: =IF(ISNA(VLOOKUP($B$6,$A$25:$E$52,IF($B$8=$A$22,3,2))),EXP(VLOOKUP($B$6,$A$25:$E$52,4)*LN(VLOOKUP($H128,P_Hard!$A$5:$Y$204,3*($C$8-1)+4)/1000)+VLOOKUP($B$6,$A$25:$E$52,5)),NA()) -> 9.488108417 | S128: 8.583333333 | T128: =VLOOKUP($S128,P_All!$AA$5:$AY$245,3*($C$8-1)+2) -> 0.54447 | U128: =VLOOKUP($S128,P_All!$AA$5:$AY$245,3*($C$8-1)+3) -> 1.303 | V128: =VLOOKUP($S128,P_All!$AA$5:$AY$245,3*($C$8-1)+4) -> 2.5672 | W128: =VLOOKUP($S128,NA_All!$AA$5:$AY$245,3*($C$8-1)+2) -> 0.54602 | X128: =VLOOKUP($S128,NA_All!$AA$5:$AY$245,3*($C$8-1)+3) -> 1.3018 | Y128: =VLOOKUP($S128,NA_All!$AA$5:$AY$245,3*($C$8-1)+4) -> 2.5708 | Z128: =IF(AND($B$8=$A$20,$B$6=$A$48),$B$54,IF(ISNA(VLOOKUP($B$6,$A$25:$E$52,IF($B$8=$A$22,3,2),FALSE)),EXP(VLOOKUP($B$6,$A$25:$E$52,4,FALSE)*LN(VLOOKUP($H128,P_Hard!$A$5:$Y$204,3*($C$8-1)+3,FALSE)/1000)+VLOOKUP($B$6,$A$25:$E$52,5,FALSE)),VLOOKUP($B$6,$A$25:$E$52,IF($B$8=$A$22,3,2),FALSE))) -> 9.488108417
H129: 105 | I129: =VLOOKUP($H129,P_All!$A$5:$Y$204,3*($C$8-1)+2) -> 2.1692 | J129: =VLOOKUP($H129,P_All!$A$5:$Y$204,3*($C$8-1)+3) -> 4.4321 | K129: =VLOOKUP($H129,P_All!$A$5:$Y$204,3*($C$8-1)+4) -> 5.6016 | L129: =VLOOKUP($H129,NA_All!$A$5:$Y$204,3*($C$8-1)+2) -> 1.4864 | M129: =VLOOKUP($H129,NA_All!$A$5:$Y$204,3*($C$8-1)+3) -> 2.1821 | N129: =VLOOKUP($H129,NA_All!$A$5:$Y$204,3*($C$8-1)+4) -> 3.1995 | O129: =IF(ISNA(VLOOKUP($B$6,$A$25:$E$52,IF($B$8=$A$22,3,2))),EXP(VLOOKUP($B$6,$A$25:$E$52,4)*LN(VLOOKUP($H129,P_Hard!$A$5:$Y$204,3*($C$8-1)+2)/1000)+VLOOKUP($B$6,$A$25:$E$52,5)),NA()) -> 9.488108417 | P129: 9.765624442 | Q129: =IF(ISNA(VLOOKUP($B$6,$A$25:$E$52,IF($B$8=$A$22,3,2))),EXP(VLOOKUP($B$6,$A$25:$E$52,4)*LN(VLOOKUP($H129,P_Hard!$A$5:$Y$204,3*($C$8-1)+4)/1000)+VLOOKUP($B$6,$A$25:$E$52,5)),NA()) -> 9.488108417 | S129: 8.666666667 | T129: =VLOOKUP($S129,P_All!$AA$5:$AY$245,3*($C$8-1)+2) -> 0.53629 | U129: =VLOOKUP($S129,P_All!$AA$5:$AY$245,3*($C$8-1)+3) -> 1.2557 | V129: =VLOOKUP($S129,P_All!$AA$5:$AY$245,3*($C$8-1)+4) -> 2.5385 | W129: =VLOOKUP($S129,NA_All!$AA$5:$AY$245,3*($C$8-1)+2) -> 0.53709 | X129: =VLOOKUP($S129,NA_All!$AA$5:$AY$245,3*($C$8-1)+3) -> 1.2605 | Y129: =VLOOKUP($S129,NA_All!$AA$5:$AY$245,3*($C$8-1)+4) -> 2.5458 | Z129: =IF(AND($B$8=$A$20,$B$6=$A$48),$B$54,IF(ISNA(VLOOKUP($B$6,$A$25:$E$52,IF($B$8=$A$22,3,2),FALSE)),EXP(VLOOKUP($B$6,$A$25:$E$52,4,FALSE)*LN(VLOOKUP($H129,P_Hard!$A$5:$Y$204,3*($C$8-1)+3,FALSE)/1000)+VLOOKUP($B$6,$A$25:$E$52,5,FALSE)),VLOOKUP($B$6,$A$25:$E$52,IF($B$8=$A$22,3,2),FALSE))) -> 9.488108417
H130: 106 | I130: =VLOOKUP($H130,P_All!$A$5:$Y$204,3*($C$8-1)+2) -> 2.3766 | J130: =VLOOKUP($H130,P_All!$A$5:$Y$204,3*($C$8-1)+3) -> 4.5617 | K130: =VLOOKUP($H130,P_All!$A$5:$Y$204,3*($C$8-1)+4) -> 5.5626 | L130: =VLOOKUP($H130,NA_All!$A$5:$Y$204,3*($C$8-1)+2) -> 1.6363 | M130: =VLOOKUP($H130,NA_All!$A$5:$Y$204,3*($C$8-1)+3) -> 2.2143 | N130: =VLOOKUP($H130,NA_All!$A$5:$Y$204,3*($C$8-1)+4) -> 3.0075 | O130: =IF(ISNA(VLOOKUP($B$6,$A$25:$E$52,IF($B$8=$A$22,3,2))),EXP(VLOOKUP($B$6,$A$25:$E$52,4)*LN(VLOOKUP($H130,P_Hard!$A$5:$Y$204,3*($C$8-1)+2)/1000)+VLOOKUP($B$6,$A$25:$E$52,5)),NA()) -> 9.488108417 | P130: 9.765624442 | Q130: =IF(ISNA(VLOOKUP($B$6,$A$25:$E$52,IF($B$8=$A$22,3,2))),EXP(VLOOKUP($B$6,$A$25:$E$52,4)*LN(VLOOKUP($H130,P_Hard!$A$5:$Y$204,3*($C$8-1)+4)/1000)+VLOOKUP($B$6,$A$25:$E$52,5)),NA()) -> 9.488108417 | S130: 8.75 | T130: =VLOOKUP($S130,P_All!$AA$5:$AY$245,3*($C$8-1)+2) -> 0.5151 | U130: =VLOOKUP($S130,P_All!$AA$5:$AY$245,3*($C$8-1)+3) -> 1.2535 | V130: =VLOOKUP($S130,P_All!$AA$5:$AY$245,3*($C$8-1)+4) -> 2.5186 | W130: =VLOOKUP($S130,NA_All!$AA$5:$AY$245,3*($C$8-1)+2) -> 0.51469 | X130: =VLOOKUP($S130,NA_All!$AA$5:$AY$245,3*($C$8-1)+3) -> 1.2592 | Y130: =VLOOKUP($S130,NA_All!$AA$5:$AY$245,3*($C$8-1)+4) -> 2.5196 | Z130: =IF(AND($B$8=$A$20,$B$6=$A$48),$B$54,IF(ISNA(VLOOKUP($B$6,$A$25:$E$52,IF($B$8=$A$22,3,2),FALSE)),EXP(VLOOKUP($B$6,$A$25:$E$52,4,FALSE)*LN(VLOOKUP($H130,P_Hard!$A$5:$Y$204,3*($C$8-1)+3,FALSE)/1000)+VLOOKUP($B$6,$A$25:$E$52,5,FALSE)),VLOOKUP($B$6,$A$25:$E$52,IF($B$8=$A$22,3,2),FALSE))) -> 9.488108417
H131: 107 | I131: =VLOOKUP($H131,P_All!$A$5:$Y$204,3*($C$8-1)+2) -> 2.1967 | J131: =VLOOKUP($H131,P_All!$A$5:$Y$204,3*($C$8-1)+3) -> 4.4236 | K131: =VLOOKUP($H131,P_All!$A$5:$Y$204,3*($C$8-1)+4) -> 5.6005 | L131: =VLOOKUP($H131,NA_All!$A$5:$Y$204,3*($C$8-1)+2) -> 1.5197 | M131: =VLOOKUP($H131,NA_All!$A$5:$Y$204,3*($C$8-1)+3) -> 2.1908 | N131: =VLOOKUP($H131,NA_All!$A$5:$Y$204,3*($C$8-1)+4) -> 3.1238 | O131: =IF(ISNA(VLOOKUP($B$6,$A$25:$E$52,IF($B$8=$A$22,3,2))),EXP(VLOOKUP($B$6,$A$25:$E$52,4)*LN(VLOOKUP($H131,P_Hard!$A$5:$Y$204,3*($C$8-1)+2)/1000)+VLOOKUP($B$6,$A$25:$E$52,5)),NA()) -> 9.488108417 | P131: 9.765624442 | Q131: =IF(ISNA(VLOOKUP($B$6,$A$25:$E$52,IF($B$8=$A$22,3,2))),EXP(VLOOKUP($B$6,$A$25:$E$52,4)*LN(VLOOKUP($H131,P_Hard!$A$5:$Y$204,3*($C$8-1)+4)/1000)+VLOOKUP($B$6,$A$25:$E$52,5)),NA()) -> 9.488108417 | S131: 8.833333333 | T131: =VLOOKUP($S131,P_All!$AA$5:$AY$245,3*($C$8-1)+2) -> 0.47965 | U131: =VLOOKUP($S131,P_All!$AA$5:$AY$245,3*($C$8-1)+3) -> 1.1092 | V131: =VLOOKUP($S131,P_All!$AA$5:$AY$245,3*($C$8-1)+4) -> 2.6361 | W131: =VLOOKUP($S131,NA_All!$AA$5:$AY$245,3*($C$8-1)+2) -> 0.47978 | X131: =VLOOKUP($S131,NA_All!$AA$5:$AY$245,3*($C$8-1)+3) -> 1.1137 | Y131: =VLOOKUP($S131,NA_All!$AA$5:$AY$245,3*($C$8-1)+4) -> 2.6387 | Z131: =IF(AND($B$8=$A$20,$B$6=$A$48),$B$54,IF(ISNA(VLOOKUP($B$6,$A$25:$E$52,IF($B$8=$A$22,3,2),FALSE)),EXP(VLOOKUP($B$6,$A$25:$E$52,4,FALSE)*LN(VLOOKUP($H131,P_Hard!$A$5:$Y$204,3*($C$8-1)+3,FALSE)/1000)+VLOOKUP($B$6,$A$25:$E$52,5,FALSE)),VLOOKUP($B$6,$A$25:$E$52,IF($B$8=$A$22,3,2),FALSE))) -> 9.488108417
H132: 108 | I132: =VLOOKUP($H132,P_All!$A$5:$Y$204,3*($C$8-1)+2) -> 2.2033 | J132: =VLOOKUP($H132,P_All!$A$5:$Y$204,3*($C$8-1)+3) -> 4.5162 | K132: =VLOOKUP($H132,P_All!$A$5:$Y$204,3*($C$8-1)+4) -> 5.5859 | L132: =VLOOKUP($H132,NA_All!$A$5:$Y$204,3*($C$8-1)+2) -> 1.5299 | M132: =VLOOKUP($H132,NA_All!$A$5:$Y$204,3*($C$8-1)+3) -> 2.1969 | N132: =VLOOKUP($H132,NA_All!$A$5:$Y$204,3*($C$8-1)+4) -> 2.9522 | O132: =IF(ISNA(VLOOKUP($B$6,$A$25:$E$52,IF($B$8=$A$22,3,2))),EXP(VLOOKUP($B$6,$A$25:$E$52,4)*LN(VLOOKUP($H132,P_Hard!$A$5:$Y$204,3*($C$8-1)+2)/1000)+VLOOKUP($B$6,$A$25:$E$52,5)),NA()) -> 9.488108417 | P132: 9.765624442 | Q132: =IF(ISNA(VLOOKUP($B$6,$A$25:$E$52,IF($B$8=$A$22,3,2))),EXP(VLOOKUP($B$6,$A$25:$E$52,4)*LN(VLOOKUP($H132,P_Hard!$A$5:$Y$204,3*($C$8-1)+4)/1000)+VLOOKUP($B$6,$A$25:$E$52,5)),NA()) -> 9.488108417 | S132: 8.916666667 | T132: =VLOOKUP($S132,P_All!$AA$5:$AY$245,3*($C$8-1)+2) -> 0.60733 | U132: =VLOOKUP($S132,P_All!$AA$5:$AY$245,3*($C$8-1)+3) -> 1.1573 | V132: =VLOOKUP($S132,P_All!$AA$5:$AY$245,3*($C$8-1)+4) -> 2.238 | W132: =VLOOKUP($S132,NA_All!$AA$5:$AY$245,3*($C$8-1)+2) -> 0.60781 | X132: =VLOOKUP($S132,NA_All!$AA$5:$AY$245,3*($C$8-1)+3) -> 1.1653 | Y132: =VLOOKUP($S132,NA_All!$AA$5:$AY$245,3*($C$8-1)+4) -> 2.242 | Z132: =IF(AND($B$8=$A$20,$B$6=$A$48),$B$54,IF(ISNA(VLOOKUP($B$6,$A$25:$E$52,IF($B$8=$A$22,3,2),FALSE)),EXP(VLOOKUP($B$6,$A$25:$E$52,4,FALSE)*LN(VLOOKUP($H132,P_Hard!$A$5:$Y$204,3*($C$8-1)+3,FALSE)/1000)+VLOOKUP($B$6,$A$25:$E$52,5,FALSE)),VLOOKUP($B$6,$A$25:$E$52,IF($B$8=$A$22,3,2),FALSE))) -> 9.488108417
H133: 109 | I133: =VLOOKUP($H133,P_All!$A$5:$Y$204,3*($C$8-1)+2) -> 2.2358 | J133: =VLOOKUP($H133,P_All!$A$5:$Y$204,3*($C$8-1)+3) -> 4.4149 | K133: =VLOOKUP($H133,P_All!$A$5:$Y$204,3*($C$8-1)+4) -> 5.6254 | L133: =VLOOKUP($H133,NA_All!$A$5:$Y$204,3*($C$8-1)+2) -> 1.5258 | M133: =VLOOKUP($H133,NA_All!$A$5:$Y$204,3*($C$8-1)+3) -> 2.1918 | N133: =VLOOKUP($H133,NA_All!$A$5:$Y$204,3*($C$8-1)+4) -> 3.0722 | O133: =IF(ISNA(VLOOKUP($B$6,$A$25:$E$52,IF($B$8=$A$22,3,2))),EXP(VLOOKUP($B$6,$A$25:$E$52,4)*LN(VLOOKUP($H133,P_Hard!$A$5:$Y$204,3*($C$8-1)+2)/1000)+VLOOKUP($B$6,$A$25:$E$52,5)),NA()) -> 9.488108417 | P133: 9.765624442 | Q133: =IF(ISNA(VLOOKUP($B$6,$A$25:$E$52,IF($B$8=$A$22,3,2))),EXP(VLOOKUP($B$6,$A$25:$E$52,4)*LN(VLOOKUP($H133,P_Hard!$A$5:$Y$204,3*($C$8-1)+4)/1000)+VLOOKUP($B$6,$A$25:$E$52,5)),NA()) -> 9.488108417 | S133: 9 | T133: =VLOOKUP($S133,P_All!$AA$5:$AY$245,3*($C$8-1)+2) -> 0.91727 | U133: =VLOOKUP($S133,P_All!$AA$5:$AY$245,3*($C$8-1)+3) -> 1.479 | V133: =VLOOKUP($S133,P_All!$AA$5:$AY$245,3*($C$8-1)+4) -> 2.1492 | W133: =VLOOKUP($S133,NA_All!$AA$5:$AY$245,3*($C$8-1)+2) -> 0.92484 | X133: =VLOOKUP($S133,NA_All!$AA$5:$AY$245,3*($C$8-1)+3) -> 1.497 | Y133: =VLOOKUP($S133,NA_All!$AA$5:$AY$245,3*($C$8-1)+4) -> 2.1603 | Z133: =IF(AND($B$8=$A$20,$B$6=$A$48),$B$54,IF(ISNA(VLOOKUP($B$6,$A$25:$E$52,IF($B$8=$A$22,3,2),FALSE)),EXP(VLOOKUP($B$6,$A$25:$E$52,4,FALSE)*LN(VLOOKUP($H133,P_Hard!$A$5:$Y$204,3*($C$8-1)+3,FALSE)/1000)+VLOOKUP($B$6,$A$25:$E$52,5,FALSE)),VLOOKUP($B$6,$A$25:$E$52,IF($B$8=$A$22,3,2),FALSE))) -> 9.488108417
H134: 110 | I134: =VLOOKUP($H134,P_All!$A$5:$Y$204,3*($C$8-1)+2) -> 2.222 | J134: =VLOOKUP($H134,P_All!$A$5:$Y$204,3*($C$8-1)+3) -> 4.4215 | K134: =VLOOKUP($H134,P_All!$A$5:$Y$204,3*($C$8-1)+4) -> 5.4747 | L134: =VLOOKUP($H134,NA_All!$A$5:$Y$204,3*($C$8-1)+2) -> 1.5467 | M134: =VLOOKUP($H134,NA_All!$A$5:$Y$204,3*($C$8-1)+3) -> 2.1918 | N134: =VLOOKUP($H134,NA_All!$A$5:$Y$204,3*($C$8-1)+4) -> 2.9292 | O134: =IF(ISNA(VLOOKUP($B$6,$A$25:$E$52,IF($B$8=$A$22,3,2))),EXP(VLOOKUP($B$6,$A$25:$E$52,4)*LN(VLOOKUP($H134,P_Hard!$A$5:$Y$204,3*($C$8-1)+2)/1000)+VLOOKUP($B$6,$A$25:$E$52,5)),NA()) -> 9.488108417 | P134: 9.765624442 | Q134: =IF(ISNA(VLOOKUP($B$6,$A$25:$E$52,IF($B$8=$A$22,3,2))),EXP(VLOOKUP($B$6,$A$25:$E$52,4)*LN(VLOOKUP($H134,P_Hard!$A$5:$Y$204,3*($C$8-1)+4)/1000)+VLOOKUP($B$6,$A$25:$E$52,5)),NA()) -> 9.488108417 | S134: 9.083333333 | T134: =VLOOKUP($S134,P_All!$AA$5:$AY$245,3*($C$8-1)+2) -> 1.2228 | U134: =VLOOKUP($S134,P_All!$AA$5:$AY$245,3*($C$8-1)+3) -> 1.4865 | V134: =VLOOKUP($S134,P_All!$AA$5:$AY$245,3*($C$8-1)+4) -> 1.9551 | W134: =VLOOKUP($S134,NA_All!$AA$5:$AY$245,3*($C$8-1)+2) -> 1.2369 | X134: =VLOOKUP($S134,NA_All!$AA$5:$AY$245,3*($C$8-1)+3) -> 1.4962 | Y134: =VLOOKUP($S134,NA_All!$AA$5:$AY$245,3*($C$8-1)+4) -> 1.9668 | Z134: =IF(AND($B$8=$A$20,$B$6=$A$48),$B$54,IF(ISNA(VLOOKUP($B$6,$A$25:$E$52,IF($B$8=$A$22,3,2),FALSE)),EXP(VLOOKUP($B$6,$A$25:$E$52,4,FALSE)*LN(VLOOKUP($H134,P_Hard!$A$5:$Y$204,3*($C$8-1)+3,FALSE)/1000)+VLOOKUP($B$6,$A$25:$E$52,5,FALSE)),VLOOKUP($B$6,$A$25:$E$52,IF($B$8=$A$22,3,2),FALSE))) -> 9.488108417
H135: 111 | I135: =VLOOKUP($H135,P_All!$A$5:$Y$204,3*($C$8-1)+2) -> 2.0774 | J135: =VLOOKUP($H135,P_All!$A$5:$Y$204,3*($C$8-1)+3) -> 4.4868 | K135: =VLOOKUP($H135,P_All!$A$5:$Y$204,3*($C$8-1)+4) -> 5.6241 | L135: =VLOOKUP($H135,NA_All!$A$5:$Y$204,3*($C$8-1)+2) -> 1.4914 | M135: =VLOOKUP($H135,NA_All!$A$5:$Y$204,3*($C$8-1)+3) -> 2.1821 | N135: =VLOOKUP($H135,NA_All!$A$5:$Y$204,3*($C$8-1)+4) -> 2.9629 | O135: =IF(ISNA(VLOOKUP($B$6,$A$25:$E$52,IF($B$8=$A$22,3,2))),EXP(VLOOKUP($B$6,$A$25:$E$52,4)*LN(VLOOKUP($H135,P_Hard!$A$5:$Y$204,3*($C$8-1)+2)/1000)+VLOOKUP($B$6,$A$25:$E$52,5)),NA()) -> 9.488108417 | P135: 9.765624442 | Q135: =IF(ISNA(VLOOKUP($B$6,$A$25:$E$52,IF($B$8=$A$22,3,2))),EXP(VLOOKUP($B$6,$A$25:$E$52,4)*LN(VLOOKUP($H135,P_Hard!$A$5:$Y$204,3*($C$8-1)+4)/1000)+VLOOKUP($B$6,$A$25:$E$52,5)),NA()) -> 9.488108417 | S135: 9.166666667 | T135: =VLOOKUP($S135,P_All!$AA$5:$AY$245,3*($C$8-1)+2) -> 1.2481 | U135: =VLOOKUP($S135,P_All!$AA$5:$AY$245,3*($C$8-1)+3) -> 1.3895 | V135: =VLOOKUP($S135,P_All!$AA$5:$AY$245,3*($C$8-1)+4) -> 1.7864 | W135: =VLOOKUP($S135,NA_All!$AA$5:$AY$245,3*($C$8-1)+2) -> 1.2549 | X135: =VLOOKUP($S135,NA_All!$AA$5:$AY$245,3*($C$8-1)+3) -> 1.3977 | Y135: =VLOOKUP($S135,NA_All!$AA$5:$AY$245,3*($C$8-1)+4) -> 1.8195 | Z135: =IF(AND($B$8=$A$20,$B$6=$A$48),$B$54,IF(ISNA(VLOOKUP($B$6,$A$25:$E$52,IF($B$8=$A$22,3,2),FALSE)),EXP(VLOOKUP($B$6,$A$25:$E$52,4,FALSE)*LN(VLOOKUP($H135,P_Hard!$A$5:$Y$204,3*($C$8-1)+3,FALSE)/1000)+VLOOKUP($B$6,$A$25:$E$52,5,FALSE)),VLOOKUP($B$6,$A$25:$E$52,IF($B$8=$A$22,3,2),FALSE))) -> 9.488108417
H136: 112 | I136: =VLOOKUP($H136,P_All!$A$5:$Y$204,3*($C$8-1)+2) -> 2.1459 | J136: =VLOOKUP($H136,P_All!$A$5:$Y$204,3*($C$8-1)+3) -> 4.717 | K136: =VLOOKUP($H136,P_All!$A$5:$Y$204,3*($C$8-1)+4) -> 5.6213 | L136: =VLOOKUP($H136,NA_All!$A$5:$Y$204,3*($C$8-1)+2) -> 1.5334 | M136: =VLOOKUP($H136,NA_All!$A$5:$Y$204,3*($C$8-1)+3) -> 2.1964 | N136: =VLOOKUP($H136,NA_All!$A$5:$Y$204,3*($C$8-1)+4) -> 2.9216 | O136: =IF(ISNA(VLOOKUP($B$6,$A$25:$E$52,IF($B$8=$A$22,3,2))),EXP(VLOOKUP($B$6,$A$25:$E$52,4)*LN(VLOOKUP($H136,P_Hard!$A$5:$Y$204,3*($C$8-1)+2)/1000)+VLOOKUP($B$6,$A$25:$E$52,5)),NA()) -> 9.488108417 | P136: 9.765624442 | Q136: =IF(ISNA(VLOOKUP($B$6,$A$25:$E$52,IF($B$8=$A$22,3,2))),EXP(VLOOKUP($B$6,$A$25:$E$52,4)*LN(VLOOKUP($H136,P_Hard!$A$5:$Y$204,3*($C$8-1)+4)/1000)+VLOOKUP($B$6,$A$25:$E$52,5)),NA()) -> 9.488108417 | S136: 9.25 | T136: =VLOOKUP($S136,P_All!$AA$5:$AY$245,3*($C$8-1)+2) -> 0.92972 | U136: =VLOOKUP($S136,P_All!$AA$5:$AY$245,3*($C$8-1)+3) -> 1.4335 | V136: =VLOOKUP($S136,P_All!$AA$5:$AY$245,3*($C$8-1)+4) -> 1.9895 | W136: =VLOOKUP($S136,NA_All!$AA$5:$AY$245,3*($C$8-1)+2) -> 0.9387 | X136: =VLOOKUP($S136,NA_All!$AA$5:$AY$245,3*($C$8-1)+3) -> 1.4465 | Y136: =VLOOKUP($S136,NA_All!$AA$5:$AY$245,3*($C$8-1)+4) -> 1.9979 | Z136: =IF(AND($B$8=$A$20,$B$6=$A$48),$B$54,IF(ISNA(VLOOKUP($B$6,$A$25:$E$52,IF($B$8=$A$22,3,2),FALSE)),EXP(VLOOKUP($B$6,$A$25:$E$52,4,FALSE)*LN(VLOOKUP($H136,P_Hard!$A$5:$Y$204,3*($C$8-1)+3,FALSE)/1000)+VLOOKUP($B$6,$A$25:$E$52,5,FALSE)),VLOOKUP($B$6,$A$25:$E$52,IF($B$8=$A$22,3,2),FALSE))) -> 9.488108417
H137: 113 | I137: =VLOOKUP($H137,P_All!$A$5:$Y$204,3*($C$8-1)+2) -> 2.2774 | J137: =VLOOKUP($H137,P_All!$A$5:$Y$204,3*($C$8-1)+3) -> 4.5373 | K137: =VLOOKUP($H137,P_All!$A$5:$Y$204,3*($C$8-1)+4) -> 5.5353 | L137: =VLOOKUP($H137,NA_All!$A$5:$Y$204,3*($C$8-1)+2) -> 1.5544 | M137: =VLOOKUP($H137,NA_All!$A$5:$Y$204,3*($C$8-1)+3) -> 2.1778 | N137: =VLOOKUP($H137,NA_All!$A$5:$Y$204,3*($C$8-1)+4) -> 3.2438 | O137: =IF(ISNA(VLOOKUP($B$6,$A$25:$E$52,IF($B$8=$A$22,3,2))),EXP(VLOOKUP($B$6,$A$25:$E$52,4)*LN(VLOOKUP($H137,P_Hard!$A$5:$Y$204,3*($C$8-1)+2)/1000)+VLOOKUP($B$6,$A$25:$E$52,5)),NA()) -> 9.488108417 | P137: 9.765624442 | Q137: =IF(ISNA(VLOOKUP($B$6,$A$25:$E$52,IF($B$8=$A$22,3,2))),EXP(VLOOKUP($B$6,$A$25:$E$52,4)*LN(VLOOKUP($H137,P_Hard!$A$5:$Y$204,3*($C$8-1)+4)/1000)+VLOOKUP($B$6,$A$25:$E$52,5)),NA()) -> 9.488108417 | S137: 9.333333333 | T137: =VLOOKUP($S137,P_All!$AA$5:$AY$245,3*($C$8-1)+2) -> 0.39698 | U137: =VLOOKUP($S137,P_All!$AA$5:$AY$245,3*($C$8-1)+3) -> 1.0383 | V137: =VLOOKUP($S137,P_All!$AA$5:$AY$245,3*($C$8-1)+4) -> 2.838 | W137: =VLOOKUP($S137,NA_All!$AA$5:$AY$245,3*($C$8-1)+2) -> 0.39797 | X137: =VLOOKUP($S137,NA_All!$AA$5:$AY$245,3*($C$8-1)+3) -> 1.0386 | Y137: =VLOOKUP($S137,NA_All!$AA$5:$AY$245,3*($C$8-1)+4) -> 2.8457 | Z137: =IF(AND($B$8=$A$20,$B$6=$A$48),$B$54,IF(ISNA(VLOOKUP($B$6,$A$25:$E$52,IF($B$8=$A$22,3,2),FALSE)),EXP(VLOOKUP($B$6,$A$25:$E$52,4,FALSE)*LN(VLOOKUP($H137,P_Hard!$A$5:$Y$204,3*($C$8-1)+3,FALSE)/1000)+VLOOKUP($B$6,$A$25:$E$52,5,FALSE)),VLOOKUP($B$6,$A$25:$E$52,IF($B$8=$A$22,3,2),FALSE))) -> 9.488108417
H138: 114 | I138: =VLOOKUP($H138,P_All!$A$5:$Y$204,3*($C$8-1)+2) -> 2.0926 | J138: =VLOOKUP($H138,P_All!$A$5:$Y$204,3*($C$8-1)+3) -> 4.4018 | K138: =VLOOKUP($H138,P_All!$A$5:$Y$204,3*($C$8-1)+4) -> 5.5455 | L138: =VLOOKUP($H138,NA_All!$A$5:$Y$204,3*($C$8-1)+2) -> 1.4744 | M138: =VLOOKUP($H138,NA_All!$A$5:$Y$204,3*($C$8-1)+3) -> 2.1564 | N138: =VLOOKUP($H138,NA_All!$A$5:$Y$204,3*($C$8-1)+4) -> 2.9391 | O138: =IF(ISNA(VLOOKUP($B$6,$A$25:$E$52,IF($B$8=$A$22,3,2))),EXP(VLOOKUP($B$6,$A$25:$E$52,4)*LN(VLOOKUP($H138,P_Hard!$A$5:$Y$204,3*($C$8-1)+2)/1000)+VLOOKUP($B$6,$A$25:$E$52,5)),NA()) -> 9.488108417 | P138: 9.765624442 | Q138: =IF(ISNA(VLOOKUP($B$6,$A$25:$E$52,IF($B$8=$A$22,3,2))),EXP(VLOOKUP($B$6,$A$25:$E$52,4)*LN(VLOOKUP($H138,P_Hard!$A$5:$Y$204,3*($C$8-1)+4)/1000)+VLOOKUP($B$6,$A$25:$E$52,5)),NA()) -> 9.488108417 | S138: 9.416666667 | T138: =VLOOKUP($S138,P_All!$AA$5:$AY$245,3*($C$8-1)+2) -> 0.38282 | U138: =VLOOKUP($S138,P_All!$AA$5:$AY$245,3*($C$8-1)+3) -> 0.98648 | V138: =VLOOKUP($S138,P_All!$AA$5:$AY$245,3*($C$8-1)+4) -> 2.6185 | W138: =VLOOKUP($S138,NA_All!$AA$5:$AY$245,3*($C$8-1)+2) -> 0.38233 | X138: =VLOOKUP($S138,NA_All!$AA$5:$AY$245,3*($C$8-1)+3) -> 0.98561 | Y138: =VLOOKUP($S138,NA_All!$AA$5:$AY$245,3*($C$8-1)+4) -> 2.6196 | Z138: =IF(AND($B$8=$A$20,$B$6=$A$48),$B$54,IF(ISNA(VLOOKUP($B$6,$A$25:$E$52,IF($B$8=$A$22,3,2),FALSE)),EXP(VLOOKUP($B$6,$A$25:$E$52,4,FALSE)*LN(VLOOKUP($H138,P_Hard!$A$5:$Y$204,3*($C$8-1)+3,FALSE)/1000)+VLOOKUP($B$6,$A$25:$E$52,5,FALSE)),VLOOKUP($B$6,$A$25:$E$52,IF($B$8=$A$22,3,2),FALSE))) -> 9.488108417
H139: 115 | I139: =VLOOKUP($H139,P_All!$A$5:$Y$204,3*($C$8-1)+2) -> 2.1712 | J139: =VLOOKUP($H139,P_All!$A$5:$Y$204,3*($C$8-1)+3) -> 4.7219 | K139: =VLOOKUP($H139,P_All!$A$5:$Y$204,3*($C$8-1)+4) -> 5.6378 | L139: =VLOOKUP($H139,NA_All!$A$5:$Y$204,3*($C$8-1)+2) -> 1.509 | M139: =VLOOKUP($H139,NA_All!$A$5:$Y$204,3*($C$8-1)+3) -> 2.2157 | N139: =VLOOKUP($H139,NA_All!$A$5:$Y$204,3*($C$8-1)+4) -> 2.9465 | O139: =IF(ISNA(VLOOKUP($B$6,$A$25:$E$52,IF($B$8=$A$22,3,2))),EXP(VLOOKUP($B$6,$A$25:$E$52,4)*LN(VLOOKUP($H139,P_Hard!$A$5:$Y$204,3*($C$8-1)+2)/1000)+VLOOKUP($B$6,$A$25:$E$52,5)),NA()) -> 9.488108417 | P139: 9.765624442 | Q139: =IF(ISNA(VLOOKUP($B$6,$A$25:$E$52,IF($B$8=$A$22,3,2))),EXP(VLOOKUP($B$6,$A$25:$E$52,4)*LN(VLOOKUP($H139,P_Hard!$A$5:$Y$204,3*($C$8-1)+4)/1000)+VLOOKUP($B$6,$A$25:$E$52,5)),NA()) -> 9.488108417 | S139: 9.5 | T139: =VLOOKUP($S139,P_All!$AA$5:$AY$245,3*($C$8-1)+2) -> 0.49589 | U139: =VLOOKUP($S139,P_All!$AA$5:$AY$245,3*($C$8-1)+3) -> 1.2183 | V139: =VLOOKUP($S139,P_All!$AA$5:$AY$245,3*($C$8-1)+4) -> 2.5739 | W139: =VLOOKUP($S139,NA_All!$AA$5:$AY$245,3*($C$8-1)+2) -> 0.49631 | X139: =VLOOKUP($S139,NA_All!$AA$5:$AY$245,3*($C$8-1)+3) -> 1.2358 | Y139: =VLOOKUP($S139,NA_All!$AA$5:$AY$245,3*($C$8-1)+4) -> 2.5824 | Z139: =IF(AND($B$8=$A$20,$B$6=$A$48),$B$54,IF(ISNA(VLOOKUP($B$6,$A$25:$E$52,IF($B$8=$A$22,3,2),FALSE)),EXP(VLOOKUP($B$6,$A$25:$E$52,4,FALSE)*LN(VLOOKUP($H139,P_Hard!$A$5:$Y$204,3*($C$8-1)+3,FALSE)/1000)+VLOOKUP($B$6,$A$25:$E$52,5,FALSE)),VLOOKUP($B$6,$A$25:$E$52,IF($B$8=$A$22,3,2),FALSE))) -> 9.488108417
H140: 116 | I140: =VLOOKUP($H140,P_All!$A$5:$Y$204,3*($C$8-1)+2) -> 2.1755 | J140: =VLOOKUP($H140,P_All!$A$5:$Y$204,3*($C$8-1)+3) -> 4.5329 | K140: =VLOOKUP($H140,P_All!$A$5:$Y$204,3*($C$8-1)+4) -> 5.5035 | L140: =VLOOKUP($H140,NA_All!$A$5:$Y$204,3*($C$8-1)+2) -> 1.5143 | M140: =VLOOKUP($H140,NA_All!$A$5:$Y$204,3*($C$8-1)+3) -> 2.1806 | N140: =VLOOKUP($H140,NA_All!$A$5:$Y$204,3*($C$8-1)+4) -> 2.9658 | O140: =IF(ISNA(VLOOKUP($B$6,$A$25:$E$52,IF($B$8=$A$22,3,2))),EXP(VLOOKUP($B$6,$A$25:$E$52,4)*LN(VLOOKUP($H140,P_Hard!$A$5:$Y$204,3*($C$8-1)+2)/1000)+VLOOKUP($B$6,$A$25:$E$52,5)),NA()) -> 9.488108417 | P140: 9.765624442 | Q140: =IF(ISNA(VLOOKUP($B$6,$A$25:$E$52,IF($B$8=$A$22,3,2))),EXP(VLOOKUP($B$6,$A$25:$E$52,4)*LN(VLOOKUP($H140,P_Hard!$A$5:$Y$204,3*($C$8-1)+4)/1000)+VLOOKUP($B$6,$A$25:$E$52,5)),NA()) -> 9.488108417 | S140: 9.583333333 | T140: =VLOOKUP($S140,P_All!$AA$5:$AY$245,3*($C$8-1)+2) -> 0.6518 | U140: =VLOOKUP($S140,P_All!$AA$5:$AY$245,3*($C$8-1)+3) -> 1.334 | V140: =VLOOKUP($S140,P_All!$AA$5:$AY$245,3*($C$8-1)+4) -> 2.4009 | W140: =VLOOKUP($S140,NA_All!$AA$5:$AY$245,3*($C$8-1)+2) -> 0.65191 | X140: =VLOOKUP($S140,NA_All!$AA$5:$AY$245,3*($C$8-1)+3) -> 1.3397 | Y140: =VLOOKUP($S140,NA_All!$AA$5:$AY$245,3*($C$8-1)+4) -> 2.405 | Z140: =IF(AND($B$8=$A$20,$B$6=$A$48),$B$54,IF(ISNA(VLOOKUP($B$6,$A$25:$E$52,IF($B$8=$A$22,3,2),FALSE)),EXP(VLOOKUP($B$6,$A$25:$E$52,4,FALSE)*LN(VLOOKUP($H140,P_Hard!$A$5:$Y$204,3*($C$8-1)+3,FALSE)/1000)+VLOOKUP($B$6,$A$25:$E$52,5,FALSE)),VLOOKUP($B$6,$A$25:$E$52,IF($B$8=$A$22,3,2),FALSE))) -> 9.488108417
H141: 117 | I141: =VLOOKUP($H141,P_All!$A$5:$Y$204,3*($C$8-1)+2) -> 2.2898 | J141: =VLOOKUP($H141,P_All!$A$5:$Y$204,3*($C$8-1)+3) -> 4.6358 | K141: =VLOOKUP($H141,P_All!$A$5:$Y$204,3*($C$8-1)+4) -> 5.5325 | L141: =VLOOKUP($H141,NA_All!$A$5:$Y$204,3*($C$8-1)+2) -> 1.6238 | M141: =VLOOKUP($H141,NA_All!$A$5:$Y$204,3*($C$8-1)+3) -> 2.2028 | N141: =VLOOKUP($H141,NA_All!$A$5:$Y$204,3*($C$8-1)+4) -> 2.952 | O141: =IF(ISNA(VLOOKUP($B$6,$A$25:$E$52,IF($B$8=$A$22,3,2))),EXP(VLOOKUP($B$6,$A$25:$E$52,4)*LN(VLOOKUP($H141,P_Hard!$A$5:$Y$204,3*($C$8-1)+2)/1000)+VLOOKUP($B$6,$A$25:$E$52,5)),NA()) -> 9.488108417 | P141: 9.765624442 | Q141: =IF(ISNA(VLOOKUP($B$6,$A$25:$E$52,IF($B$8=$A$22,3,2))),EXP(VLOOKUP($B$6,$A$25:$E$52,4)*LN(VLOOKUP($H141,P_Hard!$A$5:$Y$204,3*($C$8-1)+4)/1000)+VLOOKUP($B$6,$A$25:$E$52,5)),NA()) -> 9.488108417 | S141: 9.666666667 | T141: =VLOOKUP($S141,P_All!$AA$5:$AY$245,3*($C$8-1)+2) -> 0.48752 | U141: =VLOOKUP($S141,P_All!$AA$5:$AY$245,3*($C$8-1)+3) -> 1.1927 | V141: =VLOOKUP($S141,P_All!$AA$5:$AY$245,3*($C$8-1)+4) -> 2.3887 | W141: =VLOOKUP($S141,NA_All!$AA$5:$AY$245,3*($C$8-1)+2) -> 0.48742 | X141: =VLOOKUP($S141,NA_All!$AA$5:$AY$245,3*($C$8-1)+3) -> 1.1967 | Y141: =VLOOKUP($S141,NA_All!$AA$5:$AY$245,3*($C$8-1)+4) -> 2.393 | Z141: =IF(AND($B$8=$A$20,$B$6=$A$48),$B$54,IF(ISNA(VLOOKUP($B$6,$A$25:$E$52,IF($B$8=$A$22,3,2),FALSE)),EXP(VLOOKUP($B$6,$A$25:$E$52,4,FALSE)*LN(VLOOKUP($H141,P_Hard!$A$5:$Y$204,3*($C$8-1)+3,FALSE)/1000)+VLOOKUP($B$6,$A$25:$E$52,5,FALSE)),VLOOKUP($B$6,$A$25:$E$52,IF($B$8=$A$22,3,2),FALSE))) -> 9.488108417
H142: 118 | I142: =VLOOKUP($H142,P_All!$A$5:$Y$204,3*($C$8-1)+2) -> 2.1343 | J142: =VLOOKUP($H142,P_All!$A$5:$Y$204,3*($C$8-1)+3) -> 4.4712 | K142: =VLOOKUP($H142,P_All!$A$5:$Y$204,3*($C$8-1)+4) -> 5.6467 | L142: =VLOOKUP($H142,NA_All!$A$5:$Y$204,3*($C$8-1)+2) -> 1.4769 | M142: =VLOOKUP($H142,NA_All!$A$5:$Y$204,3*($C$8-1)+3) -> 2.1695 | N142: =VLOOKUP($H142,NA_All!$A$5:$Y$204,3*($C$8-1)+4) -> 3.1782 | O142: =IF(ISNA(VLOOKUP($B$6,$A$25:$E$52,IF($B$8=$A$22,3,2))),EXP(VLOOKUP($B$6,$A$25:$E$52,4)*LN(VLOOKUP($H142,P_Hard!$A$5:$Y$204,3*($C$8-1)+2)/1000)+VLOOKUP($B$6,$A$25:$E$52,5)),NA()) -> 9.488108417 | P142: 9.765624442 | Q142: =IF(ISNA(VLOOKUP($B$6,$A$25:$E$52,IF($B$8=$A$22,3,2))),EXP(VLOOKUP($B$6,$A$25:$E$52,4)*LN(VLOOKUP($H142,P_Hard!$A$5:$Y$204,3*($C$8-1)+4)/1000)+VLOOKUP($B$6,$A$25:$E$52,5)),NA()) -> 9.488108417 | S142: 9.75 | T142: =VLOOKUP($S142,P_All!$AA$5:$AY$245,3*($C$8-1)+2) -> 0.50907 | U142: =VLOOKUP($S142,P_All!$AA$5:$AY$245,3*($C$8-1)+3) -> 1.2035 | V142: =VLOOKUP($S142,P_All!$AA$5:$AY$245,3*($C$8-1)+4) -> 2.4811 | W142: =VLOOKUP($S142,NA_All!$AA$5:$AY$245,3*($C$8-1)+2) -> 0.50926 | X142: =VLOOKUP($S142,NA_All!$AA$5:$AY$245,3*($C$8-1)+3) -> 1.2053 | Y142: =VLOOKUP($S142,NA_All!$AA$5:$AY$245,3*($C$8-1)+4) -> 2.484 | Z142: =IF(AND($B$8=$A$20,$B$6=$A$48),$B$54,IF(ISNA(VLOOKUP($B$6,$A$25:$E$52,IF($B$8=$A$22,3,2),FALSE)),EXP(VLOOKUP($B$6,$A$25:$E$52,4,FALSE)*LN(VLOOKUP($H142,P_Hard!$A$5:$Y$204,3*($C$8-1)+3,FALSE)/1000)+VLOOKUP($B$6,$A$25:$E$52,5,FALSE)),VLOOKUP($B$6,$A$25:$E$52,IF($B$8=$A$22,3,2),FALSE))) -> 9.488108417
H143: 119 | I143: =VLOOKUP($H143,P_All!$A$5:$Y$204,3*($C$8-1)+2) -> 2.1051 | J143: =VLOOKUP($H143,P_All!$A$5:$Y$204,3*($C$8-1)+3) -> 4.6451 | K143: =VLOOKUP($H143,P_All!$A$5:$Y$204,3*($C$8-1)+4) -> 5.5001 | L143: =VLOOKUP($H143,NA_All!$A$5:$Y$204,3*($C$8-1)+2) -> 1.4872 | M143: =VLOOKUP($H143,NA_All!$A$5:$Y$204,3*($C$8-1)+3) -> 2.1695 | N143: =VLOOKUP($H143,NA_All!$A$5:$Y$204,3*($C$8-1)+4) -> 3.0777 | O143: =IF(ISNA(VLOOKUP($B$6,$A$25:$E$52,IF($B$8=$A$22,3,2))),EXP(VLOOKUP($B$6,$A$25:$E$52,4)*LN(VLOOKUP($H143,P_Hard!$A$5:$Y$204,3*($C$8-1)+2)/1000)+VLOOKUP($B$6,$A$25:$E$52,5)),NA()) -> 9.488108417 | P143: 9.765624442 | Q143: =IF(ISNA(VLOOKUP($B$6,$A$25:$E$52,IF($B$8=$A$22,3,2))),EXP(VLOOKUP($B$6,$A$25:$E$52,4)*LN(VLOOKUP($H143,P_Hard!$A$5:$Y$204,3*($C$8-1)+4)/1000)+VLOOKUP($B$6,$A$25:$E$52,5)),NA()) -> 9.488108417 | S143: 9.833333333 | T143: =VLOOKUP($S143,P_All!$AA$5:$AY$245,3*($C$8-1)+2) -> 0.4862 | U143: =VLOOKUP($S143,P_All!$AA$5:$AY$245,3*($C$8-1)+3) -> 1.0611 | V143: =VLOOKUP($S143,P_All!$AA$5:$AY$245,3*($C$8-1)+4) -> 2.4681 | W143: =VLOOKUP($S143,NA_All!$AA$5:$AY$245,3*($C$8-1)+2) -> 0.48696 | X143: =VLOOKUP($S143,NA_All!$AA$5:$AY$245,3*($C$8-1)+3) -> 1.0644 | Y143: =VLOOKUP($S143,NA_All!$AA$5:$AY$245,3*($C$8-1)+4) -> 2.4728 | Z143: =IF(AND($B$8=$A$20,$B$6=$A$48),$B$54,IF(ISNA(VLOOKUP($B$6,$A$25:$E$52,IF($B$8=$A$22,3,2),FALSE)),EXP(VLOOKUP($B$6,$A$25:$E$52,4,FALSE)*LN(VLOOKUP($H143,P_Hard!$A$5:$Y$204,3*($C$8-1)+3,FALSE)/1000)+VLOOKUP($B$6,$A$25:$E$52,5,FALSE)),VLOOKUP($B$6,$A$25:$E$52,IF($B$8=$A$22,3,2),FALSE))) -> 9.488108417
H144: 120 | I144: =VLOOKUP($H144,P_All!$A$5:$Y$204,3*($C$8-1)+2) -> 2.2271 | J144: =VLOOKUP($H144,P_All!$A$5:$Y$204,3*($C$8-1)+3) -> 4.7166 | K144: =VLOOKUP($H144,P_All!$A$5:$Y$204,3*($C$8-1)+4) -> 5.6272 | L144: =VLOOKUP($H144,NA_All!$A$5:$Y$204,3*($C$8-1)+2) -> 1.5075 | M144: =VLOOKUP($H144,NA_All!$A$5:$Y$204,3*($C$8-1)+3) -> 2.1823 | N144: =VLOOKUP($H144,NA_All!$A$5:$Y$204,3*($C$8-1)+4) -> 3.2871 | O144: =IF(ISNA(VLOOKUP($B$6,$A$25:$E$52,IF($B$8=$A$22,3,2))),EXP(VLOOKUP($B$6,$A$25:$E$52,4)*LN(VLOOKUP($H144,P_Hard!$A$5:$Y$204,3*($C$8-1)+2)/1000)+VLOOKUP($B$6,$A$25:$E$52,5)),NA()) -> 9.488108417 | P144: 9.765624442 | Q144: =IF(ISNA(VLOOKUP($B$6,$A$25:$E$52,IF($B$8=$A$22,3,2))),EXP(VLOOKUP($B$6,$A$25:$E$52,4)*LN(VLOOKUP($H144,P_Hard!$A$5:$Y$204,3*($C$8-1)+4)/1000)+VLOOKUP($B$6,$A$25:$E$52,5)),NA()) -> 9.488108417 | S144: 9.916666667 | T144: =VLOOKUP($S144,P_All!$AA$5:$AY$245,3*($C$8-1)+2) -> 0.58678 | U144: =VLOOKUP($S144,P_All!$AA$5:$AY$245,3*($C$8-1)+3) -> 1.1745 | V144: =VLOOKUP($S144,P_All!$AA$5:$AY$245,3*($C$8-1)+4) -> 2.4718 | W144: =VLOOKUP($S144,NA_All!$AA$5:$AY$245,3*($C$8-1)+2) -> 0.58849 | X144: =VLOOKUP($S144,NA_All!$AA$5:$AY$245,3*($C$8-1)+3) -> 1.1826 | Y144: =VLOOKUP($S144,NA_All!$AA$5:$AY$245,3*($C$8-1)+4) -> 2.4774 | Z144: =IF(AND($B$8=$A$20,$B$6=$A$48),$B$54,IF(ISNA(VLOOKUP($B$6,$A$25:$E$52,IF($B$8=$A$22,3,2),FALSE)),EXP(VLOOKUP($B$6,$A$25:$E$52,4,FALSE)*LN(VLOOKUP($H144,P_Hard!$A$5:$Y$204,3*($C$8-1)+3,FALSE)/1000)+VLOOKUP($B$6,$A$25:$E$52,5,FALSE)),VLOOKUP($B$6,$A$25:$E$52,IF($B$8=$A$22,3,2),FALSE))) -> 9.488108417
H145: 121 | I145: =VLOOKUP($H145,P_All!$A$5:$Y$204,3*($C$8-1)+2) -> 2.1695 | J145: =VLOOKUP($H145,P_All!$A$5:$Y$204,3*($C$8-1)+3) -> 4.6136 | K145: =VLOOKUP($H145,P_All!$A$5:$Y$204,3*($C$8-1)+4) -> 5.6794 | L145: =VLOOKUP($H145,NA_All!$A$5:$Y$204,3*($C$8-1)+2) -> 1.5071 | M145: =VLOOKUP($H145,NA_All!$A$5:$Y$204,3*($C$8-1)+3) -> 2.1859 | N145: =VLOOKUP($H145,NA_All!$A$5:$Y$204,3*($C$8-1)+4) -> 2.9365 | O145: =IF(ISNA(VLOOKUP($B$6,$A$25:$E$52,IF($B$8=$A$22,3,2))),EXP(VLOOKUP($B$6,$A$25:$E$52,4)*LN(VLOOKUP($H145,P_Hard!$A$5:$Y$204,3*($C$8-1)+2)/1000)+VLOOKUP($B$6,$A$25:$E$52,5)),NA()) -> 9.488108417 | P145: 9.765624442 | Q145: =IF(ISNA(VLOOKUP($B$6,$A$25:$E$52,IF($B$8=$A$22,3,2))),EXP(VLOOKUP($B$6,$A$25:$E$52,4)*LN(VLOOKUP($H145,P_Hard!$A$5:$Y$204,3*($C$8-1)+4)/1000)+VLOOKUP($B$6,$A$25:$E$52,5)),NA()) -> 9.488108417 | S145: 10 | T145: =VLOOKUP($S145,P_All!$AA$5:$AY$245,3*($C$8-1)+2) -> 0.94204 | U145: =VLOOKUP($S145,P_All!$AA$5:$AY$245,3*($C$8-1)+3) -> 1.4645 | V145: =VLOOKUP($S145,P_All!$AA$5:$AY$245,3*($C$8-1)+4) -> 2.2911 | W145: =VLOOKUP($S145,NA_All!$AA$5:$AY$245,3*($C$8-1)+2) -> 0.94998 | X145: =VLOOKUP($S145,NA_All!$AA$5:$AY$245,3*($C$8-1)+3) -> 1.4798 | Y145: =VLOOKUP($S145,NA_All!$AA$5:$AY$245,3*($C$8-1)+4) -> 2.2962 | Z145: =IF(AND($B$8=$A$20,$B$6=$A$48),$B$54,IF(ISNA(VLOOKUP($B$6,$A$25:$E$52,IF($B$8=$A$22,3,2),FALSE)),EXP(VLOOKUP($B$6,$A$25:$E$52,4,FALSE)*LN(VLOOKUP($H145,P_Hard!$A$5:$Y$204,3*($C$8-1)+3,FALSE)/1000)+VLOOKUP($B$6,$A$25:$E$52,5,FALSE)),VLOOKUP($B$6,$A$25:$E$52,IF($B$8=$A$22,3,2),FALSE))) -> 9.488108417
H146: 122 | I146: =VLOOKUP($H146,P_All!$A$5:$Y$204,3*($C$8-1)+2) -> 2.2707 | J146: =VLOOKUP($H146,P_All!$A$5:$Y$204,3*($C$8-1)+3) -> 4.6141 | K146: =VLOOKUP($H146,P_All!$A$5:$Y$204,3*($C$8-1)+4) -> 5.6622 | L146: =VLOOKUP($H146,NA_All!$A$5:$Y$204,3*($C$8-1)+2) -> 1.6428 | M146: =VLOOKUP($H146,NA_All!$A$5:$Y$204,3*($C$8-1)+3) -> 2.2078 | N146: =VLOOKUP($H146,NA_All!$A$5:$Y$204,3*($C$8-1)+4) -> 3.2913 | O146: =IF(ISNA(VLOOKUP($B$6,$A$25:$E$52,IF($B$8=$A$22,3,2))),EXP(VLOOKUP($B$6,$A$25:$E$52,4)*LN(VLOOKUP($H146,P_Hard!$A$5:$Y$204,3*($C$8-1)+2)/1000)+VLOOKUP($B$6,$A$25:$E$52,5)),NA()) -> 9.488108417 | P146: 9.765624442 | Q146: =IF(ISNA(VLOOKUP($B$6,$A$25:$E$52,IF($B$8=$A$22,3,2))),EXP(VLOOKUP($B$6,$A$25:$E$52,4)*LN(VLOOKUP($H146,P_Hard!$A$5:$Y$204,3*($C$8-1)+4)/1000)+VLOOKUP($B$6,$A$25:$E$52,5)),NA()) -> 9.488108417 | S146: 10.08333333 | T146: =VLOOKUP($S146,P_All!$AA$5:$AY$245,3*($C$8-1)+2) -> 1.2244 | U146: =VLOOKUP($S146,P_All!$AA$5:$AY$245,3*($C$8-1)+3) -> 1.486 | V146: =VLOOKUP($S146,P_All!$AA$5:$AY$245,3*($C$8-1)+4) -> 1.8651 | W146: =VLOOKUP($S146,NA_All!$AA$5:$AY$245,3*($C$8-1)+2) -> 1.2355 | X146: =VLOOKUP($S146,NA_All!$AA$5:$AY$245,3*($C$8-1)+3) -> 1.4978 | Y146: =VLOOKUP($S146,NA_All!$AA$5:$AY$245,3*($C$8-1)+4) -> 1.882 | Z146: =IF(AND($B$8=$A$20,$B$6=$A$48),$B$54,IF(ISNA(VLOOKUP($B$6,$A$25:$E$52,IF($B$8=$A$22,3,2),FALSE)),EXP(VLOOKUP($B$6,$A$25:$E$52,4,FALSE)*LN(VLOOKUP($H146,P_Hard!$A$5:$Y$204,3*($C$8-1)+3,FALSE)/1000)+VLOOKUP($B$6,$A$25:$E$52,5,FALSE)),VLOOKUP($B$6,$A$25:$E$52,IF($B$8=$A$22,3,2),FALSE))) -> 9.488108417
H147: 123 | I147: =VLOOKUP($H147,P_All!$A$5:$Y$204,3*($C$8-1)+2) -> 2.1907 | J147: =VLOOKUP($H147,P_All!$A$5:$Y$204,3*($C$8-1)+3) -> 4.5842 | K147: =VLOOKUP($H147,P_All!$A$5:$Y$204,3*($C$8-1)+4) -> 5.3973 | L147: =VLOOKUP($H147,NA_All!$A$5:$Y$204,3*($C$8-1)+2) -> 1.5212 | M147: =VLOOKUP($H147,NA_All!$A$5:$Y$204,3*($C$8-1)+3) -> 2.1631 | N147: =VLOOKUP($H147,NA_All!$A$5:$Y$204,3*($C$8-1)+4) -> 3.4202 | O147: =IF(ISNA(VLOOKUP($B$6,$A$25:$E$52,IF($B$8=$A$22,3,2))),EXP(VLOOKUP($B$6,$A$25:$E$52,4)*LN(VLOOKUP($H147,P_Hard!$A$5:$Y$204,3*($C$8-1)+2)/1000)+VLOOKUP($B$6,$A$25:$E$52,5)),NA()) -> 9.488108417 | P147: 9.765624442 | Q147: =IF(ISNA(VLOOKUP($B$6,$A$25:$E$52,IF($B$8=$A$22,3,2))),EXP(VLOOKUP($B$6,$A$25:$E$52,4)*LN(VLOOKUP($H147,P_Hard!$A$5:$Y$204,3*($C$8-1)+4)/1000)+VLOOKUP($B$6,$A$25:$E$52,5)),NA()) -> 9.488108417 | S147: 10.16666667 | T147: =VLOOKUP($S147,P_All!$AA$5:$AY$245,3*($C$8-1)+2) -> 1.2374 | U147: =VLOOKUP($S147,P_All!$AA$5:$AY$245,3*($C$8-1)+3) -> 1.3861 | V147: =VLOOKUP($S147,P_All!$AA$5:$AY$245,3*($C$8-1)+4) -> 1.7606 | W147: =VLOOKUP($S147,NA_All!$AA$5:$AY$245,3*($C$8-1)+2) -> 1.2443 | X147: =VLOOKUP($S147,NA_All!$AA$5:$AY$245,3*($C$8-1)+3) -> 1.3961 | Y147: =VLOOKUP($S147,NA_All!$AA$5:$AY$245,3*($C$8-1)+4) -> 1.7813 | Z147: =IF(AND($B$8=$A$20,$B$6=$A$48),$B$54,IF(ISNA(VLOOKUP($B$6,$A$25:$E$52,IF($B$8=$A$22,3,2),FALSE)),EXP(VLOOKUP($B$6,$A$25:$E$52,4,FALSE)*LN(VLOOKUP($H147,P_Hard!$A$5:$Y$204,3*($C$8-1)+3,FALSE)/1000)+VLOOKUP($B$6,$A$25:$E$52,5,FALSE)),VLOOKUP($B$6,$A$25:$E$52,IF($B$8=$A$22,3,2),FALSE))) -> 9.488108417
H148: 124 | I148: =VLOOKUP($H148,P_All!$A$5:$Y$204,3*($C$8-1)+2) -> 2.2064 | J148: =VLOOKUP($H148,P_All!$A$5:$Y$204,3*($C$8-1)+3) -> 4.2233 | K148: =VLOOKUP($H148,P_All!$A$5:$Y$204,3*($C$8-1)+4) -> 5.5784 | L148: =VLOOKUP($H148,NA_All!$A$5:$Y$204,3*($C$8-1)+2) -> 1.5615 | M148: =VLOOKUP($H148,NA_All!$A$5:$Y$204,3*($C$8-1)+3) -> 2.2046 | N148: =VLOOKUP($H148,NA_All!$A$5:$Y$204,3*($C$8-1)+4) -> 3.0178 | O148: =IF(ISNA(VLOOKUP($B$6,$A$25:$E$52,IF($B$8=$A$22,3,2))),EXP(VLOOKUP($B$6,$A$25:$E$52,4)*LN(VLOOKUP($H148,P_Hard!$A$5:$Y$204,3*($C$8-1)+2)/1000)+VLOOKUP($B$6,$A$25:$E$52,5)),NA()) -> 9.488108417 | P148: 9.765624442 | Q148: =IF(ISNA(VLOOKUP($B$6,$A$25:$E$52,IF($B$8=$A$22,3,2))),EXP(VLOOKUP($B$6,$A$25:$E$52,4)*LN(VLOOKUP($H148,P_Hard!$A$5:$Y$204,3*($C$8-1)+4)/1000)+VLOOKUP($B$6,$A$25:$E$52,5)),NA()) -> 9.488108417 | S148: 10.25 | T148: =VLOOKUP($S148,P_All!$AA$5:$AY$245,3*($C$8-1)+2) -> 0.82097 | U148: =VLOOKUP($S148,P_All!$AA$5:$AY$245,3*($C$8-1)+3) -> 1.381 | V148: =VLOOKUP($S148,P_All!$AA$5:$AY$245,3*($C$8-1)+4) -> 1.9432 | W148: =VLOOKUP($S148,NA_All!$AA$5:$AY$245,3*($C$8-1)+2) -> 0.82227 | X148: =VLOOKUP($S148,NA_All!$AA$5:$AY$245,3*($C$8-1)+3) -> 1.3906 | Y148: =VLOOKUP($S148,NA_All!$AA$5:$AY$245,3*($C$8-1)+4) -> 1.9733 | Z148: =IF(AND($B$8=$A$20,$B$6=$A$48),$B$54,IF(ISNA(VLOOKUP($B$6,$A$25:$E$52,IF($B$8=$A$22,3,2),FALSE)),EXP(VLOOKUP($B$6,$A$25:$E$52,4,FALSE)*LN(VLOOKUP($H148,P_Hard!$A$5:$Y$204,3*($C$8-1)+3,FALSE)/1000)+VLOOKUP($B$6,$A$25:$E$52,5,FALSE)),VLOOKUP($B$6,$A$25:$E$52,IF($B$8=$A$22,3,2),FALSE))) -> 9.488108417
H149: 125 | I149: =VLOOKUP($H149,P_All!$A$5:$Y$204,3*($C$8-1)+2) -> 2.3422 | J149: =VLOOKUP($H149,P_All!$A$5:$Y$204,3*($C$8-1)+3) -> 4.6696 | K149: =VLOOKUP($H149,P_All!$A$5:$Y$204,3*($C$8-1)+4) -> 5.5743 | L149: =VLOOKUP($H149,NA_All!$A$5:$Y$204,3*($C$8-1)+2) -> 1.6673 | M149: =VLOOKUP($H149,NA_All!$A$5:$Y$204,3*($C$8-1)+3) -> 2.2135 | N149: =VLOOKUP($H149,NA_All!$A$5:$Y$204,3*($C$8-1)+4) -> 3.2107 | O149: =IF(ISNA(VLOOKUP($B$6,$A$25:$E$52,IF($B$8=$A$22,3,2))),EXP(VLOOKUP($B$6,$A$25:$E$52,4)*LN(VLOOKUP($H149,P_Hard!$A$5:$Y$204,3*($C$8-1)+2)/1000)+VLOOKUP($B$6,$A$25:$E$52,5)),NA()) -> 9.488108417 | P149: 9.765624442 | Q149: =IF(ISNA(VLOOKUP($B$6,$A$25:$E$52,IF($B$8=$A$22,3,2))),EXP(VLOOKUP($B$6,$A$25:$E$52,4)*LN(VLOOKUP($H149,P_Hard!$A$5:$Y$204,3*($C$8-1)+4)/1000)+VLOOKUP($B$6,$A$25:$E$52,5)),NA()) -> 9.488108417 | S149: 10.33333333 | T149: =VLOOKUP($S149,P_All!$AA$5:$AY$245,3*($C$8-1)+2) -> 0.4191 | U149: =VLOOKUP($S149,P_All!$AA$5:$AY$245,3*($C$8-1)+3) -> 1.0497 | V149: =VLOOKUP($S149,P_All!$AA$5:$AY$245,3*($C$8-1)+4) -> 2.8861 | W149: =VLOOKUP($S149,NA_All!$AA$5:$AY$245,3*($C$8-1)+2) -> 0.42057 | X149: =VLOOKUP($S149,NA_All!$AA$5:$AY$245,3*($C$8-1)+3) -> 1.0571 | Y149: =VLOOKUP($S149,NA_All!$AA$5:$AY$245,3*($C$8-1)+4) -> 2.8881 | Z149: =IF(AND($B$8=$A$20,$B$6=$A$48),$B$54,IF(ISNA(VLOOKUP($B$6,$A$25:$E$52,IF($B$8=$A$22,3,2),FALSE)),EXP(VLOOKUP($B$6,$A$25:$E$52,4,FALSE)*LN(VLOOKUP($H149,P_Hard!$A$5:$Y$204,3*($C$8-1)+3,FALSE)/1000)+VLOOKUP($B$6,$A$25:$E$52,5,FALSE)),VLOOKUP($B$6,$A$25:$E$52,IF($B$8=$A$22,3,2),FALSE))) -> 9.488108417
H150: 126 | I150: =VLOOKUP($H150,P_All!$A$5:$Y$204,3*($C$8-1)+2) -> 2.1872 | J150: =VLOOKUP($H150,P_All!$A$5:$Y$204,3*($C$8-1)+3) -> 4.3208 | K150: =VLOOKUP($H150,P_All!$A$5:$Y$204,3*($C$8-1)+4) -> 5.5896 | L150: =VLOOKUP($H150,NA_All!$A$5:$Y$204,3*($C$8-1)+2) -> 1.5532 | M150: =VLOOKUP($H150,NA_All!$A$5:$Y$204,3*($C$8-1)+3) -> 2.2102 | N150: =VLOOKUP($H150,NA_All!$A$5:$Y$204,3*($C$8-1)+4) -> 2.8466 | O150: =IF(ISNA(VLOOKUP($B$6,$A$25:$E$52,IF($B$8=$A$22,3,2))),EXP(VLOOKUP($B$6,$A$25:$E$52,4)*LN(VLOOKUP($H150,P_Hard!$A$5:$Y$204,3*($C$8-1)+2)/1000)+VLOOKUP($B$6,$A$25:$E$52,5)),NA()) -> 9.488108417 | P150: 9.765624442 | Q150: =IF(ISNA(VLOOKUP($B$6,$A$25:$E$52,IF($B$8=$A$22,3,2))),EXP(VLOOKUP($B$6,$A$25:$E$52,4)*LN(VLOOKUP($H150,P_Hard!$A$5:$Y$204,3*($C$8-1)+4)/1000)+VLOOKUP($B$6,$A$25:$E$52,5)),NA()) -> 9.488108417 | S150: 10.41666667 | T150: =VLOOKUP($S150,P_All!$AA$5:$AY$245,3*($C$8-1)+2) -> 0.41941 | U150: =VLOOKUP($S150,P_All!$AA$5:$AY$245,3*($C$8-1)+3) -> 0.98306 | V150: =VLOOKUP($S150,P_All!$AA$5:$AY$245,3*($C$8-1)+4) -> 2.4133 | W150: =VLOOKUP($S150,NA_All!$AA$5:$AY$245,3*($C$8-1)+2) -> 0.41897 | X150: =VLOOKUP($S150,NA_All!$AA$5:$AY$245,3*($C$8-1)+3) -> 0.98248 | Y150: =VLOOKUP($S150,NA_All!$AA$5:$AY$245,3*($C$8-1)+4) -> 2.4196 | Z150: =IF(AND($B$8=$A$20,$B$6=$A$48),$B$54,IF(ISNA(VLOOKUP($B$6,$A$25:$E$52,IF($B$8=$A$22,3,2),FALSE)),EXP(VLOOKUP($B$6,$A$25:$E$52,4,FALSE)*LN(VLOOKUP($H150,P_Hard!$A$5:$Y$204,3*($C$8-1)+3,FALSE)/1000)+VLOOKUP($B$6,$A$25:$E$52,5,FALSE)),VLOOKUP($B$6,$A$25:$E$52,IF($B$8=$A$22,3,2),FALSE))) -> 9.488108417
H151: 127 | I151: =VLOOKUP($H151,P_All!$A$5:$Y$204,3*($C$8-1)+2) -> 2.2007 | J151: =VLOOKUP($H151,P_All!$A$5:$Y$204,3*($C$8-1)+3) -> 4.5176 | K151: =VLOOKUP($H151,P_All!$A$5:$Y$204,3*($C$8-1)+4) -> 5.4774 | L151: =VLOOKUP($H151,NA_All!$A$5:$Y$204,3*($C$8-1)+2) -> 1.5351 | M151: =VLOOKUP($H151,NA_All!$A$5:$Y$204,3*($C$8-1)+3) -> 2.2055 | N151: =VLOOKUP($H151,NA_All!$A$5:$Y$204,3*($C$8-1)+4) -> 3.2635 | O151: =IF(ISNA(VLOOKUP($B$6,$A$25:$E$52,IF($B$8=$A$22,3,2))),EXP(VLOOKUP($B$6,$A$25:$E$52,4)*LN(VLOOKUP($H151,P_Hard!$A$5:$Y$204,3*($C$8-1)+2)/1000)+VLOOKUP($B$6,$A$25:$E$52,5)),NA()) -> 9.488108417 | P151: 9.765624442 | Q151: =IF(ISNA(VLOOKUP($B$6,$A$25:$E$52,IF($B$8=$A$22,3,2))),EXP(VLOOKUP($B$6,$A$25:$E$52,4)*LN(VLOOKUP($H151,P_Hard!$A$5:$Y$204,3*($C$8-1)+4)/1000)+VLOOKUP($B$6,$A$25:$E$52,5)),NA()) -> 9.488108417 | S151: 10.5 | T151: =VLOOKUP($S151,P_All!$AA$5:$AY$245,3*($C$8-1)+2) -> 0.46818 | U151: =VLOOKUP($S151,P_All!$AA$5:$AY$245,3*($C$8-1)+3) -> 1.1083 | V151: =VLOOKUP($S151,P_All!$AA$5:$AY$245,3*($C$8-1)+4) -> 2.662 | W151: =VLOOKUP($S151,NA_All!$AA$5:$AY$245,3*($C$8-1)+2) -> 0.46797 | X151: =VLOOKUP($S151,NA_All!$AA$5:$AY$245,3*($C$8-1)+3) -> 1.1114 | Y151: =VLOOKUP($S151,NA_All!$AA$5:$AY$245,3*($C$8-1)+4) -> 2.6669 | Z151: =IF(AND($B$8=$A$20,$B$6=$A$48),$B$54,IF(ISNA(VLOOKUP($B$6,$A$25:$E$52,IF($B$8=$A$22,3,2),FALSE)),EXP(VLOOKUP($B$6,$A$25:$E$52,4,FALSE)*LN(VLOOKUP($H151,P_Hard!$A$5:$Y$204,3*($C$8-1)+3,FALSE)/1000)+VLOOKUP($B$6,$A$25:$E$52,5,FALSE)),VLOOKUP($B$6,$A$25:$E$52,IF($B$8=$A$22,3,2),FALSE))) -> 9.488108417
H152: 128 | I152: =VLOOKUP($H152,P_All!$A$5:$Y$204,3*($C$8-1)+2) -> 2.3911 | J152: =VLOOKUP($H152,P_All!$A$5:$Y$204,3*($C$8-1)+3) -> 4.6527 | K152: =VLOOKUP($H152,P_All!$A$5:$Y$204,3*($C$8-1)+4) -> 5.6119 | L152: =VLOOKUP($H152,NA_All!$A$5:$Y$204,3*($C$8-1)+2) -> 1.6159 | M152: =VLOOKUP($H152,NA_All!$A$5:$Y$204,3*($C$8-1)+3) -> 2.2176 | N152: =VLOOKUP($H152,NA_All!$A$5:$Y$204,3*($C$8-1)+4) -> 2.9982 | O152: =IF(ISNA(VLOOKUP($B$6,$A$25:$E$52,IF($B$8=$A$22,3,2))),EXP(VLOOKUP($B$6,$A$25:$E$52,4)*LN(VLOOKUP($H152,P_Hard!$A$5:$Y$204,3*($C$8-1)+2)/1000)+VLOOKUP($B$6,$A$25:$E$52,5)),NA()) -> 9.488108417 | P152: 9.765624442 | Q152: =IF(ISNA(VLOOKUP($B$6,$A$25:$E$52,IF($B$8=$A$22,3,2))),EXP(VLOOKUP($B$6,$A$25:$E$52,4)*LN(VLOOKUP($H152,P_Hard!$A$5:$Y$204,3*($C$8-1)+4)/1000)+VLOOKUP($B$6,$A$25:$E$52,5)),NA()) -> 9.488108417 | S152: 10.58333333 | T152: =VLOOKUP($S152,P_All!$AA$5:$AY$245,3*($C$8-1)+2) -> 0.56779 | U152: =VLOOKUP($S152,P_All!$AA$5:$AY$245,3*($C$8-1)+3) -> 1.2923 | V152: =VLOOKUP($S152,P_All!$AA$5:$AY$245,3*($C$8-1)+4) -> 2.6301 | W152: =VLOOKUP($S152,NA_All!$AA$5:$AY$245,3*($C$8-1)+2) -> 0.56848 | X152: =VLOOKUP($S152,NA_All!$AA$5:$AY$245,3*($C$8-1)+3) -> 1.2988 | Y152: =VLOOKUP($S152,NA_All!$AA$5:$AY$245,3*($C$8-1)+4) -> 2.6364 | Z152: =IF(AND($B$8=$A$20,$B$6=$A$48),$B$54,IF(ISNA(VLOOKUP($B$6,$A$25:$E$52,IF($B$8=$A$22,3,2),FALSE)),EXP(VLOOKUP($B$6,$A$25:$E$52,4,FALSE)*LN(VLOOKUP($H152,P_Hard!$A$5:$Y$204,3*($C$8-1)+3,FALSE)/1000)+VLOOKUP($B$6,$A$25:$E$52,5,FALSE)),VLOOKUP($B$6,$A$25:$E$52,IF($B$8=$A$22,3,2),FALSE))) -> 9.488108417
H153: 129 | I153: =VLOOKUP($H153,P_All!$A$5:$Y$204,3*($C$8-1)+2) -> 2.3068 | J153: =VLOOKUP($H153,P_All!$A$5:$Y$204,3*($C$8-1)+3) -> 4.6711 | K153: =VLOOKUP($H153,P_All!$A$5:$Y$204,3*($C$8-1)+4) -> 5.5233 | L153: =VLOOKUP($H153,NA_All!$A$5:$Y$204,3*($C$8-1)+2) -> 1.5866 | M153: =VLOOKUP($H153,NA_All!$A$5:$Y$204,3*($C$8-1)+3) -> 2.1927 | N153: =VLOOKUP($H153,NA_All!$A$5:$Y$204,3*($C$8-1)+4) -> 2.9401 | O153: =IF(ISNA(VLOOKUP($B$6,$A$25:$E$52,IF($B$8=$A$22,3,2))),EXP(VLOOKUP($B$6,$A$25:$E$52,4)*LN(VLOOKUP($H153,P_Hard!$A$5:$Y$204,3*($C$8-1)+2)/1000)+VLOOKUP($B$6,$A$25:$E$52,5)),NA()) -> 9.488108417 | P153: 9.765624442 | Q153: =IF(ISNA(VLOOKUP($B$6,$A$25:$E$52,IF($B$8=$A$22,3,2))),EXP(VLOOKUP($B$6,$A$25:$E$52,4)*LN(VLOOKUP($H153,P_Hard!$A$5:$Y$204,3*($C$8-1)+4)/1000)+VLOOKUP($B$6,$A$25:$E$52,5)),NA()) -> 9.488108417 | S153: 10.66666667 | T153: =VLOOKUP($S153,P_All!$AA$5:$AY$245,3*($C$8-1)+2) -> 0.58266 | U153: =VLOOKUP($S153,P_All!$AA$5:$AY$245,3*($C$8-1)+3) -> 1.2503 | V153: =VLOOKUP($S153,P_All!$AA$5:$AY$245,3*($C$8-1)+4) -> 2.2611 | W153: =VLOOKUP($S153,NA_All!$AA$5:$AY$245,3*($C$8-1)+2) -> 0.58306 | X153: =VLOOKUP($S153,NA_All!$AA$5:$AY$245,3*($C$8-1)+3) -> 1.2558 | Y153: =VLOOKUP($S153,NA_All!$AA$5:$AY$245,3*($C$8-1)+4) -> 2.2644 | Z153: =IF(AND($B$8=$A$20,$B$6=$A$48),$B$54,IF(ISNA(VLOOKUP($B$6,$A$25:$E$52,IF($B$8=$A$22,3,2),FALSE)),EXP(VLOOKUP($B$6,$A$25:$E$52,4,FALSE)*LN(VLOOKUP($H153,P_Hard!$A$5:$Y$204,3*($C$8-1)+3,FALSE)/1000)+VLOOKUP($B$6,$A$25:$E$52,5,FALSE)),VLOOKUP($B$6,$A$25:$E$52,IF($B$8=$A$22,3,2),FALSE))) -> 9.488108417
H154: 130 | I154: =VLOOKUP($H154,P_All!$A$5:$Y$204,3*($C$8-1)+2) -> 2.225 | J154: =VLOOKUP($H154,P_All!$A$5:$Y$204,3*($C$8-1)+3) -> 4.6464 | K154: =VLOOKUP($H154,P_All!$A$5:$Y$204,3*($C$8-1)+4) -> 5.5357 | L154: =VLOOKUP($H154,NA_All!$A$5:$Y$204,3*($C$8-1)+2) -> 1.5253 | M154: =VLOOKUP($H154,NA_All!$A$5:$Y$204,3*($C$8-1)+3) -> 2.2259 | N154: =VLOOKUP($H154,NA_All!$A$5:$Y$204,3*($C$8-1)+4) -> 3.0403 | O154: =IF(ISNA(VLOOKUP($B$6,$A$25:$E$52,IF($B$8=$A$22,3,2))),EXP(VLOOKUP($B$6,$A$25:$E$52,4)*LN(VLOOKUP($H154,P_Hard!$A$5:$Y$204,3*($C$8-1)+2)/1000)+VLOOKUP($B$6,$A$25:$E$52,5)),NA()) -> 9.488108417 | P154: =IF(AND($B$8=$A$20,$B$6=$A$48),$B$54,IF(ISNA(VLOOKUP($B$6,$A$25:$F$52,IF($B$8=$A$22,3,2),FALSE)),VLOOKUP($B$6,$A$25:$F$52,6),VLOOKUP($B$6,$A$25:$F$52,IF($B$8=$A$22,3,2),FALSE))) -> 9.765624442 | Q154: =IF(ISNA(VLOOKUP($B$6,$A$25:$E$52,IF($B$8=$A$22,3,2))),EXP(VLOOKUP($B$6,$A$25:$E$52,4)*LN(VLOOKUP($H154,P_Hard!$A$5:$Y$204,3*($C$8-1)+4)/1000)+VLOOKUP($B$6,$A$25:$E$52,5)),NA()) -> 9.488108417 | S154: 10.75 | T154: =VLOOKUP($S154,P_All!$AA$5:$AY$245,3*($C$8-1)+2) -> 0.50163 | U154: =VLOOKUP($S154,P_All!$AA$5:$AY$245,3*($C$8-1)+3) -> 1.2024 | V154: =VLOOKUP($S154,P_All!$AA$5:$AY$245,3*($C$8-1)+4) -> 2.5154 | W154: =VLOOKUP($S154,NA_All!$AA$5:$AY$245,3*($C$8-1)+2) -> 0.50208 | X154: =VLOOKUP($S154,NA_All!$AA$5:$AY$245,3*($C$8-1)+3) -> 1.2076 | Y154: =VLOOKUP($S154,NA_All!$AA$5:$AY$245,3*($C$8-1)+4) -> 2.523 | Z154: =IF(AND($B$8=$A$20,$B$6=$A$48),$B$54,IF(ISNA(VLOOKUP($B$6,$A$25:$E$52,IF($B$8=$A$22,3,2),FALSE)),EXP(VLOOKUP($B$6,$A$25:$E$52,4,FALSE)*LN(VLOOKUP($H154,P_Hard!$A$5:$Y$204,3*($C$8-1)+3,FALSE)/1000)+VLOOKUP($B$6,$A$25:$E$52,5,FALSE)),VLOOKUP($B$6,$A$25:$E$52,IF($B$8=$A$22,3,2),FALSE))) -> 9.488108417
H155: 131 | I155: =VLOOKUP($H155,P_All!$A$5:$Y$204,3*($C$8-1)+2) -> 2.1733 | J155: =VLOOKUP($H155,P_All!$A$5:$Y$204,3*($C$8-1)+3) -> 4.175 | K155: =VLOOKUP($H155,P_All!$A$5:$Y$204,3*($C$8-1)+4) -> 5.5105 | L155: =VLOOKUP($H155,NA_All!$A$5:$Y$204,3*($C$8-1)+2) -> 1.5016 | M155: =VLOOKUP($H155,NA_All!$A$5:$Y$204,3*($C$8-1)+3) -> 2.1571 | N155: =VLOOKUP($H155,NA_All!$A$5:$Y$204,3*($C$8-1)+4) -> 2.9677 | O155: =IF(ISNA(VLOOKUP($B$6,$A$25:$E$52,IF($B$8=$A$22,3,2))),EXP(VLOOKUP($B$6,$A$25:$E$52,4)*LN(VLOOKUP($H155,P_Hard!$A$5:$Y$204,3*($C$8-1)+2)/1000)+VLOOKUP($B$6,$A$25:$E$52,5)),NA()) -> 9.488108417 | P155: 9.765624442 | Q155: =IF(ISNA(VLOOKUP($B$6,$A$25:$E$52,IF($B$8=$A$22,3,2))),EXP(VLOOKUP($B$6,$A$25:$E$52,4)*LN(VLOOKUP($H155,P_Hard!$A$5:$Y$204,3*($C$8-1)+4)/1000)+VLOOKUP($B$6,$A$25:$E$52,5)),NA()) -> 9.488108417 | S155: =S154+1/12 -> 10.83333333 | T155: =VLOOKUP($S155,P_All!$AA$5:$AY$245,3*($C$8-1)+2) -> 0.49305 | U155: =VLOOKUP($S155,P_All!$AA$5:$AY$245,3*($C$8-1)+3) -> 1.0639 | V155: =VLOOKUP($S155,P_All!$AA$5:$AY$245,3*($C$8-1)+4) -> 2.446 | W155: =VLOOKUP($S155,NA_All!$AA$5:$AY$245,3*($C$8-1)+2) -> 0.49371 | X155: =VLOOKUP($S155,NA_All!$AA$5:$AY$245,3*($C$8-1)+3) -> 1.0665 | Y155: =VLOOKUP($S155,NA_All!$AA$5:$AY$245,3*($C$8-1)+4) -> 2.4471 | Z155: =IF(AND($B$8=$A$20,$B$6=$A$48),$B$54,IF(ISNA(VLOOKUP($B$6,$A$25:$E$52,IF($B$8=$A$22,3,2),FALSE)),EXP(VLOOKUP($B$6,$A$25:$E$52,4,FALSE)*LN(VLOOKUP($H155,P_Hard!$A$5:$Y$204,3*($C$8-1)+3,FALSE)/1000)+VLOOKUP($B$6,$A$25:$E$52,5,FALSE)),VLOOKUP($B$6,$A$25:$E$52,IF($B$8=$A$22,3,2),FALSE))) -> 9.488108417
H156: 132 | I156: =VLOOKUP($H156,P_All!$A$5:$Y$204,3*($C$8-1)+2) -> 2.2154 | J156: =VLOOKUP($H156,P_All!$A$5:$Y$204,3*($C$8-1)+3) -> 4.5031 | K156: =VLOOKUP($H156,P_All!$A$5:$Y$204,3*($C$8-1)+4) -> 5.5887 | L156: =VLOOKUP($H156,NA_All!$A$5:$Y$204,3*($C$8-1)+2) -> 1.5159 | M156: =VLOOKUP($H156,NA_All!$A$5:$Y$204,3*($C$8-1)+3) -> 2.1797 | N156: =VLOOKUP($H156,NA_All!$A$5:$Y$204,3*($C$8-1)+4) -> 3.1283 | O156: =IF(ISNA(VLOOKUP($B$6,$A$25:$E$52,IF($B$8=$A$22,3,2))),EXP(VLOOKUP($B$6,$A$25:$E$52,4)*LN(VLOOKUP($H156,P_Hard!$A$5:$Y$204,3*($C$8-1)+2)/1000)+VLOOKUP($B$6,$A$25:$E$52,5)),NA()) -> 9.488108417 | P156: 9.765624442 | Q156: =IF(ISNA(VLOOKUP($B$6,$A$25:$E$52,IF($B$8=$A$22,3,2))),EXP(VLOOKUP($B$6,$A$25:$E$52,4)*LN(VLOOKUP($H156,P_Hard!$A$5:$Y$204,3*($C$8-1)+4)/1000)+VLOOKUP($B$6,$A$25:$E$52,5)),NA()) -> 9.488108417 | S156: 10.91666667 | T156: =VLOOKUP($S156,P_All!$AA$5:$AY$245,3*($C$8-1)+2) -> 0.60684 | U156: =VLOOKUP($S156,P_All!$AA$5:$AY$245,3*($C$8-1)+3) -> 1.1187 | V156: =VLOOKUP($S156,P_All!$AA$5:$AY$245,3*($C$8-1)+4) -> 2.2786 | W156: =VLOOKUP($S156,NA_All!$AA$5:$AY$245,3*($C$8-1)+2) -> 0.60748 | X156: =VLOOKUP($S156,NA_All!$AA$5:$AY$245,3*($C$8-1)+3) -> 1.1258 | Y156: =VLOOKUP($S156,NA_All!$AA$5:$AY$245,3*($C$8-1)+4) -> 2.2847 | Z156: =IF(AND($B$8=$A$20,$B$6=$A$48),$B$54,IF(ISNA(VLOOKUP($B$6,$A$25:$E$52,IF($B$8=$A$22,3,2),FALSE)),EXP(VLOOKUP($B$6,$A$25:$E$52,4,FALSE)*LN(VLOOKUP($H156,P_Hard!$A$5:$Y$204,3*($C$8-1)+3,FALSE)/1000)+VLOOKUP($B$6,$A$25:$E$52,5,FALSE)),VLOOKUP($B$6,$A$25:$E$52,IF($B$8=$A$22,3,2),FALSE))) -> 9.488108417
H157: 133 | I157: =VLOOKUP($H157,P_All!$A$5:$Y$204,3*($C$8-1)+2) -> 2.2099 | J157: =VLOOKUP($H157,P_All!$A$5:$Y$204,3*($C$8-1)+3) -> 4.5773 | K157: =VLOOKUP($H157,P_All!$A$5:$Y$204,3*($C$8-1)+4) -> 5.4878 | L157: =VLOOKUP($H157,NA_All!$A$5:$Y$204,3*($C$8-1)+2) -> 1.5543 | M157: =VLOOKUP($H157,NA_All!$A$5:$Y$204,3*($C$8-1)+3) -> 2.1904 | N157: =VLOOKUP($H157,NA_All!$A$5:$Y$204,3*($C$8-1)+4) -> 3.0305 | O157: =IF(ISNA(VLOOKUP($B$6,$A$25:$E$52,IF($B$8=$A$22,3,2))),EXP(VLOOKUP($B$6,$A$25:$E$52,4)*LN(VLOOKUP($H157,P_Hard!$A$5:$Y$204,3*($C$8-1)+2)/1000)+VLOOKUP($B$6,$A$25:$E$52,5)),NA()) -> 9.488108417 | P157: 9.765624442 | Q157: =IF(ISNA(VLOOKUP($B$6,$A$25:$E$52,IF($B$8=$A$22,3,2))),EXP(VLOOKUP($B$6,$A$25:$E$52,4)*LN(VLOOKUP($H157,P_Hard!$A$5:$Y$204,3*($C$8-1)+4)/1000)+VLOOKUP($B$6,$A$25:$E$52,5)),NA()) -> 9.488108417 | S157: 11 | T157: =VLOOKUP($S157,P_All!$AA$5:$AY$245,3*($C$8-1)+2) -> 0.93074 | U157: =VLOOKUP($S157,P_All!$AA$5:$AY$245,3*($C$8-1)+3) -> 1.4687 | V157: =VLOOKUP($S157,P_All!$AA$5:$AY$245,3*($C$8-1)+4) -> 2.0889 | W157: =VLOOKUP($S157,NA_All!$AA$5:$AY$245,3*($C$8-1)+2) -> 0.93632 | X157: =VLOOKUP($S157,NA_All!$AA$5:$AY$245,3*($C$8-1)+3) -> 1.4909 | Y157: =VLOOKUP($S157,NA_All!$AA$5:$AY$245,3*($C$8-1)+4) -> 2.1028 | Z157: =IF(AND($B$8=$A$20,$B$6=$A$48),$B$54,IF(ISNA(VLOOKUP($B$6,$A$25:$E$52,IF($B$8=$A$22,3,2),FALSE)),EXP(VLOOKUP($B$6,$A$25:$E$52,4,FALSE)*LN(VLOOKUP($H157,P_Hard!$A$5:$Y$204,3*($C$8-1)+3,FALSE)/1000)+VLOOKUP($B$6,$A$25:$E$52,5,FALSE)),VLOOKUP($B$6,$A$25:$E$52,IF($B$8=$A$22,3,2),FALSE))) -> 9.488108417
H158: 134 | I158: =VLOOKUP($H158,P_All!$A$5:$Y$204,3*($C$8-1)+2) -> 2.2822 | J158: =VLOOKUP($H158,P_All!$A$5:$Y$204,3*($C$8-1)+3) -> 4.6643 | K158: =VLOOKUP($H158,P_All!$A$5:$Y$204,3*($C$8-1)+4) -> 5.5934 | L158: =VLOOKUP($H158,NA_All!$A$5:$Y$204,3*($C$8-1)+2) -> 1.5502 | M158: =VLOOKUP($H158,NA_All!$A$5:$Y$204,3*($C$8-1)+3) -> 2.2065 | N158: =VLOOKUP($H158,NA_All!$A$5:$Y$204,3*($C$8-1)+4) -> 3.0929 | O158: =IF(ISNA(VLOOKUP($B$6,$A$25:$E$52,IF($B$8=$A$22,3,2))),EXP(VLOOKUP($B$6,$A$25:$E$52,4)*LN(VLOOKUP($H158,P_Hard!$A$5:$Y$204,3*($C$8-1)+2)/1000)+VLOOKUP($B$6,$A$25:$E$52,5)),NA()) -> 9.488108417 | P158: 9.765624442 | Q158: =IF(ISNA(VLOOKUP($B$6,$A$25:$E$52,IF($B$8=$A$22,3,2))),EXP(VLOOKUP($B$6,$A$25:$E$52,4)*LN(VLOOKUP($H158,P_Hard!$A$5:$Y$204,3*($C$8-1)+4)/1000)+VLOOKUP($B$6,$A$25:$E$52,5)),NA()) -> 9.488108417 | S158: 11.08333333 | T158: =VLOOKUP($S158,P_All!$AA$5:$AY$245,3*($C$8-1)+2) -> 1.1831 | U158: =VLOOKUP($S158,P_All!$AA$5:$AY$245,3*($C$8-1)+3) -> 1.4594 | V158: =VLOOKUP($S158,P_All!$AA$5:$AY$245,3*($C$8-1)+4) -> 1.8499 | W158: =VLOOKUP($S158,NA_All!$AA$5:$AY$245,3*($C$8-1)+2) -> 1.1946 | X158: =VLOOKUP($S158,NA_All!$AA$5:$AY$245,3*($C$8-1)+3) -> 1.4699 | Y158: =VLOOKUP($S158,NA_All!$AA$5:$AY$245,3*($C$8-1)+4) -> 1.8581 | Z158: =IF(AND($B$8=$A$20,$B$6=$A$48),$B$54,IF(ISNA(VLOOKUP($B$6,$A$25:$E$52,IF($B$8=$A$22,3,2),FALSE)),EXP(VLOOKUP($B$6,$A$25:$E$52,4,FALSE)*LN(VLOOKUP($H158,P_Hard!$A$5:$Y$204,3*($C$8-1)+3,FALSE)/1000)+VLOOKUP($B$6,$A$25:$E$52,5,FALSE)),VLOOKUP($B$6,$A$25:$E$52,IF($B$8=$A$22,3,2),FALSE))) -> 9.488108417
H159: 135 | I159: =VLOOKUP($H159,P_All!$A$5:$Y$204,3*($C$8-1)+2) -> 2.1948 | J159: =VLOOKUP($H159,P_All!$A$5:$Y$204,3*($C$8-1)+3) -> 4.6069 | K159: =VLOOKUP($H159,P_All!$A$5:$Y$204,3*($C$8-1)+4) -> 5.662 | L159: =VLOOKUP($H159,NA_All!$A$5:$Y$204,3*($C$8-1)+2) -> 1.5113 | M159: =VLOOKUP($H159,NA_All!$A$5:$Y$204,3*($C$8-1)+3) -> 2.1803 | N159: =VLOOKUP($H159,NA_All!$A$5:$Y$204,3*($C$8-1)+4) -> 3.0912 | O159: =IF(ISNA(VLOOKUP($B$6,$A$25:$E$52,IF($B$8=$A$22,3,2))),EXP(VLOOKUP($B$6,$A$25:$E$52,4)*LN(VLOOKUP($H159,P_Hard!$A$5:$Y$204,3*($C$8-1)+2)/1000)+VLOOKUP($B$6,$A$25:$E$52,5)),NA()) -> 9.488108417 | P159: 9.765624442 | Q159: =IF(ISNA(VLOOKUP($B$6,$A$25:$E$52,IF($B$8=$A$22,3,2))),EXP(VLOOKUP($B$6,$A$25:$E$52,4)*LN(VLOOKUP($H159,P_Hard!$A$5:$Y$204,3*($C$8-1)+4)/1000)+VLOOKUP($B$6,$A$25:$E$52,5)),NA()) -> 9.488108417 | S159: 11.16666667 | T159: =VLOOKUP($S159,P_All!$AA$5:$AY$245,3*($C$8-1)+2) -> 1.2431 | U159: =VLOOKUP($S159,P_All!$AA$5:$AY$245,3*($C$8-1)+3) -> 1.3756 | V159: =VLOOKUP($S159,P_All!$AA$5:$AY$245,3*($C$8-1)+4) -> 1.7344 | W159: =VLOOKUP($S159,NA_All!$AA$5:$AY$245,3*($C$8-1)+2) -> 1.2525 | X159: =VLOOKUP($S159,NA_All!$AA$5:$AY$245,3*($C$8-1)+3) -> 1.3842 | Y159: =VLOOKUP($S159,NA_All!$AA$5:$AY$245,3*($C$8-1)+4) -> 1.7578 | Z159: =IF(AND($B$8=$A$20,$B$6=$A$48),$B$54,IF(ISNA(VLOOKUP($B$6,$A$25:$E$52,IF($B$8=$A$22,3,2),FALSE)),EXP(VLOOKUP($B$6,$A$25:$E$52,4,FALSE)*LN(VLOOKUP($H159,P_Hard!$A$5:$Y$204,3*($C$8-1)+3,FALSE)/1000)+VLOOKUP($B$6,$A$25:$E$52,5,FALSE)),VLOOKUP($B$6,$A$25:$E$52,IF($B$8=$A$22,3,2),FALSE))) -> 9.488108417
H160: 136 | I160: =VLOOKUP($H160,P_All!$A$5:$Y$204,3*($C$8-1)+2) -> 2.1833 | J160: =VLOOKUP($H160,P_All!$A$5:$Y$204,3*($C$8-1)+3) -> 4.5858 | K160: =VLOOKUP($H160,P_All!$A$5:$Y$204,3*($C$8-1)+4) -> 5.6237 | L160: =VLOOKUP($H160,NA_All!$A$5:$Y$204,3*($C$8-1)+2) -> 1.5874 | M160: =VLOOKUP($H160,NA_All!$A$5:$Y$204,3*($C$8-1)+3) -> 2.1677 | N160: =VLOOKUP($H160,NA_All!$A$5:$Y$204,3*($C$8-1)+4) -> 3.1232 | O160: =IF(ISNA(VLOOKUP($B$6,$A$25:$E$52,IF($B$8=$A$22,3,2))),EXP(VLOOKUP($B$6,$A$25:$E$52,4)*LN(VLOOKUP($H160,P_Hard!$A$5:$Y$204,3*($C$8-1)+2)/1000)+VLOOKUP($B$6,$A$25:$E$52,5)),NA()) -> 9.488108417 | P160: 9.765624442 | Q160: =IF(ISNA(VLOOKUP($B$6,$A$25:$E$52,IF($B$8=$A$22,3,2))),EXP(VLOOKUP($B$6,$A$25:$E$52,4)*LN(VLOOKUP($H160,P_Hard!$A$5:$Y$204,3*($C$8-1)+4)/1000)+VLOOKUP($B$6,$A$25:$E$52,5)),NA()) -> 9.488108417 | S160: 11.25 | T160: =VLOOKUP($S160,P_All!$AA$5:$AY$245,3*($C$8-1)+2) -> 0.87966 | U160: =VLOOKUP($S160,P_All!$AA$5:$AY$245,3*($C$8-1)+3) -> 1.369 | V160: =VLOOKUP($S160,P_All!$AA$5:$AY$245,3*($C$8-1)+4) -> 1.8419 | W160: =VLOOKUP($S160,NA_All!$AA$5:$AY$245,3*($C$8-1)+2) -> 0.88281 | X160: =VLOOKUP($S160,NA_All!$AA$5:$AY$245,3*($C$8-1)+3) -> 1.3843 | Y160: =VLOOKUP($S160,NA_All!$AA$5:$AY$245,3*($C$8-1)+4) -> 1.8617 | Z160: =IF(AND($B$8=$A$20,$B$6=$A$48),$B$54,IF(ISNA(VLOOKUP($B$6,$A$25:$E$52,IF($B$8=$A$22,3,2),FALSE)),EXP(VLOOKUP($B$6,$A$25:$E$52,4,FALSE)*LN(VLOOKUP($H160,P_Hard!$A$5:$Y$204,3*($C$8-1)+3,FALSE)/1000)+VLOOKUP($B$6,$A$25:$E$52,5,FALSE)),VLOOKUP($B$6,$A$25:$E$52,IF($B$8=$A$22,3,2),FALSE))) -> 9.488108417
H161: 137 | I161: =VLOOKUP($H161,P_All!$A$5:$Y$204,3*($C$8-1)+2) -> 2.3264 | J161: =VLOOKUP($H161,P_All!$A$5:$Y$204,3*($C$8-1)+3) -> 4.3496 | K161: =VLOOKUP($H161,P_All!$A$5:$Y$204,3*($C$8-1)+4) -> 5.4841 | L161: =VLOOKUP($H161,NA_All!$A$5:$Y$204,3*($C$8-1)+2) -> 1.5975 | M161: =VLOOKUP($H161,NA_All!$A$5:$Y$204,3*($C$8-1)+3) -> 2.2043 | N161: =VLOOKUP($H161,NA_All!$A$5:$Y$204,3*($C$8-1)+4) -> 2.9177 | O161: =IF(ISNA(VLOOKUP($B$6,$A$25:$E$52,IF($B$8=$A$22,3,2))),EXP(VLOOKUP($B$6,$A$25:$E$52,4)*LN(VLOOKUP($H161,P_Hard!$A$5:$Y$204,3*($C$8-1)+2)/1000)+VLOOKUP($B$6,$A$25:$E$52,5)),NA()) -> 9.488108417 | P161: 9.765624442 | Q161: =IF(ISNA(VLOOKUP($B$6,$A$25:$E$52,IF($B$8=$A$22,3,2))),EXP(VLOOKUP($B$6,$A$25:$E$52,4)*LN(VLOOKUP($H161,P_Hard!$A$5:$Y$204,3*($C$8-1)+4)/1000)+VLOOKUP($B$6,$A$25:$E$52,5)),NA()) -> 9.488108417 | S161: 11.33333333 | T161: =VLOOKUP($S161,P_All!$AA$5:$AY$245,3*($C$8-1)+2) -> 0.39372 | U161: =VLOOKUP($S161,P_All!$AA$5:$AY$245,3*($C$8-1)+3) -> 1.0624 | V161: =VLOOKUP($S161,P_All!$AA$5:$AY$245,3*($C$8-1)+4) -> 2.9927 | W161: =VLOOKUP($S161,NA_All!$AA$5:$AY$245,3*($C$8-1)+2) -> 0.394 | X161: =VLOOKUP($S161,NA_All!$AA$5:$AY$245,3*($C$8-1)+3) -> 1.0641 | Y161: =VLOOKUP($S161,NA_All!$AA$5:$AY$245,3*($C$8-1)+4) -> 2.9961 | Z161: =IF(AND($B$8=$A$20,$B$6=$A$48),$B$54,IF(ISNA(VLOOKUP($B$6,$A$25:$E$52,IF($B$8=$A$22,3,2),FALSE)),EXP(VLOOKUP($B$6,$A$25:$E$52,4,FALSE)*LN(VLOOKUP($H161,P_Hard!$A$5:$Y$204,3*($C$8-1)+3,FALSE)/1000)+VLOOKUP($B$6,$A$25:$E$52,5,FALSE)),VLOOKUP($B$6,$A$25:$E$52,IF($B$8=$A$22,3,2),FALSE))) -> 9.488108417
H162: 138 | I162: =VLOOKUP($H162,P_All!$A$5:$Y$204,3*($C$8-1)+2) -> 2.2534 | J162: =VLOOKUP($H162,P_All!$A$5:$Y$204,3*($C$8-1)+3) -> 4.4403 | K162: =VLOOKUP($H162,P_All!$A$5:$Y$204,3*($C$8-1)+4) -> 5.6311 | L162: =VLOOKUP($H162,NA_All!$A$5:$Y$204,3*($C$8-1)+2) -> 1.5305 | M162: =VLOOKUP($H162,NA_All!$A$5:$Y$204,3*($C$8-1)+3) -> 2.2146 | N162: =VLOOKUP($H162,NA_All!$A$5:$Y$204,3*($C$8-1)+4) -> 3.0237 | O162: =IF(ISNA(VLOOKUP($B$6,$A$25:$E$52,IF($B$8=$A$22,3,2))),EXP(VLOOKUP($B$6,$A$25:$E$52,4)*LN(VLOOKUP($H162,P_Hard!$A$5:$Y$204,3*($C$8-1)+2)/1000)+VLOOKUP($B$6,$A$25:$E$52,5)),NA()) -> 9.488108417 | P162: 9.765624442 | Q162: =IF(ISNA(VLOOKUP($B$6,$A$25:$E$52,IF($B$8=$A$22,3,2))),EXP(VLOOKUP($B$6,$A$25:$E$52,4)*LN(VLOOKUP($H162,P_Hard!$A$5:$Y$204,3*($C$8-1)+4)/1000)+VLOOKUP($B$6,$A$25:$E$52,5)),NA()) -> 9.488108417 | S162: 11.41666667 | T162: =VLOOKUP($S162,P_All!$AA$5:$AY$245,3*($C$8-1)+2) -> 0.39269 | U162: =VLOOKUP($S162,P_All!$AA$5:$AY$245,3*($C$8-1)+3) -> 0.98378 | V162: =VLOOKUP($S162,P_All!$AA$5:$AY$245,3*($C$8-1)+4) -> 2.5013 | W162: =VLOOKUP($S162,NA_All!$AA$5:$AY$245,3*($C$8-1)+2) -> 0.39144 | X162: =VLOOKUP($S162,NA_All!$AA$5:$AY$245,3*($C$8-1)+3) -> 0.9837 | Y162: =VLOOKUP($S162,NA_All!$AA$5:$AY$245,3*($C$8-1)+4) -> 2.503 | Z162: =IF(AND($B$8=$A$20,$B$6=$A$48),$B$54,IF(ISNA(VLOOKUP($B$6,$A$25:$E$52,IF($B$8=$A$22,3,2),FALSE)),EXP(VLOOKUP($B$6,$A$25:$E$52,4,FALSE)*LN(VLOOKUP($H162,P_Hard!$A$5:$Y$204,3*($C$8-1)+3,FALSE)/1000)+VLOOKUP($B$6,$A$25:$E$52,5,FALSE)),VLOOKUP($B$6,$A$25:$E$52,IF($B$8=$A$22,3,2),FALSE))) -> 9.488108417
H163: 139 | I163: =VLOOKUP($H163,P_All!$A$5:$Y$204,3*($C$8-1)+2) -> 2.258 | J163: =VLOOKUP($H163,P_All!$A$5:$Y$204,3*($C$8-1)+3) -> 4.5517 | K163: =VLOOKUP($H163,P_All!$A$5:$Y$204,3*($C$8-1)+4) -> 5.435 | L163: =VLOOKUP($H163,NA_All!$A$5:$Y$204,3*($C$8-1)+2) -> 1.5002 | M163: =VLOOKUP($H163,NA_All!$A$5:$Y$204,3*($C$8-1)+3) -> 2.1941 | N163: =VLOOKUP($H163,NA_All!$A$5:$Y$204,3*($C$8-1)+4) -> 3.052 | O163: =IF(ISNA(VLOOKUP($B$6,$A$25:$E$52,IF($B$8=$A$22,3,2))),EXP(VLOOKUP($B$6,$A$25:$E$52,4)*LN(VLOOKUP($H163,P_Hard!$A$5:$Y$204,3*($C$8-1)+2)/1000)+VLOOKUP($B$6,$A$25:$E$52,5)),NA()) -> 9.488108417 | P163: 9.765624442 | Q163: =IF(ISNA(VLOOKUP($B$6,$A$25:$E$52,IF($B$8=$A$22,3,2))),EXP(VLOOKUP($B$6,$A$25:$E$52,4)*LN(VLOOKUP($H163,P_Hard!$A$5:$Y$204,3*($C$8-1)+4)/1000)+VLOOKUP($B$6,$A$25:$E$52,5)),NA()) -> 9.488108417 | S163: 11.5 | T163: =VLOOKUP($S163,P_All!$AA$5:$AY$245,3*($C$8-1)+2) -> 0.44148 | U163: =VLOOKUP($S163,P_All!$AA$5:$AY$245,3*($C$8-1)+3) -> 1.132 | V163: =VLOOKUP($S163,P_All!$AA$5:$AY$245,3*($C$8-1)+4) -> 2.629 | W163: =VLOOKUP($S163,NA_All!$AA$5:$AY$245,3*($C$8-1)+2) -> 0.44158 | X163: =VLOOKUP($S163,NA_All!$AA$5:$AY$245,3*($C$8-1)+3) -> 1.1399 | Y163: =VLOOKUP($S163,NA_All!$AA$5:$AY$245,3*($C$8-1)+4) -> 2.6394 | Z163: =IF(AND($B$8=$A$20,$B$6=$A$48),$B$54,IF(ISNA(VLOOKUP($B$6,$A$25:$E$52,IF($B$8=$A$22,3,2),FALSE)),EXP(VLOOKUP($B$6,$A$25:$E$52,4,FALSE)*LN(VLOOKUP($H163,P_Hard!$A$5:$Y$204,3*($C$8-1)+3,FALSE)/1000)+VLOOKUP($B$6,$A$25:$E$52,5,FALSE)),VLOOKUP($B$6,$A$25:$E$52,IF($B$8=$A$22,3,2),FALSE))) -> 9.488108417
H164: 140 | I164: =VLOOKUP($H164,P_All!$A$5:$Y$204,3*($C$8-1)+2) -> 2.2741 | J164: =VLOOKUP($H164,P_All!$A$5:$Y$204,3*($C$8-1)+3) -> 4.5568 | K164: =VLOOKUP($H164,P_All!$A$5:$Y$204,3*($C$8-1)+4) -> 5.5898 | L164: =VLOOKUP($H164,NA_All!$A$5:$Y$204,3*($C$8-1)+2) -> 1.5566 | M164: =VLOOKUP($H164,NA_All!$A$5:$Y$204,3*($C$8-1)+3) -> 2.2153 | N164: =VLOOKUP($H164,NA_All!$A$5:$Y$204,3*($C$8-1)+4) -> 2.8878 | O164: =IF(ISNA(VLOOKUP($B$6,$A$25:$E$52,IF($B$8=$A$22,3,2))),EXP(VLOOKUP($B$6,$A$25:$E$52,4)*LN(VLOOKUP($H164,P_Hard!$A$5:$Y$204,3*($C$8-1)+2)/1000)+VLOOKUP($B$6,$A$25:$E$52,5)),NA()) -> 9.488108417 | P164: 9.765624442 | Q164: =IF(ISNA(VLOOKUP($B$6,$A$25:$E$52,IF($B$8=$A$22,3,2))),EXP(VLOOKUP($B$6,$A$25:$E$52,4)*LN(VLOOKUP($H164,P_Hard!$A$5:$Y$204,3*($C$8-1)+4)/1000)+VLOOKUP($B$6,$A$25:$E$52,5)),NA()) -> 9.488108417 | S164: 11.58333333 | T164: =VLOOKUP($S164,P_All!$AA$5:$AY$245,3*($C$8-1)+2) -> 0.52646 | U164: =VLOOKUP($S164,P_All!$AA$5:$AY$245,3*($C$8-1)+3) -> 1.3032 | V164: =VLOOKUP($S164,P_All!$AA$5:$AY$245,3*($C$8-1)+4) -> 2.4051 | W164: =VLOOKUP($S164,NA_All!$AA$5:$AY$245,3*($C$8-1)+2) -> 0.52718 | X164: =VLOOKUP($S164,NA_All!$AA$5:$AY$245,3*($C$8-1)+3) -> 1.3086 | Y164: =VLOOKUP($S164,NA_All!$AA$5:$AY$245,3*($C$8-1)+4) -> 2.4071 | Z164: =IF(AND($B$8=$A$20,$B$6=$A$48),$B$54,IF(ISNA(VLOOKUP($B$6,$A$25:$E$52,IF($B$8=$A$22,3,2),FALSE)),EXP(VLOOKUP($B$6,$A$25:$E$52,4,FALSE)*LN(VLOOKUP($H164,P_Hard!$A$5:$Y$204,3*($C$8-1)+3,FALSE)/1000)+VLOOKUP($B$6,$A$25:$E$52,5,FALSE)),VLOOKUP($B$6,$A$25:$E$52,IF($B$8=$A$22,3,2),FALSE))) -> 9.488108417
H165: 141 | I165: =VLOOKUP($H165,P_All!$A$5:$Y$204,3*($C$8-1)+2) -> 2.246 | J165: =VLOOKUP($H165,P_All!$A$5:$Y$204,3*($C$8-1)+3) -> 4.6564 | K165: =VLOOKUP($H165,P_All!$A$5:$Y$204,3*($C$8-1)+4) -> 5.476 | L165: =VLOOKUP($H165,NA_All!$A$5:$Y$204,3*($C$8-1)+2) -> 1.5365 | M165: =VLOOKUP($H165,NA_All!$A$5:$Y$204,3*($C$8-1)+3) -> 2.1788 | N165: =VLOOKUP($H165,NA_All!$A$5:$Y$204,3*($C$8-1)+4) -> 3.1334 | O165: =IF(ISNA(VLOOKUP($B$6,$A$25:$E$52,IF($B$8=$A$22,3,2))),EXP(VLOOKUP($B$6,$A$25:$E$52,4)*LN(VLOOKUP($H165,P_Hard!$A$5:$Y$204,3*($C$8-1)+2)/1000)+VLOOKUP($B$6,$A$25:$E$52,5)),NA()) -> 9.488108417 | P165: 9.765624442 | Q165: =IF(ISNA(VLOOKUP($B$6,$A$25:$E$52,IF($B$8=$A$22,3,2))),EXP(VLOOKUP($B$6,$A$25:$E$52,4)*LN(VLOOKUP($H165,P_Hard!$A$5:$Y$204,3*($C$8-1)+4)/1000)+VLOOKUP($B$6,$A$25:$E$52,5)),NA()) -> 9.488108417 | S165: 11.66666667 | T165: =VLOOKUP($S165,P_All!$AA$5:$AY$245,3*($C$8-1)+2) -> 0.57957 | U165: =VLOOKUP($S165,P_All!$AA$5:$AY$245,3*($C$8-1)+3) -> 1.2816 | V165: =VLOOKUP($S165,P_All!$AA$5:$AY$245,3*($C$8-1)+4) -> 2.4466 | W165: =VLOOKUP($S165,NA_All!$AA$5:$AY$245,3*($C$8-1)+2) -> 0.58163 | X165: =VLOOKUP($S165,NA_All!$AA$5:$AY$245,3*($C$8-1)+3) -> 1.2877 | Y165: =VLOOKUP($S165,NA_All!$AA$5:$AY$245,3*($C$8-1)+4) -> 2.4542 | Z165: =IF(AND($B$8=$A$20,$B$6=$A$48),$B$54,IF(ISNA(VLOOKUP($B$6,$A$25:$E$52,IF($B$8=$A$22,3,2),FALSE)),EXP(VLOOKUP($B$6,$A$25:$E$52,4,FALSE)*LN(VLOOKUP($H165,P_Hard!$A$5:$Y$204,3*($C$8-1)+3,FALSE)/1000)+VLOOKUP($B$6,$A$25:$E$52,5,FALSE)),VLOOKUP($B$6,$A$25:$E$52,IF($B$8=$A$22,3,2),FALSE))) -> 9.488108417
H166: 142 | I166: =VLOOKUP($H166,P_All!$A$5:$Y$204,3*($C$8-1)+2) -> 2.2621 | J166: =VLOOKUP($H166,P_All!$A$5:$Y$204,3*($C$8-1)+3) -> 4.5542 | K166: =VLOOKUP($H166,P_All!$A$5:$Y$204,3*($C$8-1)+4) -> 5.5131 | L166: =VLOOKUP($H166,NA_All!$A$5:$Y$204,3*($C$8-1)+2) -> 1.5696 | M166: =VLOOKUP($H166,NA_All!$A$5:$Y$204,3*($C$8-1)+3) -> 2.178 | N166: =VLOOKUP($H166,NA_All!$A$5:$Y$204,3*($C$8-1)+4) -> 3.3167 | O166: =IF(ISNA(VLOOKUP($B$6,$A$25:$E$52,IF($B$8=$A$22,3,2))),EXP(VLOOKUP($B$6,$A$25:$E$52,4)*LN(VLOOKUP($H166,P_Hard!$A$5:$Y$204,3*($C$8-1)+2)/1000)+VLOOKUP($B$6,$A$25:$E$52,5)),NA()) -> 9.488108417 | P166: 9.765624442 | Q166: =IF(ISNA(VLOOKUP($B$6,$A$25:$E$52,IF($B$8=$A$22,3,2))),EXP(VLOOKUP($B$6,$A$25:$E$52,4)*LN(VLOOKUP($H166,P_Hard!$A$5:$Y$204,3*($C$8-1)+4)/1000)+VLOOKUP($B$6,$A$25:$E$52,5)),NA()) -> 9.488108417 | S166: 11.75 | T166: =VLOOKUP($S166,P_All!$AA$5:$AY$245,3*($C$8-1)+2) -> 0.5374 | U166: =VLOOKUP($S166,P_All!$AA$5:$AY$245,3*($C$8-1)+3) -> 1.2103 | V166: =VLOOKUP($S166,P_All!$AA$5:$AY$245,3*($C$8-1)+4) -> 2.4379 | W166: =VLOOKUP($S166,NA_All!$AA$5:$AY$245,3*($C$8-1)+2) -> 0.53634 | X166: =VLOOKUP($S166,NA_All!$AA$5:$AY$245,3*($C$8-1)+3) -> 1.2146 | Y166: =VLOOKUP($S166,NA_All!$AA$5:$AY$245,3*($C$8-1)+4) -> 2.4466 | Z166: =IF(AND($B$8=$A$20,$B$6=$A$48),$B$54,IF(ISNA(VLOOKUP($B$6,$A$25:$E$52,IF($B$8=$A$22,3,2),FALSE)),EXP(VLOOKUP($B$6,$A$25:$E$52,4,FALSE)*LN(VLOOKUP($H166,P_Hard!$A$5:$Y$204,3*($C$8-1)+3,FALSE)/1000)+VLOOKUP($B$6,$A$25:$E$52,5,FALSE)),VLOOKUP($B$6,$A$25:$E$52,IF($B$8=$A$22,3,2),FALSE))) -> 9.488108417
H167: 143 | I167: =VLOOKUP($H167,P_All!$A$5:$Y$204,3*($C$8-1)+2) -> 2.2539 | J167: =VLOOKUP($H167,P_All!$A$5:$Y$204,3*($C$8-1)+3) -> 4.5132 | K167: =VLOOKUP($H167,P_All!$A$5:$Y$204,3*($C$8-1)+4) -> 5.6711 | L167: =VLOOKUP($H167,NA_All!$A$5:$Y$204,3*($C$8-1)+2) -> 1.6033 | M167: =VLOOKUP($H167,NA_All!$A$5:$Y$204,3*($C$8-1)+3) -> 2.2263 | N167: =VLOOKUP($H167,NA_All!$A$5:$Y$204,3*($C$8-1)+4) -> 2.9684 | O167: =IF(ISNA(VLOOKUP($B$6,$A$25:$E$52,IF($B$8=$A$22,3,2))),EXP(VLOOKUP($B$6,$A$25:$E$52,4)*LN(VLOOKUP($H167,P_Hard!$A$5:$Y$204,3*($C$8-1)+2)/1000)+VLOOKUP($B$6,$A$25:$E$52,5)),NA()) -> 9.488108417 | P167: 9.765624442 | Q167: =IF(ISNA(VLOOKUP($B$6,$A$25:$E$52,IF($B$8=$A$22,3,2))),EXP(VLOOKUP($B$6,$A$25:$E$52,4)*LN(VLOOKUP($H167,P_Hard!$A$5:$Y$204,3*($C$8-1)+4)/1000)+VLOOKUP($B$6,$A$25:$E$52,5)),NA()) -> 9.488108417 | S167: 11.83333333 | T167: =VLOOKUP($S167,P_All!$AA$5:$AY$245,3*($C$8-1)+2) -> 0.47056 | U167: =VLOOKUP($S167,P_All!$AA$5:$AY$245,3*($C$8-1)+3) -> 1.1379 | V167: =VLOOKUP($S167,P_All!$AA$5:$AY$245,3*($C$8-1)+4) -> 2.7399 | W167: =VLOOKUP($S167,NA_All!$AA$5:$AY$245,3*($C$8-1)+2) -> 0.47059 | X167: =VLOOKUP($S167,NA_All!$AA$5:$AY$245,3*($C$8-1)+3) -> 1.1422 | Y167: =VLOOKUP($S167,NA_All!$AA$5:$AY$245,3*($C$8-1)+4) -> 2.7441 | Z167: =IF(AND($B$8=$A$20,$B$6=$A$48),$B$54,IF(ISNA(VLOOKUP($B$6,$A$25:$E$52,IF($B$8=$A$22,3,2),FALSE)),EXP(VLOOKUP($B$6,$A$25:$E$52,4,FALSE)*LN(VLOOKUP($H167,P_Hard!$A$5:$Y$204,3*($C$8-1)+3,FALSE)/1000)+VLOOKUP($B$6,$A$25:$E$52,5,FALSE)),VLOOKUP($B$6,$A$25:$E$52,IF($B$8=$A$22,3,2),FALSE))) -> 9.488108417
H168: 144 | I168: =VLOOKUP($H168,P_All!$A$5:$Y$204,3*($C$8-1)+2) -> 2.2329 | J168: =VLOOKUP($H168,P_All!$A$5:$Y$204,3*($C$8-1)+3) -> 4.4097 | K168: =VLOOKUP($H168,P_All!$A$5:$Y$204,3*($C$8-1)+4) -> 5.7691 | L168: =VLOOKUP($H168,NA_All!$A$5:$Y$204,3*($C$8-1)+2) -> 1.5763 | M168: =VLOOKUP($H168,NA_All!$A$5:$Y$204,3*($C$8-1)+3) -> 2.1845 | N168: =VLOOKUP($H168,NA_All!$A$5:$Y$204,3*($C$8-1)+4) -> 3.0064 | O168: =IF(ISNA(VLOOKUP($B$6,$A$25:$E$52,IF($B$8=$A$22,3,2))),EXP(VLOOKUP($B$6,$A$25:$E$52,4)*LN(VLOOKUP($H168,P_Hard!$A$5:$Y$204,3*($C$8-1)+2)/1000)+VLOOKUP($B$6,$A$25:$E$52,5)),NA()) -> 9.488108417 | P168: 9.765624442 | Q168: =IF(ISNA(VLOOKUP($B$6,$A$25:$E$52,IF($B$8=$A$22,3,2))),EXP(VLOOKUP($B$6,$A$25:$E$52,4)*LN(VLOOKUP($H168,P_Hard!$A$5:$Y$204,3*($C$8-1)+4)/1000)+VLOOKUP($B$6,$A$25:$E$52,5)),NA()) -> 9.488108417 | S168: 11.91666667 | T168: =VLOOKUP($S168,P_All!$AA$5:$AY$245,3*($C$8-1)+2) -> 0.56994 | U168: =VLOOKUP($S168,P_All!$AA$5:$AY$245,3*($C$8-1)+3) -> 1.1699 | V168: =VLOOKUP($S168,P_All!$AA$5:$AY$245,3*($C$8-1)+4) -> 2.4498 | W168: =VLOOKUP($S168,NA_All!$AA$5:$AY$245,3*($C$8-1)+2) -> 0.57132 | X168: =VLOOKUP($S168,NA_All!$AA$5:$AY$245,3*($C$8-1)+3) -> 1.1771 | Y168: =VLOOKUP($S168,NA_All!$AA$5:$AY$245,3*($C$8-1)+4) -> 2.4562 | Z168: =IF(AND($B$8=$A$20,$B$6=$A$48),$B$54,IF(ISNA(VLOOKUP($B$6,$A$25:$E$52,IF($B$8=$A$22,3,2),FALSE)),EXP(VLOOKUP($B$6,$A$25:$E$52,4,FALSE)*LN(VLOOKUP($H168,P_Hard!$A$5:$Y$204,3*($C$8-1)+3,FALSE)/1000)+VLOOKUP($B$6,$A$25:$E$52,5,FALSE)),VLOOKUP($B$6,$A$25:$E$52,IF($B$8=$A$22,3,2),FALSE))) -> 9.488108417
H169: 145 | I169: =VLOOKUP($H169,P_All!$A$5:$Y$204,3*($C$8-1)+2) -> 2.3376 | J169: =VLOOKUP($H169,P_All!$A$5:$Y$204,3*($C$8-1)+3) -> 4.4841 | K169: =VLOOKUP($H169,P_All!$A$5:$Y$204,3*($C$8-1)+4) -> 5.5244 | L169: =VLOOKUP($H169,NA_All!$A$5:$Y$204,3*($C$8-1)+2) -> 1.6679 | M169: =VLOOKUP($H169,NA_All!$A$5:$Y$204,3*($C$8-1)+3) -> 2.2081 | N169: =VLOOKUP($H169,NA_All!$A$5:$Y$204,3*($C$8-1)+4) -> 3.3204 | O169: =IF(ISNA(VLOOKUP($B$6,$A$25:$E$52,IF($B$8=$A$22,3,2))),EXP(VLOOKUP($B$6,$A$25:$E$52,4)*LN(VLOOKUP($H169,P_Hard!$A$5:$Y$204,3*($C$8-1)+2)/1000)+VLOOKUP($B$6,$A$25:$E$52,5)),NA()) -> 9.488108417 | P169: 9.765624442 | Q169: =IF(ISNA(VLOOKUP($B$6,$A$25:$E$52,IF($B$8=$A$22,3,2))),EXP(VLOOKUP($B$6,$A$25:$E$52,4)*LN(VLOOKUP($H169,P_Hard!$A$5:$Y$204,3*($C$8-1)+4)/1000)+VLOOKUP($B$6,$A$25:$E$52,5)),NA()) -> 9.488108417 | S169: 12 | T169: =VLOOKUP($S169,P_All!$AA$5:$AY$245,3*($C$8-1)+2) -> 0.90334 | U169: =VLOOKUP($S169,P_All!$AA$5:$AY$245,3*($C$8-1)+3) -> 1.4401 | V169: =VLOOKUP($S169,P_All!$AA$5:$AY$245,3*($C$8-1)+4) -> 2.1691 | W169: =VLOOKUP($S169,NA_All!$AA$5:$AY$245,3*($C$8-1)+2) -> 0.90699 | X169: =VLOOKUP($S169,NA_All!$AA$5:$AY$245,3*($C$8-1)+3) -> 1.4558 | Y169: =VLOOKUP($S169,NA_All!$AA$5:$AY$245,3*($C$8-1)+4) -> 2.1838 | Z169: =IF(AND($B$8=$A$20,$B$6=$A$48),$B$54,IF(ISNA(VLOOKUP($B$6,$A$25:$E$52,IF($B$8=$A$22,3,2),FALSE)),EXP(VLOOKUP($B$6,$A$25:$E$52,4,FALSE)*LN(VLOOKUP($H169,P_Hard!$A$5:$Y$204,3*($C$8-1)+3,FALSE)/1000)+VLOOKUP($B$6,$A$25:$E$52,5,FALSE)),VLOOKUP($B$6,$A$25:$E$52,IF($B$8=$A$22,3,2),FALSE))) -> 9.488108417
H170: 146 | I170: =VLOOKUP($H170,P_All!$A$5:$Y$204,3*($C$8-1)+2) -> 2.251 | J170: =VLOOKUP($H170,P_All!$A$5:$Y$204,3*($C$8-1)+3) -> 4.6319 | K170: =VLOOKUP($H170,P_All!$A$5:$Y$204,3*($C$8-1)+4) -> 5.6064 | L170: =VLOOKUP($H170,NA_All!$A$5:$Y$204,3*($C$8-1)+2) -> 1.5637 | M170: =VLOOKUP($H170,NA_All!$A$5:$Y$204,3*($C$8-1)+3) -> 2.2174 | N170: =VLOOKUP($H170,NA_All!$A$5:$Y$204,3*($C$8-1)+4) -> 3.0853 | O170: =IF(ISNA(VLOOKUP($B$6,$A$25:$E$52,IF($B$8=$A$22,3,2))),EXP(VLOOKUP($B$6,$A$25:$E$52,4)*LN(VLOOKUP($H170,P_Hard!$A$5:$Y$204,3*($C$8-1)+2)/1000)+VLOOKUP($B$6,$A$25:$E$52,5)),NA()) -> 9.488108417 | P170: 9.765624442 | Q170: =IF(ISNA(VLOOKUP($B$6,$A$25:$E$52,IF($B$8=$A$22,3,2))),EXP(VLOOKUP($B$6,$A$25:$E$52,4)*LN(VLOOKUP($H170,P_Hard!$A$5:$Y$204,3*($C$8-1)+4)/1000)+VLOOKUP($B$6,$A$25:$E$52,5)),NA()) -> 9.488108417 | S170: 12.08333333 | T170: =VLOOKUP($S170,P_All!$AA$5:$AY$245,3*($C$8-1)+2) -> 1.2084 | U170: =VLOOKUP($S170,P_All!$AA$5:$AY$245,3*($C$8-1)+3) -> 1.4577 | V170: =VLOOKUP($S170,P_All!$AA$5:$AY$245,3*($C$8-1)+4) -> 1.8751 | W170: =VLOOKUP($S170,NA_All!$AA$5:$AY$245,3*($C$8-1)+2) -> 1.2219 | X170: =VLOOKUP($S170,NA_All!$AA$5:$AY$245,3*($C$8-1)+3) -> 1.4714 | Y170: =VLOOKUP($S170,NA_All!$AA$5:$AY$245,3*($C$8-1)+4) -> 1.8906 | Z170: =IF(AND($B$8=$A$20,$B$6=$A$48),$B$54,IF(ISNA(VLOOKUP($B$6,$A$25:$E$52,IF($B$8=$A$22,3,2),FALSE)),EXP(VLOOKUP($B$6,$A$25:$E$52,4,FALSE)*LN(VLOOKUP($H170,P_Hard!$A$5:$Y$204,3*($C$8-1)+3,FALSE)/1000)+VLOOKUP($B$6,$A$25:$E$52,5,FALSE)),VLOOKUP($B$6,$A$25:$E$52,IF($B$8=$A$22,3,2),FALSE))) -> 9.488108417
H171: 147 | I171: =VLOOKUP($H171,P_All!$A$5:$Y$204,3*($C$8-1)+2) -> 2.2582 | J171: =VLOOKUP($H171,P_All!$A$5:$Y$204,3*($C$8-1)+3) -> 4.4219 | K171: =VLOOKUP($H171,P_All!$A$5:$Y$204,3*($C$8-1)+4) -> 5.595 | L171: =VLOOKUP($H171,NA_All!$A$5:$Y$204,3*($C$8-1)+2) -> 1.5958 | M171: =VLOOKUP($H171,NA_All!$A$5:$Y$204,3*($C$8-1)+3) -> 2.2183 | N171: =VLOOKUP($H171,NA_All!$A$5:$Y$204,3*($C$8-1)+4) -> 3.0811 | O171: =IF(ISNA(VLOOKUP($B$6,$A$25:$E$52,IF($B$8=$A$22,3,2))),EXP(VLOOKUP($B$6,$A$25:$E$52,4)*LN(VLOOKUP($H171,P_Hard!$A$5:$Y$204,3*($C$8-1)+2)/1000)+VLOOKUP($B$6,$A$25:$E$52,5)),NA()) -> 9.488108417 | P171: 9.765624442 | Q171: =IF(ISNA(VLOOKUP($B$6,$A$25:$E$52,IF($B$8=$A$22,3,2))),EXP(VLOOKUP($B$6,$A$25:$E$52,4)*LN(VLOOKUP($H171,P_Hard!$A$5:$Y$204,3*($C$8-1)+4)/1000)+VLOOKUP($B$6,$A$25:$E$52,5)),NA()) -> 9.488108417 | S171: 12.16666667 | T171: =VLOOKUP($S171,P_All!$AA$5:$AY$245,3*($C$8-1)+2) -> 1.226 | U171: =VLOOKUP($S171,P_All!$AA$5:$AY$245,3*($C$8-1)+3) -> 1.3885 | V171: =VLOOKUP($S171,P_All!$AA$5:$AY$245,3*($C$8-1)+4) -> 1.821 | W171: =VLOOKUP($S171,NA_All!$AA$5:$AY$245,3*($C$8-1)+2) -> 1.2352 | X171: =VLOOKUP($S171,NA_All!$AA$5:$AY$245,3*($C$8-1)+3) -> 1.4002 | Y171: =VLOOKUP($S171,NA_All!$AA$5:$AY$245,3*($C$8-1)+4) -> 1.8458 | Z171: =IF(AND($B$8=$A$20,$B$6=$A$48),$B$54,IF(ISNA(VLOOKUP($B$6,$A$25:$E$52,IF($B$8=$A$22,3,2),FALSE)),EXP(VLOOKUP($B$6,$A$25:$E$52,4,FALSE)*LN(VLOOKUP($H171,P_Hard!$A$5:$Y$204,3*($C$8-1)+3,FALSE)/1000)+VLOOKUP($B$6,$A$25:$E$52,5,FALSE)),VLOOKUP($B$6,$A$25:$E$52,IF($B$8=$A$22,3,2),FALSE))) -> 9.488108417
H172: 148 | I172: =VLOOKUP($H172,P_All!$A$5:$Y$204,3*($C$8-1)+2) -> 2.2914 | J172: =VLOOKUP($H172,P_All!$A$5:$Y$204,3*($C$8-1)+3) -> 4.5122 | K172: =VLOOKUP($H172,P_All!$A$5:$Y$204,3*($C$8-1)+4) -> 5.5319 | L172: =VLOOKUP($H172,NA_All!$A$5:$Y$204,3*($C$8-1)+2) -> 1.6245 | M172: =VLOOKUP($H172,NA_All!$A$5:$Y$204,3*($C$8-1)+3) -> 2.1853 | N172: =VLOOKUP($H172,NA_All!$A$5:$Y$204,3*($C$8-1)+4) -> 2.9579 | O172: =IF(ISNA(VLOOKUP($B$6,$A$25:$E$52,IF($B$8=$A$22,3,2))),EXP(VLOOKUP($B$6,$A$25:$E$52,4)*LN(VLOOKUP($H172,P_Hard!$A$5:$Y$204,3*($C$8-1)+2)/1000)+VLOOKUP($B$6,$A$25:$E$52,5)),NA()) -> 9.488108417 | P172: 9.765624442 | Q172: =IF(ISNA(VLOOKUP($B$6,$A$25:$E$52,IF($B$8=$A$22,3,2))),EXP(VLOOKUP($B$6,$A$25:$E$52,4)*LN(VLOOKUP($H172,P_Hard!$A$5:$Y$204,3*($C$8-1)+4)/1000)+VLOOKUP($B$6,$A$25:$E$52,5)),NA()) -> 9.488108417 | S172: 12.25 | T172: =VLOOKUP($S172,P_All!$AA$5:$AY$245,3*($C$8-1)+2) -> 0.81891 | U172: =VLOOKUP($S172,P_All!$AA$5:$AY$245,3*($C$8-1)+3) -> 1.3988 | V172: =VLOOKUP($S172,P_All!$AA$5:$AY$245,3*($C$8-1)+4) -> 1.8594 | W172: =VLOOKUP($S172,NA_All!$AA$5:$AY$245,3*($C$8-1)+2) -> 0.82087 | X172: =VLOOKUP($S172,NA_All!$AA$5:$AY$245,3*($C$8-1)+3) -> 1.4085 | Y172: =VLOOKUP($S172,NA_All!$AA$5:$AY$245,3*($C$8-1)+4) -> 1.872 | Z172: =IF(AND($B$8=$A$20,$B$6=$A$48),$B$54,IF(ISNA(VLOOKUP($B$6,$A$25:$E$52,IF($B$8=$A$22,3,2),FALSE)),EXP(VLOOKUP($B$6,$A$25:$E$52,4,FALSE)*LN(VLOOKUP($H172,P_Hard!$A$5:$Y$204,3*($C$8-1)+3,FALSE)/1000)+VLOOKUP($B$6,$A$25:$E$52,5,FALSE)),VLOOKUP($B$6,$A$25:$E$52,IF($B$8=$A$22,3,2),FALSE))) -> 9.488108417
H173: 149 | I173: =VLOOKUP($H173,P_All!$A$5:$Y$204,3*($C$8-1)+2) -> 2.1695 | J173: =VLOOKUP($H173,P_All!$A$5:$Y$204,3*($C$8-1)+3) -> 4.2871 | K173: =VLOOKUP($H173,P_All!$A$5:$Y$204,3*($C$8-1)+4) -> 5.558 | L173: =VLOOKUP($H173,NA_All!$A$5:$Y$204,3*($C$8-1)+2) -> 1.5194 | M173: =VLOOKUP($H173,NA_All!$A$5:$Y$204,3*($C$8-1)+3) -> 2.1892 | N173: =VLOOKUP($H173,NA_All!$A$5:$Y$204,3*($C$8-1)+4) -> 2.927 | O173: =IF(ISNA(VLOOKUP($B$6,$A$25:$E$52,IF($B$8=$A$22,3,2))),EXP(VLOOKUP($B$6,$A$25:$E$52,4)*LN(VLOOKUP($H173,P_Hard!$A$5:$Y$204,3*($C$8-1)+2)/1000)+VLOOKUP($B$6,$A$25:$E$52,5)),NA()) -> 9.488108417 | P173: 9.765624442 | Q173: =IF(ISNA(VLOOKUP($B$6,$A$25:$E$52,IF($B$8=$A$22,3,2))),EXP(VLOOKUP($B$6,$A$25:$E$52,4)*LN(VLOOKUP($H173,P_Hard!$A$5:$Y$204,3*($C$8-1)+4)/1000)+VLOOKUP($B$6,$A$25:$E$52,5)),NA()) -> 9.488108417 | S173: 12.33333333 | T173: =VLOOKUP($S173,P_All!$AA$5:$AY$245,3*($C$8-1)+2) -> 0.44399 | U173: =VLOOKUP($S173,P_All!$AA$5:$AY$245,3*($C$8-1)+3) -> 1.0278 | V173: =VLOOKUP($S173,P_All!$AA$5:$AY$245,3*($C$8-1)+4) -> 2.7729 | W173: =VLOOKUP($S173,NA_All!$AA$5:$AY$245,3*($C$8-1)+2) -> 0.44455 | X173: =VLOOKUP($S173,NA_All!$AA$5:$AY$245,3*($C$8-1)+3) -> 1.028 | Y173: =VLOOKUP($S173,NA_All!$AA$5:$AY$245,3*($C$8-1)+4) -> 2.7772 | Z173: =IF(AND($B$8=$A$20,$B$6=$A$48),$B$54,IF(ISNA(VLOOKUP($B$6,$A$25:$E$52,IF($B$8=$A$22,3,2),FALSE)),EXP(VLOOKUP($B$6,$A$25:$E$52,4,FALSE)*LN(VLOOKUP($H173,P_Hard!$A$5:$Y$204,3*($C$8-1)+3,FALSE)/1000)+VLOOKUP($B$6,$A$25:$E$52,5,FALSE)),VLOOKUP($B$6,$A$25:$E$52,IF($B$8=$A$22,3,2),FALSE))) -> 9.488108417
H174: 150 | I174: =VLOOKUP($H174,P_All!$A$5:$Y$204,3*($C$8-1)+2) -> 2.1018 | J174: =VLOOKUP($H174,P_All!$A$5:$Y$204,3*($C$8-1)+3) -> 4.4932 | K174: =VLOOKUP($H174,P_All!$A$5:$Y$204,3*($C$8-1)+4) -> 5.4333 | L174: =VLOOKUP($H174,NA_All!$A$5:$Y$204,3*($C$8-1)+2) -> 1.4258 | M174: =VLOOKUP($H174,NA_All!$A$5:$Y$204,3*($C$8-1)+3) -> 2.1896 | N174: =VLOOKUP($H174,NA_All!$A$5:$Y$204,3*($C$8-1)+4) -> 3.1309 | O174: =IF(ISNA(VLOOKUP($B$6,$A$25:$E$52,IF($B$8=$A$22,3,2))),EXP(VLOOKUP($B$6,$A$25:$E$52,4)*LN(VLOOKUP($H174,P_Hard!$A$5:$Y$204,3*($C$8-1)+2)/1000)+VLOOKUP($B$6,$A$25:$E$52,5)),NA()) -> 9.488108417 | P174: 9.765624442 | Q174: =IF(ISNA(VLOOKUP($B$6,$A$25:$E$52,IF($B$8=$A$22,3,2))),EXP(VLOOKUP($B$6,$A$25:$E$52,4)*LN(VLOOKUP($H174,P_Hard!$A$5:$Y$204,3*($C$8-1)+4)/1000)+VLOOKUP($B$6,$A$25:$E$52,5)),NA()) -> 9.488108417 | S174: 12.41666667 | T174: =VLOOKUP($S174,P_All!$AA$5:$AY$245,3*($C$8-1)+2) -> 0.41929 | U174: =VLOOKUP($S174,P_All!$AA$5:$AY$245,3*($C$8-1)+3) -> 0.98001 | V174: =VLOOKUP($S174,P_All!$AA$5:$AY$245,3*($C$8-1)+4) -> 2.6137 | W174: =VLOOKUP($S174,NA_All!$AA$5:$AY$245,3*($C$8-1)+2) -> 0.41793 | X174: =VLOOKUP($S174,NA_All!$AA$5:$AY$245,3*($C$8-1)+3) -> 0.98029 | Y174: =VLOOKUP($S174,NA_All!$AA$5:$AY$245,3*($C$8-1)+4) -> 2.6151 | Z174: =IF(AND($B$8=$A$20,$B$6=$A$48),$B$54,IF(ISNA(VLOOKUP($B$6,$A$25:$E$52,IF($B$8=$A$22,3,2),FALSE)),EXP(VLOOKUP($B$6,$A$25:$E$52,4,FALSE)*LN(VLOOKUP($H174,P_Hard!$A$5:$Y$204,3*($C$8-1)+3,FALSE)/1000)+VLOOKUP($B$6,$A$25:$E$52,5,FALSE)),VLOOKUP($B$6,$A$25:$E$52,IF($B$8=$A$22,3,2),FALSE))) -> 9.488108417
H175: 151 | I175: =VLOOKUP($H175,P_All!$A$5:$Y$204,3*($C$8-1)+2) -> 2.0946 | J175: =VLOOKUP($H175,P_All!$A$5:$Y$204,3*($C$8-1)+3) -> 4.057 | K175: =VLOOKUP($H175,P_All!$A$5:$Y$204,3*($C$8-1)+4) -> 5.5122 | L175: =VLOOKUP($H175,NA_All!$A$5:$Y$204,3*($C$8-1)+2) -> 1.4568 | M175: =VLOOKUP($H175,NA_All!$A$5:$Y$204,3*($C$8-1)+3) -> 2.1743 | N175: =VLOOKUP($H175,NA_All!$A$5:$Y$204,3*($C$8-1)+4) -> 3.072 | O175: =IF(ISNA(VLOOKUP($B$6,$A$25:$E$52,IF($B$8=$A$22,3,2))),EXP(VLOOKUP($B$6,$A$25:$E$52,4)*LN(VLOOKUP($H175,P_Hard!$A$5:$Y$204,3*($C$8-1)+2)/1000)+VLOOKUP($B$6,$A$25:$E$52,5)),NA()) -> 9.488108417 | P175: 9.765624442 | Q175: =IF(ISNA(VLOOKUP($B$6,$A$25:$E$52,IF($B$8=$A$22,3,2))),EXP(VLOOKUP($B$6,$A$25:$E$52,4)*LN(VLOOKUP($H175,P_Hard!$A$5:$Y$204,3*($C$8-1)+4)/1000)+VLOOKUP($B$6,$A$25:$E$52,5)),NA()) -> 9.488108417 | S175: 12.5 | T175: =VLOOKUP($S175,P_All!$AA$5:$AY$245,3*($C$8-1)+2) -> 0.45458 | U175: =VLOOKUP($S175,P_All!$AA$5:$AY$245,3*($C$8-1)+3) -> 1.1536 | V175: =VLOOKUP($S175,P_All!$AA$5:$AY$245,3*($C$8-1)+4) -> 2.5822 | W175: =VLOOKUP($S175,NA_All!$AA$5:$AY$245,3*($C$8-1)+2) -> 0.45513 | X175: =VLOOKUP($S175,NA_All!$AA$5:$AY$245,3*($C$8-1)+3) -> 1.1608 | Y175: =VLOOKUP($S175,NA_All!$AA$5:$AY$245,3*($C$8-1)+4) -> 2.589 | Z175: =IF(AND($B$8=$A$20,$B$6=$A$48),$B$54,IF(ISNA(VLOOKUP($B$6,$A$25:$E$52,IF($B$8=$A$22,3,2),FALSE)),EXP(VLOOKUP($B$6,$A$25:$E$52,4,FALSE)*LN(VLOOKUP($H175,P_Hard!$A$5:$Y$204,3*($C$8-1)+3,FALSE)/1000)+VLOOKUP($B$6,$A$25:$E$52,5,FALSE)),VLOOKUP($B$6,$A$25:$E$52,IF($B$8=$A$22,3,2),FALSE))) -> 9.488108417
H176: 152 | I176: =VLOOKUP($H176,P_All!$A$5:$Y$204,3*($C$8-1)+2) -> 2.2115 | J176: =VLOOKUP($H176,P_All!$A$5:$Y$204,3*($C$8-1)+3) -> 4.5887 | K176: =VLOOKUP($H176,P_All!$A$5:$Y$204,3*($C$8-1)+4) -> 5.5685 | L176: =VLOOKUP($H176,NA_All!$A$5:$Y$204,3*($C$8-1)+2) -> 1.5171 | M176: =VLOOKUP($H176,NA_All!$A$5:$Y$204,3*($C$8-1)+3) -> 2.2033 | N176: =VLOOKUP($H176,NA_All!$A$5:$Y$204,3*($C$8-1)+4) -> 2.9439 | O176: =IF(ISNA(VLOOKUP($B$6,$A$25:$E$52,IF($B$8=$A$22,3,2))),EXP(VLOOKUP($B$6,$A$25:$E$52,4)*LN(VLOOKUP($H176,P_Hard!$A$5:$Y$204,3*($C$8-1)+2)/1000)+VLOOKUP($B$6,$A$25:$E$52,5)),NA()) -> 9.488108417 | P176: 9.765624442 | Q176: =IF(ISNA(VLOOKUP($B$6,$A$25:$E$52,IF($B$8=$A$22,3,2))),EXP(VLOOKUP($B$6,$A$25:$E$52,4)*LN(VLOOKUP($H176,P_Hard!$A$5:$Y$204,3*($C$8-1)+4)/1000)+VLOOKUP($B$6,$A$25:$E$52,5)),NA()) -> 9.488108417 | S176: 12.58333333 | T176: =VLOOKUP($S176,P_All!$AA$5:$AY$245,3*($C$8-1)+2) -> 0.53738 | U176: =VLOOKUP($S176,P_All!$AA$5:$AY$245,3*($C$8-1)+3) -> 1.3265 | V176: =VLOOKUP($S176,P_All!$AA$5:$AY$245,3*($C$8-1)+4) -> 2.7012 | W176: =VLOOKUP($S176,NA_All!$AA$5:$AY$245,3*($C$8-1)+2) -> 0.53789 | X176: =VLOOKUP($S176,NA_All!$AA$5:$AY$245,3*($C$8-1)+3) -> 1.3284 | Y176: =VLOOKUP($S176,NA_All!$AA$5:$AY$245,3*($C$8-1)+4) -> 2.7094 | Z176: =IF(AND($B$8=$A$20,$B$6=$A$48),$B$54,IF(ISNA(VLOOKUP($B$6,$A$25:$E$52,IF($B$8=$A$22,3,2),FALSE)),EXP(VLOOKUP($B$6,$A$25:$E$52,4,FALSE)*LN(VLOOKUP($H176,P_Hard!$A$5:$Y$204,3*($C$8-1)+3,FALSE)/1000)+VLOOKUP($B$6,$A$25:$E$52,5,FALSE)),VLOOKUP($B$6,$A$25:$E$52,IF($B$8=$A$22,3,2),FALSE))) -> 9.488108417
H177: 153 | I177: =VLOOKUP($H177,P_All!$A$5:$Y$204,3*($C$8-1)+2) -> 2.2981 | J177: =VLOOKUP($H177,P_All!$A$5:$Y$204,3*($C$8-1)+3) -> 4.6724 | K177: =VLOOKUP($H177,P_All!$A$5:$Y$204,3*($C$8-1)+4) -> 5.5019 | L177: =VLOOKUP($H177,NA_All!$A$5:$Y$204,3*($C$8-1)+2) -> 1.5935 | M177: =VLOOKUP($H177,NA_All!$A$5:$Y$204,3*($C$8-1)+3) -> 2.1906 | N177: =VLOOKUP($H177,NA_All!$A$5:$Y$204,3*($C$8-1)+4) -> 2.9972 | O177: =IF(ISNA(VLOOKUP($B$6,$A$25:$E$52,IF($B$8=$A$22,3,2))),EXP(VLOOKUP($B$6,$A$25:$E$52,4)*LN(VLOOKUP($H177,P_Hard!$A$5:$Y$204,3*($C$8-1)+2)/1000)+VLOOKUP($B$6,$A$25:$E$52,5)),NA()) -> 9.488108417 | P177: 9.765624442 | Q177: =IF(ISNA(VLOOKUP($B$6,$A$25:$E$52,IF($B$8=$A$22,3,2))),EXP(VLOOKUP($B$6,$A$25:$E$52,4)*LN(VLOOKUP($H177,P_Hard!$A$5:$Y$204,3*($C$8-1)+4)/1000)+VLOOKUP($B$6,$A$25:$E$52,5)),NA()) -> 9.488108417 | S177: 12.66666667 | T177: =VLOOKUP($S177,P_All!$AA$5:$AY$245,3*($C$8-1)+2) -> 0.49113 | U177: =VLOOKUP($S177,P_All!$AA$5:$AY$245,3*($C$8-1)+3) -> 1.2021 | V177: =VLOOKUP($S177,P_All!$AA$5:$AY$245,3*($C$8-1)+4) -> 2.2582 | W177: =VLOOKUP($S177,NA_All!$AA$5:$AY$245,3*($C$8-1)+2) -> 0.4906 | X177: =VLOOKUP($S177,NA_All!$AA$5:$AY$245,3*($C$8-1)+3) -> 1.2059 | Y177: =VLOOKUP($S177,NA_All!$AA$5:$AY$245,3*($C$8-1)+4) -> 2.2704 | Z177: =IF(AND($B$8=$A$20,$B$6=$A$48),$B$54,IF(ISNA(VLOOKUP($B$6,$A$25:$E$52,IF($B$8=$A$22,3,2),FALSE)),EXP(VLOOKUP($B$6,$A$25:$E$52,4,FALSE)*LN(VLOOKUP($H177,P_Hard!$A$5:$Y$204,3*($C$8-1)+3,FALSE)/1000)+VLOOKUP($B$6,$A$25:$E$52,5,FALSE)),VLOOKUP($B$6,$A$25:$E$52,IF($B$8=$A$22,3,2),FALSE))) -> 9.488108417
H178: 154 | I178: =VLOOKUP($H178,P_All!$A$5:$Y$204,3*($C$8-1)+2) -> 2.2515 | J178: =VLOOKUP($H178,P_All!$A$5:$Y$204,3*($C$8-1)+3) -> 4.6055 | K178: =VLOOKUP($H178,P_All!$A$5:$Y$204,3*($C$8-1)+4) -> 5.6533 | L178: =VLOOKUP($H178,NA_All!$A$5:$Y$204,3*($C$8-1)+2) -> 1.5906 | M178: =VLOOKUP($H178,NA_All!$A$5:$Y$204,3*($C$8-1)+3) -> 2.1969 | N178: =VLOOKUP($H178,NA_All!$A$5:$Y$204,3*($C$8-1)+4) -> 3.2194 | O178: =IF(ISNA(VLOOKUP($B$6,$A$25:$E$52,IF($B$8=$A$22,3,2))),EXP(VLOOKUP($B$6,$A$25:$E$52,4)*LN(VLOOKUP($H178,P_Hard!$A$5:$Y$204,3*($C$8-1)+2)/1000)+VLOOKUP($B$6,$A$25:$E$52,5)),NA()) -> 9.488108417 | P178: 9.765624442 | Q178: =IF(ISNA(VLOOKUP($B$6,$A$25:$E$52,IF($B$8=$A$22,3,2))),EXP(VLOOKUP($B$6,$A$25:$E$52,4)*LN(VLOOKUP($H178,P_Hard!$A$5:$Y$204,3*($C$8-1)+4)/1000)+VLOOKUP($B$6,$A$25:$E$52,5)),NA()) -> 9.488108417 | S178: 12.75 | T178: =VLOOKUP($S178,P_All!$AA$5:$AY$245,3*($C$8-1)+2) -> 0.51521 | U178: =VLOOKUP($S178,P_All!$AA$5:$AY$245,3*($C$8-1)+3) -> 1.1519 | V178: =VLOOKUP($S178,P_All!$AA$5:$AY$245,3*($C$8-1)+4) -> 2.6161 | W178: =VLOOKUP($S178,NA_All!$AA$5:$AY$245,3*($C$8-1)+2) -> 0.51639 | X178: =VLOOKUP($S178,NA_All!$AA$5:$AY$245,3*($C$8-1)+3) -> 1.1578 | Y178: =VLOOKUP($S178,NA_All!$AA$5:$AY$245,3*($C$8-1)+4) -> 2.6254 | Z178: =IF(AND($B$8=$A$20,$B$6=$A$48),$B$54,IF(ISNA(VLOOKUP($B$6,$A$25:$E$52,IF($B$8=$A$22,3,2),FALSE)),EXP(VLOOKUP($B$6,$A$25:$E$52,4,FALSE)*LN(VLOOKUP($H178,P_Hard!$A$5:$Y$204,3*($C$8-1)+3,FALSE)/1000)+VLOOKUP($B$6,$A$25:$E$52,5,FALSE)),VLOOKUP($B$6,$A$25:$E$52,IF($B$8=$A$22,3,2),FALSE))) -> 9.488108417
H179: 155 | I179: =VLOOKUP($H179,P_All!$A$5:$Y$204,3*($C$8-1)+2) -> 2.2538 | J179: =VLOOKUP($H179,P_All!$A$5:$Y$204,3*($C$8-1)+3) -> 4.4119 | K179: =VLOOKUP($H179,P_All!$A$5:$Y$204,3*($C$8-1)+4) -> 5.5503 | L179: =VLOOKUP($H179,NA_All!$A$5:$Y$204,3*($C$8-1)+2) -> 1.5469 | M179: =VLOOKUP($H179,NA_All!$A$5:$Y$204,3*($C$8-1)+3) -> 2.1636 | N179: =VLOOKUP($H179,NA_All!$A$5:$Y$204,3*($C$8-1)+4) -> 3.1891 | O179: =IF(ISNA(VLOOKUP($B$6,$A$25:$E$52,IF($B$8=$A$22,3,2))),EXP(VLOOKUP($B$6,$A$25:$E$52,4)*LN(VLOOKUP($H179,P_Hard!$A$5:$Y$204,3*($C$8-1)+2)/1000)+VLOOKUP($B$6,$A$25:$E$52,5)),NA()) -> 9.488108417 | P179: 9.765624442 | Q179: =IF(ISNA(VLOOKUP($B$6,$A$25:$E$52,IF($B$8=$A$22,3,2))),EXP(VLOOKUP($B$6,$A$25:$E$52,4)*LN(VLOOKUP($H179,P_Hard!$A$5:$Y$204,3*($C$8-1)+4)/1000)+VLOOKUP($B$6,$A$25:$E$52,5)),NA()) -> 9.488108417 | S179: 12.83333333 | T179: =VLOOKUP($S179,P_All!$AA$5:$AY$245,3*($C$8-1)+2) -> 0.47839 | U179: =VLOOKUP($S179,P_All!$AA$5:$AY$245,3*($C$8-1)+3) -> 1.004 | V179: =VLOOKUP($S179,P_All!$AA$5:$AY$245,3*($C$8-1)+4) -> 2.6637 | W179: =VLOOKUP($S179,NA_All!$AA$5:$AY$245,3*($C$8-1)+2) -> 0.47875 | X179: =VLOOKUP($S179,NA_All!$AA$5:$AY$245,3*($C$8-1)+3) -> 1.0052 | Y179: =VLOOKUP($S179,NA_All!$AA$5:$AY$245,3*($C$8-1)+4) -> 2.6734 | Z179: =IF(AND($B$8=$A$20,$B$6=$A$48),$B$54,IF(ISNA(VLOOKUP($B$6,$A$25:$E$52,IF($B$8=$A$22,3,2),FALSE)),EXP(VLOOKUP($B$6,$A$25:$E$52,4,FALSE)*LN(VLOOKUP($H179,P_Hard!$A$5:$Y$204,3*($C$8-1)+3,FALSE)/1000)+VLOOKUP($B$6,$A$25:$E$52,5,FALSE)),VLOOKUP($B$6,$A$25:$E$52,IF($B$8=$A$22,3,2),FALSE))) -> 9.488108417
H180: 156 | I180: =VLOOKUP($H180,P_All!$A$5:$Y$204,3*($C$8-1)+2) -> 2.1864 | J180: =VLOOKUP($H180,P_All!$A$5:$Y$204,3*($C$8-1)+3) -> 4.5067 | K180: =VLOOKUP($H180,P_All!$A$5:$Y$204,3*($C$8-1)+4) -> 5.5142 | L180: =VLOOKUP($H180,NA_All!$A$5:$Y$204,3*($C$8-1)+2) -> 1.5476 | M180: =VLOOKUP($H180,NA_All!$A$5:$Y$204,3*($C$8-1)+3) -> 2.1994 | N180: =VLOOKUP($H180,NA_All!$A$5:$Y$204,3*($C$8-1)+4) -> 2.833 | O180: =IF(ISNA(VLOOKUP($B$6,$A$25:$E$52,IF($B$8=$A$22,3,2))),EXP(VLOOKUP($B$6,$A$25:$E$52,4)*LN(VLOOKUP($H180,P_Hard!$A$5:$Y$204,3*($C$8-1)+2)/1000)+VLOOKUP($B$6,$A$25:$E$52,5)),NA()) -> 9.488108417 | P180: 9.765624442 | Q180: =IF(ISNA(VLOOKUP($B$6,$A$25:$E$52,IF($B$8=$A$22,3,2))),EXP(VLOOKUP($B$6,$A$25:$E$52,4)*LN(VLOOKUP($H180,P_Hard!$A$5:$Y$204,3*($C$8-1)+4)/1000)+VLOOKUP($B$6,$A$25:$E$52,5)),NA()) -> 9.488108417 | S180: 12.91666667 | T180: =VLOOKUP($S180,P_All!$AA$5:$AY$245,3*($C$8-1)+2) -> 0.63903 | U180: =VLOOKUP($S180,P_All!$AA$5:$AY$245,3*($C$8-1)+3) -> 1.1963 | V180: =VLOOKUP($S180,P_All!$AA$5:$AY$245,3*($C$8-1)+4) -> 2.4931 | W180: =VLOOKUP($S180,NA_All!$AA$5:$AY$245,3*($C$8-1)+2) -> 0.63971 | X180: =VLOOKUP($S180,NA_All!$AA$5:$AY$245,3*($C$8-1)+3) -> 1.2076 | Y180: =VLOOKUP($S180,NA_All!$AA$5:$AY$245,3*($C$8-1)+4) -> 2.5045 | Z180: =IF(AND($B$8=$A$20,$B$6=$A$48),$B$54,IF(ISNA(VLOOKUP($B$6,$A$25:$E$52,IF($B$8=$A$22,3,2),FALSE)),EXP(VLOOKUP($B$6,$A$25:$E$52,4,FALSE)*LN(VLOOKUP($H180,P_Hard!$A$5:$Y$204,3*($C$8-1)+3,FALSE)/1000)+VLOOKUP($B$6,$A$25:$E$52,5,FALSE)),VLOOKUP($B$6,$A$25:$E$52,IF($B$8=$A$22,3,2),FALSE))) -> 9.488108417
H181: 157 | I181: =VLOOKUP($H181,P_All!$A$5:$Y$204,3*($C$8-1)+2) -> 2.2309 | J181: =VLOOKUP($H181,P_All!$A$5:$Y$204,3*($C$8-1)+3) -> 4.5026 | K181: =VLOOKUP($H181,P_All!$A$5:$Y$204,3*($C$8-1)+4) -> 5.6067 | L181: =VLOOKUP($H181,NA_All!$A$5:$Y$204,3*($C$8-1)+2) -> 1.5649 | M181: =VLOOKUP($H181,NA_All!$A$5:$Y$204,3*($C$8-1)+3) -> 2.2055 | N181: =VLOOKUP($H181,NA_All!$A$5:$Y$204,3*($C$8-1)+4) -> 3.0452 | O181: =IF(ISNA(VLOOKUP($B$6,$A$25:$E$52,IF($B$8=$A$22,3,2))),EXP(VLOOKUP($B$6,$A$25:$E$52,4)*LN(VLOOKUP($H181,P_Hard!$A$5:$Y$204,3*($C$8-1)+2)/1000)+VLOOKUP($B$6,$A$25:$E$52,5)),NA()) -> 9.488108417 | P181: 9.765624442 | Q181: =IF(ISNA(VLOOKUP($B$6,$A$25:$E$52,IF($B$8=$A$22,3,2))),EXP(VLOOKUP($B$6,$A$25:$E$52,4)*LN(VLOOKUP($H181,P_Hard!$A$5:$Y$204,3*($C$8-1)+4)/1000)+VLOOKUP($B$6,$A$25:$E$52,5)),NA()) -> 9.488108417 | S181: 13 | T181: =VLOOKUP($S181,P_All!$AA$5:$AY$245,3*($C$8-1)+2) -> 0.87249 | U181: =VLOOKUP($S181,P_All!$AA$5:$AY$245,3*($C$8-1)+3) -> 1.4194 | V181: =VLOOKUP($S181,P_All!$AA$5:$AY$245,3*($C$8-1)+4) -> 2.1214 | W181: =VLOOKUP($S181,NA_All!$AA$5:$AY$245,3*($C$8-1)+2) -> 0.87877 | X181: =VLOOKUP($S181,NA_All!$AA$5:$AY$245,3*($C$8-1)+3) -> 1.4382 | Y181: =VLOOKUP($S181,NA_All!$AA$5:$AY$245,3*($C$8-1)+4) -> 2.1345 | Z181: =IF(AND($B$8=$A$20,$B$6=$A$48),$B$54,IF(ISNA(VLOOKUP($B$6,$A$25:$E$52,IF($B$8=$A$22,3,2),FALSE)),EXP(VLOOKUP($B$6,$A$25:$E$52,4,FALSE)*LN(VLOOKUP($H181,P_Hard!$A$5:$Y$204,3*($C$8-1)+3,FALSE)/1000)+VLOOKUP($B$6,$A$25:$E$52,5,FALSE)),VLOOKUP($B$6,$A$25:$E$52,IF($B$8=$A$22,3,2),FALSE))) -> 9.488108417
H182: 158 | I182: =VLOOKUP($H182,P_All!$A$5:$Y$204,3*($C$8-1)+2) -> 2.2285 | J182: =VLOOKUP($H182,P_All!$A$5:$Y$204,3*($C$8-1)+3) -> 4.4859 | K182: =VLOOKUP($H182,P_All!$A$5:$Y$204,3*($C$8-1)+4) -> 5.5944 | L182: =VLOOKUP($H182,NA_All!$A$5:$Y$204,3*($C$8-1)+2) -> 1.5877 | M182: =VLOOKUP($H182,NA_All!$A$5:$Y$204,3*($C$8-1)+3) -> 2.2354 | N182: =VLOOKUP($H182,NA_All!$A$5:$Y$204,3*($C$8-1)+4) -> 2.8718 | O182: =IF(ISNA(VLOOKUP($B$6,$A$25:$E$52,IF($B$8=$A$22,3,2))),EXP(VLOOKUP($B$6,$A$25:$E$52,4)*LN(VLOOKUP($H182,P_Hard!$A$5:$Y$204,3*($C$8-1)+2)/1000)+VLOOKUP($B$6,$A$25:$E$52,5)),NA()) -> 9.488108417 | P182: 9.765624442 | Q182: =IF(ISNA(VLOOKUP($B$6,$A$25:$E$52,IF($B$8=$A$22,3,2))),EXP(VLOOKUP($B$6,$A$25:$E$52,4)*LN(VLOOKUP($H182,P_Hard!$A$5:$Y$204,3*($C$8-1)+4)/1000)+VLOOKUP($B$6,$A$25:$E$52,5)),NA()) -> 9.488108417 | S182: 13.08333333 | T182: =VLOOKUP($S182,P_All!$AA$5:$AY$245,3*($C$8-1)+2) -> 1.1629 | U182: =VLOOKUP($S182,P_All!$AA$5:$AY$245,3*($C$8-1)+3) -> 1.4476 | V182: =VLOOKUP($S182,P_All!$AA$5:$AY$245,3*($C$8-1)+4) -> 1.8542 | W182: =VLOOKUP($S182,NA_All!$AA$5:$AY$245,3*($C$8-1)+2) -> 1.1731 | X182: =VLOOKUP($S182,NA_All!$AA$5:$AY$245,3*($C$8-1)+3) -> 1.4596 | Y182: =VLOOKUP($S182,NA_All!$AA$5:$AY$245,3*($C$8-1)+4) -> 1.874 | Z182: =IF(AND($B$8=$A$20,$B$6=$A$48),$B$54,IF(ISNA(VLOOKUP($B$6,$A$25:$E$52,IF($B$8=$A$22,3,2),FALSE)),EXP(VLOOKUP($B$6,$A$25:$E$52,4,FALSE)*LN(VLOOKUP($H182,P_Hard!$A$5:$Y$204,3*($C$8-1)+3,FALSE)/1000)+VLOOKUP($B$6,$A$25:$E$52,5,FALSE)),VLOOKUP($B$6,$A$25:$E$52,IF($B$8=$A$22,3,2),FALSE))) -> 9.488108417
H183: 159 | I183: =VLOOKUP($H183,P_All!$A$5:$Y$204,3*($C$8-1)+2) -> 2.1777 | J183: =VLOOKUP($H183,P_All!$A$5:$Y$204,3*($C$8-1)+3) -> 4.5367 | K183: =VLOOKUP($H183,P_All!$A$5:$Y$204,3*($C$8-1)+4) -> 5.6912 | L183: =VLOOKUP($H183,NA_All!$A$5:$Y$204,3*($C$8-1)+2) -> 1.5277 | M183: =VLOOKUP($H183,NA_All!$A$5:$Y$204,3*($C$8-1)+3) -> 2.1718 | N183: =VLOOKUP($H183,NA_All!$A$5:$Y$204,3*($C$8-1)+4) -> 3.0055 | O183: =IF(ISNA(VLOOKUP($B$6,$A$25:$E$52,IF($B$8=$A$22,3,2))),EXP(VLOOKUP($B$6,$A$25:$E$52,4)*LN(VLOOKUP($H183,P_Hard!$A$5:$Y$204,3*($C$8-1)+2)/1000)+VLOOKUP($B$6,$A$25:$E$52,5)),NA()) -> 9.488108417 | P183: 9.765624442 | Q183: =IF(ISNA(VLOOKUP($B$6,$A$25:$E$52,IF($B$8=$A$22,3,2))),EXP(VLOOKUP($B$6,$A$25:$E$52,4)*LN(VLOOKUP($H183,P_Hard!$A$5:$Y$204,3*($C$8-1)+4)/1000)+VLOOKUP($B$6,$A$25:$E$52,5)),NA()) -> 9.488108417 | S183: 13.16666667 | T183: =VLOOKUP($S183,P_All!$AA$5:$AY$245,3*($C$8-1)+2) -> 1.2325 | U183: =VLOOKUP($S183,P_All!$AA$5:$AY$245,3*($C$8-1)+3) -> 1.393 | V183: =VLOOKUP($S183,P_All!$AA$5:$AY$245,3*($C$8-1)+4) -> 1.7477 | W183: =VLOOKUP($S183,NA_All!$AA$5:$AY$245,3*($C$8-1)+2) -> 1.2402 | X183: =VLOOKUP($S183,NA_All!$AA$5:$AY$245,3*($C$8-1)+3) -> 1.4041 | Y183: =VLOOKUP($S183,NA_All!$AA$5:$AY$245,3*($C$8-1)+4) -> 1.7739 | Z183: =IF(AND($B$8=$A$20,$B$6=$A$48),$B$54,IF(ISNA(VLOOKUP($B$6,$A$25:$E$52,IF($B$8=$A$22,3,2),FALSE)),EXP(VLOOKUP($B$6,$A$25:$E$52,4,FALSE)*LN(VLOOKUP($H183,P_Hard!$A$5:$Y$204,3*($C$8-1)+3,FALSE)/1000)+VLOOKUP($B$6,$A$25:$E$52,5,FALSE)),VLOOKUP($B$6,$A$25:$E$52,IF($B$8=$A$22,3,2),FALSE))) -> 9.488108417
H184: 160 | I184: =VLOOKUP($H184,P_All!$A$5:$Y$204,3*($C$8-1)+2) -> 2.1631 | J184: =VLOOKUP($H184,P_All!$A$5:$Y$204,3*($C$8-1)+3) -> 4.4985 | K184: =VLOOKUP($H184,P_All!$A$5:$Y$204,3*($C$8-1)+4) -> 5.7806 | L184: =VLOOKUP($H184,NA_All!$A$5:$Y$204,3*($C$8-1)+2) -> 1.553 | M184: =VLOOKUP($H184,NA_All!$A$5:$Y$204,3*($C$8-1)+3) -> 2.1801 | N184: =VLOOKUP($H184,NA_All!$A$5:$Y$204,3*($C$8-1)+4) -> 2.9148 | O184: =IF(ISNA(VLOOKUP($B$6,$A$25:$E$52,IF($B$8=$A$22,3,2))),EXP(VLOOKUP($B$6,$A$25:$E$52,4)*LN(VLOOKUP($H184,P_Hard!$A$5:$Y$204,3*($C$8-1)+2)/1000)+VLOOKUP($B$6,$A$25:$E$52,5)),NA()) -> 9.488108417 | P184: 9.765624442 | Q184: =IF(ISNA(VLOOKUP($B$6,$A$25:$E$52,IF($B$8=$A$22,3,2))),EXP(VLOOKUP($B$6,$A$25:$E$52,4)*LN(VLOOKUP($H184,P_Hard!$A$5:$Y$204,3*($C$8-1)+4)/1000)+VLOOKUP($B$6,$A$25:$E$52,5)),NA()) -> 9.488108417 | S184: 13.25 | T184: =VLOOKUP($S184,P_All!$AA$5:$AY$245,3*($C$8-1)+2) -> 0.92581 | U184: =VLOOKUP($S184,P_All!$AA$5:$AY$245,3*($C$8-1)+3) -> 1.4273 | V184: =VLOOKUP($S184,P_All!$AA$5:$AY$245,3*($C$8-1)+4) -> 1.8675 | W184: =VLOOKUP($S184,NA_All!$AA$5:$AY$245,3*($C$8-1)+2) -> 0.93014 | X184: =VLOOKUP($S184,NA_All!$AA$5:$AY$245,3*($C$8-1)+3) -> 1.4371 | Y184: =VLOOKUP($S184,NA_All!$AA$5:$AY$245,3*($C$8-1)+4) -> 1.9037 | Z184: =IF(AND($B$8=$A$20,$B$6=$A$48),$B$54,IF(ISNA(VLOOKUP($B$6,$A$25:$E$52,IF($B$8=$A$22,3,2),FALSE)),EXP(VLOOKUP($B$6,$A$25:$E$52,4,FALSE)*LN(VLOOKUP($H184,P_Hard!$A$5:$Y$204,3*($C$8-1)+3,FALSE)/1000)+VLOOKUP($B$6,$A$25:$E$52,5,FALSE)),VLOOKUP($B$6,$A$25:$E$52,IF($B$8=$A$22,3,2),FALSE))) -> 9.488108417
H185: 161 | I185: =VLOOKUP($H185,P_All!$A$5:$Y$204,3*($C$8-1)+2) -> 2.1804 | J185: =VLOOKUP($H185,P_All!$A$5:$Y$204,3*($C$8-1)+3) -> 4.3615 | K185: =VLOOKUP($H185,P_All!$A$5:$Y$204,3*($C$8-1)+4) -> 5.6826 | L185: =VLOOKUP($H185,NA_All!$A$5:$Y$204,3*($C$8-1)+2) -> 1.5133 | M185: =VLOOKUP($H185,NA_All!$A$5:$Y$204,3*($C$8-1)+3) -> 2.1757 | N185: =VLOOKUP($H185,NA_All!$A$5:$Y$204,3*($C$8-1)+4) -> 3.2265 | O185: =IF(ISNA(VLOOKUP($B$6,$A$25:$E$52,IF($B$8=$A$22,3,2))),EXP(VLOOKUP($B$6,$A$25:$E$52,4)*LN(VLOOKUP($H185,P_Hard!$A$5:$Y$204,3*($C$8-1)+2)/1000)+VLOOKUP($B$6,$A$25:$E$52,5)),NA()) -> 9.488108417 | P185: 9.765624442 | Q185: =IF(ISNA(VLOOKUP($B$6,$A$25:$E$52,IF($B$8=$A$22,3,2))),EXP(VLOOKUP($B$6,$A$25:$E$52,4)*LN(VLOOKUP($H185,P_Hard!$A$5:$Y$204,3*($C$8-1)+4)/1000)+VLOOKUP($B$6,$A$25:$E$52,5)),NA()) -> 9.488108417 | S185: 13.33333333 | T185: =VLOOKUP($S185,P_All!$AA$5:$AY$245,3*($C$8-1)+2) -> 0.42001 | U185: =VLOOKUP($S185,P_All!$AA$5:$AY$245,3*($C$8-1)+3) -> 1.1246 | V185: =VLOOKUP($S185,P_All!$AA$5:$AY$245,3*($C$8-1)+4) -> 2.9804 | W185: =VLOOKUP($S185,NA_All!$AA$5:$AY$245,3*($C$8-1)+2) -> 0.42057 | X185: =VLOOKUP($S185,NA_All!$AA$5:$AY$245,3*($C$8-1)+3) -> 1.1299 | Y185: =VLOOKUP($S185,NA_All!$AA$5:$AY$245,3*($C$8-1)+4) -> 2.981 | Z185: =IF(AND($B$8=$A$20,$B$6=$A$48),$B$54,IF(ISNA(VLOOKUP($B$6,$A$25:$E$52,IF($B$8=$A$22,3,2),FALSE)),EXP(VLOOKUP($B$6,$A$25:$E$52,4,FALSE)*LN(VLOOKUP($H185,P_Hard!$A$5:$Y$204,3*($C$8-1)+3,FALSE)/1000)+VLOOKUP($B$6,$A$25:$E$52,5,FALSE)),VLOOKUP($B$6,$A$25:$E$52,IF($B$8=$A$22,3,2),FALSE))) -> 9.488108417
H186: 162 | I186: =VLOOKUP($H186,P_All!$A$5:$Y$204,3*($C$8-1)+2) -> 2.0733 | J186: =VLOOKUP($H186,P_All!$A$5:$Y$204,3*($C$8-1)+3) -> 4.5688 | K186: =VLOOKUP($H186,P_All!$A$5:$Y$204,3*($C$8-1)+4) -> 5.4277 | L186: =VLOOKUP($H186,NA_All!$A$5:$Y$204,3*($C$8-1)+2) -> 1.3891 | M186: =VLOOKUP($H186,NA_All!$A$5:$Y$204,3*($C$8-1)+3) -> 2.1901 | N186: =VLOOKUP($H186,NA_All!$A$5:$Y$204,3*($C$8-1)+4) -> 2.9925 | O186: =IF(ISNA(VLOOKUP($B$6,$A$25:$E$52,IF($B$8=$A$22,3,2))),EXP(VLOOKUP($B$6,$A$25:$E$52,4)*LN(VLOOKUP($H186,P_Hard!$A$5:$Y$204,3*($C$8-1)+2)/1000)+VLOOKUP($B$6,$A$25:$E$52,5)),NA()) -> 9.488108417 | P186: 9.765624442 | Q186: =IF(ISNA(VLOOKUP($B$6,$A$25:$E$52,IF($B$8=$A$22,3,2))),EXP(VLOOKUP($B$6,$A$25:$E$52,4)*LN(VLOOKUP($H186,P_Hard!$A$5:$Y$204,3*($C$8-1)+4)/1000)+VLOOKUP($B$6,$A$25:$E$52,5)),NA()) -> 9.488108417 | S186: 13.41666667 | T186: =VLOOKUP($S186,P_All!$AA$5:$AY$245,3*($C$8-1)+2) -> 0.37077 | U186: =VLOOKUP($S186,P_All!$AA$5:$AY$245,3*($C$8-1)+3) -> 0.98331 | V186: =VLOOKUP($S186,P_All!$AA$5:$AY$245,3*($C$8-1)+4) -> 2.6821 | W186: =VLOOKUP($S186,NA_All!$AA$5:$AY$245,3*($C$8-1)+2) -> 0.37062 | X186: =VLOOKUP($S186,NA_All!$AA$5:$AY$245,3*($C$8-1)+3) -> 0.98522 | Y186: =VLOOKUP($S186,NA_All!$AA$5:$AY$245,3*($C$8-1)+4) -> 2.6847 | Z186: =IF(AND($B$8=$A$20,$B$6=$A$48),$B$54,IF(ISNA(VLOOKUP($B$6,$A$25:$E$52,IF($B$8=$A$22,3,2),FALSE)),EXP(VLOOKUP($B$6,$A$25:$E$52,4,FALSE)*LN(VLOOKUP($H186,P_Hard!$A$5:$Y$204,3*($C$8-1)+3,FALSE)/1000)+VLOOKUP($B$6,$A$25:$E$52,5,FALSE)),VLOOKUP($B$6,$A$25:$E$52,IF($B$8=$A$22,3,2),FALSE))) -> 9.488108417
H187: 163 | I187: =VLOOKUP($H187,P_All!$A$5:$Y$204,3*($C$8-1)+2) -> 2.0677 | J187: =VLOOKUP($H187,P_All!$A$5:$Y$204,3*($C$8-1)+3) -> 4.6479 | K187: =VLOOKUP($H187,P_All!$A$5:$Y$204,3*($C$8-1)+4) -> 5.5898 | L187: =VLOOKUP($H187,NA_All!$A$5:$Y$204,3*($C$8-1)+2) -> 1.4419 | M187: =VLOOKUP($H187,NA_All!$A$5:$Y$204,3*($C$8-1)+3) -> 2.2111 | N187: =VLOOKUP($H187,NA_All!$A$5:$Y$204,3*($C$8-1)+4) -> 3.0181 | O187: =IF(ISNA(VLOOKUP($B$6,$A$25:$E$52,IF($B$8=$A$22,3,2))),EXP(VLOOKUP($B$6,$A$25:$E$52,4)*LN(VLOOKUP($H187,P_Hard!$A$5:$Y$204,3*($C$8-1)+2)/1000)+VLOOKUP($B$6,$A$25:$E$52,5)),NA()) -> 9.488108417 | P187: 9.765624442 | Q187: =IF(ISNA(VLOOKUP($B$6,$A$25:$E$52,IF($B$8=$A$22,3,2))),EXP(VLOOKUP($B$6,$A$25:$E$52,4)*LN(VLOOKUP($H187,P_Hard!$A$5:$Y$204,3*($C$8-1)+4)/1000)+VLOOKUP($B$6,$A$25:$E$52,5)),NA()) -> 9.488108417 | S187: 13.5 | T187: =VLOOKUP($S187,P_All!$AA$5:$AY$245,3*($C$8-1)+2) -> 0.42213 | U187: =VLOOKUP($S187,P_All!$AA$5:$AY$245,3*($C$8-1)+3) -> 1.1384 | V187: =VLOOKUP($S187,P_All!$AA$5:$AY$245,3*($C$8-1)+4) -> 2.548 | W187: =VLOOKUP($S187,NA_All!$AA$5:$AY$245,3*($C$8-1)+2) -> 0.42243 | X187: =VLOOKUP($S187,NA_All!$AA$5:$AY$245,3*($C$8-1)+3) -> 1.1407 | Y187: =VLOOKUP($S187,NA_All!$AA$5:$AY$245,3*($C$8-1)+4) -> 2.5502 | Z187: =IF(AND($B$8=$A$20,$B$6=$A$48),$B$54,IF(ISNA(VLOOKUP($B$6,$A$25:$E$52,IF($B$8=$A$22,3,2),FALSE)),EXP(VLOOKUP($B$6,$A$25:$E$52,4,FALSE)*LN(VLOOKUP($H187,P_Hard!$A$5:$Y$204,3*($C$8-1)+3,FALSE)/1000)+VLOOKUP($B$6,$A$25:$E$52,5,FALSE)),VLOOKUP($B$6,$A$25:$E$52,IF($B$8=$A$22,3,2),FALSE))) -> 9.488108417
H188: 164 | I188: =VLOOKUP($H188,P_All!$A$5:$Y$204,3*($C$8-1)+2) -> 2.1805 | J188: =VLOOKUP($H188,P_All!$A$5:$Y$204,3*($C$8-1)+3) -> 4.3261 | K188: =VLOOKUP($H188,P_All!$A$5:$Y$204,3*($C$8-1)+4) -> 5.539 | L188: =VLOOKUP($H188,NA_All!$A$5:$Y$204,3*($C$8-1)+2) -> 1.4778 | M188: =VLOOKUP($H188,NA_All!$A$5:$Y$204,3*($C$8-1)+3) -> 2.1835 | N188: =VLOOKUP($H188,NA_All!$A$5:$Y$204,3*($C$8-1)+4) -> 2.8739 | O188: =IF(ISNA(VLOOKUP($B$6,$A$25:$E$52,IF($B$8=$A$22,3,2))),EXP(VLOOKUP($B$6,$A$25:$E$52,4)*LN(VLOOKUP($H188,P_Hard!$A$5:$Y$204,3*($C$8-1)+2)/1000)+VLOOKUP($B$6,$A$25:$E$52,5)),NA()) -> 9.488108417 | P188: 9.765624442 | Q188: =IF(ISNA(VLOOKUP($B$6,$A$25:$E$52,IF($B$8=$A$22,3,2))),EXP(VLOOKUP($B$6,$A$25:$E$52,4)*LN(VLOOKUP($H188,P_Hard!$A$5:$Y$204,3*($C$8-1)+4)/1000)+VLOOKUP($B$6,$A$25:$E$52,5)),NA()) -> 9.488108417 | S188: 13.58333333 | T188: =VLOOKUP($S188,P_All!$AA$5:$AY$245,3*($C$8-1)+2) -> 0.53581 | U188: =VLOOKUP($S188,P_All!$AA$5:$AY$245,3*($C$8-1)+3) -> 1.2919 | V188: =VLOOKUP($S188,P_All!$AA$5:$AY$245,3*($C$8-1)+4) -> 2.4989 | W188: =VLOOKUP($S188,NA_All!$AA$5:$AY$245,3*($C$8-1)+2) -> 0.53693 | X188: =VLOOKUP($S188,NA_All!$AA$5:$AY$245,3*($C$8-1)+3) -> 1.2921 | Y188: =VLOOKUP($S188,NA_All!$AA$5:$AY$245,3*($C$8-1)+4) -> 2.5015 | Z188: =IF(AND($B$8=$A$20,$B$6=$A$48),$B$54,IF(ISNA(VLOOKUP($B$6,$A$25:$E$52,IF($B$8=$A$22,3,2),FALSE)),EXP(VLOOKUP($B$6,$A$25:$E$52,4,FALSE)*LN(VLOOKUP($H188,P_Hard!$A$5:$Y$204,3*($C$8-1)+3,FALSE)/1000)+VLOOKUP($B$6,$A$25:$E$52,5,FALSE)),VLOOKUP($B$6,$A$25:$E$52,IF($B$8=$A$22,3,2),FALSE))) -> 9.488108417
H189: 165 | I189: =VLOOKUP($H189,P_All!$A$5:$Y$204,3*($C$8-1)+2) -> 2.3159 | J189: =VLOOKUP($H189,P_All!$A$5:$Y$204,3*($C$8-1)+3) -> 4.5531 | K189: =VLOOKUP($H189,P_All!$A$5:$Y$204,3*($C$8-1)+4) -> 5.4246 | L189: =VLOOKUP($H189,NA_All!$A$5:$Y$204,3*($C$8-1)+2) -> 1.5665 | M189: =VLOOKUP($H189,NA_All!$A$5:$Y$204,3*($C$8-1)+3) -> 2.2012 | N189: =VLOOKUP($H189,NA_All!$A$5:$Y$204,3*($C$8-1)+4) -> 2.9821 | O189: =IF(ISNA(VLOOKUP($B$6,$A$25:$E$52,IF($B$8=$A$22,3,2))),EXP(VLOOKUP($B$6,$A$25:$E$52,4)*LN(VLOOKUP($H189,P_Hard!$A$5:$Y$204,3*($C$8-1)+2)/1000)+VLOOKUP($B$6,$A$25:$E$52,5)),NA()) -> 9.488108417 | P189: 9.765624442 | Q189: =IF(ISNA(VLOOKUP($B$6,$A$25:$E$52,IF($B$8=$A$22,3,2))),EXP(VLOOKUP($B$6,$A$25:$E$52,4)*LN(VLOOKUP($H189,P_Hard!$A$5:$Y$204,3*($C$8-1)+4)/1000)+VLOOKUP($B$6,$A$25:$E$52,5)),NA()) -> 9.488108417 | S189: 13.66666667 | T189: =VLOOKUP($S189,P_All!$AA$5:$AY$245,3*($C$8-1)+2) -> 0.55017 | U189: =VLOOKUP($S189,P_All!$AA$5:$AY$245,3*($C$8-1)+3) -> 1.2269 | V189: =VLOOKUP($S189,P_All!$AA$5:$AY$245,3*($C$8-1)+4) -> 2.2747 | W189: =VLOOKUP($S189,NA_All!$AA$5:$AY$245,3*($C$8-1)+2) -> 0.55048 | X189: =VLOOKUP($S189,NA_All!$AA$5:$AY$245,3*($C$8-1)+3) -> 1.2349 | Y189: =VLOOKUP($S189,NA_All!$AA$5:$AY$245,3*($C$8-1)+4) -> 2.2801 | Z189: =IF(AND($B$8=$A$20,$B$6=$A$48),$B$54,IF(ISNA(VLOOKUP($B$6,$A$25:$E$52,IF($B$8=$A$22,3,2),FALSE)),EXP(VLOOKUP($B$6,$A$25:$E$52,4,FALSE)*LN(VLOOKUP($H189,P_Hard!$A$5:$Y$204,3*($C$8-1)+3,FALSE)/1000)+VLOOKUP($B$6,$A$25:$E$52,5,FALSE)),VLOOKUP($B$6,$A$25:$E$52,IF($B$8=$A$22,3,2),FALSE))) -> 9.488108417
H190: 166 | I190: =VLOOKUP($H190,P_All!$A$5:$Y$204,3*($C$8-1)+2) -> 2.2955 | J190: =VLOOKUP($H190,P_All!$A$5:$Y$204,3*($C$8-1)+3) -> 4.4898 | K190: =VLOOKUP($H190,P_All!$A$5:$Y$204,3*($C$8-1)+4) -> 5.5344 | L190: =VLOOKUP($H190,NA_All!$A$5:$Y$204,3*($C$8-1)+2) -> 1.5763 | M190: =VLOOKUP($H190,NA_All!$A$5:$Y$204,3*($C$8-1)+3) -> 2.1967 | N190: =VLOOKUP($H190,NA_All!$A$5:$Y$204,3*($C$8-1)+4) -> 3.2781 | O190: =IF(ISNA(VLOOKUP($B$6,$A$25:$E$52,IF($B$8=$A$22,3,2))),EXP(VLOOKUP($B$6,$A$25:$E$52,4)*LN(VLOOKUP($H190,P_Hard!$A$5:$Y$204,3*($C$8-1)+2)/1000)+VLOOKUP($B$6,$A$25:$E$52,5)),NA()) -> 9.488108417 | P190: 9.765624442 | Q190: =IF(ISNA(VLOOKUP($B$6,$A$25:$E$52,IF($B$8=$A$22,3,2))),EXP(VLOOKUP($B$6,$A$25:$E$52,4)*LN(VLOOKUP($H190,P_Hard!$A$5:$Y$204,3*($C$8-1)+4)/1000)+VLOOKUP($B$6,$A$25:$E$52,5)),NA()) -> 9.488108417 | S190: 13.75 | T190: =VLOOKUP($S190,P_All!$AA$5:$AY$245,3*($C$8-1)+2) -> 0.52911 | U190: =VLOOKUP($S190,P_All!$AA$5:$AY$245,3*($C$8-1)+3) -> 1.2266 | V190: =VLOOKUP($S190,P_All!$AA$5:$AY$245,3*($C$8-1)+4) -> 2.4506 | W190: =VLOOKUP($S190,NA_All!$AA$5:$AY$245,3*($C$8-1)+2) -> 0.52818 | X190: =VLOOKUP($S190,NA_All!$AA$5:$AY$245,3*($C$8-1)+3) -> 1.2331 | Y190: =VLOOKUP($S190,NA_All!$AA$5:$AY$245,3*($C$8-1)+4) -> 2.4512 | Z190: =IF(AND($B$8=$A$20,$B$6=$A$48),$B$54,IF(ISNA(VLOOKUP($B$6,$A$25:$E$52,IF($B$8=$A$22,3,2),FALSE)),EXP(VLOOKUP($B$6,$A$25:$E$52,4,FALSE)*LN(VLOOKUP($H190,P_Hard!$A$5:$Y$204,3*($C$8-1)+3,FALSE)/1000)+VLOOKUP($B$6,$A$25:$E$52,5,FALSE)),VLOOKUP($B$6,$A$25:$E$52,IF($B$8=$A$22,3,2),FALSE))) -> 9.488108417
H191: 167 | I191: =VLOOKUP($H191,P_All!$A$5:$Y$204,3*($C$8-1)+2) -> 2.3428 | J191: =VLOOKUP($H191,P_All!$A$5:$Y$204,3*($C$8-1)+3) -> 4.5747 | K191: =VLOOKUP($H191,P_All!$A$5:$Y$204,3*($C$8-1)+4) -> 5.6892 | L191: =VLOOKUP($H191,NA_All!$A$5:$Y$204,3*($C$8-1)+2) -> 1.621 | M191: =VLOOKUP($H191,NA_All!$A$5:$Y$204,3*($C$8-1)+3) -> 2.1867 | N191: =VLOOKUP($H191,NA_All!$A$5:$Y$204,3*($C$8-1)+4) -> 3.0087 | O191: =IF(ISNA(VLOOKUP($B$6,$A$25:$E$52,IF($B$8=$A$22,3,2))),EXP(VLOOKUP($B$6,$A$25:$E$52,4)*LN(VLOOKUP($H191,P_Hard!$A$5:$Y$204,3*($C$8-1)+2)/1000)+VLOOKUP($B$6,$A$25:$E$52,5)),NA()) -> 9.488108417 | P191: 9.765624442 | Q191: =IF(ISNA(VLOOKUP($B$6,$A$25:$E$52,IF($B$8=$A$22,3,2))),EXP(VLOOKUP($B$6,$A$25:$E$52,4)*LN(VLOOKUP($H191,P_Hard!$A$5:$Y$204,3*($C$8-1)+4)/1000)+VLOOKUP($B$6,$A$25:$E$52,5)),NA()) -> 9.488108417 | S191: 13.83333333 | T191: =VLOOKUP($S191,P_All!$AA$5:$AY$245,3*($C$8-1)+2) -> 0.5036 | U191: =VLOOKUP($S191,P_All!$AA$5:$AY$245,3*($C$8-1)+3) -> 1.12 | V191: =VLOOKUP($S191,P_All!$AA$5:$AY$245,3*($C$8-1)+4) -> 2.8633 | W191: =VLOOKUP($S191,NA_All!$AA$5:$AY$245,3*($C$8-1)+2) -> 0.50477 | X191: =VLOOKUP($S191,NA_All!$AA$5:$AY$245,3*($C$8-1)+3) -> 1.1268 | Y191: =VLOOKUP($S191,NA_All!$AA$5:$AY$245,3*($C$8-1)+4) -> 2.8672 | Z191: =IF(AND($B$8=$A$20,$B$6=$A$48),$B$54,IF(ISNA(VLOOKUP($B$6,$A$25:$E$52,IF($B$8=$A$22,3,2),FALSE)),EXP(VLOOKUP($B$6,$A$25:$E$52,4,FALSE)*LN(VLOOKUP($H191,P_Hard!$A$5:$Y$204,3*($C$8-1)+3,FALSE)/1000)+VLOOKUP($B$6,$A$25:$E$52,5,FALSE)),VLOOKUP($B$6,$A$25:$E$52,IF($B$8=$A$22,3,2),FALSE))) -> 9.488108417
H192: 168 | I192: =VLOOKUP($H192,P_All!$A$5:$Y$204,3*($C$8-1)+2) -> 2.261 | J192: =VLOOKUP($H192,P_All!$A$5:$Y$204,3*($C$8-1)+3) -> 4.446 | K192: =VLOOKUP($H192,P_All!$A$5:$Y$204,3*($C$8-1)+4) -> 5.5525 | L192: =VLOOKUP($H192,NA_All!$A$5:$Y$204,3*($C$8-1)+2) -> 1.5498 | M192: =VLOOKUP($H192,NA_All!$A$5:$Y$204,3*($C$8-1)+3) -> 2.1933 | N192: =VLOOKUP($H192,NA_All!$A$5:$Y$204,3*($C$8-1)+4) -> 3.0059 | O192: =IF(ISNA(VLOOKUP($B$6,$A$25:$E$52,IF($B$8=$A$22,3,2))),EXP(VLOOKUP($B$6,$A$25:$E$52,4)*LN(VLOOKUP($H192,P_Hard!$A$5:$Y$204,3*($C$8-1)+2)/1000)+VLOOKUP($B$6,$A$25:$E$52,5)),NA()) -> 9.488108417 | P192: 9.765624442 | Q192: =IF(ISNA(VLOOKUP($B$6,$A$25:$E$52,IF($B$8=$A$22,3,2))),EXP(VLOOKUP($B$6,$A$25:$E$52,4)*LN(VLOOKUP($H192,P_Hard!$A$5:$Y$204,3*($C$8-1)+4)/1000)+VLOOKUP($B$6,$A$25:$E$52,5)),NA()) -> 9.488108417 | S192: 13.91666667 | T192: =VLOOKUP($S192,P_All!$AA$5:$AY$245,3*($C$8-1)+2) -> 0.57592 | U192: =VLOOKUP($S192,P_All!$AA$5:$AY$245,3*($C$8-1)+3) -> 1.1683 | V192: =VLOOKUP($S192,P_All!$AA$5:$AY$245,3*($C$8-1)+4) -> 2.5863 | W192: =VLOOKUP($S192,NA_All!$AA$5:$AY$245,3*($C$8-1)+2) -> 0.57694 | X192: =VLOOKUP($S192,NA_All!$AA$5:$AY$245,3*($C$8-1)+3) -> 1.1759 | Y192: =VLOOKUP($S192,NA_All!$AA$5:$AY$245,3*($C$8-1)+4) -> 2.5983 | Z192: =IF(AND($B$8=$A$20,$B$6=$A$48),$B$54,IF(ISNA(VLOOKUP($B$6,$A$25:$E$52,IF($B$8=$A$22,3,2),FALSE)),EXP(VLOOKUP($B$6,$A$25:$E$52,4,FALSE)*LN(VLOOKUP($H192,P_Hard!$A$5:$Y$204,3*($C$8-1)+3,FALSE)/1000)+VLOOKUP($B$6,$A$25:$E$52,5,FALSE)),VLOOKUP($B$6,$A$25:$E$52,IF($B$8=$A$22,3,2),FALSE))) -> 9.488108417
H193: 169 | I193: =VLOOKUP($H193,P_All!$A$5:$Y$204,3*($C$8-1)+2) -> 2.1988 | J193: =VLOOKUP($H193,P_All!$A$5:$Y$204,3*($C$8-1)+3) -> 4.4384 | K193: =VLOOKUP($H193,P_All!$A$5:$Y$204,3*($C$8-1)+4) -> 5.7093 | L193: =VLOOKUP($H193,NA_All!$A$5:$Y$204,3*($C$8-1)+2) -> 1.5004 | M193: =VLOOKUP($H193,NA_All!$A$5:$Y$204,3*($C$8-1)+3) -> 2.2017 | N193: =VLOOKUP($H193,NA_All!$A$5:$Y$204,3*($C$8-1)+4) -> 2.9968 | O193: =IF(ISNA(VLOOKUP($B$6,$A$25:$E$52,IF($B$8=$A$22,3,2))),EXP(VLOOKUP($B$6,$A$25:$E$52,4)*LN(VLOOKUP($H193,P_Hard!$A$5:$Y$204,3*($C$8-1)+2)/1000)+VLOOKUP($B$6,$A$25:$E$52,5)),NA()) -> 9.488108417 | P193: 9.765624442 | Q193: =IF(ISNA(VLOOKUP($B$6,$A$25:$E$52,IF($B$8=$A$22,3,2))),EXP(VLOOKUP($B$6,$A$25:$E$52,4)*LN(VLOOKUP($H193,P_Hard!$A$5:$Y$204,3*($C$8-1)+4)/1000)+VLOOKUP($B$6,$A$25:$E$52,5)),NA()) -> 9.488108417 | S193: 14 | T193: =VLOOKUP($S193,P_All!$AA$5:$AY$245,3*($C$8-1)+2) -> 0.96127 | U193: =VLOOKUP($S193,P_All!$AA$5:$AY$245,3*($C$8-1)+3) -> 1.4699 | V193: =VLOOKUP($S193,P_All!$AA$5:$AY$245,3*($C$8-1)+4) -> 2.1044 | W193: =VLOOKUP($S193,NA_All!$AA$5:$AY$245,3*($C$8-1)+2) -> 0.96911 | X193: =VLOOKUP($S193,NA_All!$AA$5:$AY$245,3*($C$8-1)+3) -> 1.4856 | Y193: =VLOOKUP($S193,NA_All!$AA$5:$AY$245,3*($C$8-1)+4) -> 2.1137 | Z193: =IF(AND($B$8=$A$20,$B$6=$A$48),$B$54,IF(ISNA(VLOOKUP($B$6,$A$25:$E$52,IF($B$8=$A$22,3,2),FALSE)),EXP(VLOOKUP($B$6,$A$25:$E$52,4,FALSE)*LN(VLOOKUP($H193,P_Hard!$A$5:$Y$204,3*($C$8-1)+3,FALSE)/1000)+VLOOKUP($B$6,$A$25:$E$52,5,FALSE)),VLOOKUP($B$6,$A$25:$E$52,IF($B$8=$A$22,3,2),FALSE))) -> 9.488108417
H194: 170 | I194: =VLOOKUP($H194,P_All!$A$5:$Y$204,3*($C$8-1)+2) -> 2.1473 | J194: =VLOOKUP($H194,P_All!$A$5:$Y$204,3*($C$8-1)+3) -> 4.4629 | K194: =VLOOKUP($H194,P_All!$A$5:$Y$204,3*($C$8-1)+4) -> 5.6137 | L194: =VLOOKUP($H194,NA_All!$A$5:$Y$204,3*($C$8-1)+2) -> 1.495 | M194: =VLOOKUP($H194,NA_All!$A$5:$Y$204,3*($C$8-1)+3) -> 2.1988 | N194: =VLOOKUP($H194,NA_All!$A$5:$Y$204,3*($C$8-1)+4) -> 3.0817 | O194: =IF(ISNA(VLOOKUP($B$6,$A$25:$E$52,IF($B$8=$A$22,3,2))),EXP(VLOOKUP($B$6,$A$25:$E$52,4)*LN(VLOOKUP($H194,P_Hard!$A$5:$Y$204,3*($C$8-1)+2)/1000)+VLOOKUP($B$6,$A$25:$E$52,5)),NA()) -> 9.488108417 | P194: 9.765624442 | Q194: =IF(ISNA(VLOOKUP($B$6,$A$25:$E$52,IF($B$8=$A$22,3,2))),EXP(VLOOKUP($B$6,$A$25:$E$52,4)*LN(VLOOKUP($H194,P_Hard!$A$5:$Y$204,3*($C$8-1)+4)/1000)+VLOOKUP($B$6,$A$25:$E$52,5)),NA()) -> 9.488108417 | S194: 14.08333333 | T194: =VLOOKUP($S194,P_All!$AA$5:$AY$245,3*($C$8-1)+2) -> 1.2183 | U194: =VLOOKUP($S194,P_All!$AA$5:$AY$245,3*($C$8-1)+3) -> 1.4491 | V194: =VLOOKUP($S194,P_All!$AA$5:$AY$245,3*($C$8-1)+4) -> 1.7462 | W194: =VLOOKUP($S194,NA_All!$AA$5:$AY$245,3*($C$8-1)+2) -> 1.2349 | X194: =VLOOKUP($S194,NA_All!$AA$5:$AY$245,3*($C$8-1)+3) -> 1.4599 | Y194: =VLOOKUP($S194,NA_All!$AA$5:$AY$245,3*($C$8-1)+4) -> 1.7645 | Z194: =IF(AND($B$8=$A$20,$B$6=$A$48),$B$54,IF(ISNA(VLOOKUP($B$6,$A$25:$E$52,IF($B$8=$A$22,3,2),FALSE)),EXP(VLOOKUP($B$6,$A$25:$E$52,4,FALSE)*LN(VLOOKUP($H194,P_Hard!$A$5:$Y$204,3*($C$8-1)+3,FALSE)/1000)+VLOOKUP($B$6,$A$25:$E$52,5,FALSE)),VLOOKUP($B$6,$A$25:$E$52,IF($B$8=$A$22,3,2),FALSE))) -> 9.488108417
H195: 171 | I195: =VLOOKUP($H195,P_All!$A$5:$Y$204,3*($C$8-1)+2) -> 2.1591 | J195: =VLOOKUP($H195,P_All!$A$5:$Y$204,3*($C$8-1)+3) -> 4.54 | K195: =VLOOKUP($H195,P_All!$A$5:$Y$204,3*($C$8-1)+4) -> 5.5702 | L195: =VLOOKUP($H195,NA_All!$A$5:$Y$204,3*($C$8-1)+2) -> 1.5125 | M195: =VLOOKUP($H195,NA_All!$A$5:$Y$204,3*($C$8-1)+3) -> 2.2282 | N195: =VLOOKUP($H195,NA_All!$A$5:$Y$204,3*($C$8-1)+4) -> 3.1012 | O195: =IF(ISNA(VLOOKUP($B$6,$A$25:$E$52,IF($B$8=$A$22,3,2))),EXP(VLOOKUP($B$6,$A$25:$E$52,4)*LN(VLOOKUP($H195,P_Hard!$A$5:$Y$204,3*($C$8-1)+2)/1000)+VLOOKUP($B$6,$A$25:$E$52,5)),NA()) -> 9.488108417 | P195: 9.765624442 | Q195: =IF(ISNA(VLOOKUP($B$6,$A$25:$E$52,IF($B$8=$A$22,3,2))),EXP(VLOOKUP($B$6,$A$25:$E$52,4)*LN(VLOOKUP($H195,P_Hard!$A$5:$Y$204,3*($C$8-1)+4)/1000)+VLOOKUP($B$6,$A$25:$E$52,5)),NA()) -> 9.488108417 | S195: 14.16666667 | T195: =VLOOKUP($S195,P_All!$AA$5:$AY$245,3*($C$8-1)+2) -> 1.2296 | U195: =VLOOKUP($S195,P_All!$AA$5:$AY$245,3*($C$8-1)+3) -> 1.3796 | V195: =VLOOKUP($S195,P_All!$AA$5:$AY$245,3*($C$8-1)+4) -> 1.7621 | W195: =VLOOKUP($S195,NA_All!$AA$5:$AY$245,3*($C$8-1)+2) -> 1.242 | X195: =VLOOKUP($S195,NA_All!$AA$5:$AY$245,3*($C$8-1)+3) -> 1.3899 | Y195: =VLOOKUP($S195,NA_All!$AA$5:$AY$245,3*($C$8-1)+4) -> 1.7813 | Z195: =IF(AND($B$8=$A$20,$B$6=$A$48),$B$54,IF(ISNA(VLOOKUP($B$6,$A$25:$E$52,IF($B$8=$A$22,3,2),FALSE)),EXP(VLOOKUP($B$6,$A$25:$E$52,4,FALSE)*LN(VLOOKUP($H195,P_Hard!$A$5:$Y$204,3*($C$8-1)+3,FALSE)/1000)+VLOOKUP($B$6,$A$25:$E$52,5,FALSE)),VLOOKUP($B$6,$A$25:$E$52,IF($B$8=$A$22,3,2),FALSE))) -> 9.488108417
H196: 172 | I196: =VLOOKUP($H196,P_All!$A$5:$Y$204,3*($C$8-1)+2) -> 2.3061 | J196: =VLOOKUP($H196,P_All!$A$5:$Y$204,3*($C$8-1)+3) -> 4.5953 | K196: =VLOOKUP($H196,P_All!$A$5:$Y$204,3*($C$8-1)+4) -> 5.6464 | L196: =VLOOKUP($H196,NA_All!$A$5:$Y$204,3*($C$8-1)+2) -> 1.6107 | M196: =VLOOKUP($H196,NA_All!$A$5:$Y$204,3*($C$8-1)+3) -> 2.1992 | N196: =VLOOKUP($H196,NA_All!$A$5:$Y$204,3*($C$8-1)+4) -> 3.1837 | O196: =IF(ISNA(VLOOKUP($B$6,$A$25:$E$52,IF($B$8=$A$22,3,2))),EXP(VLOOKUP($B$6,$A$25:$E$52,4)*LN(VLOOKUP($H196,P_Hard!$A$5:$Y$204,3*($C$8-1)+2)/1000)+VLOOKUP($B$6,$A$25:$E$52,5)),NA()) -> 9.488108417 | P196: 9.765624442 | Q196: =IF(ISNA(VLOOKUP($B$6,$A$25:$E$52,IF($B$8=$A$22,3,2))),EXP(VLOOKUP($B$6,$A$25:$E$52,4)*LN(VLOOKUP($H196,P_Hard!$A$5:$Y$204,3*($C$8-1)+4)/1000)+VLOOKUP($B$6,$A$25:$E$52,5)),NA()) -> 9.488108417 | S196: 14.25 | T196: =VLOOKUP($S196,P_All!$AA$5:$AY$245,3*($C$8-1)+2) -> 0.84382 | U196: =VLOOKUP($S196,P_All!$AA$5:$AY$245,3*($C$8-1)+3) -> 1.412 | V196: =VLOOKUP($S196,P_All!$AA$5:$AY$245,3*($C$8-1)+4) -> 1.85 | W196: =VLOOKUP($S196,NA_All!$AA$5:$AY$245,3*($C$8-1)+2) -> 0.85499 | X196: =VLOOKUP($S196,NA_All!$AA$5:$AY$245,3*($C$8-1)+3) -> 1.4269 | Y196: =VLOOKUP($S196,NA_All!$AA$5:$AY$245,3*($C$8-1)+4) -> 1.8708 | Z196: =IF(AND($B$8=$A$20,$B$6=$A$48),$B$54,IF(ISNA(VLOOKUP($B$6,$A$25:$E$52,IF($B$8=$A$22,3,2),FALSE)),EXP(VLOOKUP($B$6,$A$25:$E$52,4,FALSE)*LN(VLOOKUP($H196,P_Hard!$A$5:$Y$204,3*($C$8-1)+3,FALSE)/1000)+VLOOKUP($B$6,$A$25:$E$52,5,FALSE)),VLOOKUP($B$6,$A$25:$E$52,IF($B$8=$A$22,3,2),FALSE))) -> 9.488108417
H197: 173 | I197: =VLOOKUP($H197,P_All!$A$5:$Y$204,3*($C$8-1)+2) -> 2.0883 | J197: =VLOOKUP($H197,P_All!$A$5:$Y$204,3*($C$8-1)+3) -> 4.2734 | K197: =VLOOKUP($H197,P_All!$A$5:$Y$204,3*($C$8-1)+4) -> 5.5519 | L197: =VLOOKUP($H197,NA_All!$A$5:$Y$204,3*($C$8-1)+2) -> 1.4319 | M197: =VLOOKUP($H197,NA_All!$A$5:$Y$204,3*($C$8-1)+3) -> 2.1431 | N197: =VLOOKUP($H197,NA_All!$A$5:$Y$204,3*($C$8-1)+4) -> 3.1083 | O197: =IF(ISNA(VLOOKUP($B$6,$A$25:$E$52,IF($B$8=$A$22,3,2))),EXP(VLOOKUP($B$6,$A$25:$E$52,4)*LN(VLOOKUP($H197,P_Hard!$A$5:$Y$204,3*($C$8-1)+2)/1000)+VLOOKUP($B$6,$A$25:$E$52,5)),NA()) -> 9.488108417 | P197: 9.765624442 | Q197: =IF(ISNA(VLOOKUP($B$6,$A$25:$E$52,IF($B$8=$A$22,3,2))),EXP(VLOOKUP($B$6,$A$25:$E$52,4)*LN(VLOOKUP($H197,P_Hard!$A$5:$Y$204,3*($C$8-1)+4)/1000)+VLOOKUP($B$6,$A$25:$E$52,5)),NA()) -> 9.488108417 | S197: 14.33333333 | T197: =VLOOKUP($S197,P_All!$AA$5:$AY$245,3*($C$8-1)+2) -> 0.4582 | U197: =VLOOKUP($S197,P_All!$AA$5:$AY$245,3*($C$8-1)+3) -> 1.1245 | V197: =VLOOKUP($S197,P_All!$AA$5:$AY$245,3*($C$8-1)+4) -> 2.5407 | W197: =VLOOKUP($S197,NA_All!$AA$5:$AY$245,3*($C$8-1)+2) -> 0.45863 | X197: =VLOOKUP($S197,NA_All!$AA$5:$AY$245,3*($C$8-1)+3) -> 1.1252 | Y197: =VLOOKUP($S197,NA_All!$AA$5:$AY$245,3*($C$8-1)+4) -> 2.5451 | Z197: =IF(AND($B$8=$A$20,$B$6=$A$48),$B$54,IF(ISNA(VLOOKUP($B$6,$A$25:$E$52,IF($B$8=$A$22,3,2),FALSE)),EXP(VLOOKUP($B$6,$A$25:$E$52,4,FALSE)*LN(VLOOKUP($H197,P_Hard!$A$5:$Y$204,3*($C$8-1)+3,FALSE)/1000)+VLOOKUP($B$6,$A$25:$E$52,5,FALSE)),VLOOKUP($B$6,$A$25:$E$52,IF($B$8=$A$22,3,2),FALSE))) -> 9.488108417
H198: 174 | I198: =VLOOKUP($H198,P_All!$A$5:$Y$204,3*($C$8-1)+2) -> 2.261 | J198: =VLOOKUP($H198,P_All!$A$5:$Y$204,3*($C$8-1)+3) -> 4.4792 | K198: =VLOOKUP($H198,P_All!$A$5:$Y$204,3*($C$8-1)+4) -> 5.6653 | L198: =VLOOKUP($H198,NA_All!$A$5:$Y$204,3*($C$8-1)+2) -> 1.6312 | M198: =VLOOKUP($H198,NA_All!$A$5:$Y$204,3*($C$8-1)+3) -> 2.2017 | N198: =VLOOKUP($H198,NA_All!$A$5:$Y$204,3*($C$8-1)+4) -> 3.0305 | O198: =IF(ISNA(VLOOKUP($B$6,$A$25:$E$52,IF($B$8=$A$22,3,2))),EXP(VLOOKUP($B$6,$A$25:$E$52,4)*LN(VLOOKUP($H198,P_Hard!$A$5:$Y$204,3*($C$8-1)+2)/1000)+VLOOKUP($B$6,$A$25:$E$52,5)),NA()) -> 9.488108417 | P198: 9.765624442 | Q198: =IF(ISNA(VLOOKUP($B$6,$A$25:$E$52,IF($B$8=$A$22,3,2))),EXP(VLOOKUP($B$6,$A$25:$E$52,4)*LN(VLOOKUP($H198,P_Hard!$A$5:$Y$204,3*($C$8-1)+4)/1000)+VLOOKUP($B$6,$A$25:$E$52,5)),NA()) -> 9.488108417 | S198: 14.41666667 | T198: =VLOOKUP($S198,P_All!$AA$5:$AY$245,3*($C$8-1)+2) -> 0.42066 | U198: =VLOOKUP($S198,P_All!$AA$5:$AY$245,3*($C$8-1)+3) -> 0.98021 | V198: =VLOOKUP($S198,P_All!$AA$5:$AY$245,3*($C$8-1)+4) -> 2.5761 | W198: =VLOOKUP($S198,NA_All!$AA$5:$AY$245,3*($C$8-1)+2) -> 0.42014 | X198: =VLOOKUP($S198,NA_All!$AA$5:$AY$245,3*($C$8-1)+3) -> 0.98012 | Y198: =VLOOKUP($S198,NA_All!$AA$5:$AY$245,3*($C$8-1)+4) -> 2.5813 | Z198: =IF(AND($B$8=$A$20,$B$6=$A$48),$B$54,IF(ISNA(VLOOKUP($B$6,$A$25:$E$52,IF($B$8=$A$22,3,2),FALSE)),EXP(VLOOKUP($B$6,$A$25:$E$52,4,FALSE)*LN(VLOOKUP($H198,P_Hard!$A$5:$Y$204,3*($C$8-1)+3,FALSE)/1000)+VLOOKUP($B$6,$A$25:$E$52,5,FALSE)),VLOOKUP($B$6,$A$25:$E$52,IF($B$8=$A$22,3,2),FALSE))) -> 9.488108417
H199: 175 | I199: =VLOOKUP($H199,P_All!$A$5:$Y$204,3*($C$8-1)+2) -> 2.2101 | J199: =VLOOKUP($H199,P_All!$A$5:$Y$204,3*($C$8-1)+3) -> 4.6441 | K199: =VLOOKUP($H199,P_All!$A$5:$Y$204,3*($C$8-1)+4) -> 5.7909 | L199: =VLOOKUP($H199,NA_All!$A$5:$Y$204,3*($C$8-1)+2) -> 1.5456 | M199: =VLOOKUP($H199,NA_All!$A$5:$Y$204,3*($C$8-1)+3) -> 2.2004 | N199: =VLOOKUP($H199,NA_All!$A$5:$Y$204,3*($C$8-1)+4) -> 3.1463 | O199: =IF(ISNA(VLOOKUP($B$6,$A$25:$E$52,IF($B$8=$A$22,3,2))),EXP(VLOOKUP($B$6,$A$25:$E$52,4)*LN(VLOOKUP($H199,P_Hard!$A$5:$Y$204,3*($C$8-1)+2)/1000)+VLOOKUP($B$6,$A$25:$E$52,5)),NA()) -> 9.488108417 | P199: 9.765624442 | Q199: =IF(ISNA(VLOOKUP($B$6,$A$25:$E$52,IF($B$8=$A$22,3,2))),EXP(VLOOKUP($B$6,$A$25:$E$52,4)*LN(VLOOKUP($H199,P_Hard!$A$5:$Y$204,3*($C$8-1)+4)/1000)+VLOOKUP($B$6,$A$25:$E$52,5)),NA()) -> 9.488108417 | S199: 14.5 | T199: =VLOOKUP($S199,P_All!$AA$5:$AY$245,3*($C$8-1)+2) -> 0.46251 | U199: =VLOOKUP($S199,P_All!$AA$5:$AY$245,3*($C$8-1)+3) -> 1.1812 | V199: =VLOOKUP($S199,P_All!$AA$5:$AY$245,3*($C$8-1)+4) -> 2.651 | W199: =VLOOKUP($S199,NA_All!$AA$5:$AY$245,3*($C$8-1)+2) -> 0.46309 | X199: =VLOOKUP($S199,NA_All!$AA$5:$AY$245,3*($C$8-1)+3) -> 1.1902 | Y199: =VLOOKUP($S199,NA_All!$AA$5:$AY$245,3*($C$8-1)+4) -> 2.657 | Z199: =IF(AND($B$8=$A$20,$B$6=$A$48),$B$54,IF(ISNA(VLOOKUP($B$6,$A$25:$E$52,IF($B$8=$A$22,3,2),FALSE)),EXP(VLOOKUP($B$6,$A$25:$E$52,4,FALSE)*LN(VLOOKUP($H199,P_Hard!$A$5:$Y$204,3*($C$8-1)+3,FALSE)/1000)+VLOOKUP($B$6,$A$25:$E$52,5,FALSE)),VLOOKUP($B$6,$A$25:$E$52,IF($B$8=$A$22,3,2),FALSE))) -> 9.488108417
H200: 176 | I200: =VLOOKUP($H200,P_All!$A$5:$Y$204,3*($C$8-1)+2) -> 2.347 | J200: =VLOOKUP($H200,P_All!$A$5:$Y$204,3*($C$8-1)+3) -> 4.6716 | K200: =VLOOKUP($H200,P_All!$A$5:$Y$204,3*($C$8-1)+4) -> 5.649 | L200: =VLOOKUP($H200,NA_All!$A$5:$Y$204,3*($C$8-1)+2) -> 1.5771 | M200: =VLOOKUP($H200,NA_All!$A$5:$Y$204,3*($C$8-1)+3) -> 2.196 | N200: =VLOOKUP($H200,NA_All!$A$5:$Y$204,3*($C$8-1)+4) -> 3.0038 | O200: =IF(ISNA(VLOOKUP($B$6,$A$25:$E$52,IF($B$8=$A$22,3,2))),EXP(VLOOKUP($B$6,$A$25:$E$52,4)*LN(VLOOKUP($H200,P_Hard!$A$5:$Y$204,3*($C$8-1)+2)/1000)+VLOOKUP($B$6,$A$25:$E$52,5)),NA()) -> 9.488108417 | P200: 9.765624442 | Q200: =IF(ISNA(VLOOKUP($B$6,$A$25:$E$52,IF($B$8=$A$22,3,2))),EXP(VLOOKUP($B$6,$A$25:$E$52,4)*LN(VLOOKUP($H200,P_Hard!$A$5:$Y$204,3*($C$8-1)+4)/1000)+VLOOKUP($B$6,$A$25:$E$52,5)),NA()) -> 9.488108417 | S200: 14.58333333 | T200: =VLOOKUP($S200,P_All!$AA$5:$AY$245,3*($C$8-1)+2) -> 0.55584 | U200: =VLOOKUP($S200,P_All!$AA$5:$AY$245,3*($C$8-1)+3) -> 1.2703 | V200: =VLOOKUP($S200,P_All!$AA$5:$AY$245,3*($C$8-1)+4) -> 2.5828 | W200: =VLOOKUP($S200,NA_All!$AA$5:$AY$245,3*($C$8-1)+2) -> 0.55759 | X200: =VLOOKUP($S200,NA_All!$AA$5:$AY$245,3*($C$8-1)+3) -> 1.2719 | Y200: =VLOOKUP($S200,NA_All!$AA$5:$AY$245,3*($C$8-1)+4) -> 2.5903 | Z200: =IF(AND($B$8=$A$20,$B$6=$A$48),$B$54,IF(ISNA(VLOOKUP($B$6,$A$25:$E$52,IF($B$8=$A$22,3,2),FALSE)),EXP(VLOOKUP($B$6,$A$25:$E$52,4,FALSE)*LN(VLOOKUP($H200,P_Hard!$A$5:$Y$204,3*($C$8-1)+3,FALSE)/1000)+VLOOKUP($B$6,$A$25:$E$52,5,FALSE)),VLOOKUP($B$6,$A$25:$E$52,IF($B$8=$A$22,3,2),FALSE))) -> 9.488108417
H201: 177 | I201: =VLOOKUP($H201,P_All!$A$5:$Y$204,3*($C$8-1)+2) -> 2.3396 | J201: =VLOOKUP($H201,P_All!$A$5:$Y$204,3*($C$8-1)+3) -> 4.6087 | K201: =VLOOKUP($H201,P_All!$A$5:$Y$204,3*($C$8-1)+4) -> 5.5536 | L201: =VLOOKUP($H201,NA_All!$A$5:$Y$204,3*($C$8-1)+2) -> 1.6506 | M201: =VLOOKUP($H201,NA_All!$A$5:$Y$204,3*($C$8-1)+3) -> 2.1913 | N201: =VLOOKUP($H201,NA_All!$A$5:$Y$204,3*($C$8-1)+4) -> 2.9692 | O201: =IF(ISNA(VLOOKUP($B$6,$A$25:$E$52,IF($B$8=$A$22,3,2))),EXP(VLOOKUP($B$6,$A$25:$E$52,4)*LN(VLOOKUP($H201,P_Hard!$A$5:$Y$204,3*($C$8-1)+2)/1000)+VLOOKUP($B$6,$A$25:$E$52,5)),NA()) -> 9.488108417 | P201: 9.765624442 | Q201: =IF(ISNA(VLOOKUP($B$6,$A$25:$E$52,IF($B$8=$A$22,3,2))),EXP(VLOOKUP($B$6,$A$25:$E$52,4)*LN(VLOOKUP($H201,P_Hard!$A$5:$Y$204,3*($C$8-1)+4)/1000)+VLOOKUP($B$6,$A$25:$E$52,5)),NA()) -> 9.488108417 | S201: 14.66666667 | T201: =VLOOKUP($S201,P_All!$AA$5:$AY$245,3*($C$8-1)+2) -> 0.50745 | U201: =VLOOKUP($S201,P_All!$AA$5:$AY$245,3*($C$8-1)+3) -> 1.2196 | V201: =VLOOKUP($S201,P_All!$AA$5:$AY$245,3*($C$8-1)+4) -> 2.3402 | W201: =VLOOKUP($S201,NA_All!$AA$5:$AY$245,3*($C$8-1)+2) -> 0.50779 | X201: =VLOOKUP($S201,NA_All!$AA$5:$AY$245,3*($C$8-1)+3) -> 1.2211 | Y201: =VLOOKUP($S201,NA_All!$AA$5:$AY$245,3*($C$8-1)+4) -> 2.3465 | Z201: =IF(AND($B$8=$A$20,$B$6=$A$48),$B$54,IF(ISNA(VLOOKUP($B$6,$A$25:$E$52,IF($B$8=$A$22,3,2),FALSE)),EXP(VLOOKUP($B$6,$A$25:$E$52,4,FALSE)*LN(VLOOKUP($H201,P_Hard!$A$5:$Y$204,3*($C$8-1)+3,FALSE)/1000)+VLOOKUP($B$6,$A$25:$E$52,5,FALSE)),VLOOKUP($B$6,$A$25:$E$52,IF($B$8=$A$22,3,2),FALSE))) -> 9.488108417
H202: 178 | I202: =VLOOKUP($H202,P_All!$A$5:$Y$204,3*($C$8-1)+2) -> 2.1523 | J202: =VLOOKUP($H202,P_All!$A$5:$Y$204,3*($C$8-1)+3) -> 4.3974 | K202: =VLOOKUP($H202,P_All!$A$5:$Y$204,3*($C$8-1)+4) -> 5.5806 | L202: =VLOOKUP($H202,NA_All!$A$5:$Y$204,3*($C$8-1)+2) -> 1.4723 | M202: =VLOOKUP($H202,NA_All!$A$5:$Y$204,3*($C$8-1)+3) -> 2.1972 | N202: =VLOOKUP($H202,NA_All!$A$5:$Y$204,3*($C$8-1)+4) -> 3.0143 | O202: =IF(ISNA(VLOOKUP($B$6,$A$25:$E$52,IF($B$8=$A$22,3,2))),EXP(VLOOKUP($B$6,$A$25:$E$52,4)*LN(VLOOKUP($H202,P_Hard!$A$5:$Y$204,3*($C$8-1)+2)/1000)+VLOOKUP($B$6,$A$25:$E$52,5)),NA()) -> 9.488108417 | P202: 9.765624442 | Q202: =IF(ISNA(VLOOKUP($B$6,$A$25:$E$52,IF($B$8=$A$22,3,2))),EXP(VLOOKUP($B$6,$A$25:$E$52,4)*LN(VLOOKUP($H202,P_Hard!$A$5:$Y$204,3*($C$8-1)+4)/1000)+VLOOKUP($B$6,$A$25:$E$52,5)),NA()) -> 9.488108417 | S202: 14.75 | T202: =VLOOKUP($S202,P_All!$AA$5:$AY$245,3*($C$8-1)+2) -> 0.51365 | U202: =VLOOKUP($S202,P_All!$AA$5:$AY$245,3*($C$8-1)+3) -> 1.2019 | V202: =VLOOKUP($S202,P_All!$AA$5:$AY$245,3*($C$8-1)+4) -> 2.5657 | W202: =VLOOKUP($S202,NA_All!$AA$5:$AY$245,3*($C$8-1)+2) -> 0.51774 | X202: =VLOOKUP($S202,NA_All!$AA$5:$AY$245,3*($C$8-1)+3) -> 1.2094 | Y202: =VLOOKUP($S202,NA_All!$AA$5:$AY$245,3*($C$8-1)+4) -> 2.5735 | Z202: =IF(AND($B$8=$A$20,$B$6=$A$48),$B$54,IF(ISNA(VLOOKUP($B$6,$A$25:$E$52,IF($B$8=$A$22,3,2),FALSE)),EXP(VLOOKUP($B$6,$A$25:$E$52,4,FALSE)*LN(VLOOKUP($H202,P_Hard!$A$5:$Y$204,3*($C$8-1)+3,FALSE)/1000)+VLOOKUP($B$6,$A$25:$E$52,5,FALSE)),VLOOKUP($B$6,$A$25:$E$52,IF($B$8=$A$22,3,2),FALSE))) -> 9.488108417
H203: 179 | I203: =VLOOKUP($H203,P_All!$A$5:$Y$204,3*($C$8-1)+2) -> 2.4013 | J203: =VLOOKUP($H203,P_All!$A$5:$Y$204,3*($C$8-1)+3) -> 4.5113 | K203: =VLOOKUP($H203,P_All!$A$5:$Y$204,3*($C$8-1)+4) -> 5.584 | L203: =VLOOKUP($H203,NA_All!$A$5:$Y$204,3*($C$8-1)+2) -> 1.6388 | M203: =VLOOKUP($H203,NA_All!$A$5:$Y$204,3*($C$8-1)+3) -> 2.2118 | N203: =VLOOKUP($H203,NA_All!$A$5:$Y$204,3*($C$8-1)+4) -> 2.885 | O203: =IF(ISNA(VLOOKUP($B$6,$A$25:$E$52,IF($B$8=$A$22,3,2))),EXP(VLOOKUP($B$6,$A$25:$E$52,4)*LN(VLOOKUP($H203,P_Hard!$A$5:$Y$204,3*($C$8-1)+2)/1000)+VLOOKUP($B$6,$A$25:$E$52,5)),NA()) -> 9.488108417 | P203: 9.765624442 | Q203: =IF(ISNA(VLOOKUP($B$6,$A$25:$E$52,IF($B$8=$A$22,3,2))),EXP(VLOOKUP($B$6,$A$25:$E$52,4)*LN(VLOOKUP($H203,P_Hard!$A$5:$Y$204,3*($C$8-1)+4)/1000)+VLOOKUP($B$6,$A$25:$E$52,5)),NA()) -> 9.488108417 | S203: 14.83333333 | T203: =VLOOKUP($S203,P_All!$AA$5:$AY$245,3*($C$8-1)+2) -> 0.49123 | U203: =VLOOKUP($S203,P_All!$AA$5:$AY$245,3*($C$8-1)+3) -> 1.1224 | V203: =VLOOKUP($S203,P_All!$AA$5:$AY$245,3*($C$8-1)+4) -> 2.8903 | W203: =VLOOKUP($S203,NA_All!$AA$5:$AY$245,3*($C$8-1)+2) -> 0.49151 | X203: =VLOOKUP($S203,NA_All!$AA$5:$AY$245,3*($C$8-1)+3) -> 1.1272 | Y203: =VLOOKUP($S203,NA_All!$AA$5:$AY$245,3*($C$8-1)+4) -> 2.896 | Z203: =IF(AND($B$8=$A$20,$B$6=$A$48),$B$54,IF(ISNA(VLOOKUP($B$6,$A$25:$E$52,IF($B$8=$A$22,3,2),FALSE)),EXP(VLOOKUP($B$6,$A$25:$E$52,4,FALSE)*LN(VLOOKUP($H203,P_Hard!$A$5:$Y$204,3*($C$8-1)+3,FALSE)/1000)+VLOOKUP($B$6,$A$25:$E$52,5,FALSE)),VLOOKUP($B$6,$A$25:$E$52,IF($B$8=$A$22,3,2),FALSE))) -> 9.488108417
H204: 180 | I204: =VLOOKUP($H204,P_All!$A$5:$Y$204,3*($C$8-1)+2) -> 2.2948 | J204: =VLOOKUP($H204,P_All!$A$5:$Y$204,3*($C$8-1)+3) -> 4.6984 | K204: =VLOOKUP($H204,P_All!$A$5:$Y$204,3*($C$8-1)+4) -> 5.6533 | L204: =VLOOKUP($H204,NA_All!$A$5:$Y$204,3*($C$8-1)+2) -> 1.5667 | M204: =VLOOKUP($H204,NA_All!$A$5:$Y$204,3*($C$8-1)+3) -> 2.2012 | N204: =VLOOKUP($H204,NA_All!$A$5:$Y$204,3*($C$8-1)+4) -> 3.1094 | O204: =IF(ISNA(VLOOKUP($B$6,$A$25:$E$52,IF($B$8=$A$22,3,2))),EXP(VLOOKUP($B$6,$A$25:$E$52,4)*LN(VLOOKUP($H204,P_Hard!$A$5:$Y$204,3*($C$8-1)+2)/1000)+VLOOKUP($B$6,$A$25:$E$52,5)),NA()) -> 9.488108417 | P204: 9.765624442 | Q204: =IF(ISNA(VLOOKUP($B$6,$A$25:$E$52,IF($B$8=$A$22,3,2))),EXP(VLOOKUP($B$6,$A$25:$E$52,4)*LN(VLOOKUP($H204,P_Hard!$A$5:$Y$204,3*($C$8-1)+4)/1000)+VLOOKUP($B$6,$A$25:$E$52,5)),NA()) -> 9.488108417 | S204: 14.91666667 | T204: =VLOOKUP($S204,P_All!$AA$5:$AY$245,3*($C$8-1)+2) -> 0.62083 | U204: =VLOOKUP($S204,P_All!$AA$5:$AY$245,3*($C$8-1)+3) -> 1.1608 | V204: =VLOOKUP($S204,P_All!$AA$5:$AY$245,3*($C$8-1)+4) -> 2.5593 | W204: =VLOOKUP($S204,NA_All!$AA$5:$AY$245,3*($C$8-1)+2) -> 0.62082 | X204: =VLOOKUP($S204,NA_All!$AA$5:$AY$245,3*($C$8-1)+3) -> 1.1694 | Y204: =VLOOKUP($S204,NA_All!$AA$5:$AY$245,3*($C$8-1)+4) -> 2.5658 | Z204: =IF(AND($B$8=$A$20,$B$6=$A$48),$B$54,IF(ISNA(VLOOKUP($B$6,$A$25:$E$52,IF($B$8=$A$22,3,2),FALSE)),EXP(VLOOKUP($B$6,$A$25:$E$52,4,FALSE)*LN(VLOOKUP($H204,P_Hard!$A$5:$Y$204,3*($C$8-1)+3,FALSE)/1000)+VLOOKUP($B$6,$A$25:$E$52,5,FALSE)),VLOOKUP($B$6,$A$25:$E$52,IF($B$8=$A$22,3,2),FALSE))) -> 9.488108417
H205: 181 | I205: =VLOOKUP($H205,P_All!$A$5:$Y$204,3*($C$8-1)+2) -> 2.2436 | J205: =VLOOKUP($H205,P_All!$A$5:$Y$204,3*($C$8-1)+3) -> 4.5672 | K205: =VLOOKUP($H205,P_All!$A$5:$Y$204,3*($C$8-1)+4) -> 5.4419 | L205: =VLOOKUP($H205,NA_All!$A$5:$Y$204,3*($C$8-1)+2) -> 1.5452 | M205: =VLOOKUP($H205,NA_All!$A$5:$Y$204,3*($C$8-1)+3) -> 2.1802 | N205: =VLOOKUP($H205,NA_All!$A$5:$Y$204,3*($C$8-1)+4) -> 2.9741 | O205: =IF(ISNA(VLOOKUP($B$6,$A$25:$E$52,IF($B$8=$A$22,3,2))),EXP(VLOOKUP($B$6,$A$25:$E$52,4)*LN(VLOOKUP($H205,P_Hard!$A$5:$Y$204,3*($C$8-1)+2)/1000)+VLOOKUP($B$6,$A$25:$E$52,5)),NA()) -> 9.488108417 | P205: 9.765624442 | Q205: =IF(ISNA(VLOOKUP($B$6,$A$25:$E$52,IF($B$8=$A$22,3,2))),EXP(VLOOKUP($B$6,$A$25:$E$52,4)*LN(VLOOKUP($H205,P_Hard!$A$5:$Y$204,3*($C$8-1)+4)/1000)+VLOOKUP($B$6,$A$25:$E$52,5)),NA()) -> 9.488108417 | S205: 15 | T205: =VLOOKUP($S205,P_All!$AA$5:$AY$245,3*($C$8-1)+2) -> 0.9613 | U205: =VLOOKUP($S205,P_All!$AA$5:$AY$245,3*($C$8-1)+3) -> 1.463 | V205: =VLOOKUP($S205,P_All!$AA$5:$AY$245,3*($C$8-1)+4) -> 2.0621 | W205: =VLOOKUP($S205,NA_All!$AA$5:$AY$245,3*($C$8-1)+2) -> 0.96717 | X205: =VLOOKUP($S205,NA_All!$AA$5:$AY$245,3*($C$8-1)+3) -> 1.4767 | Y205: =VLOOKUP($S205,NA_All!$AA$5:$AY$245,3*($C$8-1)+4) -> 2.0758 | Z205: =IF(AND($B$8=$A$20,$B$6=$A$48),$B$54,IF(ISNA(VLOOKUP($B$6,$A$25:$E$52,IF($B$8=$A$22,3,2),FALSE)),EXP(VLOOKUP($B$6,$A$25:$E$52,4,FALSE)*LN(VLOOKUP($H205,P_Hard!$A$5:$Y$204,3*($C$8-1)+3,FALSE)/1000)+VLOOKUP($B$6,$A$25:$E$52,5,FALSE)),VLOOKUP($B$6,$A$25:$E$52,IF($B$8=$A$22,3,2),FALSE))) -> 9.488108417
... 60 more rows

Sheet P_All
B1: Values shown for constituent selected on PlotControl tab | AB1: Values shown for constituent selected on PlotControl tab
B2: =PlotControl!$A$15 -> SW002 | E2: =PlotControl!$A$16 -> SW003 | H2: =PlotControl!$A$17 -> SW004 | K2: =PlotControl!$A$18 -> SW004a | N2: =PlotControl!$A$19 -> SW004b | Q2: =PlotControl!$A$20 -> SW005 | T2: =PlotControl!$A$21 -> SW006 | W2: =PlotControl!$A$22 -> Colby Lake | AB2: =PlotControl!$A$15 -> SW002 | AE2: =PlotControl!$A$16 -> SW003 | AH2: =PlotControl!$A$17 -> SW004 | AK2: =PlotControl!$A$18 -> SW004a | AN2: =PlotControl!$A$19 -> SW004b | AQ2: =PlotControl!$A$20 -> SW005 | AT2: =PlotControl!$A$21 -> SW006 | AW2: =PlotControl!$A$22 -> Colby Lake
B3: Annual Project Results | E3: Annual Project Results | H3: Annual Project Results | K3: Annual Project Results | N3: Annual Project Results | Q3: Annual Project Results | T3: Annual Project Results | W3: Annual Project Results | AB3: Monthly Project Results | AE3: Monthly Project Results | AH3: Monthly Project Results | AK3: Monthly Project Results | AN3: Monthly Project Results | AQ3: Monthly Project Results | AT3: Monthly Project Results | AW3: Monthly Project Results
A4: Time | B4: P10 | C4: P50 | D4: P90 | E4: P10 | F4: P50 | G4: P90 | H4: P10 | I4: P50 | J4: P90 | K4: P10 | L4: P50 | M4: P90 | N4: P10 | O4: P50 | P4: P90 | Q4: P10 | R4: P50 | S4: P90 | T4: P10 | U4: P50 | V4: P90 | W4: P10 | X4: P50 | Y4: P90 | AA4: Time | AB4: P10 | AC4: P50 | AD4: P90 | AE4: P10 | AF4: P50 | AG4: P90 | AH4: P10 | AI4: P50 | AJ4: P90 | AK4: P10 | AL4: P50 | AM4: P90 | AN4: P10 | AO4: P50 | AP4: P90 | AQ4: P10 | AR4: P50 | AS4: P90 | AT4: P10 | AU4: P50 | AV4: P90 | AW4: P10 | AX4: P50 | AY4: P90
A5: 1 | B5: =IF(PlotControl!$B$4 = "Annual Max",MAX(OFFSET(P_SW002!$C$10,12*($A5-1),4*(PlotControl!$C$6-1),12,1)),AVERAGE(OFFSET(P_SW002!$C$10,12*($A5-1),4*(PlotControl!$C$6-1),12,1))) -> 1.036 | C5: =IF(PlotControl!$B$4 = "Annual Max",MAX(OFFSET(P_SW002!$D$10,12*($A5-1),4*(PlotControl!$C$6-1),12,1)),AVERAGE(OFFSET(P_SW002!$D$10,12*($A5-1),4*(PlotControl!$C$6-1),12,1))) -> 1.1072 | D5: =IF(PlotControl!$B$4 = "Annual Max",MAX(OFFSET(P_SW002!$E$10,12*($A5-1),4*(PlotControl!$C$6-1),12,1)),AVERAGE(OFFSET(P_SW002!$E$10,12*($A5-1),4*(PlotControl!$C$6-1),12,1))) -> 2.4995 | E5: =IF(PlotControl!$B$4 = "Annual Max",MAX(OFFSET(P_SW003!$C$10,12*($A5-1),4*(PlotControl!$C$6-1),12,1)),AVERAGE(OFFSET(P_SW003!$C$10,12*($A5-1),4*(PlotControl!$C$6-1),12,1))) -> 1.0534 | F5: =IF(PlotControl!$B$4 = "Annual Max",MAX(OFFSET(P_SW003!$D$10,12*($A5-1),4*(PlotControl!$C$6-1),12,1)),AVERAGE(OFFSET(P_SW003!$D$10,12*($A5-1),4*(PlotControl!$C$6-1),12,1))) -> 1.1329 | G5: =IF(PlotControl!$B$4 = "Annual Max",MAX(OFFSET(P_SW003!$E$10,12*($A5-1),4*(PlotControl!$C$6-1),12,1)),AVERAGE(OFFSET(P_SW003!$E$10,12*($A5-1),4*(PlotControl!$C$6-1),12,1))) -> 2.5394 | H5: =IF(PlotControl!$B$4 = "Annual Max",MAX(OFFSET(P_SW004!$C$10,12*($A5-1),4*(PlotControl!$C$6-1),12,1)),AVERAGE(OFFSET(P_SW004!$C$10,12*($A5-1),4*(PlotControl!$C$6-1),12,1))) -> 1.5174 | I5: =IF(PlotControl!$B$4 = "Annual Max",MAX(OFFSET(P_SW004!$D$10,12*($A5-1),4*(PlotControl!$C$6-1),12,1)),AVERAGE(OFFSET(P_SW004!$D$10,12*($A5-1),4*(PlotControl!$C$6-1),12,1))) -> 1.5174 | J5: =IF(PlotControl!$B$4 = "Annual Max",MAX(OFFSET(P_SW004!$E$10,12*($A5-1),4*(PlotControl!$C$6-1),12,1)),AVERAGE(OFFSET(P_SW004!$E$10,12*($A5-1),4*(PlotControl!$C$6-1),12,1))) -> 2.6594 | K5: =IF(PlotControl!$B$4 = "Annual Max",MAX(OFFSET(P_SW004a!$C$10,12*($A5-1),4*(PlotControl!$C$6-1),12,1)),AVERAGE(OFFSET(P_SW004a!$C$10,12*($A5-1),4*(PlotControl!$C$6-1),12,1))) -> 1.5429 | L5: =IF(PlotControl!$B$4 = "Annual Max",MAX(OFFSET(P_SW004a!$D$10,12*($A5-1),4*(PlotControl!$C$6-1),12,1)),AVERAGE(OFFSET(P_SW004a!$D$10,12*($A5-1),4*(PlotControl!$C$6-1),12,1))) -> 1.5429 | M5: =IF(PlotControl!$B$4 = "Annual Max",MAX(OFFSET(P_SW004a!$E$10,12*($A5-1),4*(PlotControl!$C$6-1),12,1)),AVERAGE(OFFSET(P_SW004a!$E$10,12*($A5-1),4*(PlotControl!$C$6-1),12,1))) -> 2.9685 | N5: =IF(PlotControl!$B$4 = "Annual Max",MAX(OFFSET(P_SW004b!$C$10,12*($A5-1),4*(PlotControl!$C$6-1),12,1)),AVERAGE(OFFSET(P_SW004b!$C$10,12*($A5-1),4*(PlotControl!$C$6-1),12,1))) -> 1.4575 | O5: =IF(PlotControl!$B$4 = "Annual Max",MAX(OFFSET(P_SW004b!$D$10,12*($A5-1),4*(PlotControl!$C$6-1),12,1)),AVERAGE(OFFSET(P_SW004b!$D$10,12*($A5-1),4*(PlotControl!$C$6-1),12,1))) -> 1.5606 | P5: =IF(PlotControl!$B$4 = "Annual Max",MAX(OFFSET(P_SW004b!$E$10,12*($A5-1),4*(PlotControl!$C$6-1),12,1)),AVERAGE(OFFSET(P_SW004b!$E$10,12*($A5-1),4*(PlotControl!$C$6-1),12,1))) -> 2.9979 | Q5: =IF(PlotControl!$B$4 = "Annual Max",MAX(OFFSET(P_SW005!$C$10,12*($A5-1),4*(PlotControl!$C$6-1),12,1)),AVERAGE(OFFSET(P_SW005!$C$10,12*($A5-1),4*(PlotControl!$C$6-1),12,1))) -> 1.605 | R5: =IF(PlotControl!$B$4 = "Annual Max",MAX(OFFSET(P_SW005!$D$10,12*($A5-1),4*(PlotControl!$C$6-1),12,1)),AVERAGE(OFFSET(P_SW005!$D$10,12*($A5-1),4*(PlotControl!$C$6-1),12,1))) -> 1.6325 | S5: =IF(PlotControl!$B$4 = "Annual Max",MAX(OFFSET(P_SW005!$E$10,12*($A5-1),4*(PlotControl!$C$6-1),12,1)),AVERAGE(OFFSET(P_SW005!$E$10,12*($A5-1),4*(PlotControl!$C$6-1),12,1))) -> 2.9061 | T5: =IF(PlotControl!$B$4 = "Annual Max",MAX(OFFSET(P_SW006!$C$10,12*($A5-1),4*(PlotControl!$C$6-1),12,1)),AVERAGE(OFFSET(P_SW006!$C$10,12*($A5-1),4*(PlotControl!$C$6-1),12,1))) -> 1.605 | U5: =IF(PlotControl!$B$4 = "Annual Max",MAX(OFFSET(P_SW006!$D$10,12*($A5-1),4*(PlotControl!$C$6-1),12,1)),AVERAGE(OFFSET(P_SW006!$D$10,12*($A5-1),4*(PlotControl!$C$6-1),12,1))) -> 1.6489 | V5: =IF(PlotControl!$B$4 = "Annual Max",MAX(OFFSET(P_SW006!$E$10,12*($A5-1),4*(PlotControl!$C$6-1),12,1)),AVERAGE(OFFSET(P_SW006!$E$10,12*($A5-1),4*(PlotControl!$C$6-1),12,1))) -> 2.8523 | W5: =IF(PlotControl!$B$4 = "Annual Max",MAX(OFFSET(P_ColbyLake!$C$10,12*($A5-1),4*(PlotControl!$C$6-1),12,1)),AVERAGE(OFFSET(P_ColbyLake!$C$10,12*($A5-1),4*(PlotControl!$C$6-1),12,1))) -> 5.9142 | X5: =IF(PlotControl!$B$4 = "Annual Max",MAX(OFFSET(P_ColbyLake!$D$10,12*($A5-1),4*(PlotControl!$C$6-1),12,1)),AVERAGE(OFFSET(P_ColbyLake!$D$10,12*($A5-1),4*(PlotControl!$C$6-1),12,1))) -> 7.2337 | Y5: =IF(PlotControl!$B$4 = "Annual Max",MAX(OFFSET(P_ColbyLake!$E$10,12*($A5-1),4*(PlotControl!$C$6-1),12,1)),AVERAGE(OFFSET(P_ColbyLake!$E$10,12*($A5-1),4*(PlotControl!$C$6-1),12,1))) -> 8.082 | AA5: =PlotControl!$B$10 -> 0 | AB5: =OFFSET(P_SW002!$C$10,ROUND(12*$AA5,0),4*(PlotControl!$C$6-1),1,1) -> 0.76914 | AC5: =OFFSET(P_SW002!$D$10,ROUND(12*$AA5,0),4*(PlotControl!$C$6-1),1,1) -> 0.76914 | AD5: =OFFSET(P_SW002!$E$10,ROUND(12*$AA5,0),4*(PlotControl!$C$6-1),1,1) -> 0.76914 | AE5: =OFFSET(P_SW003!$C$10,ROUND(12*$AA5,0),4*(PlotControl!$C$6-1),1,1) -> 1.014 | AF5: =OFFSET(P_SW003!$D$10,ROUND(12*$AA5,0),4*(PlotControl!$C$6-1),1,1) -> 1.014 | AG5: =OFFSET(P_SW003!$E$10,ROUND(12*$AA5,0),4*(PlotControl!$C$6-1),1,1) -> 1.014 | AH5: =OFFSET(P_SW004!$C$10,ROUND(12*$AA5,0),4*(PlotControl!$C$6-1),1,1) -> 1.5174 | AI5: =OFFSET(P_SW004!$D$10,ROUND(12*$AA5,0),4*(PlotControl!$C$6-1),1,1) -> 1.5174 | AJ5: =OFFSET(P_SW004!$E$10,ROUND(12*$AA5,0),4*(PlotControl!$C$6-1),1,1) -> 1.5174 | AK5: =OFFSET(P_SW004a!$C$10,ROUND(12*$AA5,0),4*(PlotControl!$C$6-1),1,1) -> 1.5429 | AL5: =OFFSET(P_SW004a!$D$10,ROUND(12*$AA5,0),4*(PlotControl!$C$6-1),1,1) -> 1.5429 | AM5: =OFFSET(P_SW004a!$E$10,ROUND(12*$AA5,0),4*(PlotControl!$C$6-1),1,1) -> 1.5429 | AN5: =OFFSET(P_SW004b!$C$10,ROUND(12*$AA5,0),4*(PlotControl!$C$6-1),1,1) -> 1.4575 | AO5: =OFFSET(P_SW004b!$D$10,ROUND(12*$AA5,0),4*(PlotControl!$C$6-1),1,1) -> 1.4575 | AP5: =OFFSET(P_SW004b!$E$10,ROUND(12*$AA5,0),4*(PlotControl!$C$6-1),1,1) -> 1.4575 | AQ5: =OFFSET(P_SW005!$C$10,ROUND(12*$AA5,0),4*(PlotControl!$C$6-1),1,1) -> 1.605 | AR5: =OFFSET(P_SW005!$D$10,ROUND(12*$AA5,0),4*(PlotControl!$C$6-1),1,1) -> 1.605 | AS5: =OFFSET(P_SW005!$E$10,ROUND(12*$AA5,0),4*(PlotControl!$C$6-1),1,1) -> 1.605 | AT5: =OFFSET(P_SW006!$C$10,ROUND(12*$AA5,0),4*(PlotControl!$C$6-1),1,1) -> 1.605 | AU5: =OFFSET(P_SW005!$D$10,ROUND(12*$AA5,0),4*(PlotControl!$C$6-1),1,1) -> 1.605 | AV5: =OFFSET(P_SW006!$E$10,ROUND(12*$AA5,0),4*(PlotControl!$C$6-1),1,1) -> 1.605 | AW5: =OFFSET(P_ColbyLake!$C$10,ROUND(12*$AA5,0),4*(PlotControl!$C$6-1),1,1) -> 4.0907 | AX5: =OFFSET(P_ColbyLake!$D$10,ROUND(12*$AA5,0),4*(PlotControl!$C$6-1),1,1) -> 4.0907 | AY5: =OFFSET(P_ColbyLake!$E$10,ROUND(12*$AA5,0),4*(PlotControl!$C$6-1),1,1) -> 4.0907
